Workbook

Sheet Instructions
A1: FHWA Crash Data Summary Template V1.5 - Accessible | J1: Release Date: November 2020
A2: Overview
A3: This spreadsheet is a template that State, Tribal, local, and other agencies can use to summarize crash data and detect over-representation to inform their highway safety programs. FHWA adapted the template from the Washington State Department of Transportation's (WSDOT) "County X" Spreadsheet. WSDOT developed the diagnostic tool to support a systemic approach to safety for both State and local agencies.
A4: The only requirement for using the spreadsheet is having access to crash data. Everyone has free access to fatal crash data from the National Highway Traffic Safety Administration's Fatality and Injury Reporting System Tool (FIRST). The default crash data elements and attributes in the Template match the Model Minimum Uniform Crash Critera - 5th Edition guideline. However, the Crash Data Summary Template can be easily modified if your crash data contains different variables. The user can simply modify the crash/vehicle attributes in the tool to match their data by leaving a column blank or by inserting/deleting rows. Make sure to carry any changes across all worksheets in the template file.
A5: Agencies are also not limited to a certain number of years of crash data. Importing more years into the tool provides a larger sample and increases the ability to detect over-representation; however, at the same time, more years of data can create challenges if there are changes in the dataset over time.
A6: The contents of this Excel file include the following:
A7: Worksheet Name | B7: Preferred Names | C7: Contents
A8: Instructions | B8: ---- | C8: The current worksheet, which provides a description of the template and describes how to use the tool.
A9: Subject Data | B9: Test County | C9: This worksheet is the primary data entry worksheet for this analysis. Users input data for the subject jurisdiction (e.g., "County X") into Columns D-H and L-P. The proportional distributions are compared against total crashes within the jurisdiction and against proportions in the comparison groups.
A10: Comparison Group 1 | B10: Test Group 1 | C10: This worksheet is meant to summarize data for the first comparison group to be compared against (e.g. all county-owned roadways in the same DOT District as X County) into Columns D-H and L-P. Data for this worksheet may include crashes in neighboring towns, similar counties, and even statewide.
A11: Comparison Group 2 | B11: Test Group 2 | C11: This worksheet is meant to summarize data for the second comparison group to be compared against (e.g. all regional roadways in the state) into Columns D-H and L-P. Data for this worksheet may include crashes in neighboring towns, similar counties, and even statewide.
A12: Comparison Group 3 | B12: Test Group 3 | C12: This worksheet is meant to summarize data for the third comparison group to be compared against (e.g. all state roads) into Columns D-H and L-P. Data for this worksheet may include crashes in neighboring towns, similar counties, and even statewide.
A13: Summary | B13: ---- | C13: This worksheet contains the summary of the comparison analysis based on the input data from "Subject Data" and Comparison Group worksheets. The proportional distributions are compared against total crashes within the jurisdiction and against proportions in the comparison groups. Use this worksheet to review your results.
A14: Caption: Table includes three columns and five rows. The first column is for Worksheet Name, the second column is for Preferred Names, and the third column is for Contents. The first row is for Instructions with no entry for Preferred Names. The second row is for Subject Data with entry for the name of the subject area. The third row is for Comparison Group 1 with entry for the name of the County Roads. The fourth row is for Comparison Group 2 with entry for the name of the Region Roads. The fifth row is for Comparison Group 3 with entry for the name of State Roads. The sixth row is for Summary with no entry for Preferred Names.
A15: Instructions
A16: 1. In separate spreadsheet, organize crash data into a pivot table. 2. Label each worksheet using the "Preferred Names" column above. Type the label into the bordered cells above. 3. Update Column A of the Subject Data tab to match your agency's crash data elements and attributes. 4. Review crash distributions by severity in the pivot table and copy the data into the Subject Data Tab (Fatal and Serious Injury Crashes: Columns D-H, and Total Crashes: Columns L-P). 5. Once data are entered, review highlighted cells to identify overrepresented crash attributes between fatal and serious injury crashes and total crashes. If you would like to compare against a Comparison Group, proceed to Step 5. 6. Repeat these steps in the Comparison Group worksheets to compare the subject data against other data. 7. If you want to view/work in two places in the template at the same time, follow these instructions:
B17: i) from the “View” menu in Excel, select “New Window”
B18: ii) select “View Side by Side"
B19: iii) select “Synchronous Scrolling”
A20: Tips
A21: 1. Organize your pivot table to match the Template. This includes using the crash date or crash year element as columns and sorting in the same order as the Template. This allows for simply copying and pasting crash totals from the pivot table into the template. 2. Modify the Template to your needs. Add and remove rows and sections as you see fit. Don't feel limited to the default elements in the Template. 3. Don't feel limited to crash-level data, you can use vehicle-level data or person-level data. 4. Remember to carry any changes to data variables in the "Subject Data" worksheet through to the comparison group worksheets. 5. If the sample of fatal and suspected serious injury crashes is too small, consider including suspected minor injury crashes as well. 6. You do not have to use the Comparison Groups if you do not want to. They are provided as additional options for comparison.
A22: Pattern Coding Rules
A23: 0.034 | C23: Cells with the dotted pattern in Column I of the "Summary" worksheet indicate fatal and serious injury crashes are overrepresented against total crashes (for the subject data). An attribute is overrepresented if the proportion of fatal and serious injury crashes is either 5 percent or more than 2 times the proportion of total crashes.
A25: 0.034 | C25: Cells with the dotted pattern in Columns G, E, and C of the "Summary" worksheet indicate fatal and serious injury crashes for the subject data are overrepresented against fatal and serious injury crashes in the relevant comparison group. Cells with the pattern in Columns T, R, and P indicate total crashes for the subject data are overrepresented against total crashes in the relevant Comparison Group. An attribute is overrepresented if the proportion of subject data crashes is either 5 percent or more than 2 times the proportion of comparison group crashes.
A28: N/A | C28: N/A indicates no crash data are required or available for a cell.
A29: Accessibility
A30: To use an accessible version of a worksheet, toggle the "Accessibility:" switch in Cell A1 to read "On". Users can also toggle the button using CTRL+SHIFT+A.
A31: Acknowledgement
A32: This Template is based on a spreadsheet developed and used by WSDOT.

Sheet Subject Data
A1: Crash Data Summary Template
A2: Year 1 - Year 5 Subject Data | B2: Fatal and Serious Injury Crashes | I2: All Crashes
B3: =Instructions!B9 -> Test County | I3: =Instructions!B9 -> Test County
B4: Year 1 - Year 5 | C4: % | D4: Year 5 | E4: Year 4 | F4: Year 3 | G4: Year 2 | H4: Year 1 | I4: Year 1 - Year 5 | J4: % | K4: Year 5 | L4: Year 4 | M4: Year 3 | N4: Year 2 | O4: Year 1
A5: Overall Numbers
A6: Total # of Collisions | B6: =SUM(D6:H6) -> 7 | C6: N/A | D6: 2 | E6: 2 | F6: 1 | G6: 2 | H6: 0 | I6: =SUM(K6:O6) -> 50 | J6: N/A | K6: 8 | L6: 10 | M6: 17 | N6: 10 | O6: 5
A7: # of Fatal Collisions | B7: 4 | C7: =B7/B6 -> 0.5714285714 | D7: 1 | E7: 1 | F7: 1 | G7: 1 | H7: 0 | I7: 0 | J7: =I7/I6 -> 0 | K7: 0 | L7: 0 | M7: 0 | N7: 0 | O7: 0
A8: # of Serious Injury Collisions | B8: 3 | C8: =B8/B6 -> 0.4285714286 | D8: 1 | E8: 1 | F8: 0 | G8: 1 | H8: 0 | I8: 1 | J8: =I8/I6 -> 0.02 | K8: 1 | L8: 0 | M8: 0 | N8: 0 | O8: 0
A9: # of Alcohol-Related Collisions | B9: 0 | C9: =B9/B6 -> 0 | D9: 0 | E9: 0 | F9: 0 | G9: 0 | H9: 0 | I9: 2 | J9: =I9/I6 -> 0.04 | K9: 1 | L9: 0 | M9: 0 | N9: 1 | O9: 0
A10: Total # of Fatalities | B10: 0 | C10: N/A | D10: 0 | E10: 0 | F10: 0 | G10: 0 | H10: 0 | I10: 0 | J10: N/A | K10: 0 | L10: 0 | M10: 0 | N10: 0 | O10: 0
A11: Total # of Serious Injuries | B11: 3 | C11: N/A | D11: 1 | E11: 1 | F11: 0 | G11: 1 | H11: 0 | I11: 7 | J11: N/A | K11: 2 | L11: 1 | M11: 2 | N11: 2 | O11: 0
A12: Most Severe Injury Reported
A13: 5 (K) | B13: =SUM(D13:H13) -> 4 | C13: =B13/SUM(B$13:B$17) -> 0.5714285714 | D13: 1 | E13: 1 | F13: 1 | G13: 1 | H13: 0 | I13: =SUM(K13:O13) -> 4 | J13: =I13/SUM(I$13:I$17) -> 0.08 | K13: 1 | L13: 1 | M13: 1 | N13: 1 | O13: 0
A14: 4 (A) | B14: =SUM(D14:H14) -> 3 | C14: =B14/SUM(B$13:B$17) -> 0.4285714286 | D14: 1 | E14: 1 | F14: 0 | G14: 1 | H14: 0 | I14: =SUM(K14:O14) -> 3 | J14: =I14/SUM(I$13:I$17) -> 0.06 | K14: 1 | L14: 1 | M14: 0 | N14: 1 | O14: 0
A15: 3 (B) | B15: N/A | C15: N/A | D15: N/A | E15: N/A | F15: N/A | G15: N/A | H15: N/A | I15: =SUM(K15:O15) -> 2 | J15: =I15/SUM(I$13:I$17) -> 0.04 | K15: 0 | L15: 0 | M15: 0 | N15: 2 | O15: 0
A16: 2 (C) | B16: N/A | C16: N/A | D16: N/A | E16: N/A | F16: N/A | G16: N/A | H16: N/A | I16: =SUM(K16:O16) -> 4 | J16: 0.08 | K16: 1 | L16: 1 | M16: 2 | N16: 0 | O16: 0
A17: 1 (O) | B17: N/A | C17: N/A | D17: N/A | E17: N/A | F17: N/A | G17: N/A | H17: N/A | I17: =SUM(K17:O17) -> 37 | J17: 0.74 | K17: 5 | L17: 7 | M17: 14 | N17: 6 | O17: 5
A18: Property
A19: Public | B19: =SUM(D19:H19) -> 4 | C19: =B19/SUM(B$19:B$20) -> 0.5714285714 | D19: 1 | E19: 1 | F19: 1 | G19: 1 | H19: 0 | I19: =SUM(K19:O19) -> 37 | J19: =I19/SUM(I$19:I$20) -> 0.74 | K19: 5 | L19: 7 | M19: 14 | N19: 6 | O19: 5
A20: Private | B20: 3 | C20: =B20/SUM(B$19:B$20) -> 0.4285714286 | D20: 1 | E20: 1 | F20: 0 | G20: 1 | H20: 0 | I20: 13 | J20: =I20/SUM(I$19:I$20) -> 0.26 | K20: 3 | L20: 3 | M20: 3 | N20: 4 | O20: 0
A21: Location
A22: Trafficway, On Road | B22: =SUM(D22:H22) -> 3 | C22: =B22/SUM(B$22:B$24) -> 0.4285714286 | D22: 1 | E22: 1 | F22: 1 | G22: 0 | H22: 0 | I22: =SUM(K22:O22) -> 31 | J22: =I22/SUM(I$22:I$24) -> 0.62 | K22: 4 | L22: 7 | M22: 11 | N22: 5 | O22: 4
A23: Trafficway, Not on Road | B23: =SUM(D23:H23) -> 2 | C23: =B23/SUM(B$22:B$24) -> 0.2857142857 | D23: 0 | E23: 1 | F23: 0 | G23: 1 | H23: 0 | I23: =SUM(K23:O23) -> 13 | J23: =I23/SUM(I$22:I$24) -> 0.26 | K23: 3 | L23: 2 | M23: 3 | N23: 4 | O23: 1
A24: Non-Trafficway | B24: =SUM(D24:H24) -> 2 | C24: =B24/SUM(B$22:B$24) -> 0.2857142857 | D24: 1 | E24: 0 | F24: 0 | G24: 1 | H24: 0 | I24: =SUM(K24:O24) -> 6 | J24: =I24/SUM(I$22:I$24) -> 0.12 | K24: =K6-SUM(K22:K23) -> 1 | L24: =L6-SUM(L22:L23) -> 1 | M24: 3 | N24: 1 | O24: 0
A25: By Weekday
A26: Sunday | B26: =SUM(D26:H26) -> 1 | C26: =B26/SUM(B$26:B$32) -> 0.1428571429 | D26: 0 | E26: 1 | F26: 0 | G26: 0 | H26: 0 | I26: =SUM(K26:O26) -> 4 | J26: =I26/SUM(I$26:I$32) -> 0.08 | K26: 1 | L26: 1 | M26: 2 | N26: 0 | O26: 0
A27: Monday | B27: 1 | C27: =B27/SUM(B$26:B$32) -> 0.1428571429 | D27: 0 | E27: 0 | F27: 0 | G27: 1 | H27: 0 | I27: 9 | J27: =I27/SUM(I$26:I$32) -> 0.18 | K27: 1 | L27: 4 | M27: 0 | N27: 3 | O27: 1
A28: Tuesday | B28: 1 | C28: 0.1428571429 | D28: 1 | E28: 0 | F28: 0 | G28: 0 | H28: 0 | I28: 13 | J28: 0.26 | K28: 4 | L28: 3 | M28: 3 | N28: 2 | O28: 1
A29: Wednesday | B29: 2 | C29: 0.2857142857 | D29: 0 | E29: 0 | F29: 1 | G29: 1 | H29: 0 | I29: 6 | J29: 0.12 | K29: 1 | L29: 0 | M29: 4 | N29: 1 | O29: 0
A30: Thursday | B30: 1 | C30: 0.1428571429 | D30: 0 | E30: 1 | F30: 0 | G30: 0 | H30: 0 | I30: 8 | J30: 0.16 | K30: 0 | L30: 1 | M30: 4 | N30: 2 | O30: 1
A31: Friday | B31: 0 | C31: 0 | D31: 0 | E31: 0 | F31: 0 | G31: 0 | H31: 0 | I31: 5 | J31: 0.1 | K31: 0 | L31: 1 | M31: 1 | N31: 1 | O31: 2
A32: Saturday | B32: 1 | C32: 0.1428571429 | D32: 1 | E32: 0 | F32: 0 | G32: 0 | H32: 0 | I32: 5 | J32: 0.1 | K32: 1 | L32: 0 | M32: 3 | N32: 1 | O32: 0
A33: Crash Hour
A34: 12:00 AM - 12:59 AM | B34: =SUM(D34:H34) -> 2 | C34: =B34/SUM(B$34:B$58) -> 0.2857142857 | D34: 0 | E34: 0 | F34: 1 | G34: 1 | H34: 0 | I34: =SUM(K34:O34) -> 3 | J34: =I34/SUM(I$34:I$58) -> 0.06 | K34: 0 | L34: 0 | M34: 1 | N34: 2 | O34: 0
A35: 1:00 AM - 1:59 AM | B35: 0 | C35: =B35/SUM(B$34:B$58) -> 0 | D35: 0 | E35: 0 | F35: 0 | G35: 0 | H35: 0 | I35: 0 | J35: =I35/SUM(I$34:I$58) -> 0 | K35: 0 | L35: 0 | M35: 0 | N35: 0 | O35: 0
A36: 2:00 AM - 2:59 AM | B36: 0 | C36: 0 | D36: 0 | E36: 0 | F36: 0 | G36: 0 | H36: 0 | I36: 0 | J36: 0 | K36: 0 | L36: 0 | M36: 0 | N36: 0 | O36: 0
A37: 3:00 AM - 3:59 AM | B37: 0 | C37: 0 | D37: 0 | E37: 0 | F37: 0 | G37: 0 | H37: 0 | I37: 0 | J37: 0 | K37: 0 | L37: 0 | M37: 0 | N37: 0 | O37: 0
A38: 4:00 AM - 4:59 AM | B38: 1 | C38: 0.1428571429 | D38: 1 | E38: 0 | F38: 0 | G38: 0 | H38: 0 | I38: 1 | J38: 0.02 | K38: 1 | L38: 0 | M38: 0 | N38: 0 | O38: 0
A39: 5:00 AM - 5:59 AM | B39: 0 | C39: 0 | D39: 0 | E39: 0 | F39: 0 | G39: 0 | H39: 0 | I39: 3 | J39: 0.06 | K39: 0 | L39: 1 | M39: 2 | N39: 0 | O39: 0
A40: 6:00 AM - 6:59 AM | B40: 0 | C40: 0 | D40: 0 | E40: 0 | F40: 0 | G40: 0 | H40: 0 | I40: 1 | J40: 0.02 | K40: 0 | L40: 1 | M40: 0 | N40: 0 | O40: 0
A41: 7:00 AM - 7:59 AM | B41: 0 | C41: 0 | D41: 0 | E41: 0 | F41: 0 | G41: 0 | H41: 0 | I41: 2 | J41: 0.04 | K41: 0 | L41: 1 | M41: 0 | N41: 1 | O41: 0
A42: 8:00 AM - 8:59 AM | B42: 0 | C42: 0 | D42: 0 | E42: 0 | F42: 0 | G42: 0 | H42: 0 | I42: 2 | J42: 0.04 | K42: 1 | L42: 1 | M42: 0 | N42: 0 | O42: 0
A43: 9:00 AM - 9:59 AM | B43: 0 | C43: 0 | D43: 0 | E43: 0 | F43: 0 | G43: 0 | H43: 0 | I43: 2 | J43: 0.04 | K43: 2 | L43: 0 | M43: 0 | N43: 0 | O43: 0
A44: 10:00 AM - 10:59 AM | B44: 1 | C44: 0.1428571429 | D44: 0 | E44: 1 | F44: 0 | G44: 0 | H44: 0 | I44: 1 | J44: 0.02 | K44: 0 | L44: 0 | M44: 1 | N44: 0 | O44: 0
A45: 11:00 AM - 11:59 AM | B45: 0 | C45: 0 | D45: 0 | E45: 0 | F45: 0 | G45: 0 | H45: 0 | I45: 3 | J45: 0.06 | K45: 0 | L45: 0 | M45: 3 | N45: 0 | O45: 0
A46: 12:00 PM - 12:59 PM | B46: 0 | C46: 0 | D46: 0 | E46: 0 | F46: 0 | G46: 0 | H46: 0 | I46: 3 | J46: 0.06 | K46: 0 | L46: 1 | M46: 0 | N46: 2 | O46: 0
A47: 1:00 PM - 1:59 PM | B47: 1 | C47: 0.1428571429 | D47: 0 | E47: 1 | F47: 0 | G47: 0 | H47: 0 | I47: 5 | J47: 0.1 | K47: 1 | L47: 1 | M47: 2 | N47: 1 | O47: 0
A48: 2:00 PM - 2:59 PM | B48: 0 | C48: 0 | D48: 0 | E48: 0 | F48: 0 | G48: 0 | H48: 0 | I48: 4 | J48: 0.08 | K48: 0 | L48: 0 | M48: 3 | N48: 0 | O48: 1
A49: 3:00 PM - 3:59 PM | B49: 0 | C49: 0 | D49: 0 | E49: 0 | F49: 0 | G49: 0 | H49: 0 | I49: 4 | J49: 0.08 | K49: 1 | L49: 1 | M49: 1 | N49: 0 | O49: 1
A50: 4:00 PM - 4:59 PM | B50: 0 | C50: 0 | D50: 0 | E50: 0 | F50: 0 | G50: 0 | H50: 0 | I50: 3 | J50: 0.06 | K50: 0 | L50: 1 | M50: 1 | N50: 1 | O50: 0
A51: 5:00 PM - 5:59 PM | B51: 2 | C51: 0.2857142857 | D51: 1 | E51: 0 | F51: 0 | G51: 1 | H51: 0 | I51: 6 | J51: 0.12 | K51: 1 | L51: 0 | M51: 2 | N51: 2 | O51: 1
A52: 6:00 PM - 6:59 PM | B52: 0 | C52: 0 | D52: 0 | E52: 0 | F52: 0 | G52: 0 | H52: 0 | I52: 2 | J52: 0.04 | K52: 0 | L52: 1 | M52: 0 | N52: 0 | O52: 1
A53: 7:00 PM - 7:59 PM | B53: 0 | C53: 0 | D53: 0 | E53: 0 | F53: 0 | G53: 0 | H53: 0 | I53: 2 | J53: 0.04 | K53: 1 | L53: 0 | M53: 0 | N53: 1 | O53: 0
A54: 8:00 PM - 8:59 PM | B54: 0 | C54: 0 | D54: 0 | E54: 0 | F54: 0 | G54: 0 | H54: 0 | I54: 2 | J54: 0.04 | K54: 0 | L54: 1 | M54: 0 | N54: 0 | O54: 1
A55: 9:00 PM - 9:59 PM | B55: 0 | C55: 0 | D55: 0 | E55: 0 | F55: 0 | G55: 0 | H55: 0 | I55: 0 | J55: 0 | K55: 0 | L55: 0 | M55: 0 | N55: 0 | O55: 0
A56: 10:00 PM - 10:59 PM | B56: 0 | C56: 0 | D56: 0 | E56: 0 | F56: 0 | G56: 0 | H56: 0 | I56: 1 | J56: 0.02 | K56: 0 | L56: 0 | M56: 1 | N56: 0 | O56: 0
A57: 11:00 PM - 11:59 PM | B57: 0 | C57: 0 | D57: 0 | E57: 0 | F57: 0 | G57: 0 | H57: 0 | I57: 0 | J57: 0 | K57: 0 | L57: 0 | M57: 0 | N57: 0 | O57: 0
A58: Unknown | B58: 0 | C58: 0 | D58: 0 | E58: 0 | F58: 0 | G58: 0 | H58: 0 | I58: 0 | J58: 0 | K58: 0 | L58: 0 | M58: 0 | N58: 0 | O58: 0
A59: Crash Month
A60: January | B60: =SUM(D60:H60) -> 0 | C60: =B60/SUM(B$60:B$71) -> 0 | D60: 0 | E60: 0 | F60: 0 | G60: 0 | H60: 0 | I60: =SUM(K60:O60) -> 5 | J60: =I60/SUM(I$60:I$71) -> 0.1 | K60: 1 | L60: 2 | M60: 1 | N60: 0 | O60: 1
A61: February | B61: 0 | C61: =B61/SUM(B$60:B$71) -> 0 | D61: 0 | E61: 0 | F61: 0 | G61: 0 | H61: 0 | I61: 4 | J61: =I61/SUM(I$60:I$71) -> 0.08 | K61: 1 | L61: 0 | M61: 2 | N61: 0 | O61: 1
A62: March | B62: 0 | C62: 0 | D62: 0 | E62: 0 | F62: 0 | G62: 0 | H62: 0 | I62: 5 | J62: 0.1 | K62: 2 | L62: 2 | M62: 1 | N62: 0 | O62: 0
A63: April | B63: 1 | C63: 0.1428571429 | D63: 0 | E63: 1 | F63: 0 | G63: 0 | H63: 0 | I63: 5 | J63: 0.1 | K63: 0 | L63: 2 | M63: 2 | N63: 1 | O63: 0
A64: May | B64: 0 | C64: 0 | D64: 0 | E64: 0 | F64: 0 | G64: 0 | H64: 0 | I64: 3 | J64: 0.06 | K64: 0 | L64: 0 | M64: 3 | N64: 0 | O64: 0
A65: June | B65: 1 | C65: 0.1428571429 | D65: 0 | E65: 0 | F65: 1 | G65: 0 | H65: 0 | I65: 3 | J65: 0.06 | K65: 2 | L65: 0 | M65: 1 | N65: 0 | O65: 0
A66: July | B66: 2 | C66: 0.2857142857 | D66: 0 | E66: 0 | F66: 0 | G66: 2 | H66: 0 | I66: 6 | J66: 0.12 | K66: 0 | L66: 2 | M66: 2 | N66: 2 | O66: 0
A67: August | B67: 2 | C67: 0.2857142857 | D67: 2 | E67: 0 | F67: 0 | G67: 0 | H67: 0 | I67: 6 | J67: 0.12 | K67: 2 | L67: 0 | M67: 0 | N67: 3 | O67: 1
A68: September | B68: 0 | C68: 0 | D68: 0 | E68: 0 | F68: 0 | G68: 0 | H68: 0 | I68: 4 | J68: 0.08 | K68: 0 | L68: 1 | M68: 1 | N68: 1 | O68: 1
A69: October | B69: 0 | C69: 0 | D69: 0 | E69: 0 | F69: 0 | G69: 0 | H69: 0 | I69: 4 | J69: 0.08 | K69: 0 | L69: 0 | M69: 3 | N69: 1 | O69: 0
A70: November | B70: 1 | C70: 0.1428571429 | D70: 0 | E70: 1 | F70: 0 | G70: 0 | H70: 0 | I70: 3 | J70: 0.06 | K70: 0 | L70: 1 | M70: 1 | N70: 0 | O70: 1
A71: December | B71: 0 | C71: 0 | D71: 0 | E71: 0 | F71: 0 | G71: 0 | H71: 0 | I71: 2 | J71: 0.04 | K71: 0 | L71: 0 | M71: 0 | N71: 2 | O71: 0
A72: Crash Jurisdiction
A73: A | B73: =SUM(D73:H73) -> 0 | C73: =B73/SUM(B$73:B$77) -> 0 | D73: 0 | E73: 0 | F73: 0 | G73: 0 | H73: 0 | I73: =SUM(K73:O73) -> 0 | J73: =I73/SUM(I$73:I$77) -> 0 | K73: 0 | L73: 0 | M73: 0 | N73: 0 | O73: 0
A74: B | B74: =SUM(D74:H74) -> 1 | C74: =B74/SUM(B$73:B$77) -> 0.1428571429 | D74: 1 | E74: 0 | F74: 0 | G74: 0 | H74: 0 | I74: =SUM(K74:O74) -> 1 | J74: =I74/SUM(I$73:I$77) -> 0.02 | K74: 1 | L74: 0 | M74: 0 | N74: 0 | O74: 0
A75: C | B75: =SUM(D75:H75) -> 2 | C75: 0.2857142857 | D75: 0 | E75: 0 | F75: 0 | G75: 2 | H75: 0 | I75: =SUM(K75:O75) -> 2 | J75: 0.04 | K75: 0 | L75: 0 | M75: 0 | N75: 2 | O75: 0
A76: D | B76: =SUM(D76:H76) -> 4 | C76: 0.5714285714 | D76: 1 | E76: 1 | F76: 2 | G76: 0 | H76: 0 | I76: =SUM(K76:O76) -> 4 | J76: 0.08 | K76: 1 | L76: 1 | M76: 2 | N76: 0 | O76: 0
A77: E | B77: =SUM(D77:H77) -> 0 | C77: 0 | D77: 0 | E77: 0 | F77: 0 | G77: 0 | H77: 0 | I77: =SUM(K77:O77) -> 43 | J77: 0.86 | K77: 6 | L77: 9 | M77: 15 | N77: 8 | O77: 5
A78: First Harmful Event
A79: Cargo/Equipment Loss or Shift | B79: =SUM(D79:H79) -> 0 | C79: =B79/SUM(B$79:B$120) -> 0 | D79: 0 | E79: 0 | F79: 0 | G79: 0 | H79: 0 | I79: =SUM(K79:O79) -> 0 | J79: =I79/SUM(I$79:I$120) -> 0 | K79: 0 | L79: 0 | M79: 0 | N79: 0 | O79: 0
A80: Fell/Jumped from Motor Vehicle | B80: 0 | C80: =B80/SUM(B$79:B$120) -> 0 | D80: 0 | E80: 0 | F80: 0 | G80: 0 | H80: 0 | I80: 0 | J80: =I80/SUM(I$79:I$120) -> 0 | K80: 0 | L80: 0 | M80: 0 | N80: 0 | O80: 0
A81: Fire/Explosion | B81: 0 | C81: 0 | D81: 0 | E81: 0 | F81: 0 | G81: 0 | H81: 0 | I81: 0 | J81: 0 | K81: 0 | L81: 0 | M81: 0 | N81: 0 | O81: 0
A82: Immersion, Full or Partial | B82: 0 | C82: 0 | D82: 0 | E82: 0 | F82: 0 | G82: 0 | H82: 0 | I82: 0 | J82: 0 | K82: 0 | L82: 0 | M82: 0 | N82: 0 | O82: 0
A83: Jackknife | B83: 0 | C83: 0 | D83: 0 | E83: 0 | F83: 0 | G83: 0 | H83: 0 | I83: 0 | J83: 0 | K83: 0 | L83: 0 | M83: 0 | N83: 0 | O83: 0
A84: Other Non-Collision | B84: 3 | C84: 0.4285714286 | D84: 1 | E84: 0 | F84: 0 | G84: 2 | H84: 0 | I84: 14 | J84: 0.28 | K84: 4 | L84: 2 | M84: 5 | N84: 1 | O84: 2
A85: Overturn/Rollover | B85: 0 | C85: 0 | D85: 0 | E85: 0 | F85: 0 | G85: 0 | H85: 0 | I85: 0 | J85: 0 | K85: 0 | L85: 0 | M85: 0 | N85: 0 | O85: 0
A86: Thrown or Falling Object | B86: =SUM(D86:H86) -> 0 | C86: 0 | D86: 0 | E86: 0 | F86: 0 | G86: 0 | H86: 0 | I86: =SUM(K86:O86) -> 0 | J86: 0 | K86: 0 | L86: 0 | M86: 0 | N86: 0 | O86: 0
A87: Collision with Animal | B87: 0 | C87: 0 | D87: 0 | E87: 0 | F87: 0 | G87: 0 | H87: 0 | I87: 0 | J87: 0 | K87: 0 | L87: 0 | M87: 0 | N87: 0 | O87: 0
A88: Collision with Construction Equipment | B88: 0 | C88: 0 | D88: 0 | E88: 0 | F88: 0 | G88: 0 | H88: 0 | I88: 0 | J88: 0 | K88: 0 | L88: 0 | M88: 0 | N88: 0 | O88: 0
A89: Collision with Farm Equipment | B89: 0 | C89: 0 | D89: 0 | E89: 0 | F89: 0 | G89: 0 | H89: 0 | I89: 0 | J89: 0 | K89: 0 | L89: 0 | M89: 0 | N89: 0 | O89: 0
A90: Collision with Motor Vehicle in Transport | B90: 0 | C90: 0 | D90: 0 | E90: 0 | F90: 0 | G90: 0 | H90: 0 | I90: 6 | J90: 0.12 | K90: 1 | L90: 0 | M90: 3 | N90: 2 | O90: 0
A91: Collision with Other Non-Fixed Object | B91: 0 | C91: 0 | D91: 0 | E91: 0 | F91: 0 | G91: 0 | H91: 0 | I91: 0 | J91: 0 | K91: 0 | L91: 0 | M91: 0 | N91: 0 | O91: 0
A92: Collision with Other Non-motorist | B92: 0 | C92: 0 | D92: 0 | E92: 0 | F92: 0 | G92: 0 | H92: 0 | I92: 1 | J92: 0.02 | K92: 0 | L92: 0 | M92: 1 | N92: 0 | O92: 0
A93: Collision with Parked Motor Vehicle | B93: 0 | C93: 0 | D93: 0 | E93: 0 | F93: 0 | G93: 0 | H93: 0 | I93: 0 | J93: 0 | K93: 0 | L93: 0 | M93: 0 | N93: 0 | O93: 0
A94: Collision with Pedalcycle | B94: 0 | C94: 0 | D94: 0 | E94: 0 | F94: 0 | G94: 0 | H94: 0 | I94: 0 | J94: 0 | K94: 0 | L94: 0 | M94: 0 | N94: 0 | O94: 0
A95: Collision with Pedestrian | B95: 0 | C95: 0 | D95: 0 | E95: 0 | F95: 0 | G95: 0 | H95: 0 | I95: 0 | J95: 0 | K95: 0 | L95: 0 | M95: 0 | N95: 0 | O95: 0
A96: Collision with Railway Vehicle | B96: 0 | C96: 0 | D96: 0 | E96: 0 | F96: 0 | G96: 0 | H96: 0 | I96: 2 | J96: 0.04 | K96: 2 | L96: 0 | M96: 0 | N96: 0 | O96: 0
A97: Strikes Object ar Rest from MV in Transport | B97: 0 | C97: 0 | D97: 0 | E97: 0 | F97: 0 | G97: 0 | H97: 0 | I97: 0 | J97: 0 | K97: 0 | L97: 0 | M97: 0 | N97: 0 | O97: 0
A98: Struck by Falling, Shifting Cargo, or Anything Set in Motion by Motor Vehicle | B98: 1 | C98: 0.1428571429 | D98: 0 | E98: 1 | F98: 0 | G98: 0 | H98: 0 | I98: 0 | J98: 0 | K98: 0 | L98: 0 | M98: 0 | N98: 0 | O98: 0
A99: Collision with Bridge Overhead Structure | B99: 0 | C99: 0 | D99: 0 | E99: 0 | F99: 0 | G99: 0 | H99: 0 | I99: 2 | J99: 0.04 | K99: 0 | L99: 0 | M99: 1 | N99: 0 | O99: 1
A100: Collision with Bridge Pier or Support | B100: 0 | C100: 0 | D100: 0 | E100: 0 | F100: 0 | G100: 0 | H100: 0 | I100: 0 | J100: 0 | K100: 0 | L100: 0 | M100: 0 | N100: 0 | O100: 0
A101: Collision with Bridge Rail | B101: 1 | C101: 0.1428571429 | D101: 0 | E101: 0 | F101: 1 | G101: 0 | H101: 0 | I101: 0 | J101: 0 | K101: 0 | L101: 0 | M101: 0 | N101: 0 | O101: 0
A102: Collision with Cable Barrier | B102: 0 | C102: 0 | D102: 0 | E102: 0 | F102: 0 | G102: 0 | H102: 0 | I102: 0 | J102: 0 | K102: 0 | L102: 0 | M102: 0 | N102: 0 | O102: 0
A103: Collision with Concrete Traffic Barrier | B103: 0 | C103: 0 | D103: 0 | E103: 0 | F103: 0 | G103: 0 | H103: 0 | I103: 0 | J103: 0 | K103: 0 | L103: 0 | M103: 0 | N103: 0 | O103: 0
A104: Collision with Culvert | B104: 1 | C104: 0.1428571429 | D104: 1 | E104: 0 | F104: 0 | G104: 0 | H104: 0 | I104: 0 | J104: 0 | K104: 0 | L104: 0 | M104: 0 | N104: 0 | O104: 0
A105: Collision with Curb | B105: 0 | C105: 0 | D105: 0 | E105: 0 | F105: 0 | G105: 0 | H105: 0 | I105: 4 | J105: 0.08 | K105: 0 | L105: 0 | M105: 1 | N105: 2 | O105: 1
A106: Collision with Ditch | B106: 0 | C106: 0 | D106: 0 | E106: 0 | F106: 0 | G106: 0 | H106: 0 | I106: 0 | J106: 0 | K106: 0 | L106: 0 | M106: 0 | N106: 0 | O106: 0
A107: Collision with Embankment | B107: 0 | C107: 0 | D107: 0 | E107: 0 | F107: 0 | G107: 0 | H107: 0 | I107: 3 | J107: 0.06 | K107: 1 | L107: 2 | M107: 0 | N107: 0 | O107: 0
A108: Collision with Fence | B108: 0 | C108: 0 | D108: 0 | E108: 0 | F108: 0 | G108: 0 | H108: 0 | I108: 0 | J108: 0 | K108: 0 | L108: 0 | M108: 0 | N108: 0 | O108: 0
A109: Collision with Guardrail End Terminal | B109: 0 | C109: 0 | D109: 0 | E109: 0 | F109: 0 | G109: 0 | H109: 0 | I109: 0 | J109: 0 | K109: 0 | L109: 0 | M109: 0 | N109: 0 | O109: 0
A110: Collision with Guardrail Face | B110: 0 | C110: 0 | D110: 0 | E110: 0 | F110: 0 | G110: 0 | H110: 0 | I110: 0 | J110: 0 | K110: 0 | L110: 0 | M110: 0 | N110: 0 | O110: 0
A111: Collision with Impact Attenuator/Crash Cushion | B111: 0 | C111: 0 | D111: 0 | E111: 0 | F111: 0 | G111: 0 | H111: 0 | I111: 0 | J111: 0 | K111: 0 | L111: 0 | M111: 0 | N111: 0 | O111: 0
A112: Collision with Mailbox | B112: =SUM(D112:H112) -> 0 | C112: 0 | D112: 0 | E112: 0 | F112: 0 | G112: 0 | H112: 0 | I112: 6 | J112: 0.12 | K112: 0 | L112: 1 | M112: 2 | N112: 3 | O112: 0
A113: Collision with Other Fixed Object | B113: 0 | C113: 0 | D113: 0 | E113: 0 | F113: 0 | G113: 0 | H113: 0 | I113: 0 | J113: 0 | K113: 0 | L113: 0 | M113: 0 | N113: 0 | O113: 0
A114: Collision with Other Post, Pole, or Support | B114: 1 | C114: 0.1428571429 | D114: 0 | E114: 1 | F114: 0 | G114: 0 | H114: 0 | I114: 4 | J114: 0.08 | K114: 0 | L114: 4 | M114: 0 | N114: 0 | O114: 0
A115: Collision with Other Traffic Barrier | B115: 0 | C115: 0 | D115: 0 | E115: 0 | F115: 0 | G115: 0 | H115: 0 | I115: 0 | J115: 0 | K115: 0 | L115: 0 | M115: 0 | N115: 0 | O115: 0
A116: Collision with Traffic Sign Support | B116: 0 | C116: 0 | D116: 0 | E116: 0 | F116: 0 | G116: 0 | H116: 0 | I116: 8 | J116: 0.16 | K116: 0 | L116: 1 | M116: 4 | N116: 2 | O116: 1
A117: Collision with Traffic Signal Support | B117: 0 | C117: 0 | D117: 0 | E117: 0 | F117: 0 | G117: 0 | H117: 0 | I117: 0 | J117: 0 | K117: 0 | L117: 0 | M117: 0 | N117: 0 | O117: 0
A118: Collision with Tree | B118: 0 | C118: 0 | D118: 0 | E118: 0 | F118: 0 | G118: 0 | H118: 0 | I118: 0 | J118: 0 | K118: 0 | L118: 0 | M118: 0 | N118: 0 | O118: 0
A119: Collision with Utility Pole or Light Support | B119: 0 | C119: 0 | D119: 0 | E119: 0 | F119: 0 | G119: 0 | H119: 0 | I119: 0 | J119: 0 | K119: 0 | L119: 0 | M119: 0 | N119: 0 | O119: 0
A120: Unknown | B120: 0 | C120: 0 | D120: 0 | E120: 0 | F120: 0 | G120: 0 | H120: 0 | I120: 0 | J120: 0 | K120: =K6-SUM(K79:K119) -> 0 | L120: =L6-SUM(L79:L119) -> 0 | M120: 0 | N120: 0 | O120: 0
A121: Location of First Harmful Event
A122: Gore | B122: =SUM(D122:H122) -> 0 | C122: =B122/SUM(B$122:B$132) -> 0 | D122: 0 | E122: 0 | F122: 0 | G122: 0 | H122: 0 | I122: =SUM(K122:O122) -> 5 | J122: =I122/SUM(I$122:I$132) -> 0.1 | K122: 1 | L122: 2 | M122: 1 | N122: 0 | O122: 1
A123: In Parking Lane or Zone | B123: =SUM(D123:H123) -> 0 | C123: =B123/SUM(B$122:B$132) -> 0 | D123: 0 | E123: 0 | F123: 0 | G123: 0 | H123: 0 | I123: =SUM(K123:O123) -> 4 | J123: =I123/SUM(I$122:I$132) -> 0.08 | K123: 1 | L123: 0 | M123: 2 | N123: 0 | O123: 1
A124: Median | B124: =SUM(D124:H124) -> 0 | C124: 0 | D124: 0 | E124: 0 | F124: 0 | G124: 0 | H124: 0 | I124: =SUM(K124:O124) -> 5 | J124: 0.1 | K124: 2 | L124: 2 | M124: 1 | N124: 0 | O124: 0
A125: Off-Roadway, Location Unknown | B125: =SUM(D125:H125) -> 1 | C125: 0.1428571429 | D125: 0 | E125: 1 | F125: 0 | G125: 0 | H125: 0 | I125: =SUM(K125:O125) -> 5 | J125: 0.1 | K125: 0 | L125: 2 | M125: 2 | N125: 1 | O125: 0
A126: On Roadway | B126: 0 | C126: 0 | D126: 0 | E126: 0 | F126: 0 | G126: 0 | H126: 0 | I126: 3 | J126: 0.06 | K126: 0 | L126: 0 | M126: 3 | N126: 0 | O126: 0
A127: On Shoulder, Left Side | B127: 1 | C127: 0.1428571429 | D127: 0 | E127: 0 | F127: 1 | G127: 0 | H127: 0 | I127: 3 | J127: 0.06 | K127: 2 | L127: 0 | M127: 1 | N127: 0 | O127: 0
A128: On Shoulder, Right Side | B128: 2 | C128: 0.2857142857 | D128: 0 | E128: 0 | F128: 0 | G128: 2 | H128: 0 | I128: 6 | J128: 0.12 | K128: 0 | L128: 2 | M128: 2 | N128: 2 | O128: 0
A129: Outside Road/Right-of-Way | B129: 2 | C129: 0.2857142857 | D129: 2 | E129: 0 | F129: 0 | G129: 0 | H129: 0 | I129: 6 | J129: 0.12 | K129: 2 | L129: 0 | M129: 0 | N129: 3 | O129: 1
A130: Roadside | B130: 0 | C130: 0 | D130: 0 | E130: 0 | F130: 0 | G130: 0 | H130: 0 | I130: 4 | J130: 0.08 | K130: 0 | L130: 1 | M130: 1 | N130: 1 | O130: 1
A131: Separator/Traffic Island | B131: 0 | C131: 0 | D131: 0 | E131: 0 | F131: 0 | G131: 0 | H131: 0 | I131: 4 | J131: 0.08 | K131: 0 | L131: 0 | M131: 3 | N131: 1 | O131: 0
A132: Unknown | B132: =SUM(D132:H132) -> 1 | C132: 0.1428571429 | D132: 0 | E132: 1 | F132: 0 | G132: 0 | H132: 0 | I132: =SUM(K132:O132) -> 5 | J132: 0.1 | K132: 0 | L132: 1 | M132: 1 | N132: 2 | O132: 1
A133: Manner of Crash
A134: Not a Collision Between Two Motor Vehicles | B134: =SUM(D134:H134) -> 0 | C134: =B134/SUM(B$134:B$143) -> 0 | D134: 0 | E134: 0 | F134: 0 | G134: 0 | H134: 0 | I134: =SUM(K134:O134) -> 8 | J134: =I134/SUM(I$134:I$143) -> 0.16 | K134: 0 | L134: 3 | M134: 3 | N134: 0 | O134: 2
A135: Angle | B135: 1 | C135: =B135/SUM(B$134:B$143) -> 0.1428571429 | D135: 1 | E135: 0 | F135: 0 | G135: 0 | H135: 0 | I135: 13 | J135: =I135/SUM(I$134:I$143) -> 0.26 | K135: 2 | L135: 1 | M135: 3 | N135: 5 | O135: 2
A136: Front to Front | B136: 0 | C136: 0 | D136: 0 | E136: 0 | F136: 0 | G136: 0 | H136: 0 | I136: 0 | J136: 0 | K136: 0 | L136: 0 | M136: 0 | N136: 0 | O136: 0
A137: Front to Rear | B137: 0 | C137: 0 | D137: 0 | E137: 0 | F137: 0 | G137: 0 | H137: 0 | I137: 4 | J137: 0.08 | K137: 0 | L137: 1 | M137: 2 | N137: 1 | O137: 0
A138: Rear to Rear | B138: 5 | C138: 0.7142857143 | D138: 1 | E138: 1 | F138: 1 | G138: 2 | H138: 0 | I138: 25 | J138: 0.5 | K138: 6 | L138: 5 | M138: 9 | N138: 4 | O138: 1
A139: Rear to Side | B139: =SUM(D139:H139) -> 0 | C139: 0 | D139: 0 | E139: 0 | F139: 0 | G139: 0 | H139: 0 | I139: =SUM(K139:O139) -> 0 | J139: 0 | K139: 0 | L139: 0 | M139: 0 | N139: 0 | O139: 0
A140: Sideswipe, Opposite Direction | B140: =SUM(D140:H140) -> 0 | C140: 0 | D140: 0 | E140: 0 | F140: 0 | G140: 0 | H140: 0 | I140: 0 | J140: 0 | K140: 0 | L140: 0 | M140: 0 | N140: 0 | O140: 0
A141: Sideswipe, Same Direction | B141: 1 | C141: 0.1428571429 | D141: 0 | E141: 1 | F141: 0 | G141: 0 | H141: 0 | I141: 0 | J141: 0 | K141: 0 | L141: 0 | M141: 0 | N141: 0 | O141: 0
A142: Other | B142: 0 | C142: 0 | D142: 0 | E142: 0 | F142: 0 | G142: 0 | H142: 0 | I142: 0 | J142: 0 | K142: 0 | L142: 0 | M142: 0 | N142: 0 | O142: 0
A143: Unknown | B143: 0 | C143: 0 | D143: 0 | E143: 0 | F143: 0 | G143: 0 | H143: 0 | I143: 0 | J143: 0 | K143: 0 | L143: 0 | M143: 0 | N143: 0 | O143: 0
A144: Weather
A145: Blowing Sand, Soil, Dirt | B145: =SUM(D145:H145) -> 2 | C145: =B145/SUM(B$145:B$156) -> 0.2857142857 | D145: 0 | E145: 0 | F145: 0 | G145: 2 | H145: 0 | I145: =SUM(K145:O145) -> 6 | J145: =I145/SUM(I$145:I$156) -> 0.12 | K145: 0 | L145: 2 | M145: 2 | N145: 2 | O145: 0
A146: Blowing Snow | B146: 2 | C146: =B146/SUM(B$145:B$156) -> 0.2857142857 | D146: 2 | E146: 0 | F146: 0 | G146: 0 | H146: 0 | I146: 6 | J146: =I146/SUM(I$145:I$156) -> 0.12 | K146: 2 | L146: 0 | M146: 0 | N146: 3 | O146: 1
A147: Clear | B147: 0 | C147: 0 | D147: 0 | E147: 0 | F147: 0 | G147: 0 | H147: 0 | I147: 4 | J147: 0.08 | K147: 0 | L147: 1 | M147: 1 | N147: 1 | O147: 1
A148: Cloudy | B148: 0 | C148: 0 | D148: 0 | E148: 0 | F148: 0 | G148: 0 | H148: 0 | I148: 4 | J148: 0.08 | K148: 0 | L148: 0 | M148: 3 | N148: 1 | O148: 0
A149: Fog, Smog, Smoke | B149: 1 | C149: 0.1428571429 | D149: 0 | E149: 1 | F149: 0 | G149: 0 | H149: 0 | I149: 3 | J149: 0.06 | K149: 0 | L149: 1 | M149: 1 | N149: 0 | O149: 1
A150: Freezing Rain or Freezing Drizzle | B150: 0 | C150: 0 | D150: 0 | E150: 0 | F150: 0 | G150: 0 | H150: 0 | I150: 2 | J150: 0.04 | K150: 0 | L150: 0 | M150: 0 | N150: 2 | O150: 0
A151: Rain | B151: 0 | C151: 0 | D151: 0 | E151: 0 | F151: 0 | G151: 0 | H151: 0 | I151: 5 | J151: 0.1 | K151: 1 | L151: 2 | M151: 1 | N151: 0 | O151: 1
A152: Severe Crosswinds | B152: 0 | C152: 0 | D152: 0 | E152: 0 | F152: 0 | G152: 0 | H152: 0 | I152: 4 | J152: 0.08 | K152: 1 | L152: 0 | M152: 2 | N152: 0 | O152: 1
A153: Sleet or Hail | B153: 0 | C153: 0 | D153: 0 | E153: 0 | F153: 0 | G153: 0 | H153: 0 | I153: 5 | J153: 0.1 | K153: 2 | L153: 2 | M153: 1 | N153: 0 | O153: 0
A154: Snow | B154: 1 | C154: 0.1428571429 | D154: 0 | E154: 1 | F154: 0 | G154: 0 | H154: 0 | I154: 5 | J154: 0.1 | K154: 0 | L154: 2 | M154: 2 | N154: 1 | O154: 0
A155: Other | B155: 0 | C155: 0 | D155: 0 | E155: 0 | F155: 0 | G155: 0 | H155: 0 | I155: 3 | J155: 0.06 | K155: 0 | L155: 0 | M155: 3 | N155: 0 | O155: 0
A156: Unknown | B156: 1 | C156: 0.1428571429 | D156: 0 | E156: 0 | F156: 1 | G156: 0 | H156: 0 | I156: 3 | J156: 0.06 | K156: 2 | L156: 0 | M156: 1 | N156: 0 | O156: 0
A157: Light Conditions
A158: Daylight | B158: =SUM(D158:H158) -> 0 | C158: =B158/SUM(B$158:B$164) -> 0 | D158: 0 | E158: 0 | F158: 0 | G158: 0 | H158: 0 | I158: =SUM(K158:O158) -> 6 | J158: =I158/SUM(I$158:I$164) -> 0.12 | K158: 1 | L158: 0 | M158: 4 | N158: 1 | O158: 0
A159: Dawn/Dusk | B159: =SUM(D159:H159) -> 2 | C159: =B159/SUM(B$158:B$164) -> 0.2857142857 | D159: 0 | E159: 1 | F159: 0 | G159: 1 | H159: 0 | I159: =SUM(K159:O159) -> 8 | J159: =I159/SUM(I$158:I$164) -> 0.16 | K159: 0 | L159: 1 | M159: 4 | N159: 2 | O159: 1
A160: Dark - Lighted | B160: 1 | C160: 0.1428571429 | D160: 1 | E160: 0 | F160: 0 | G160: 0 | H160: 0 | I160: 5 | J160: 0.1 | K160: 0 | L160: 1 | M160: 1 | N160: 1 | O160: 2
A161: Dark - Not Lighted | B161: 2 | C161: 0.2857142857 | D161: 0 | E161: 0 | F161: 1 | G161: 1 | H161: 0 | I161: 5 | J161: 0.1 | K161: 1 | L161: 0 | M161: 3 | N161: 1 | O161: 0
A162: Dark - Unknown Lighting | B162: 1 | C162: 0.1428571429 | D162: 0 | E162: 1 | F162: 0 | G162: 0 | H162: 0 | I162: 4 | J162: 0.08 | K162: 1 | L162: 1 | M162: 2 | N162: 0 | O162: 0
A163: Other | B163: 0 | C163: 0 | D163: 0 | E163: 0 | F163: 0 | G163: 0 | H163: 0 | I163: 9 | J163: 0.18 | K163: 1 | L163: 4 | M163: 0 | N163: 3 | O163: 1
A164: Unknown | B164: 1 | C164: 0.1428571429 | D164: 1 | E164: 0 | F164: 0 | G164: 0 | H164: 0 | I164: 13 | J164: 0.26 | K164: 4 | L164: 3 | M164: 3 | N164: 2 | O164: 1
A165: Road Surface Condition
A166: Dry | B166: =SUM(D166:H166) -> 4 | C166: =B166/SUM(B$166:B$176) -> 0.5714285714 | D166: 1 | E166: 1 | F166: 1 | G166: 1 | H166: 0 | I166: =SUM(K166:O166) -> 22 | J166: =I166/SUM(I$166:I$176) -> 0.44 | K166: 5 | L166: 3 | M166: 10 | N166: 4 | O166: 0
A167: Ice/Frost | B167: 2 | C167: =B167/SUM(B$166:B$176) -> 0.2857142857 | D167: 1 | E167: 0 | F167: 0 | G167: 1 | H167: 0 | I167: 28 | J167: =I167/SUM(I$166:I$176) -> 0.56 | K167: 3 | L167: 7 | M167: 7 | N167: 6 | O167: 5
A168: Mud, Dirt, Gravel | B168: 0 | C168: 0 | D168: 0 | E168: 0 | F168: 0 | G168: 0 | H168: 0 | I168: 0 | J168: 0 | K168: 0 | L168: 0 | M168: 0 | N168: 0 | O168: 0
A169: Oil | B169: 1 | C169: 0.1428571429 | D169: 0 | E169: 1 | F169: 0 | G169: 0 | H169: 0 | I169: 0 | J169: 0 | K169: 0 | L169: 0 | M169: 0 | N169: 0 | O169: 0
A170: Sand | B170: 0 | C170: 0 | D170: 0 | E170: 0 | F170: 0 | G170: 0 | H170: 0 | I170: 0 | J170: 0 | K170: 0 | L170: 0 | M170: 0 | N170: 0 | O170: 0
A171: Sluch | B171: 0 | C171: 0 | D171: 0 | E171: 0 | F171: 0 | G171: 0 | H171: 0 | I171: 0 | J171: 0 | K171: 0 | L171: 0 | M171: 0 | N171: 0 | O171: 0
A172: Snow | B172: 0 | C172: 0 | D172: 0 | E172: 0 | F172: 0 | G172: 0 | H172: 0 | I172: 0 | J172: 0 | K172: 0 | L172: 0 | M172: 0 | N172: 0 | O172: 0
A173: Water (Standing, Moving) | B173: 0 | C173: 0 | D173: 0 | E173: 0 | F173: 0 | G173: 0 | H173: 0 | I173: 0 | J173: 0 | K173: 0 | L173: 0 | M173: 0 | N173: 0 | O173: 0
A174: Wet | B174: 0 | C174: 0 | D174: 0 | E174: 0 | F174: 0 | G174: 0 | H174: 0 | I174: 0 | J174: 0 | K174: 0 | L174: 0 | M174: 0 | N174: 0 | O174: 0
A175: Other | B175: 0 | C175: 0 | D175: 0 | E175: 0 | F175: 0 | G175: 0 | H175: 0 | I175: 0 | J175: 0 | K175: 0 | L175: 0 | M175: 0 | N175: 0 | O175: 0
A176: Unknown | B176: 0 | C176: 0 | D176: 0 | E176: 0 | F176: 0 | G176: 0 | H176: 0 | I176: 0 | J176: 0 | K176: 0 | L176: 0 | M176: 0 | N176: 0 | O176: 0
A177: Contributing Circumstances - Roadway Environment, Selection 1
A178: None | B178: =SUM(D178:H178) -> 1 | C178: =B178/SUM(B$178:B$200) -> 0.1428571429 | D178: 0 | E178: 0 | F178: 0 | G178: 1 | H178: 0 | I178: =SUM(K178:O178) -> 0 | J178: =I178/SUM(I$178:I$200) -> 0 | K178: 0 | L178: 0 | M178: 0 | N178: 0 | O178: 0
A179: Animal(s) | B179: 0 | C179: =B179/SUM(B$178:B$200) -> 0 | D179: 0 | E179: 0 | F179: 0 | G179: 0 | H179: 0 | I179: 0 | J179: =I179/SUM(I$178:I$200) -> 0 | K179: 0 | L179: 0 | M179: 0 | N179: 0 | O179: 0
A180: Debris | B180: 0 | C180: 0 | D180: 0 | E180: 0 | F180: 0 | G180: 0 | H180: 0 | I180: 1 | J180: 0.02 | K180: 1 | L180: 0 | M180: 0 | N180: 0 | O180: 0
A181: Glare | B181: 0 | C181: 0 | D181: 0 | E181: 0 | F181: 0 | G181: 0 | H181: 0 | I181: 3 | J181: 0.06 | K181: 0 | L181: 1 | M181: 2 | N181: 0 | O181: 0
A182: Non-Highway Work | B182: 1 | C182: 0.1428571429 | D182: 1 | E182: 0 | F182: 0 | G182: 0 | H182: 0 | I182: 1 | J182: 0.02 | K182: 0 | L182: 1 | M182: 0 | N182: 0 | O182: 0
A183: Obstructed Crosswalks | B183: 0 | C183: 0 | D183: 0 | E183: 0 | F183: 0 | G183: 0 | H183: 0 | I183: 2 | J183: 0.04 | K183: 0 | L183: 1 | M183: 0 | N183: 1 | O183: 0
A184: Obstruction in Roadway | B184: 0 | C184: 0 | D184: 0 | E184: 0 | F184: 0 | G184: 0 | H184: 0 | I184: 5 | J184: 0.1 | K184: 1 | L184: 1 | M184: 0 | N184: 3 | O184: 0
A185: Prior Crash | B185: 0 | C185: 0 | D185: 0 | E185: 0 | F185: 0 | G185: 0 | H185: 0 | I185: 2 | J185: 0.04 | K185: 2 | L185: 0 | M185: 0 | N185: 0 | O185: 0
A186: Prior Non-Recurring Incident | B186: 0 | C186: 0 | D186: 0 | E186: 0 | F186: 0 | G186: 0 | H186: 0 | I186: 1 | J186: 0.02 | K186: 0 | L186: 0 | M186: 1 | N186: 0 | O186: 0
A187: Regular Congestion | B187: 0 | C187: 0 | D187: 0 | E187: 0 | F187: 0 | G187: 0 | H187: 0 | I187: 3 | J187: 0.06 | K187: 0 | L187: 0 | M187: 3 | N187: 0 | O187: 0
A188: Related to a Bus Stop | B188: 0 | C188: 0 | D188: 0 | E188: 0 | F188: 0 | G188: 0 | H188: 0 | I188: 3 | J188: 0.06 | K188: 0 | L188: 1 | M188: 0 | N188: 2 | O188: 0
A189: Road Surface Condition (wet, icy, snow, slush, etc.) | B189: 0 | C189: 0 | D189: 0 | E189: 0 | F189: 0 | G189: 0 | H189: 0 | I189: 5 | J189: 0.1 | K189: 1 | L189: 1 | M189: 2 | N189: 1 | O189: 0
A190: Ruts, Holes, Bumps | B190: 0 | C190: 0 | D190: 0 | E190: 0 | F190: 0 | G190: 0 | H190: 0 | I190: 4 | J190: 0.08 | K190: 0 | L190: 0 | M190: 3 | N190: 0 | O190: 1
A191: Shoulders (none, low, soft, high) | B191: 1 | C191: 0.1428571429 | D191: 0 | E191: 1 | F191: 0 | G191: 0 | H191: 0 | I191: 4 | J191: 0.08 | K191: 1 | L191: 1 | M191: 1 | N191: 0 | O191: 1
A192: Toll Booth/Plaza Related | B192: 0 | C192: 0 | D192: 0 | E192: 0 | F192: 0 | G192: 0 | H192: 0 | I192: 3 | J192: 0.06 | K192: 0 | L192: 1 | M192: 1 | N192: 1 | O192: 0
A193: Traffic Control Device | B193: 0 | C193: 0 | D193: 0 | E193: 0 | F193: 0 | G193: 0 | H193: 0 | I193: 6 | J193: 0.12 | K193: 1 | L193: 0 | M193: 2 | N193: 2 | O193: 1
A194: Traffic Incident | B194: 0 | C194: 0 | D194: 0 | E194: 0 | F194: 0 | G194: 0 | H194: 0 | I194: 2 | J194: 0.04 | K194: 0 | L194: 1 | M194: 0 | N194: 0 | O194: 1
A195: Visual Obstruction(s) | B195: 3 | C195: 0.4285714286 | D195: 1 | E195: 0 | F195: 1 | G195: 1 | H195: 0 | I195: 1 | J195: 0.02 | K195: 1 | L195: 0 | M195: 0 | N195: 0 | O195: 0
A196: Weather Conditions | B196: 1 | C196: 0.1428571429 | D196: 0 | E196: 1 | F196: 0 | G196: 0 | H196: 0 | I196: 2 | J196: 0.04 | K196: 0 | L196: 1 | M196: 0 | N196: 0 | O196: 1
A197: Work Zone (construction/maintenance/utility) | B197: 0 | C197: 0 | D197: 0 | E197: 0 | F197: 0 | G197: 0 | H197: 0 | I197: 1 | J197: 0.02 | K197: 0 | L197: 0 | M197: 1 | N197: 0 | O197: 0
A198: Worn, Travel-polished Surface | B198: 0 | C198: 0 | D198: 0 | E198: 0 | F198: 0 | G198: 0 | H198: 0 | I198: 1 | J198: 0.02 | K198: 0 | L198: 0 | M198: 1 | N198: 0 | O198: 0
A199: Other | B199: 0 | C199: 0 | D199: 0 | E199: 0 | F199: 0 | G199: 0 | H199: 0 | I199: 0 | J199: 0 | K199: 0 | L199: 0 | M199: 0 | N199: 0 | O199: 0
A200: Unknown | B200: 0 | C200: 0 | D200: 0 | E200: 0 | F200: 0 | G200: 0 | H200: 0 | I200: 0 | J200: 0 | K200: 0 | L200: 0 | M200: 0 | N200: 0 | O200: 0
... 377 more rows

Sheet Subject Data Accessible (hidden)
A1: =CONCATENATE("Fatal and Serious Injury Crashes Only - ",A2, " ",Instructions!$B$9) -> Fatal and Serious Injury Crashes Only - Overall Numbers Test County | I1: =CONCATENATE("Total Crashes - ",I2, " ",Instructions!$B$9) -> Total Crashes - Overall Numbers Test County
A2: Overall Numbers | B2: Number of Crashes | C2: Percent of Crashes | D2: Year 5 Crashes | E2: Year 4 Crashes | F2: Year 3 Crashes | G2: Year 2 Crashes | H2: Year 1 Crashes | I2: Overall Numbers | J2: Number of Crashes | K2: Percent of Crashes | L2: Year 5 Crashes | M2: Year 4 Crashes | N2: Year 3 Crashes | O2: Year 2 Crashes | P2: Year 1 Crashes
A3: Total # of Collisions | B3: =SUM(D3:H3) -> 7 | C3: N/A | D3: 2 | E3: 2 | F3: 1 | G3: 2 | H3: 0 | I3: =A3 -> Total # of Collisions | J3: =SUM(L3:P3) -> 50 | K3: N/A | L3: 8 | M3: 10 | N3: 17 | O3: 10 | P3: 5
A4: # of Fatal Collisions | B4: 4 | C4: =B4/B3 -> 0.5714285714 | D4: 1 | E4: 1 | F4: 1 | G4: 1 | H4: 0 | I4: # of Fatal Collisions | J4: 0 | K4: =J4/J3 -> 0 | L4: 0 | M4: 0 | N4: 0 | O4: 0 | P4: 0
A5: # of Serious Injury Collisions | B5: 3 | C5: =B5/B3 -> 0.4285714286 | D5: 1 | E5: 1 | F5: 0 | G5: 1 | H5: 0 | I5: # of Serious Injury Collisions | J5: 1 | K5: =J5/J3 -> 0.02 | L5: 1 | M5: 0 | N5: 0 | O5: 0 | P5: 0
A6: # of Alcohol-Related Collisions | B6: 0 | C6: =B6/B3 -> 0 | D6: 0 | E6: 0 | F6: 0 | G6: 0 | H6: 0 | I6: # of Alcohol-Related Collisions | J6: 2 | K6: =J6/J3 -> 0.04 | L6: 1 | M6: 0 | N6: 0 | O6: 1 | P6: 0
A7: Total # of Fatalities | B7: 0 | C7: N/A | D7: 0 | E7: 0 | F7: 0 | G7: 0 | H7: 0 | I7: Total # of Fatalities | J7: 0 | K7: N/A | L7: 0 | M7: 0 | N7: 0 | O7: 0 | P7: 0
A8: Total # of Serious Injuries | B8: 3 | C8: N/A | D8: 1 | E8: 1 | F8: 0 | G8: 1 | H8: 0 | I8: Total # of Serious Injuries | J8: 7 | K8: N/A | L8: 2 | M8: 1 | N8: 2 | O8: 2 | P8: 0
A9: =CONCATENATE("Fatal and Serious Injury Crashes Only - ",A10, " ",Instructions!$B$9) -> Fatal and Serious Injury Crashes Only - Most Severe Injury Reported Test County | I9: =CONCATENATE("Total Crashes - ",I10, " ",Instructions!$B$9) -> Total Crashes - Most Severe Injury Reported Test County
A10: Most Severe Injury Reported | B10: Number of Crashes | C10: Percent of Crashes | D10: Year 5 Crashes | E10: Year 4 Crashes | F10: Year 3 Crashes | G10: Year 2 Crashes | H10: Year 1 Crashes | I10: Most Severe Injury Reported | J10: Number of Crashes | K10: Percent of Crashes | L10: Year 5 Crashes | M10: Year 4 Crashes | N10: Year 3 Crashes | O10: Year 2 Crashes | P10: Year 1 Crashes
A11: 5 (K) | B11: =SUM(D11:H11) -> 4 | C11: =B11/SUM(B$11:B$15) -> 0.5714285714 | D11: 1 | E11: 1 | F11: 1 | G11: 1 | H11: 0 | I11: =A11 -> 5 (K) | J11: =SUM(L11:P11) -> 4 | K11: =J11/SUM(J$11:J$15) -> 0.08 | L11: 1 | M11: 1 | N11: 1 | O11: 1 | P11: 0
A12: 4 (A) | B12: =SUM(D12:H12) -> 3 | C12: =B12/SUM(B$11:B$15) -> 0.4285714286 | D12: 1 | E12: 1 | F12: 0 | G12: 1 | H12: 0 | I12: =A12 -> 4 (A) | J12: =SUM(L12:P12) -> 3 | K12: =J12/SUM(J$11:J$15) -> 0.06 | L12: 1 | M12: 1 | N12: 0 | O12: 1 | P12: 0
A13: 3 (B) | B13: N/A | C13: N/A | D13: N/A | E13: N/A | F13: N/A | G13: N/A | H13: N/A | I13: =A13 -> 3 (B) | J13: =SUM(L13:P13) -> 2 | K13: =J13/SUM(J$11:J$15) -> 0.04 | L13: 0 | M13: 0 | N13: 0 | O13: 2 | P13: 0
A14: 2 (C) | B14: N/A | C14: N/A | D14: N/A | E14: N/A | F14: N/A | G14: N/A | H14: N/A | I14: =A14 -> 2 (C) | J14: =SUM(L14:P14) -> 4 | K14: 0.08 | L14: 1 | M14: 1 | N14: 2 | O14: 0 | P14: 0
A15: 1 (O) | B15: N/A | C15: N/A | D15: N/A | E15: N/A | F15: N/A | G15: N/A | H15: N/A | I15: =A15 -> 1 (O) | J15: =SUM(L15:P15) -> 37 | K15: 0.74 | L15: 5 | M15: 7 | N15: 14 | O15: 6 | P15: 5
A16: =CONCATENATE("Fatal and Serious Injury Crashes Only - ",A17, " ",Instructions!$B$9) -> Fatal and Serious Injury Crashes Only - Property Test County | I16: =CONCATENATE("Total Crashes - ",I17, " ",Instructions!$B$9) -> Total Crashes - Property Test County
A17: Property | B17: Number of Crashes | C17: Percent of Crashes | D17: Year 5 Crashes | E17: Year 4 Crashes | F17: Year 3 Crashes | G17: Year 2 Crashes | H17: Year 1 Crashes | I17: Property | J17: Number of Crashes | K17: Percent of Crashes | L17: Year 5 Crashes | M17: Year 4 Crashes | N17: Year 3 Crashes | O17: Year 2 Crashes | P17: Year 1 Crashes
A18: Public | B18: =SUM(D18:H18) -> 4 | C18: =B18/SUM(B$18:B$19) -> 0.5714285714 | D18: 1 | E18: 1 | F18: 1 | G18: 1 | H18: 0 | I18: =A18 -> Public | J18: =SUM(L18:P18) -> 37 | K18: =J18/SUM(J$18:J$19) -> 0.74 | L18: 5 | M18: 7 | N18: 14 | O18: 6 | P18: 5
A19: Private | B19: 3 | C19: =B19/SUM(B$18:B$19) -> 0.4285714286 | D19: 1 | E19: 1 | F19: 0 | G19: 1 | H19: 0 | I19: =A19 -> Private | J19: 13 | K19: =J19/SUM(J$18:J$19) -> 0.26 | L19: 3 | M19: 3 | N19: 3 | O19: 4 | P19: 0
A20: =CONCATENATE("Fatal and Serious Injury Crashes Only - ",A21, " ",Instructions!$B$9) -> Fatal and Serious Injury Crashes Only - Location Test County | I20: =CONCATENATE("Total Crashes - ",I21, " ",Instructions!$B$9) -> Total Crashes - Location Test County
A21: Location | B21: Number of Crashes | C21: Percent of Crashes | D21: Year 5 Crashes | E21: Year 4 Crashes | F21: Year 3 Crashes | G21: Year 2 Crashes | H21: Year 1 Crashes | I21: Location | J21: Number of Crashes | K21: Percent of Crashes | L21: Year 5 Crashes | M21: Year 4 Crashes | N21: Year 3 Crashes | O21: Year 2 Crashes | P21: Year 1 Crashes
A22: Trafficway, On Road | B22: =SUM(D22:H22) -> 3 | C22: =B22/SUM(B$22:B$24) -> 0.4285714286 | D22: 1 | E22: 1 | F22: 1 | G22: 0 | H22: 0 | I22: =A22 -> Trafficway, On Road | J22: =SUM(L22:P22) -> 31 | K22: =J22/SUM(J$22:J$24) -> 0.62 | L22: 4 | M22: 7 | N22: 11 | O22: 5 | P22: 4
A23: Trafficway, Not on Road | B23: =SUM(D23:H23) -> 2 | C23: =B23/SUM(B$22:B$24) -> 0.2857142857 | D23: 0 | E23: 1 | F23: 0 | G23: 1 | H23: 0 | I23: =A23 -> Trafficway, Not on Road | J23: =SUM(L23:P23) -> 13 | K23: =J23/SUM(J$22:J$24) -> 0.26 | L23: 3 | M23: 2 | N23: 3 | O23: 4 | P23: 1
A24: Non-Trafficway | B24: =SUM(D24:H24) -> 2 | C24: =B24/SUM(B$22:B$24) -> 0.2857142857 | D24: 1 | E24: 0 | F24: 0 | G24: 1 | H24: 0 | I24: =A24 -> Non-Trafficway | J24: =SUM(L24:P24) -> 6 | K24: =J24/SUM(J$22:J$24) -> 0.12 | L24: =L3-SUM(L22:L23) -> 1 | M24: =M3-SUM(M22:M23) -> 1 | N24: 3 | O24: 1 | P24: 0
A25: =CONCATENATE("Fatal and Serious Injury Crashes Only - ",A26, " ",Instructions!$B$9) -> Fatal and Serious Injury Crashes Only - Weekday Test County | I25: =CONCATENATE("Total Crashes - ",I26, " ",Instructions!$B$9) -> Total Crashes - Weekday Test County
A26: Weekday | B26: Number of Crashes | C26: Percent of Crashes | D26: Year 5 Crashes | E26: Year 4 Crashes | F26: Year 3 Crashes | G26: Year 2 Crashes | H26: Year 1 Crashes | I26: Weekday | J26: Number of Crashes | K26: Percent of Crashes | L26: Year 5 Crashes | M26: Year 4 Crashes | N26: Year 3 Crashes | O26: Year 2 Crashes | P26: Year 1 Crashes
A27: Sunday | B27: =SUM(D27:H27) -> 1 | C27: =B27/SUM(B$27:B$33) -> 0.1428571429 | D27: 0 | E27: 1 | F27: 0 | G27: 0 | H27: 0 | I27: =A27 -> Sunday | J27: =SUM(L27:P27) -> 4 | K27: =J27/SUM(J$27:J$33) -> 0.08 | L27: 1 | M27: 1 | N27: 2 | O27: 0 | P27: 0
A28: Monday | B28: 1 | C28: 0.1428571429 | D28: 0 | E28: 0 | F28: 0 | G28: 1 | H28: 0 | I28: Monday | J28: 9 | K28: =J28/SUM(J$27:J$33) -> 0.18 | L28: 1 | M28: 4 | N28: 0 | O28: 3 | P28: 1
A29: Tuesday | B29: 1 | C29: 0.1428571429 | D29: 1 | E29: 0 | F29: 0 | G29: 0 | H29: 0 | I29: Tuesday | J29: 13 | K29: 0.26 | L29: 4 | M29: 3 | N29: 3 | O29: 2 | P29: 1
A30: Wednesday | B30: 2 | C30: 0.2857142857 | D30: 0 | E30: 0 | F30: 1 | G30: 1 | H30: 0 | I30: Wednesday | J30: 6 | K30: 0.12 | L30: 1 | M30: 0 | N30: 4 | O30: 1 | P30: 0
A31: Thursday | B31: 1 | C31: 0.1428571429 | D31: 0 | E31: 1 | F31: 0 | G31: 0 | H31: 0 | I31: Thursday | J31: 8 | K31: 0.16 | L31: 0 | M31: 1 | N31: 4 | O31: 2 | P31: 1
A32: Friday | B32: 0 | C32: 0 | D32: 0 | E32: 0 | F32: 0 | G32: 0 | H32: 0 | I32: Friday | J32: 5 | K32: 0.1 | L32: 0 | M32: 1 | N32: 1 | O32: 1 | P32: 2
A33: Saturday | B33: 1 | C33: 0.1428571429 | D33: 1 | E33: 0 | F33: 0 | G33: 0 | H33: 0 | I33: Saturday | J33: 5 | K33: 0.1 | L33: 1 | M33: 0 | N33: 3 | O33: 1 | P33: 0
A34: =CONCATENATE("Fatal and Serious Injury Crashes Only - ",A35, " ",Instructions!$B$9) -> Fatal and Serious Injury Crashes Only - Crash Hour Test County | I34: =CONCATENATE("Total Crashes - ",I35, " ",Instructions!$B$9) -> Total Crashes - Crash Hour Test County
A35: Crash Hour | B35: Number of Crashes | C35: Percent of Crashes | D35: Year 5 Crashes | E35: Year 4 Crashes | F35: Year 3 Crashes | G35: Year 2 Crashes | H35: Year 1 Crashes | I35: Crash Hour | J35: Number of Crashes | K35: Percent of Crashes | L35: Year 5 Crashes | M35: Year 4 Crashes | N35: Year 3 Crashes | O35: Year 2 Crashes | P35: Year 1 Crashes
A36: 12:00 AM - 12:59 AM | B36: =SUM(D36:H36) -> 2 | C36: =B36/SUM(B$36:B$60) -> 0.2857142857 | D36: 0 | E36: 0 | F36: 1 | G36: 1 | H36: 0 | I36: =A36 -> 12:00 AM - 12:59 AM | J36: =SUM(L36:P36) -> 3 | K36: =J36/SUM(J$36:J$60) -> 0.04838709677 | L36: 0 | M36: 0 | N36: 1 | O36: 2 | P36: 0
A37: 1:00 AM - 1:59 AM | B37: 0 | C37: 0 | D37: 0 | E37: 0 | F37: 0 | G37: 0 | H37: 0 | I37: 1:00 AM - 1:59 AM | J37: 0 | K37: =J37/SUM(J$36:J$60) -> 0 | L37: 0 | M37: 0 | N37: 0 | O37: 0 | P37: 0
A38: 2:00 AM - 2:59 AM | B38: 0 | C38: 0 | D38: 0 | E38: 0 | F38: 0 | G38: 0 | H38: 0 | I38: 2:00 AM - 2:59 AM | J38: 0 | K38: 0 | L38: 0 | M38: 0 | N38: 0 | O38: 0 | P38: 0
A39: 3:00 AM - 3:59 AM | B39: 0 | C39: 0 | D39: 0 | E39: 0 | F39: 0 | G39: 0 | H39: 0 | I39: 3:00 AM - 3:59 AM | J39: 0 | K39: 0 | L39: 0 | M39: 0 | N39: 0 | O39: 0 | P39: 0
A40: 4:00 AM - 4:59 AM | B40: 1 | C40: 0.1428571429 | D40: 1 | E40: 0 | F40: 0 | G40: 0 | H40: 0 | I40: 4:00 AM - 4:59 AM | J40: 1 | K40: 0.01612903226 | L40: 1 | M40: 0 | N40: 0 | O40: 0 | P40: 0
A41: 5:00 AM - 5:59 AM | B41: 0 | C41: 0 | D41: 0 | E41: 0 | F41: 0 | G41: 0 | H41: 0 | I41: 5:00 AM - 5:59 AM | J41: 3 | K41: 0.04838709677 | L41: 0 | M41: 1 | N41: 2 | O41: 0 | P41: 0
A42: 6:00 AM - 6:59 AM | B42: 0 | C42: 0 | D42: 0 | E42: 0 | F42: 0 | G42: 0 | H42: 0 | I42: 6:00 AM - 6:59 AM | J42: 1 | K42: 0.01612903226 | L42: 0 | M42: 1 | N42: 0 | O42: 0 | P42: 0
A43: 7:00 AM - 7:59 AM | B43: 0 | C43: 0 | D43: 0 | E43: 0 | F43: 0 | G43: 0 | H43: 0 | I43: 7:00 AM - 7:59 AM | J43: 2 | K43: 0.03225806452 | L43: 0 | M43: 1 | N43: 0 | O43: 1 | P43: 0
A44: 8:00 AM - 8:59 AM | B44: 0 | C44: 0 | D44: 0 | E44: 0 | F44: 0 | G44: 0 | H44: 0 | I44: 8:00 AM - 8:59 AM | J44: 2 | K44: 0.03225806452 | L44: 1 | M44: 1 | N44: 0 | O44: 0 | P44: 0
A45: 9:00 AM - 9:59 AM | B45: 0 | C45: 0 | D45: 0 | E45: 0 | F45: 0 | G45: 0 | H45: 0 | I45: 9:00 AM - 9:59 AM | J45: 2 | K45: 0.03225806452 | L45: 2 | M45: 0 | N45: 0 | O45: 0 | P45: 0
A46: 10:00 AM - 10:59 AM | B46: 1 | C46: 0.1428571429 | D46: 0 | E46: 1 | F46: 0 | G46: 0 | H46: 0 | I46: 10:00 AM - 10:59 AM | J46: 1 | K46: 0.01612903226 | L46: 0 | M46: 0 | N46: 1 | O46: 0 | P46: 0
A47: 11:00 AM - 11:59 AM | B47: 0 | C47: 0 | D47: 0 | E47: 0 | F47: 0 | G47: 0 | H47: 0 | I47: 11:00 AM - 11:59 AM | J47: 3 | K47: 0.04838709677 | L47: 0 | M47: 0 | N47: 3 | O47: 0 | P47: 0
A48: 12:00 PM - 12:59 PM | B48: 0 | C48: 0 | D48: 0 | E48: 0 | F48: 0 | G48: 0 | H48: 0 | I48: 12:00 PM - 12:59 PM | J48: 3 | K48: 0.04838709677 | L48: 0 | M48: 1 | N48: 0 | O48: 2 | P48: 0
A49: 1:00 PM - 1:59 PM | B49: 1 | C49: 0.1428571429 | D49: 0 | E49: 1 | F49: 0 | G49: 0 | H49: 0 | I49: 1:00 PM - 1:59 PM | J49: 5 | K49: 0.08064516129 | L49: 1 | M49: 1 | N49: 2 | O49: 1 | P49: 0
A50: 2:00 PM - 2:59 PM | B50: 0 | C50: 0 | D50: 0 | E50: 0 | F50: 0 | G50: 0 | H50: 0 | I50: 2:00 PM - 2:59 PM | J50: 4 | K50: 0.06451612903 | L50: 0 | M50: 0 | N50: 3 | O50: 0 | P50: 1
A51: 3:00 PM - 3:59 PM | B51: 0 | C51: 0 | D51: 0 | E51: 0 | F51: 0 | G51: 0 | H51: 0 | I51: 3:00 PM - 3:59 PM | J51: 4 | K51: 0.06451612903 | L51: 1 | M51: 1 | N51: 1 | O51: 0 | P51: 1
A52: 4:00 PM - 4:59 PM | B52: 0 | C52: 0 | D52: 0 | E52: 0 | F52: 0 | G52: 0 | H52: 0 | I52: 4:00 PM - 4:59 PM | J52: 3 | K52: 0.04838709677 | L52: 0 | M52: 1 | N52: 1 | O52: 1 | P52: 0
A53: 5:00 PM - 5:59 PM | B53: 2 | C53: 0.2857142857 | D53: 1 | E53: 0 | F53: 0 | G53: 1 | H53: 0 | I53: 5:00 PM - 5:59 PM | J53: 6 | K53: 0.09677419355 | L53: 1 | M53: 0 | N53: 2 | O53: 2 | P53: 1
A54: 6:00 PM - 6:59 PM | B54: 0 | C54: 0 | D54: 0 | E54: 0 | F54: 0 | G54: 0 | H54: 0 | I54: 6:00 PM - 6:59 PM | J54: 2 | K54: 0.03225806452 | L54: 0 | M54: 1 | N54: 0 | O54: 0 | P54: 1
A55: 7:00 PM - 7:59 PM | B55: 0 | C55: 0 | D55: 0 | E55: 0 | F55: 0 | G55: 0 | H55: 0 | I55: 7:00 PM - 7:59 PM | J55: 2 | K55: 0.03225806452 | L55: 1 | M55: 0 | N55: 0 | O55: 1 | P55: 0
A56: 8:00 PM - 8:59 PM | B56: 0 | C56: 0 | D56: 0 | E56: 0 | F56: 0 | G56: 0 | H56: 0 | I56: 8:00 PM - 8:59 PM | J56: 2 | K56: 0.03225806452 | L56: 0 | M56: 1 | N56: 0 | O56: 0 | P56: 1
A57: 9:00 PM - 9:59 PM | B57: 0 | C57: 0 | D57: 0 | E57: 0 | F57: 0 | G57: 0 | H57: 0 | I57: 9:00 PM - 9:59 PM | J57: 0 | K57: 0 | L57: 0 | M57: 0 | N57: 0 | O57: 0 | P57: 0
A58: 10:00 PM - 10:59 PM | B58: 0 | C58: 0 | D58: 0 | E58: 0 | F58: 0 | G58: 0 | H58: 0 | I58: 10:00 PM - 10:59 PM | J58: 1 | K58: 0.01612903226 | L58: 0 | M58: 0 | N58: 1 | O58: 0 | P58: 0
A59: 11:00 PM - 11:59 PM | B59: 0 | C59: 0 | D59: 0 | E59: 0 | F59: 0 | G59: 0 | H59: 0 | I59: 11:00 PM - 11:59 PM | J59: 0 | K59: 0 | L59: 0 | M59: 0 | N59: 0 | O59: 0 | P59: 0
A60: Unknown | B60: 0 | C60: 0 | D60: 0 | E60: 0 | F60: 0 | G60: 0 | H60: 0 | I60: Unknown | J60: 0 | K60: 0 | L60: 0 | M60: 0 | N60: 0 | O60: 0 | P60: 0
A61: =CONCATENATE("Fatal and Serious Injury Crashes Only - ",A62, " ",Instructions!$B$9) -> Fatal and Serious Injury Crashes Only - Crash Month Test County | I61: =CONCATENATE("Total Crashes - ",I62, " ",Instructions!$B$9) -> Total Crashes - Crash Month Test County
A62: Crash Month | B62: Number of Crashes | C62: Percent of Crashes | D62: Year 5 Crashes | E62: Year 4 Crashes | F62: Year 3 Crashes | G62: Year 2 Crashes | H62: Year 1 Crashes | I62: Crash Month | J62: Number of Crashes | K62: Percent of Crashes | L62: Year 5 Crashes | M62: Year 4 Crashes | N62: Year 3 Crashes | O62: Year 2 Crashes | P62: Year 1 Crashes
A63: January | B63: =SUM(D63:H63) -> 0 | C63: =B63/SUM(B$63:B$74) -> 0 | D63: 0 | E63: 0 | F63: 0 | G63: 0 | H63: 0 | I63: =A63 -> January | J63: =SUM(L63:P63) -> 5 | K63: =J63/SUM(J$63:J$74) -> 0.1 | L63: 1 | M63: 2 | N63: 1 | O63: 0 | P63: 1
A64: February | B64: 0 | C64: 0 | D64: 0 | E64: 0 | F64: 0 | G64: 0 | H64: 0 | I64: February | J64: 4 | K64: =J64/SUM(J$63:J$74) -> 0.08 | L64: 1 | M64: 0 | N64: 2 | O64: 0 | P64: 1
A65: March | B65: 0 | C65: 0 | D65: 0 | E65: 0 | F65: 0 | G65: 0 | H65: 0 | I65: March | J65: 5 | K65: 0.1 | L65: 2 | M65: 2 | N65: 1 | O65: 0 | P65: 0
A66: April | B66: 1 | C66: 0.1428571429 | D66: 0 | E66: 1 | F66: 0 | G66: 0 | H66: 0 | I66: April | J66: 5 | K66: 0.1 | L66: 0 | M66: 2 | N66: 2 | O66: 1 | P66: 0
A67: May | B67: 0 | C67: 0 | D67: 0 | E67: 0 | F67: 0 | G67: 0 | H67: 0 | I67: May | J67: 3 | K67: 0.06 | L67: 0 | M67: 0 | N67: 3 | O67: 0 | P67: 0
A68: June | B68: 1 | C68: 0.1428571429 | D68: 0 | E68: 0 | F68: 1 | G68: 0 | H68: 0 | I68: June | J68: 3 | K68: 0.06 | L68: 2 | M68: 0 | N68: 1 | O68: 0 | P68: 0
A69: July | B69: 2 | C69: 0.2857142857 | D69: 0 | E69: 0 | F69: 0 | G69: 2 | H69: 0 | I69: July | J69: 6 | K69: 0.12 | L69: 0 | M69: 2 | N69: 2 | O69: 2 | P69: 0
A70: August | B70: 2 | C70: 0.2857142857 | D70: 2 | E70: 0 | F70: 0 | G70: 0 | H70: 0 | I70: August | J70: 6 | K70: 0.12 | L70: 2 | M70: 0 | N70: 0 | O70: 3 | P70: 1
A71: September | B71: 0 | C71: 0 | D71: 0 | E71: 0 | F71: 0 | G71: 0 | H71: 0 | I71: September | J71: 4 | K71: 0.08 | L71: 0 | M71: 1 | N71: 1 | O71: 1 | P71: 1
A72: October | B72: 0 | C72: 0 | D72: 0 | E72: 0 | F72: 0 | G72: 0 | H72: 0 | I72: October | J72: 4 | K72: 0.08 | L72: 0 | M72: 0 | N72: 3 | O72: 1 | P72: 0
A73: November | B73: 1 | C73: 0.1428571429 | D73: 0 | E73: 1 | F73: 0 | G73: 0 | H73: 0 | I73: November | J73: 3 | K73: 0.06 | L73: 0 | M73: 1 | N73: 1 | O73: 0 | P73: 1
A74: December | B74: 0 | C74: 0 | D74: 0 | E74: 0 | F74: 0 | G74: 0 | H74: 0 | I74: December | J74: 2 | K74: 0.04 | L74: 0 | M74: 0 | N74: 0 | O74: 2 | P74: 0
A75: =CONCATENATE("Fatal and Serious Injury Crashes Only - ",A76, " ",Instructions!$B$9) -> Fatal and Serious Injury Crashes Only - Crash Jurisdiction Test County | I75: =CONCATENATE("Total Crashes - ",I76, " ",Instructions!$B$9) -> Total Crashes - Crash Jurisdiction Test County
A76: Crash Jurisdiction | B76: Number of Crashes | C76: Percent of Crashes | D76: Year 5 Crashes | E76: Year 4 Crashes | F76: Year 3 Crashes | G76: Year 2 Crashes | H76: Year 1 Crashes | I76: Crash Jurisdiction | J76: Number of Crashes | K76: Percent of Crashes | L76: Year 5 Crashes | M76: Year 4 Crashes | N76: Year 3 Crashes | O76: Year 2 Crashes | P76: Year 1 Crashes
A77: A | B77: =SUM(D77:H77) -> 0 | C77: =B77/SUM(B$77:B$81) -> 0 | D77: 0 | E77: 0 | F77: 0 | G77: 0 | H77: 0 | I77: =A77 -> A | J77: =SUM(L77:P77) -> 0 | K77: =J77/SUM(J$77:J$81) -> 0 | L77: 0 | M77: 0 | N77: 0 | O77: 0 | P77: 0
A78: B | B78: =SUM(D78:H78) -> 1 | C78: =B78/SUM(B$77:B$81) -> 0.1428571429 | D78: 1 | E78: 0 | F78: 0 | G78: 0 | H78: 0 | I78: =A78 -> B | J78: =SUM(L78:P78) -> 1 | K78: =J78/SUM(J$77:J$81) -> 0.02 | L78: 1 | M78: 0 | N78: 0 | O78: 0 | P78: 0
A79: C | B79: =SUM(D79:H79) -> 2 | C79: =B79/SUM(B$77:B$81) -> 0.2857142857 | D79: 0 | E79: 0 | F79: 0 | G79: 2 | H79: 0 | I79: =A79 -> C | J79: =SUM(L79:P79) -> 2 | K79: 0.04 | L79: 0 | M79: 0 | N79: 0 | O79: 2 | P79: 0
A80: D | B80: =SUM(D80:H80) -> 4 | C80: =B80/SUM(B$77:B$81) -> 0.5714285714 | D80: 1 | E80: 1 | F80: 2 | G80: 0 | H80: 0 | I80: =A80 -> D | J80: =SUM(L80:P80) -> 4 | K80: 0.08 | L80: 1 | M80: 1 | N80: 2 | O80: 0 | P80: 0
A81: E | B81: =SUM(D81:H81) -> 0 | C81: =B81/SUM(B$77:B$81) -> 0 | D81: 0 | E81: 0 | F81: 0 | G81: 0 | H81: 0 | I81: =A81 -> E | J81: =SUM(L81:P81) -> 43 | K81: 0.86 | L81: 6 | M81: 9 | N81: 15 | O81: 8 | P81: 5
A82: =CONCATENATE("Fatal and Serious Injury Crashes Only - ",A83, " ",Instructions!$B$9) -> Fatal and Serious Injury Crashes Only - First Harmful Event Test County | I82: =CONCATENATE("Total Crashes - ",I83, " ",Instructions!$B$9) -> Total Crashes - First Harmful Event Test County
A83: First Harmful Event | B83: Number of Crashes | C83: Percent of Crashes | D83: Year 5 Crashes | E83: Year 4 Crashes | F83: Year 3 Crashes | G83: Year 2 Crashes | H83: Year 1 Crashes | I83: First Harmful Event | J83: Number of Crashes | K83: Percent of Crashes | L83: Year 5 Crashes | M83: Year 4 Crashes | N83: Year 3 Crashes | O83: Year 2 Crashes | P83: Year 1 Crashes
A84: Cargo/Equipment Loss or Shift | B84: =SUM(D84:H84) -> 0 | C84: =B84/SUM(B$84:B$125) -> 0 | D84: 0 | E84: 0 | F84: 0 | G84: 0 | H84: 0 | I84: =A84 -> Cargo/Equipment Loss or Shift | J84: =SUM(L84:P84) -> 0 | K84: =J84/SUM(J$84:J$125) -> 0 | L84: 0 | M84: 0 | N84: 0 | O84: 0 | P84: 0
A85: Fell/Jumped from Motor Vehicle | B85: 0 | C85: 0 | D85: 0 | E85: 0 | F85: 0 | G85: 0 | H85: 0 | I85: Fell/Jumped from Motor Vehicle | J85: 0 | K85: =J85/SUM(J$84:J$125) -> 0 | L85: 0 | M85: 0 | N85: 0 | O85: 0 | P85: 0
A86: Fire/Explosion | B86: 0 | C86: 0 | D86: 0 | E86: 0 | F86: 0 | G86: 0 | H86: 0 | I86: Fire/Explosion | J86: 0 | K86: 0 | L86: 0 | M86: 0 | N86: 0 | O86: 0 | P86: 0
A87: Immersion, Full or Partial | B87: 0 | C87: 0 | D87: 0 | E87: 0 | F87: 0 | G87: 0 | H87: 0 | I87: Immersion, Full or Partial | J87: 0 | K87: 0 | L87: 0 | M87: 0 | N87: 0 | O87: 0 | P87: 0
A88: Jackknife | B88: 0 | C88: 0 | D88: 0 | E88: 0 | F88: 0 | G88: 0 | H88: 0 | I88: Jackknife | J88: 0 | K88: 0 | L88: 0 | M88: 0 | N88: 0 | O88: 0 | P88: 0
A89: Other Non-Collision | B89: 3 | C89: 0.4285714286 | D89: 1 | E89: 0 | F89: 0 | G89: 2 | H89: 0 | I89: Other Non-Collision | J89: 14 | K89: 0.28 | L89: 4 | M89: 2 | N89: 5 | O89: 1 | P89: 2
A90: Overturn/Rollover | B90: 0 | C90: 0 | D90: 0 | E90: 0 | F90: 0 | G90: 0 | H90: 0 | I90: Overturn/Rollover | J90: 0 | K90: 0 | L90: 0 | M90: 0 | N90: 0 | O90: 0 | P90: 0
A91: Thrown or Falling Object | B91: =SUM(D91:H91) -> 0 | C91: 0 | D91: 0 | E91: 0 | F91: 0 | G91: 0 | H91: 0 | I91: Thrown or Falling Object | J91: =SUM(L91:P91) -> 0 | K91: 0 | L91: 0 | M91: 0 | N91: 0 | O91: 0 | P91: 0
A92: Collision with Animal | B92: 0 | C92: 0 | D92: 0 | E92: 0 | F92: 0 | G92: 0 | H92: 0 | I92: Collision with Animal | J92: 0 | K92: 0 | L92: 0 | M92: 0 | N92: 0 | O92: 0 | P92: 0
A93: Collision with Construction Equipment | B93: 0 | C93: 0 | D93: 0 | E93: 0 | F93: 0 | G93: 0 | H93: 0 | I93: Collision with Construction Equipment | J93: 0 | K93: 0 | L93: 0 | M93: 0 | N93: 0 | O93: 0 | P93: 0
A94: Collision with Farm Equipment | B94: 0 | C94: 0 | D94: 0 | E94: 0 | F94: 0 | G94: 0 | H94: 0 | I94: Collision with Farm Equipment | J94: 0 | K94: 0 | L94: 0 | M94: 0 | N94: 0 | O94: 0 | P94: 0
A95: Collision with Motor Vehicle in Transport | B95: 0 | C95: 0 | D95: 0 | E95: 0 | F95: 0 | G95: 0 | H95: 0 | I95: Collision with Motor Vehicle in Transport | J95: 6 | K95: 0.12 | L95: 1 | M95: 0 | N95: 3 | O95: 2 | P95: 0
A96: Collision with Other Non-Fixed Object | B96: 0 | C96: 0 | D96: 0 | E96: 0 | F96: 0 | G96: 0 | H96: 0 | I96: Collision with Other Non-Fixed Object | J96: 0 | K96: 0 | L96: 0 | M96: 0 | N96: 0 | O96: 0 | P96: 0
A97: Collision with Other Non-motorist | B97: 0 | C97: 0 | D97: 0 | E97: 0 | F97: 0 | G97: 0 | H97: 0 | I97: Collision with Other Non-motorist | J97: 1 | K97: 0.02 | L97: 0 | M97: 0 | N97: 1 | O97: 0 | P97: 0
A98: Collision with Parked Motor Vehicle | B98: 0 | C98: 0 | D98: 0 | E98: 0 | F98: 0 | G98: 0 | H98: 0 | I98: Collision with Parked Motor Vehicle | J98: 0 | K98: 0 | L98: 0 | M98: 0 | N98: 0 | O98: 0 | P98: 0
A99: Collision with Pedalcycle | B99: 0 | C99: 0 | D99: 0 | E99: 0 | F99: 0 | G99: 0 | H99: 0 | I99: Collision with Pedalcycle | J99: 0 | K99: 0 | L99: 0 | M99: 0 | N99: 0 | O99: 0 | P99: 0
A100: Collision with Pedestrian | B100: 0 | C100: 0 | D100: 0 | E100: 0 | F100: 0 | G100: 0 | H100: 0 | I100: Collision with Pedestrian | J100: 0 | K100: 0 | L100: 0 | M100: 0 | N100: 0 | O100: 0 | P100: 0
A101: Collision with Railway Vehicle | B101: 0 | C101: 0 | D101: 0 | E101: 0 | F101: 0 | G101: 0 | H101: 0 | I101: Collision with Railway Vehicle | J101: 2 | K101: 0.04 | L101: 2 | M101: 0 | N101: 0 | O101: 0 | P101: 0
A102: Strikes Object ar Rest from MV in Transport | B102: 0 | C102: 0 | D102: 0 | E102: 0 | F102: 0 | G102: 0 | H102: 0 | I102: Strikes Object ar Rest from MV in Transport | J102: 0 | K102: 0 | L102: 0 | M102: 0 | N102: 0 | O102: 0 | P102: 0
A103: Struck by Falling, Shifting Cargo, or Anything Set in Motion by Motor Vehicle | B103: 1 | C103: 0.1428571429 | D103: 0 | E103: 1 | F103: 0 | G103: 0 | H103: 0 | I103: Struck by Falling, Shifting Cargo, or Anything Set in Motion by Motor Vehicle | J103: 0 | K103: 0 | L103: 0 | M103: 0 | N103: 0 | O103: 0 | P103: 0
A104: Collision with Bridge Overhead Structure | B104: 0 | C104: 0 | D104: 0 | E104: 0 | F104: 0 | G104: 0 | H104: 0 | I104: Collision with Bridge Overhead Structure | J104: 2 | K104: 0.04 | L104: 0 | M104: 0 | N104: 1 | O104: 0 | P104: 1
A105: Collision with Bridge Pier or Support | B105: 0 | C105: 0 | D105: 0 | E105: 0 | F105: 0 | G105: 0 | H105: 0 | I105: Collision with Bridge Pier or Support | J105: 0 | K105: 0 | L105: 0 | M105: 0 | N105: 0 | O105: 0 | P105: 0
A106: Collision with Bridge Rail | B106: 1 | C106: 0.1428571429 | D106: 0 | E106: 0 | F106: 1 | G106: 0 | H106: 0 | I106: Collision with Bridge Rail | J106: 0 | K106: 0 | L106: 0 | M106: 0 | N106: 0 | O106: 0 | P106: 0
A107: Collision with Cable Barrier | B107: 0 | C107: 0 | D107: 0 | E107: 0 | F107: 0 | G107: 0 | H107: 0 | I107: Collision with Cable Barrier | J107: 0 | K107: 0 | L107: 0 | M107: 0 | N107: 0 | O107: 0 | P107: 0
A108: Collision with Concrete Traffic Barrier | B108: 0 | C108: 0 | D108: 0 | E108: 0 | F108: 0 | G108: 0 | H108: 0 | I108: Collision with Concrete Traffic Barrier | J108: 0 | K108: 0 | L108: 0 | M108: 0 | N108: 0 | O108: 0 | P108: 0
A109: Collision with Culvert | B109: 1 | C109: 0.1428571429 | D109: 1 | E109: 0 | F109: 0 | G109: 0 | H109: 0 | I109: Collision with Culvert | J109: 0 | K109: 0 | L109: 0 | M109: 0 | N109: 0 | O109: 0 | P109: 0
A110: Collision with Curb | B110: 0 | C110: 0 | D110: 0 | E110: 0 | F110: 0 | G110: 0 | H110: 0 | I110: Collision with Curb | J110: 4 | K110: 0.08 | L110: 0 | M110: 0 | N110: 1 | O110: 2 | P110: 1
A111: Collision with Ditch | B111: 0 | C111: 0 | D111: 0 | E111: 0 | F111: 0 | G111: 0 | H111: 0 | I111: Collision with Ditch | J111: 0 | K111: 0 | L111: 0 | M111: 0 | N111: 0 | O111: 0 | P111: 0
A112: Collision with Embankment | B112: 0 | C112: 0 | D112: 0 | E112: 0 | F112: 0 | G112: 0 | H112: 0 | I112: Collision with Embankment | J112: 3 | K112: 0.06 | L112: 1 | M112: 2 | N112: 0 | O112: 0 | P112: 0
A113: Collision with Fence | B113: 0 | C113: 0 | D113: 0 | E113: 0 | F113: 0 | G113: 0 | H113: 0 | I113: Collision with Fence | J113: 0 | K113: 0 | L113: 0 | M113: 0 | N113: 0 | O113: 0 | P113: 0
A114: Collision with Guardrail End Terminal | B114: 0 | C114: 0 | D114: 0 | E114: 0 | F114: 0 | G114: 0 | H114: 0 | I114: Collision with Guardrail End Terminal | J114: 0 | K114: 0 | L114: 0 | M114: 0 | N114: 0 | O114: 0 | P114: 0
A115: Collision with Guardrail Face | B115: 0 | C115: 0 | D115: 0 | E115: 0 | F115: 0 | G115: 0 | H115: 0 | I115: Collision with Guardrail Face | J115: 0 | K115: 0 | L115: 0 | M115: 0 | N115: 0 | O115: 0 | P115: 0
A116: Collision with Impact Attenuator/Crash Cushion | B116: 0 | C116: 0 | D116: 0 | E116: 0 | F116: 0 | G116: 0 | H116: 0 | I116: Collision with Impact Attenuator/Crash Cushion | J116: 0 | K116: 0 | L116: 0 | M116: 0 | N116: 0 | O116: 0 | P116: 0
A117: Collision with Mailbox | B117: =SUM(D117:H117) -> 0 | C117: 0 | D117: 0 | E117: 0 | F117: 0 | G117: 0 | H117: 0 | I117: Collision with Mailbox | J117: 6 | K117: 0.12 | L117: 0 | M117: 1 | N117: 2 | O117: 3 | P117: 0
A118: Collision with Other Fixed Object | B118: 0 | C118: 0 | D118: 0 | E118: 0 | F118: 0 | G118: 0 | H118: 0 | I118: Collision with Other Fixed Object | J118: 0 | K118: 0 | L118: 0 | M118: 0 | N118: 0 | O118: 0 | P118: 0
A119: Collision with Other Post, Pole, or Support | B119: 1 | C119: 0.1428571429 | D119: 0 | E119: 1 | F119: 0 | G119: 0 | H119: 0 | I119: Collision with Other Post, Pole, or Support | J119: 4 | K119: 0.08 | L119: 0 | M119: 4 | N119: 0 | O119: 0 | P119: 0
A120: Collision with Other Traffic Barrier | B120: 0 | C120: 0 | D120: 0 | E120: 0 | F120: 0 | G120: 0 | H120: 0 | I120: Collision with Other Traffic Barrier | J120: 0 | K120: 0 | L120: 0 | M120: 0 | N120: 0 | O120: 0 | P120: 0
A121: Collision with Traffic Sign Support | B121: 0 | C121: 0 | D121: 0 | E121: 0 | F121: 0 | G121: 0 | H121: 0 | I121: Collision with Traffic Sign Support | J121: 8 | K121: 0.16 | L121: 0 | M121: 1 | N121: 4 | O121: 2 | P121: 1
A122: Collision with Traffic Signal Support | B122: 0 | C122: 0 | D122: 0 | E122: 0 | F122: 0 | G122: 0 | H122: 0 | I122: Collision with Traffic Signal Support | J122: 0 | K122: 0 | L122: 0 | M122: 0 | N122: 0 | O122: 0 | P122: 0
A123: Collision with Tree | B123: 0 | C123: 0 | D123: 0 | E123: 0 | F123: 0 | G123: 0 | H123: 0 | I123: Collision with Tree | J123: 0 | K123: 0 | L123: 0 | M123: 0 | N123: 0 | O123: 0 | P123: 0
A124: Collision with Utility Pole or Light Support | B124: =SUM(D124:H124) -> 0 | C124: 0 | D124: 0 | E124: 0 | F124: 0 | G124: 0 | H124: 0 | I124: Collision with Utility Pole or Light Support | J124: 0 | K124: 0 | L124: 0 | M124: 0 | N124: 0 | O124: 0 | P124: 0
A125: Unknown | B125: 0 | C125: 0 | D125: 0 | E125: 0 | F125: 0 | G125: 0 | H125: 0 | I125: Unknown | J125: 0 | K125: 0 | L125: =L3-SUM(L84:L124) -> 0 | M125: =M3-SUM(M84:M124) -> 0 | N125: =N3-SUM(N84:N124) -> 0 | O125: =O3-SUM(O84:O124) -> 0 | P125: =P3-SUM(P84:P124) -> 0
A126: =CONCATENATE("Fatal and Serious Injury Crashes Only - ",A127, " ",Instructions!$B$9) -> Fatal and Serious Injury Crashes Only - Location of First Harmful Event Test County | I126: =CONCATENATE("Total Crashes - ",I127, " ",Instructions!$B$9) -> Total Crashes - Location of First Harmful Event Test County
A127: Location of First Harmful Event | B127: Number of Crashes | C127: Percent of Crashes | D127: Year 5 Crashes | E127: Year 4 Crashes | F127: Year 3 Crashes | G127: Year 2 Crashes | H127: Year 1 Crashes | I127: Location of First Harmful Event | J127: Number of Crashes | K127: Percent of Crashes | L127: Year 5 Crashes | M127: Year 4 Crashes | N127: Year 3 Crashes | O127: Year 2 Crashes | P127: Year 1 Crashes
A128: Gore | B128: =SUM(D128:H128) -> 0 | C128: =B128/SUM(B$128:B$138) -> 0 | D128: 0 | E128: 0 | F128: 0 | G128: 0 | H128: 0 | I128: =A128 -> Gore | J128: =SUM(L128:P128) -> 5 | K128: =J128/SUM(J$128:J$138) -> 0.1 | L128: 1 | M128: 2 | N128: 1 | O128: 0 | P128: 1
A129: In Parking Lane or Zone | B129: =SUM(D129:H129) -> 0 | C129: 0 | D129: 0 | E129: 0 | F129: 0 | G129: 0 | H129: 0 | I129: In Parking Lane or Zone | J129: =SUM(L129:P129) -> 4 | K129: =J129/SUM(J$128:J$138) -> 0.08 | L129: 1 | M129: 0 | N129: 2 | O129: 0 | P129: 1
A130: Median | B130: =SUM(D130:H130) -> 0 | C130: 0 | D130: 0 | E130: 0 | F130: 0 | G130: 0 | H130: 0 | I130: Median | J130: =SUM(L130:P130) -> 5 | K130: 0.1 | L130: 2 | M130: 2 | N130: 1 | O130: 0 | P130: 0
A131: Off-Roadway, Location Unknown | B131: =SUM(D131:H131) -> 1 | C131: 0.1428571429 | D131: 0 | E131: 1 | F131: 0 | G131: 0 | H131: 0 | I131: Off-Roadway, Location Unknown | J131: =SUM(L131:P131) -> 5 | K131: 0.1 | L131: 0 | M131: 2 | N131: 2 | O131: 1 | P131: 0
A132: On Roadway | B132: 0 | C132: 0 | D132: 0 | E132: 0 | F132: 0 | G132: 0 | H132: 0 | I132: On Roadway | J132: 3 | K132: 0.06 | L132: 0 | M132: 0 | N132: 3 | O132: 0 | P132: 0
A133: On Shoulder, Left Side | B133: 1 | C133: 0.1428571429 | D133: 0 | E133: 0 | F133: 1 | G133: 0 | H133: 0 | I133: On Shoulder, Left Side | J133: 3 | K133: 0.06 | L133: 2 | M133: 0 | N133: 1 | O133: 0 | P133: 0
A134: On Shoulder, Right Side | B134: 2 | C134: 0.2857142857 | D134: 0 | E134: 0 | F134: 0 | G134: 2 | H134: 0 | I134: On Shoulder, Right Side | J134: 6 | K134: 0.12 | L134: 0 | M134: 2 | N134: 2 | O134: 2 | P134: 0
A135: Outside Road/Right-of-Way | B135: 2 | C135: 0.2857142857 | D135: 2 | E135: 0 | F135: 0 | G135: 0 | H135: 0 | I135: Outside Road/Right-of-Way | J135: 6 | K135: 0.12 | L135: 2 | M135: 0 | N135: 0 | O135: 3 | P135: 1
A136: Roadside | B136: 0 | C136: 0 | D136: 0 | E136: 0 | F136: 0 | G136: 0 | H136: 0 | I136: Roadside | J136: 4 | K136: 0.08 | L136: 0 | M136: 1 | N136: 1 | O136: 1 | P136: 1
A137: Separator/Traffic Island | B137: 0 | C137: 0 | D137: 0 | E137: 0 | F137: 0 | G137: 0 | H137: 0 | I137: Separator/Traffic Island | J137: 4 | K137: 0.08 | L137: 0 | M137: 0 | N137: 3 | O137: 1 | P137: 0
A138: Unknown | B138: =SUM(D138:H138) -> 1 | C138: 0.1428571429 | D138: 0 | E138: 1 | F138: 0 | G138: 0 | H138: 0 | I138: Unknown | J138: =SUM(L138:P138) -> 5 | K138: 0.1 | L138: 0 | M138: 1 | N138: 1 | O138: 2 | P138: 1
A139: =CONCATENATE("Fatal and Serious Injury Crashes Only - ",A140, " ",Instructions!$B$9) -> Fatal and Serious Injury Crashes Only - Manner of Crash Test County | I139: =CONCATENATE("Total Crashes - ",I140, " ",Instructions!$B$9) -> Total Crashes - Manner of Crash Test County
A140: Manner of Crash | B140: Number of Crashes | C140: Percent of Crashes | D140: Year 5 Crashes | E140: Year 4 Crashes | F140: Year 3 Crashes | G140: Year 2 Crashes | H140: Year 1 Crashes | I140: Manner of Crash | J140: Number of Crashes | K140: Percent of Crashes | L140: Year 5 Crashes | M140: Year 4 Crashes | N140: Year 3 Crashes | O140: Year 2 Crashes | P140: Year 1 Crashes
A141: Not a Collision Between Two Motor Vehicles | B141: =SUM(D141:H141) -> 0 | C141: =B141/SUM(B$141:B$150) -> 0 | D141: 0 | E141: 0 | F141: 0 | G141: 0 | H141: 0 | I141: =A141 -> Not a Collision Between Two Motor Vehicles | J141: =SUM(L141:P141) -> 8 | K141: =J141/SUM(J$141:J$150) -> 0.16 | L141: 0 | M141: 3 | N141: 3 | O141: 0 | P141: 2
A142: Angle | B142: 1 | C142: 0.1428571429 | D142: 1 | E142: 0 | F142: 0 | G142: 0 | H142: 0 | I142: Angle | J142: 13 | K142: =J142/SUM(J$141:J$150) -> 0.26 | L142: 2 | M142: 1 | N142: 3 | O142: 5 | P142: 2
A143: Front to Front | B143: 0 | C143: 0 | D143: 0 | E143: 0 | F143: 0 | G143: 0 | H143: 0 | I143: Front to Front | J143: 0 | K143: 0 | L143: 0 | M143: 0 | N143: 0 | O143: 0 | P143: 0
A144: Front to Rear | B144: 0 | C144: 0 | D144: 0 | E144: 0 | F144: 0 | G144: 0 | H144: 0 | I144: Front to Rear | J144: 4 | K144: 0.08 | L144: 0 | M144: 1 | N144: 2 | O144: 1 | P144: 0
A145: Rear to Rear | B145: 5 | C145: 0.7142857143 | D145: 1 | E145: 1 | F145: 1 | G145: 2 | H145: 0 | I145: Rear to Rear | J145: 25 | K145: 0.5 | L145: 6 | M145: 5 | N145: 9 | O145: 4 | P145: 1
A146: Rear to Side | B146: =SUM(D146:H146) -> 0 | C146: 0 | D146: 0 | E146: 0 | F146: 0 | G146: 0 | H146: 0 | I146: Rear to Side | J146: =SUM(L146:P146) -> 0 | K146: 0 | L146: 0 | M146: 0 | N146: 0 | O146: 0 | P146: 0
A147: Sideswipe, Opposite Direction | B147: =SUM(D147:H147) -> 0 | C147: 0 | D147: 0 | E147: 0 | F147: 0 | G147: 0 | H147: 0 | I147: Sideswipe, Opposite Direction | J147: =SUM(L147:P147) -> 0 | K147: 0 | L147: 0 | M147: 0 | N147: 0 | O147: 0 | P147: 0
A148: Sideswipe, Same Direction | B148: 1 | C148: 0.1428571429 | D148: 0 | E148: 1 | F148: 0 | G148: 0 | H148: 0 | I148: Sideswipe, Same Direction | J148: 0 | K148: 0 | L148: 0 | M148: 0 | N148: 0 | O148: 0 | P148: 0
A149: Other | B149: 0 | C149: 0 | D149: 0 | E149: 0 | F149: 0 | G149: 0 | H149: 0 | I149: Other | J149: 0 | K149: 0 | L149: 0 | M149: 0 | N149: 0 | O149: 0 | P149: 0
A150: Unknown | B150: 0 | C150: 0 | D150: 0 | E150: 0 | F150: 0 | G150: 0 | H150: 0 | I150: Unknown | J150: 0 | K150: 0 | L150: 0 | M150: 0 | N150: 0 | O150: 0 | P150: 0
A151: =CONCATENATE("Fatal and Serious Injury Crashes Only - ",A152, " ",Instructions!$B$9) -> Fatal and Serious Injury Crashes Only - Weather Test County | I151: =CONCATENATE("Total Crashes - ",I152, " ",Instructions!$B$9) -> Total Crashes - Weather Test County
A152: Weather | B152: Number of Crashes | C152: Percent of Crashes | D152: Year 5 Crashes | E152: Year 4 Crashes | F152: Year 3 Crashes | G152: Year 2 Crashes | H152: Year 1 Crashes | I152: Weather | J152: Number of Crashes | K152: Percent of Crashes | L152: Year 5 Crashes | M152: Year 4 Crashes | N152: Year 3 Crashes | O152: Year 2 Crashes | P152: Year 1 Crashes
A153: Blowing Sand, Soil, Dirt | B153: =SUM(D153:H153) -> 2 | C153: =B153/SUM(B$153:B$164) -> 0.2857142857 | D153: 0 | E153: 0 | F153: 0 | G153: 2 | H153: 0 | I153: =A153 -> Blowing Sand, Soil, Dirt | J153: =SUM(L153:P153) -> 6 | K153: =J153/SUM(J$153:J$164) -> 0.12 | L153: 0 | M153: 2 | N153: 2 | O153: 2 | P153: 0
A154: Blowing Snow | B154: 2 | C154: 0.2857142857 | D154: 2 | E154: 0 | F154: 0 | G154: 0 | H154: 0 | I154: Blowing Snow | J154: 6 | K154: =J154/SUM(J$153:J$164) -> 0.12 | L154: 2 | M154: 0 | N154: 0 | O154: 3 | P154: 1
A155: Clear | B155: 0 | C155: 0 | D155: 0 | E155: 0 | F155: 0 | G155: 0 | H155: 0 | I155: Clear | J155: 4 | K155: 0.08 | L155: 0 | M155: 1 | N155: 1 | O155: 1 | P155: 1
A156: Cloudy | B156: 0 | C156: 0 | D156: 0 | E156: 0 | F156: 0 | G156: 0 | H156: 0 | I156: Cloudy | J156: 4 | K156: 0.08 | L156: 0 | M156: 0 | N156: 3 | O156: 1 | P156: 0
A157: Fog, Smog, Smoke | B157: 1 | C157: 0.1428571429 | D157: 0 | E157: 1 | F157: 0 | G157: 0 | H157: 0 | I157: Fog, Smog, Smoke | J157: 3 | K157: 0.06 | L157: 0 | M157: 1 | N157: 1 | O157: 0 | P157: 1
A158: Freezing Rain or Freezing Drizzle | B158: 0 | C158: 0 | D158: 0 | E158: 0 | F158: 0 | G158: 0 | H158: 0 | I158: Freezing Rain or Freezing Drizzle | J158: 2 | K158: 0.04 | L158: 0 | M158: 0 | N158: 0 | O158: 2 | P158: 0
A159: Rain | B159: 0 | C159: 0 | D159: 0 | E159: 0 | F159: 0 | G159: 0 | H159: 0 | I159: Rain | J159: 5 | K159: 0.1 | L159: 1 | M159: 2 | N159: 1 | O159: 0 | P159: 1
A160: Severe Crosswinds | B160: 0 | C160: 0 | D160: 0 | E160: 0 | F160: 0 | G160: 0 | H160: 0 | I160: Severe Crosswinds | J160: 4 | K160: 0.08 | L160: 1 | M160: 0 | N160: 2 | O160: 0 | P160: 1
A161: Sleet or Hail | B161: 0 | C161: 0 | D161: 0 | E161: 0 | F161: 0 | G161: 0 | H161: 0 | I161: Sleet or Hail | J161: 5 | K161: 0.1 | L161: 2 | M161: 2 | N161: 1 | O161: 0 | P161: 0
A162: Snow | B162: 1 | C162: 0.1428571429 | D162: 0 | E162: 1 | F162: 0 | G162: 0 | H162: 0 | I162: Snow | J162: 5 | K162: 0.1 | L162: 0 | M162: 2 | N162: 2 | O162: 1 | P162: 0
A163: Other | B163: 0 | C163: 0 | D163: 0 | E163: 0 | F163: 0 | G163: 0 | H163: 0 | I163: Other | J163: 3 | K163: 0.06 | L163: 0 | M163: 0 | N163: 3 | O163: 0 | P163: 0
A164: Unknown | B164: 1 | C164: 0.1428571429 | D164: 0 | E164: 0 | F164: 1 | G164: 0 | H164: 0 | I164: Unknown | J164: 3 | K164: 0.06 | L164: 2 | M164: 0 | N164: 1 | O164: 0 | P164: 0
A165: =CONCATENATE("Fatal and Serious Injury Crashes Only - ",A166, " ",Instructions!$B$9) -> Fatal and Serious Injury Crashes Only - Light Conditions Test County | I165: =CONCATENATE("Total Crashes - ",I166, " ",Instructions!$B$9) -> Total Crashes - Light Conditions Test County
A166: Light Conditions | B166: Number of Crashes | C166: Percent of Crashes | D166: Year 5 Crashes | E166: Year 4 Crashes | F166: Year 3 Crashes | G166: Year 2 Crashes | H166: Year 1 Crashes | I166: Light Conditions | J166: Number of Crashes | K166: Percent of Crashes | L166: Year 5 Crashes | M166: Year 4 Crashes | N166: Year 3 Crashes | O166: Year 2 Crashes | P166: Year 1 Crashes
A167: Daylight | B167: =SUM(D167:H167) -> 0 | C167: =B167/SUM(B$167:B$173) -> 0 | D167: 0 | E167: 0 | F167: 0 | G167: 0 | H167: 0 | I167: =A167 -> Daylight | J167: =SUM(L167:P167) -> 6 | K167: =J167/SUM(J$167:J$173) -> 0.12 | L167: 1 | M167: 0 | N167: 4 | O167: 1 | P167: 0
A168: Dawn/Dusk | B168: =SUM(D168:H168) -> 2 | C168: 0.2857142857 | D168: 0 | E168: 1 | F168: 0 | G168: 1 | H168: 0 | I168: Dawn/Dusk | J168: =SUM(L168:P168) -> 8 | K168: =J168/SUM(J$167:J$173) -> 0.16 | L168: 0 | M168: 1 | N168: 4 | O168: 2 | P168: 1
A169: Dark - Lighted | B169: 1 | C169: 0.1428571429 | D169: 1 | E169: 0 | F169: 0 | G169: 0 | H169: 0 | I169: Dark - Lighted | J169: 5 | K169: 0.1 | L169: 0 | M169: 1 | N169: 1 | O169: 1 | P169: 2
A170: Dark - Not Lighted | B170: 2 | C170: 0.2857142857 | D170: 0 | E170: 0 | F170: 1 | G170: 1 | H170: 0 | I170: Dark - Not Lighted | J170: 5 | K170: 0.1 | L170: 1 | M170: 0 | N170: 3 | O170: 1 | P170: 0
A171: Dark - Unknown Lighting | B171: 1 | C171: 0.1428571429 | D171: 0 | E171: 1 | F171: 0 | G171: 0 | H171: 0 | I171: Dark - Unknown Lighting | J171: 4 | K171: 0.08 | L171: 1 | M171: 1 | N171: 2 | O171: 0 | P171: 0
A172: Other | B172: 0 | C172: 0 | D172: 0 | E172: 0 | F172: 0 | G172: 0 | H172: 0 | I172: Other | J172: 9 | K172: 0.18 | L172: 1 | M172: 4 | N172: 0 | O172: 3 | P172: 1
A173: Unknown | B173: 1 | C173: 0.1428571429 | D173: 1 | E173: 0 | F173: 0 | G173: 0 | H173: 0 | I173: Unknown | J173: 13 | K173: 0.26 | L173: 4 | M173: 3 | N173: 3 | O173: 2 | P173: 1
A174: =CONCATENATE("Fatal and Serious Injury Crashes Only - ",A175, " ",Instructions!$B$9) -> Fatal and Serious Injury Crashes Only - Road Surface Condition Test County | I174: =CONCATENATE("Total Crashes - ",I175, " ",Instructions!$B$9) -> Total Crashes - Road Surface Condition Test County
A175: Road Surface Condition | B175: Number of Crashes | C175: Percent of Crashes | D175: Year 5 Crashes | E175: Year 4 Crashes | F175: Year 3 Crashes | G175: Year 2 Crashes | H175: Year 1 Crashes | I175: Road Surface Condition | J175: Number of Crashes | K175: Percent of Crashes | L175: Year 5 Crashes | M175: Year 4 Crashes | N175: Year 3 Crashes | O175: Year 2 Crashes | P175: Year 1 Crashes
A176: Dry | B176: =SUM(D176:H176) -> 4 | C176: =B176/SUM(B$176:B$186) -> 0.5714285714 | D176: 1 | E176: 1 | F176: 1 | G176: 1 | H176: 0 | I176: =A176 -> Dry | J176: =SUM(L176:P176) -> 22 | K176: =J176/SUM(J$176:J$186) -> 0.44 | L176: 5 | M176: 3 | N176: 10 | O176: 4 | P176: 0
A177: Ice/Frost | B177: 2 | C177: 0.2857142857 | D177: 1 | E177: 0 | F177: 0 | G177: 1 | H177: 0 | I177: Ice/Frost | J177: 28 | K177: =J177/SUM(J$176:J$186) -> 0.56 | L177: 3 | M177: 7 | N177: 7 | O177: 6 | P177: 5
A178: Mud, Dirt, Gravel | B178: 0 | C178: 0 | D178: 0 | E178: 0 | F178: 0 | G178: 0 | H178: 0 | I178: Mud, Dirt, Gravel | J178: 0 | K178: 0 | L178: 0 | M178: 0 | N178: 0 | O178: 0 | P178: 0
A179: Oil | B179: 1 | C179: 0.1428571429 | D179: 0 | E179: 1 | F179: 0 | G179: 0 | H179: 0 | I179: Oil | J179: 0 | K179: 0 | L179: 0 | M179: 0 | N179: 0 | O179: 0 | P179: 0
A180: Sand | B180: 0 | C180: 0 | D180: 0 | E180: 0 | F180: 0 | G180: 0 | H180: 0 | I180: Sand | J180: 0 | K180: 0 | L180: 0 | M180: 0 | N180: 0 | O180: 0 | P180: 0
A181: Sluch | B181: 0 | C181: 0 | D181: 0 | E181: 0 | F181: 0 | G181: 0 | H181: 0 | I181: Sluch | J181: 0 | K181: 0 | L181: 0 | M181: 0 | N181: 0 | O181: 0 | P181: 0
A182: Snow | B182: 0 | C182: 0 | D182: 0 | E182: 0 | F182: 0 | G182: 0 | H182: 0 | I182: Snow | J182: 0 | K182: 0 | L182: 0 | M182: 0 | N182: 0 | O182: 0 | P182: 0
A183: Water (Standing, Moving) | B183: 0 | C183: 0 | D183: 0 | E183: 0 | F183: 0 | G183: 0 | H183: 0 | I183: Water (Standing, Moving) | J183: 0 | K183: 0 | L183: 0 | M183: 0 | N183: 0 | O183: 0 | P183: 0
A184: Wet | B184: 0 | C184: 0 | D184: 0 | E184: 0 | F184: 0 | G184: 0 | H184: 0 | I184: Wet | J184: 0 | K184: 0 | L184: 0 | M184: 0 | N184: 0 | O184: 0 | P184: 0
A185: Other | B185: 0 | C185: 0 | D185: 0 | E185: 0 | F185: 0 | G185: 0 | H185: 0 | I185: Other | J185: 0 | K185: 0 | L185: 0 | M185: 0 | N185: 0 | O185: 0 | P185: 0
A186: Unknown | B186: 0 | C186: 0 | D186: 0 | E186: 0 | F186: 0 | G186: 0 | H186: 0 | I186: Unknown | J186: 0 | K186: 0 | L186: 0 | M186: 0 | N186: 0 | O186: 0 | P186: 0
A187: =CONCATENATE("Fatal and Serious Injury Crashes Only - ",A188, " ",Instructions!$B$9) -> Fatal and Serious Injury Crashes Only - Contributing Circumstances - Roadway Environment, Selection 1 Test County | I187: =CONCATENATE("Total Crashes - ",I188, " ",Instructions!$B$9) -> Total Crashes - Contributing Circumstances - Roadway Environment, Selection 1 Test County
A188: Contributing Circumstances - Roadway Environment, Selection 1 | B188: Number of Crashes | C188: Percent of Crashes | D188: Year 5 Crashes | E188: Year 4 Crashes | F188: Year 3 Crashes | G188: Year 2 Crashes | H188: Year 1 Crashes | I188: Contributing Circumstances - Roadway Environment, Selection 1 | J188: Number of Crashes | K188: Percent of Crashes | L188: Year 5 Crashes | M188: Year 4 Crashes | N188: Year 3 Crashes | O188: Year 2 Crashes | P188: Year 1 Crashes
A189: None | B189: =SUM(D189:H189) -> 1 | C189: =B189/SUM(B$189:B$211) -> 0.1428571429 | D189: 0 | E189: 0 | F189: 0 | G189: 1 | H189: 0 | I189: =A189 -> None | J189: =SUM(L189:P189) -> 0 | K189: =J189/SUM(J$189:J$211) -> 0 | L189: 0 | M189: 0 | N189: 0 | O189: 0 | P189: 0
A190: Animal(s) | B190: 0 | C190: 0 | D190: 0 | E190: 0 | F190: 0 | G190: 0 | H190: 0 | I190: Animal(s) | J190: 0 | K190: =J190/SUM(J$189:J$211) -> 0 | L190: 0 | M190: 0 | N190: 0 | O190: 0 | P190: 0
A191: Debris | B191: 0 | C191: 0 | D191: 0 | E191: 0 | F191: 0 | G191: 0 | H191: 0 | I191: Debris | J191: 1 | K191: 0.02 | L191: 1 | M191: 0 | N191: 0 | O191: 0 | P191: 0
A192: Glare | B192: 0 | C192: 0 | D192: 0 | E192: 0 | F192: 0 | G192: 0 | H192: 0 | I192: Glare | J192: 3 | K192: 0.06 | L192: 0 | M192: 1 | N192: 2 | O192: 0 | P192: 0
A193: Non-Highway Work | B193: 1 | C193: 0.1428571429 | D193: 1 | E193: 0 | F193: 0 | G193: 0 | H193: 0 | I193: Non-Highway Work | J193: 1 | K193: 0.02 | L193: 0 | M193: 1 | N193: 0 | O193: 0 | P193: 0
A194: Obstructed Crosswalks | B194: 0 | C194: 0 | D194: 0 | E194: 0 | F194: 0 | G194: 0 | H194: 0 | I194: Obstructed Crosswalks | J194: 2 | K194: 0.04 | L194: 0 | M194: 1 | N194: 0 | O194: 1 | P194: 0
A195: Obstruction in Roadway | B195: 0 | C195: 0 | D195: 0 | E195: 0 | F195: 0 | G195: 0 | H195: 0 | I195: Obstruction in Roadway | J195: 5 | K195: 0.1 | L195: 1 | M195: 1 | N195: 0 | O195: 3 | P195: 0
A196: Prior Crash | B196: 0 | C196: 0 | D196: 0 | E196: 0 | F196: 0 | G196: 0 | H196: 0 | I196: Prior Crash | J196: 2 | K196: 0.04 | L196: 2 | M196: 0 | N196: 0 | O196: 0 | P196: 0
A197: Prior Non-Recurring Incident | B197: 0 | C197: 0 | D197: 0 | E197: 0 | F197: 0 | G197: 0 | H197: 0 | I197: Prior Non-Recurring Incident | J197: 1 | K197: 0.02 | L197: 0 | M197: 0 | N197: 1 | O197: 0 | P197: 0
A198: Regular Congestion | B198: 0 | C198: 0 | D198: 0 | E198: 0 | F198: 0 | G198: 0 | H198: 0 | I198: Regular Congestion | J198: 3 | K198: 0.06 | L198: 0 | M198: 0 | N198: 3 | O198: 0 | P198: 0
A199: Related to a Bus Stop | B199: 0 | C199: 0 | D199: 0 | E199: 0 | F199: 0 | G199: 0 | H199: 0 | I199: Related to a Bus Stop | J199: 3 | K199: 0.06 | L199: 0 | M199: 1 | N199: 0 | O199: 2 | P199: 0
A200: Road Surface Condition (wet, icy, snow, slush, etc.) | B200: 0 | C200: 0 | D200: 0 | E200: 0 | F200: 0 | G200: 0 | H200: 0 | I200: Road Surface Condition (wet, icy, snow, slush, etc.) | J200: 5 | K200: 0.1 | L200: 1 | M200: 1 | N200: 2 | O200: 1 | P200: 0
... 420 more rows

Sheet Comparison Group 1
A1: Crash Data Summary Template
A2: Year 1 - Year 5 Comparison Group 1 Data | B2: Fatal and Serious Injury Crashes | I2: All Crashes
B3: =Instructions!B10 -> Test Group 1 | I3: =Instructions!B10 -> Test Group 1
B4: Year 1 - Year 5 | C4: % | D4: Year 5 | E4: Year 4 | F4: Year 3 | G4: Year 2 | H4: Year 1 | I4: Year 1 - Year 5 | J4: % | K4: Year 5 | L4: Year 4 | M4: Year 3 | N4: Year 2 | O4: Year 1
A5: Overall Numbers
A6: Total # of Collisions | B6: =SUM(D6:H6) -> 117 | C6: N/A | D6: 27 | E6: 28 | F6: 23 | G6: 27 | H6: 12 | I6: =SUM(K6:O6) -> 4567 | J6: N/A | K6: 1028 | L6: 1057 | M6: 936 | N6: 726 | O6: 820
A7: # of Fatal Collisions | B7: =SUM(D7:H7) -> 20 | C7: =B7/B6 -> 0.1709401709 | D7: 5 | E7: 6 | F7: 4 | G7: 4 | H7: 1 | I7: =SUM(K7:O7) -> 20 | J7: =I7/I6 -> 0.004379242391 | K7: 5 | L7: 6 | M7: 4 | N7: 4 | O7: 1
A8: # of Serious Injury Collisions | B8: 97 | C8: =B8/B6 -> 0.8290598291 | D8: 22 | E8: 22 | F8: 19 | G8: 23 | H8: 11 | I8: 97 | J8: =I8/I6 -> 0.0212393256 | K8: 22 | L8: 22 | M8: 19 | N8: 23 | O8: 11
A9: # of Alcohol-Related Collisions | B9: 33 | C9: =B9/B6 -> 0.2820512821 | D9: 6 | E9: 5 | F9: 6 | G9: 14 | H9: 2 | I9: 432 | J9: =I9/I6 -> 0.09459163565 | K9: 91 | L9: 92 | M9: 73 | N9: 86 | O9: 90
A10: Total # of Fatalities | B10: 21 | C10: N/A | D10: 5 | E10: 6 | F10: 4 | G10: 4 | H10: 2 | I10: 21 | J10: N/A | K10: 5 | L10: 6 | M10: 4 | N10: 4 | O10: 2
A11: Total # of Serious Injuries | B11: 178 | C11: N/A | D11: 41 | E11: 43 | F11: 30 | G11: 38 | H11: 26 | I11: 1896 | J11: N/A | K11: 412 | L11: 418 | M11: 371 | N11: 300 | O11: 395
A12: Most Severe Injury Reported
A13: 5 (K) | B13: =SUM(D13:H13) -> 20 | C13: =B13/SUM(B$13:B$17) -> 0.1709401709 | D13: 5 | E13: 6 | F13: 4 | G13: 4 | H13: 1 | I13: =SUM(K13:O13) -> 20 | J13: =I13/SUM(I$13:I$17) -> 0.004379242391 | K13: 5 | L13: 6 | M13: 4 | N13: 4 | O13: 1
A14: 4 (A) | B14: =SUM(D14:H14) -> 97 | C14: =B14/SUM(B$13:B$17) -> 0.8290598291 | D14: 22 | E14: 22 | F14: 19 | G14: 23 | H14: 11 | I14: =SUM(K14:O14) -> 97 | J14: =I14/SUM(I$13:I$17) -> 0.0212393256 | K14: 22 | L14: 22 | M14: 19 | N14: 23 | O14: 11
A15: 3 (B) | B15: N/A | C15: N/A | D15: N/A | E15: N/A | F15: N/A | G15: N/A | H15: N/A | I15: =SUM(K15:O15) -> 306 | J15: =I15/SUM(I$13:I$17) -> 0.06700240858 | K15: 68 | L15: 55 | M15: 55 | N15: 56 | O15: 72
A16: 2 (C) | B16: N/A | C16: N/A | D16: N/A | E16: N/A | F16: N/A | G16: N/A | H16: N/A | I16: =SUM(K16:O16) -> 996 | J16: 0.2180862711 | K16: 211 | L16: 232 | M16: 206 | N16: 148 | O16: 199
A17: 1 (O) | B17: N/A | C17: N/A | D17: N/A | E17: N/A | F17: N/A | G17: N/A | H17: N/A | I17: =SUM(K17:O17) -> 3148 | J17: 0.6892927524 | K17: 722 | L17: 742 | M17: 652 | N17: 495 | O17: 537
A18: Property
A19: Public | B19: =SUM(D19:H19) -> 80 | C19: =B19/SUM(B$19:B$20) -> 0.6837606838 | D19: 19 | E19: 19 | F19: 18 | G19: 17 | H19: 7 | I19: =SUM(K19:O19) -> 3561 | J19: =I19/SUM(I$19:I$20) -> 0.7797241077 | K19: 823 | L19: 799 | M19: 719 | N19: 573 | O19: 647
A20: Private | B20: 37 | C20: =B20/SUM(B$19:B$20) -> 0.3162393162 | D20: 8 | E20: 9 | F20: 5 | G20: 10 | H20: 5 | I20: 1006 | J20: =I20/SUM(I$19:I$20) -> 0.2202758923 | K20: 205 | L20: 258 | M20: 217 | N20: 153 | O20: 173
A21: Location
A22: Trafficway, On Road | B22: =SUM(D22:H22) -> 19 | C22: =B22/SUM(B$22:B$24) -> 0.1623931624 | D22: 4 | E22: 5 | F22: 4 | G22: 5 | H22: 1 | I22: =SUM(K22:O22) -> 633 | J22: =I22/SUM(I$22:I$24) -> 0.1386030217 | K22: 111 | L22: 160 | M22: 137 | N22: 105 | O22: 120
A23: Trafficway, Not on Road | B23: =SUM(D23:H23) -> 84 | C23: =B23/SUM(B$22:B$24) -> 0.7179487179 | D23: 23 | E23: 21 | F23: 12 | G23: 17 | H23: 11 | I23: =SUM(K23:O23) -> 3477 | J23: =I23/SUM(I$22:I$24) -> 0.7613312897 | K23: 815 | L23: 795 | M23: 694 | N23: 549 | O23: 624
A24: Non-Trafficway | B24: =SUM(D24:H24) -> 14 | C24: =B24/SUM(B$22:B$24) -> 0.1196581197 | D24: 0 | E24: 2 | F24: 7 | G24: 5 | H24: 0 | I24: =SUM(K24:O24) -> 457 | J24: =I24/SUM(I$22:I$24) -> 0.1000656886 | K24: 102 | L24: 102 | M24: 105 | N24: 72 | O24: 76
A25: By Weekday
A26: Sunday | B26: =SUM(D26:H26) -> 19 | C26: =B26/SUM(B$26:B$32) -> 0.1623931624 | D26: 2 | E26: 7 | F26: 3 | G26: 5 | H26: 2 | I26: =SUM(K26:O26) -> 494 | J26: =I26/SUM(I$26:I$32) -> 0.1081672871 | K26: 118 | L26: 101 | M26: 87 | N26: 94 | O26: 94
A27: Monday | B27: 11 | C27: =B27/SUM(B$26:B$32) -> 0.09401709402 | D27: 4 | E27: 2 | F27: 2 | G27: 2 | H27: 1 | I27: 663 | J27: =I27/SUM(I$26:I$32) -> 0.1451718853 | K27: 139 | L27: 153 | M27: 156 | N27: 98 | O27: 117
A28: Tuesday | B28: 13 | C28: 0.1111111111 | D28: 2 | E28: 1 | F28: 4 | G28: 3 | H28: 3 | I28: 655 | J28: 0.1434201883 | K28: 145 | L28: 155 | M28: 126 | N28: 110 | O28: 119
A29: Wednesday | B29: 19 | C29: 0.1623931624 | D29: 4 | E29: 6 | F29: 5 | G29: 2 | H29: 2 | I29: 700 | J29: 0.1532734837 | K29: 166 | L29: 169 | M29: 156 | N29: 105 | O29: 104
A30: Thursday | B30: 14 | C30: 0.1196581197 | D30: 5 | E30: 3 | F30: 0 | G30: 5 | H30: 1 | I30: 695 | J30: 0.1521786731 | K30: 149 | L30: 177 | M30: 132 | N30: 112 | O30: 125
A31: Friday | B31: 18 | C31: 0.1538461538 | D31: 6 | E31: 4 | F31: 3 | G31: 3 | H31: 2 | I31: 763 | J31: 0.1670680972 | K31: 180 | L31: 162 | M31: 163 | N31: 100 | O31: 158
A32: Saturday | B32: 23 | C32: 0.1965811966 | D32: 4 | E32: 5 | F32: 6 | G32: 7 | H32: 1 | I32: 597 | J32: 0.1307203854 | K32: 131 | L32: 140 | M32: 116 | N32: 107 | O32: 103
A33: Crash Hour
A34: 12:00 AM - 12:59 AM | B34: =SUM(D34:H34) -> 5 | C34: =B34/SUM(B$34:B$58) -> 0.04273504274 | D34: 0 | E34: 0 | F34: 2 | G34: 3 | H34: 0 | I34: =SUM(K34:O34) -> 115 | J34: =I34/SUM(I$34:I$58) -> 0.02518064375 | K34: 27 | L34: 19 | M34: 23 | N34: 27 | O34: 19
A35: 1:00 AM - 1:59 AM | B35: 2 | C35: =B35/SUM(B$34:B$58) -> 0.01709401709 | D35: 0 | E35: 1 | F35: 0 | G35: 1 | H35: 0 | I35: 92 | J35: =I35/SUM(I$34:I$58) -> 0.020144515 | K35: 17 | L35: 22 | M35: 21 | N35: 17 | O35: 15
A36: 2:00 AM - 2:59 AM | B36: 5 | C36: 0.04273504274 | D36: 1 | E36: 1 | F36: 0 | G36: 3 | H36: 0 | I36: 100 | J36: 0.02189621196 | K36: 21 | L36: 31 | M36: 12 | N36: 21 | O36: 15
A37: 3:00 AM - 3:59 AM | B37: 4 | C37: 0.03418803419 | D37: 2 | E37: 1 | F37: 1 | G37: 0 | H37: 0 | I37: 75 | J37: 0.01642215897 | K37: 17 | L37: 21 | M37: 13 | N37: 10 | O37: 14
A38: 4:00 AM - 4:59 AM | B38: 1 | C38: 0.008547008547 | D38: 0 | E38: 1 | F38: 0 | G38: 0 | H38: 0 | I38: 53 | J38: 0.01160499234 | K38: 8 | L38: 12 | M38: 13 | N38: 7 | O38: 13
A39: 5:00 AM - 5:59 AM | B39: 3 | C39: 0.02564102564 | D39: 0 | E39: 2 | F39: 0 | G39: 1 | H39: 0 | I39: 72 | J39: 0.01576527261 | K39: 18 | L39: 14 | M39: 16 | N39: 9 | O39: 15
A40: 6:00 AM - 6:59 AM | B40: 4 | C40: 0.03418803419 | D40: 2 | E40: 0 | F40: 2 | G40: 0 | H40: 0 | I40: 165 | J40: 0.03612874973 | K40: 44 | L40: 30 | M40: 39 | N40: 24 | O40: 28
A41: 7:00 AM - 7:59 AM | B41: 2 | C41: 0.01709401709 | D41: 0 | E41: 0 | F41: 1 | G41: 1 | H41: 0 | I41: 312 | J41: 0.0683161813 | K41: 63 | L41: 73 | M41: 62 | N41: 62 | O41: 52
A42: 8:00 AM - 8:59 AM | B42: 2 | C42: 0.01709401709 | D42: 0 | E42: 1 | F42: 0 | G42: 1 | H42: 0 | I42: 256 | J42: 0.05605430261 | K42: 58 | L42: 63 | M42: 50 | N42: 42 | O42: 43
A43: 9:00 AM - 9:59 AM | B43: 0 | C43: 0 | D43: 0 | E43: 0 | F43: 0 | G43: 0 | H43: 0 | I43: 142 | J43: 0.03109262098 | K43: 34 | L43: 33 | M43: 29 | N43: 24 | O43: 22
A44: 10:00 AM - 10:59 AM | B44: 5 | C44: 0.04273504274 | D44: 3 | E44: 0 | F44: 1 | G44: 0 | H44: 1 | I44: 139 | J44: 0.03043573462 | K44: 35 | L44: 30 | M44: 33 | N44: 16 | O44: 25
A45: 11:00 AM - 11:59 AM | B45: 1 | C45: 0.008547008547 | D45: 0 | E45: 0 | F45: 0 | G45: 1 | H45: 0 | I45: 176 | J45: 0.03853733304 | K45: 39 | L45: 37 | M45: 34 | N45: 37 | O45: 29
A46: 12:00 PM - 12:59 PM | B46: 4 | C46: 0.03418803419 | D46: 0 | E46: 0 | F46: 1 | G46: 2 | H46: 1 | I46: 202 | J46: 0.04423034815 | K46: 52 | L46: 44 | M46: 34 | N46: 30 | O46: 42
A47: 1:00 PM - 1:59 PM | B47: 9 | C47: 0.07692307692 | D47: 2 | E47: 2 | F47: 1 | G47: 2 | H47: 2 | I47: 230 | J47: 0.0503612875 | K47: 49 | L47: 60 | M47: 45 | N47: 38 | O47: 38
A48: 2:00 PM - 2:59 PM | B48: 4 | C48: 0.03418803419 | D48: 1 | E48: 0 | F48: 2 | G48: 0 | H48: 1 | I48: 252 | J48: 0.05517845413 | K48: 59 | L48: 54 | M48: 53 | N48: 44 | O48: 42
A49: 3:00 PM - 3:59 PM | B49: 8 | C49: 0.06837606838 | D49: 1 | E49: 4 | F49: 2 | G49: 1 | H49: 0 | I49: 362 | J49: 0.07926428728 | K49: 91 | L49: 82 | M49: 66 | N49: 53 | O49: 70
A50: 4:00 PM - 4:59 PM | B50: 6 | C50: 0.05128205128 | D50: 0 | E50: 1 | F50: 2 | G50: 2 | H50: 1 | I50: 349 | J50: 0.07641777972 | K50: 68 | L50: 88 | M50: 74 | N50: 58 | O50: 61
A51: 5:00 PM - 5:59 PM | B51: 11 | C51: 0.09401709402 | D51: 5 | E51: 1 | F51: 4 | G51: 0 | H51: 1 | I51: 483 | J51: 0.1057587037 | K51: 102 | L51: 120 | M51: 98 | N51: 66 | O51: 97
A52: 6:00 PM - 6:59 PM | B52: 10 | C52: 0.08547008547 | D52: 2 | E52: 5 | F52: 0 | G52: 1 | H52: 2 | I52: 272 | J52: 0.05955769652 | K52: 60 | L52: 75 | M52: 52 | N52: 38 | O52: 47
A53: 7:00 PM - 7:59 PM | B53: 6 | C53: 0.05128205128 | D53: 1 | E53: 2 | F53: 1 | G53: 2 | H53: 0 | I53: 159 | J53: 0.03481497701 | K53: 36 | L53: 33 | M53: 38 | N53: 27 | O53: 25
A54: 8:00 PM - 8:59 PM | B54: 11 | C54: 0.09401709402 | D54: 4 | E54: 2 | F54: 2 | G54: 1 | H54: 2 | I54: 169 | J54: 0.0370045982 | K54: 41 | L54: 43 | M54: 33 | N54: 18 | O54: 34
A55: 9:00 PM - 9:59 PM | B55: 7 | C55: 0.05982905983 | D55: 2 | E55: 2 | F55: 1 | G55: 1 | H55: 1 | I55: 161 | J55: 0.03525290125 | K55: 39 | L55: 30 | M55: 37 | N55: 26 | O55: 29
A56: 10:00 PM - 10:59 PM | B56: 5 | C56: 0.04273504274 | D56: 1 | E56: 1 | F56: 0 | G56: 3 | H56: 0 | I56: 125 | J56: 0.02737026494 | K56: 26 | L56: 23 | M56: 42 | N56: 13 | O56: 21
A57: 11:00 PM - 11:59 PM | B57: 2 | C57: 0.01709401709 | D57: 0 | E57: 1 | F57: 0 | G57: 1 | H57: 0 | I57: 106 | J57: 0.02320998467 | K57: 24 | L57: 20 | M57: 19 | N57: 19 | O57: 24
A58: Unknown | B58: 0 | C58: 0 | D58: 0 | E58: 0 | F58: 0 | G58: 0 | H58: 0 | I58: 0 | J58: 0 | K58: 0 | L58: 0 | M58: 0 | N58: 0 | O58: 0
A59: Crash Month
A60: January | B60: =SUM(D60:H60) -> 10 | C60: =B60/SUM(B$60:B$71) -> 0.08547008547 | D60: 1 | E60: 4 | F60: 1 | G60: 3 | H60: 1 | I60: =SUM(K60:O60) -> 410 | J60: =I60/SUM(I$60:I$71) -> 0.08977446902 | K60: 97 | L60: 100 | M60: 77 | N60: 72 | O60: 64
A61: February | B61: 6 | C61: =B61/SUM(B$60:B$71) -> 0.05128205128 | D61: 1 | E61: 2 | F61: 1 | G61: 0 | H61: 2 | I61: 347 | J61: =I61/SUM(I$60:I$71) -> 0.07597985549 | K61: 84 | L61: 83 | M61: 59 | N61: 59 | O61: 62
A62: March | B62: 8 | C62: 0.06837606838 | D62: 3 | E62: 1 | F62: 1 | G62: 3 | H62: 0 | I62: 347 | J62: 0.07597985549 | K62: 70 | L62: 70 | M62: 69 | N62: 70 | O62: 68
A63: April | B63: 5 | C63: 0.04273504274 | D63: 2 | E63: 1 | F63: 0 | G63: 1 | H63: 1 | I63: 387 | J63: 0.08473834027 | K63: 79 | L63: 84 | M63: 74 | N63: 62 | O63: 88
A64: May | B64: 14 | C64: 0.1196581197 | D64: 4 | E64: 4 | F64: 1 | G64: 2 | H64: 3 | I64: 354 | J64: 0.07751259032 | K64: 72 | L64: 82 | M64: 74 | N64: 64 | O64: 62
A65: June | B65: 9 | C65: 0.07692307692 | D65: 3 | E65: 2 | F65: 2 | G65: 2 | H65: 0 | I65: 359 | J65: 0.07860740092 | K65: 75 | L65: 74 | M65: 81 | N65: 55 | O65: 74
A66: July | B66: 7 | C66: 0.05982905983 | D66: 2 | E66: 3 | F66: 2 | G66: 0 | H66: 0 | I66: 359 | J66: 0.07860740092 | K66: 79 | L66: 94 | M66: 77 | N66: 51 | O66: 58
A67: August | B67: 9 | C67: 0.07692307692 | D67: 1 | E67: 2 | F67: 2 | G67: 4 | H67: 0 | I67: 391 | J67: 0.08561418875 | K67: 87 | L67: 96 | M67: 77 | N67: 63 | O67: 68
A68: September | B68: 13 | C68: 0.1111111111 | D68: 2 | E68: 2 | F68: 5 | G68: 3 | H68: 1 | I68: 411 | J68: 0.08999343114 | K68: 83 | L68: 90 | M68: 91 | N68: 76 | O68: 71
A69: October | B69: 16 | C69: 0.1367521368 | D69: 3 | E69: 3 | F69: 4 | G69: 4 | H69: 2 | I69: 450 | J69: 0.0985329538 | K69: 107 | L69: 96 | M69: 102 | N69: 74 | O69: 71
A70: November | B70: 13 | C70: 0.1111111111 | D70: 3 | E70: 1 | F70: 3 | G70: 4 | H70: 2 | I70: 379 | J70: 0.08298664331 | K70: 85 | L70: 94 | M70: 83 | N70: 52 | O70: 65
A71: December | B71: 7 | C71: 0.05982905983 | D71: 2 | E71: 3 | F71: 1 | G71: 1 | H71: 0 | I71: 373 | J71: 0.08167287059 | K71: 110 | L71: 94 | M71: 72 | N71: 28 | O71: 69
A72: Crash Jurisdiction
A73: A | B73: =SUM(D73:H73) -> 11 | C73: =B73/SUM(B$73:B$77) -> 0.09401709402 | D73: 0 | E73: 1 | F73: 5 | G73: 5 | H73: 0 | I73: =SUM(K73:O73) -> 61 | J73: =I73/SUM(I$73:I$77) -> 0.01335668929 | K73: 13 | L73: 14 | M73: 12 | N73: 10 | O73: 12
A74: B | B74: =SUM(D74:H74) -> 19 | C74: =B74/SUM(B$73:B$77) -> 0.1623931624 | D74: 4 | E74: 5 | F74: 4 | G74: 5 | H74: 1 | I74: =SUM(K74:O74) -> 6 | J74: =I74/SUM(I$73:I$77) -> 0.001313772717 | K74: 1 | L74: 3 | M74: 0 | N74: 0 | O74: 2
A75: C | B75: =SUM(D75:H75) -> 84 | C75: 0.7179487179 | D75: 23 | E75: 21 | F75: 12 | G75: 17 | H75: 11 | I75: =SUM(K75:O75) -> 375 | J75: 0.08211079483 | K75: 82 | L75: 81 | M75: 88 | N75: 62 | O75: 62
A76: D | B76: =SUM(D76:H76) -> 1 | C76: 0.008547008547 | D76: 0 | E76: 0 | F76: 1 | G76: 0 | H76: 0 | I76: =SUM(K76:O76) -> 633 | J76: 0.1386030217 | K76: 111 | L76: 160 | M76: 137 | N76: 105 | O76: 120
A77: E | B77: =SUM(D77:H77) -> 2 | C77: 0.01709401709 | D77: 0 | E77: 1 | F77: 1 | G77: 0 | H77: 0 | I77: =SUM(K77:O77) -> 3492 | J77: 0.7646157215 | K77: 821 | L77: 799 | M77: 699 | N77: 549 | O77: 624
A78: First Harmful Event
A79: Cargo/Equipment Loss or Shift | B79: =SUM(D79:H79) -> 0 | C79: =B79/SUM(B$79:B$120) -> 0 | D79: 0 | E79: 0 | F79: 0 | G79: 0 | H79: 0 | I79: =SUM(K79:O79) -> 0 | J79: =I79/SUM(I$79:I$120) -> 0 | K79: 0 | L79: 0 | M79: 0 | N79: 0 | O79: 0
A80: Fell/Jumped from Motor Vehicle | B80: 8 | C80: =B80/SUM(B$79:B$120) -> 0.06837606838 | D80: 3 | E80: 1 | F80: 2 | G80: 1 | H80: 1 | I80: 269 | J80: =I80/SUM(I$79:I$120) -> 0.05890081016 | K80: 60 | L80: 62 | M80: 53 | N80: 46 | O80: 48
A81: Fire/Explosion | B81: 0 | C81: 0 | D81: 0 | E81: 0 | F81: 0 | G81: 0 | H81: 0 | I81: 1 | J81: 0.0002189621196 | K81: 0 | L81: 0 | M81: 0 | N81: 1 | O81: 0
A82: Immersion, Full or Partial | B82: 3 | C82: 0.02564102564 | D82: 2 | E82: 0 | F82: 1 | G82: 0 | H82: 0 | I82: 47 | J82: 0.01029121962 | K82: 11 | L82: 6 | M82: 11 | N82: 8 | O82: 11
A83: Jackknife | B83: 0 | C83: 0 | D83: 0 | E83: 0 | F83: 0 | G83: 0 | H83: 0 | I83: 12 | J83: 0.002627545435 | K83: 0 | L83: 4 | M83: 3 | N83: 3 | O83: 2
A84: Other Non-Collision | B84: 5 | C84: 0.04273504274 | D84: 3 | E84: 1 | F84: 0 | G84: 1 | H84: 0 | I84: 636 | J84: 0.139259908 | K84: 161 | L84: 146 | M84: 134 | N84: 95 | O84: 100
A85: Overturn/Rollover | B85: 0 | C85: 0 | D85: 0 | E85: 0 | F85: 0 | G85: 0 | H85: 0 | I85: 0 | J85: 0 | K85: 0 | L85: 0 | M85: 0 | N85: 0 | O85: 0
A86: Thrown or Falling Object | B86: 1 | C86: 0.008547008547 | D86: 1 | E86: 0 | F86: 0 | G86: 0 | H86: 0 | I86: 26 | J86: 0.005693015108 | K86: 4 | L86: 9 | M86: 2 | N86: 6 | O86: 5
A87: Collision with Animal | B87: 0 | C87: 0 | D87: 0 | E87: 0 | F87: 0 | G87: 0 | H87: 0 | I87: 1 | J87: 0.0002189621196 | K87: 0 | L87: 0 | M87: 1 | N87: 0 | O87: 0
A88: Collision with Construction Equipment | B88: 4 | C88: 0.03418803419 | D88: 0 | E88: 2 | F88: 0 | G88: 2 | H88: 0 | I88: 24 | J88: 0.005255090869 | K88: 6 | L88: 7 | M88: 0 | N88: 6 | O88: 5
A89: Collision with Farm Equipment | B89: 1 | C89: 0.008547008547 | D89: 0 | E89: 0 | F89: 0 | G89: 1 | H89: 0 | I89: 28 | J89: 0.006130939347 | K89: 6 | L89: 4 | M89: 7 | N89: 7 | O89: 4
A90: Collision with Motor Vehicle in Transport | B90: 0 | C90: 0 | D90: 0 | E90: 0 | F90: 0 | G90: 0 | H90: 0 | I90: 6 | J90: 0.001313772717 | K90: 0 | L90: 1 | M90: 2 | N90: 2 | O90: 1
A91: Collision with Other Non-Fixed Object | B91: 0 | C91: 0 | D91: 0 | E91: 0 | F91: 0 | G91: 0 | H91: 0 | I91: 25 | J91: 0.005474052989 | K91: 5 | L91: 3 | M91: 6 | N91: 6 | O91: 5
A92: Collision with Other Non-motorist | B92: 3 | C92: 0.02564102564 | D92: 1 | E92: 0 | F92: 1 | G92: 1 | H92: 0 | I92: 91 | J92: 0.01992555288 | K92: 21 | L92: 20 | M92: 25 | N92: 18 | O92: 7
A93: Collision with Parked Motor Vehicle | B93: 1 | C93: 0.008547008547 | D93: 0 | E93: 0 | F93: 1 | G93: 0 | H93: 0 | I93: 191 | J93: 0.04182176483 | K93: 32 | L93: 50 | M93: 45 | N93: 31 | O93: 33
A94: Collision with Pedalcycle | B94: 2 | C94: 0.01709401709 | D94: 1 | E94: 1 | F94: 0 | G94: 0 | H94: 0 | I94: 26 | J94: 0.005693015108 | K94: 3 | L94: 6 | M94: 7 | N94: 6 | O94: 4
A95: Collision with Pedestrian | B95: 3 | C95: 0.02564102564 | D95: 0 | E95: 3 | F95: 0 | G95: 0 | H95: 0 | I95: 37 | J95: 0.008101598423 | K95: 13 | L95: 10 | M95: 4 | N95: 8 | O95: 2
A96: Collision with Railway Vehicle | B96: 1 | C96: 0.008547008547 | D96: 1 | E96: 0 | F96: 0 | G96: 0 | H96: 0 | I96: 39 | J96: 0.008539522663 | K96: 12 | L96: 12 | M96: 2 | N96: 7 | O96: 6
A97: Strikes Object ar Rest from MV in Transport | B97: 0 | C97: 0 | D97: 0 | E97: 0 | F97: 0 | G97: 0 | H97: 0 | I97: 16 | J97: 0.003503393913 | K97: 2 | L97: 6 | M97: 4 | N97: 1 | O97: 3
A98: Struck by Falling, Shifting Cargo, or Anything Set in Motion by Motor Vehicle | B98: 3 | C98: 0.02564102564 | D98: 1 | E98: 0 | F98: 0 | G98: 1 | H98: 1 | I98: 119 | J98: 0.02605649223 | K98: 25 | L98: 30 | M98: 22 | N98: 19 | O98: 23
A99: Collision with Bridge Overhead Structure | B99: 0 | C99: 0 | D99: 0 | E99: 0 | F99: 0 | G99: 0 | H99: 0 | I99: 20 | J99: 0.004379242391 | K99: 5 | L99: 4 | M99: 7 | N99: 2 | O99: 2
A100: Collision with Bridge Pier or Support | B100: 2 | C100: 0.01709401709 | D100: 0 | E100: 0 | F100: 2 | G100: 0 | H100: 0 | I100: 52 | J100: 0.01138603022 | K100: 7 | L100: 13 | M100: 13 | N100: 5 | O100: 14
A101: Collision with Bridge Rail | B101: 0 | C101: 0 | D101: 0 | E101: 0 | F101: 0 | G101: 0 | H101: 0 | I101: 3 | J101: 0.0006568863587 | K101: 0 | L101: 1 | M101: 0 | N101: 0 | O101: 2
A102: Collision with Cable Barrier | B102: 3 | C102: 0.02564102564 | D102: 0 | E102: 0 | F102: 0 | G102: 2 | H102: 1 | I102: 56 | J102: 0.01226187869 | K102: 10 | L102: 5 | M102: 12 | N102: 17 | O102: 12
A103: Collision with Concrete Traffic Barrier | B103: 24 | C103: 0.2051282051 | D103: 3 | E103: 5 | F103: 7 | G103: 5 | H103: 4 | I103: 276 | J103: 0.060433545 | K103: 52 | L103: 51 | M103: 65 | N103: 39 | O103: 69
A104: Collision with Culvert | B104: 3 | C104: 0.02564102564 | D104: 0 | E104: 0 | F104: 1 | G104: 2 | H104: 0 | I104: 539 | J104: 0.1180205824 | K104: 165 | L104: 110 | M104: 84 | N104: 82 | O104: 98
A105: Collision with Curb | B105: 19 | C105: 0.1623931624 | D105: 5 | E105: 5 | F105: 2 | G105: 5 | H105: 2 | I105: 78 | J105: 0.01707904533 | K105: 17 | L105: 20 | M105: 9 | N105: 14 | O105: 18
A106: Collision with Ditch | B106: 0 | C106: 0 | D106: 0 | E106: 0 | F106: 0 | G106: 0 | H106: 0 | I106: 3 | J106: 0.0006568863587 | K106: 1 | L106: 1 | M106: 0 | N106: 1 | O106: 0
A107: Collision with Embankment | B107: 5 | C107: 0.04273504274 | D107: 0 | E107: 2 | F107: 1 | G107: 1 | H107: 1 | I107: 1053 | J107: 0.2305671119 | K107: 218 | L107: 251 | M107: 233 | N107: 159 | O107: 192
A108: Collision with Fence | B108: 0 | C108: 0 | D108: 0 | E108: 0 | F108: 0 | G108: 0 | H108: 0 | I108: 3 | J108: 0.0006568863587 | K108: 0 | L108: 1 | M108: 0 | N108: 0 | O108: 2
A109: Collision with Guardrail End Terminal | B109: 1 | C109: 0.008547008547 | D109: 0 | E109: 1 | F109: 0 | G109: 0 | H109: 0 | I109: 97 | J109: 0.0212393256 | K109: 27 | L109: 23 | M109: 20 | N109: 11 | O109: 16
A110: Collision with Guardrail Face | B110: 4 | C110: 0.03418803419 | D110: 1 | E110: 1 | F110: 1 | G110: 0 | H110: 1 | I110: 338 | J110: 0.07400919641 | K110: 75 | L110: 87 | M110: 71 | N110: 53 | O110: 52
A111: Collision with Impact Attenuator/Crash Cushion | B111: 0 | C111: 0 | D111: 0 | E111: 0 | F111: 0 | G111: 0 | H111: 0 | I111: 39 | J111: 0.008539522663 | K111: 10 | L111: 8 | M111: 11 | N111: 5 | O111: 5
A112: Collision with Mailbox | B112: 0 | C112: 0 | D112: 0 | E112: 0 | F112: 0 | G112: 0 | H112: 0 | I112: 9 | J112: 0.001970659076 | K112: 0 | L112: 5 | M112: 0 | N112: 2 | O112: 2
A113: Collision with Other Fixed Object | B113: 3 | C113: 0.02564102564 | D113: 0 | E113: 1 | F113: 0 | G113: 2 | H113: 0 | I113: 74 | J113: 0.01620319685 | K113: 21 | L113: 14 | M113: 18 | N113: 14 | O113: 7
A114: Collision with Other Post, Pole, or Support | B114: 16 | C114: 0.1367521368 | D114: 5 | E114: 4 | F114: 4 | G114: 2 | H114: 1 | I114: 220 | J114: 0.0481716663 | K114: 40 | L114: 65 | M114: 45 | N114: 30 | O114: 40
A115: Collision with Other Traffic Barrier | B115: 1 | C115: 0.008547008547 | D115: 0 | E115: 0 | F115: 0 | G115: 1 | H115: 0 | I115: 14 | J115: 0.003065469674 | K115: 1 | L115: 1 | M115: 3 | N115: 4 | O115: 5
A116: Collision with Traffic Sign Support | B116: 1 | C116: 0.008547008547 | D116: 0 | E116: 1 | F116: 0 | G116: 0 | H116: 0 | I116: 38 | J116: 0.008320560543 | K116: 6 | L116: 10 | M116: 5 | N116: 9 | O116: 8
A117: Collision with Traffic Signal Support | B117: 0 | C117: 0 | D117: 0 | E117: 0 | F117: 0 | G117: 0 | H117: 0 | I117: 16 | J117: 0.003503393913 | K117: 3 | L117: 3 | M117: 3 | N117: 1 | O117: 6
A118: Collision with Tree | B118: 0 | C118: 0 | D118: 0 | E118: 0 | F118: 0 | G118: 0 | H118: 0 | I118: 29 | J118: 0.006349901467 | K118: 6 | L118: 5 | M118: 5 | N118: 8 | O118: 5
A119: Collision with Utility Pole or Light Support | B119: 0 | C119: 0 | D119: 0 | E119: 0 | F119: 0 | G119: 0 | H119: 0 | I119: 16 | J119: 0.003503393913 | K119: 3 | L119: 3 | M119: 4 | N119: 0 | O119: 6
A120: Unknown | B120: 0 | C120: 0 | D120: 0 | E120: 0 | F120: 0 | G120: 0 | H120: 0 | I120: 0 | J120: 0 | K120: 0 | L120: 0 | M120: 0 | N120: 0 | O120: 0
A121: Location of First Harmful Event
A122: Gore | B122: =SUM(D122:H122) -> 108 | C122: =B122/SUM(B$122:B$132) -> 0.9230769231 | D122: 26 | E122: 24 | F122: 20 | G122: 26 | H122: 12 | I122: =SUM(K122:O122) -> 3854 | J122: =I122/SUM(I$122:I$132) -> 0.8438800088 | K122: 882 | L122: 863 | M122: 768 | N122: 599 | O122: 742
A123: In Parking Lane or Zone | B123: =SUM(D123:H123) -> 0 | C123: =B123/SUM(B$122:B$132) -> 0 | D123: 0 | E123: 0 | F123: 0 | G123: 0 | H123: 0 | I123: =SUM(K123:O123) -> 4 | J123: =I123/SUM(I$122:I$132) -> 0.0008758484782 | K123: 3 | L123: 1 | M123: 0 | N123: 0 | O123: 0
A124: Median | B124: =SUM(D124:H124) -> 0 | C124: 0 | D124: 0 | E124: 0 | F124: 0 | G124: 0 | H124: 0 | I124: =SUM(K124:O124) -> 1 | J124: 0.0002189621196 | K124: 0 | L124: 0 | M124: 0 | N124: 0 | O124: 1
A125: Off-Roadway, Location Unknown | B125: =SUM(D125:H125) -> 3 | C125: 0.02564102564 | D125: 0 | E125: 2 | F125: 1 | G125: 0 | H125: 0 | I125: =SUM(K125:O125) -> 210 | J125: 0.04598204511 | K125: 36 | L125: 61 | M125: 55 | N125: 36 | O125: 22
A126: On Roadway | B126: 0 | C126: 0 | D126: 0 | E126: 0 | F126: 0 | G126: 0 | H126: 0 | I126: 5 | J126: 0.001094810598 | K126: 3 | L126: 2 | M126: 0 | N126: 0 | O126: 0
A127: On Shoulder, Left Side | B127: 0 | C127: 0 | D127: 0 | E127: 0 | F127: 0 | G127: 0 | H127: 0 | I127: 12 | J127: 0.002627545435 | K127: 2 | L127: 4 | M127: 5 | N127: 0 | O127: 1
A128: On Shoulder, Right Side | B128: 0 | C128: 0 | D128: 0 | E128: 0 | F128: 0 | G128: 0 | H128: 0 | I128: 24 | J128: 0.005255090869 | K128: 9 | L128: 5 | M128: 3 | N128: 5 | O128: 2
A129: Outside Road/Right-of-Way | B129: 0 | C129: 0 | D129: 0 | E129: 0 | F129: 0 | G129: 0 | H129: 0 | I129: 0 | J129: 0 | K129: 0 | L129: 0 | M129: 0 | N129: 0 | O129: 0
A130: Roadside | B130: 1 | C130: 0.008547008547 | D130: 0 | E130: 0 | F130: 1 | G130: 0 | H130: 0 | I130: 142 | J130: 0.03109262098 | K130: 35 | L130: 36 | M130: 32 | N130: 24 | O130: 15
A131: Separator/Traffic Island | B131: 1 | C131: 0.008547008547 | D131: 0 | E131: 1 | F131: 0 | G131: 0 | H131: 0 | I131: 2 | J131: 0.0004379242391 | K131: 0 | L131: 2 | M131: 0 | N131: 0 | O131: 0
A132: Unknown | B132: =SUM(D132:H132) -> 4 | C132: 0.03418803419 | D132: 1 | E132: 1 | F132: 1 | G132: 1 | H132: 0 | I132: =SUM(K132:O132) -> 313 | J132: 0.06853514342 | K132: 58 | L132: 83 | M132: 73 | N132: 62 | O132: 37
A133: Manner of Crash
A134: Not a Collision Between Two Motor Vehicles | B134: =SUM(D134:H134) -> 10 | C134: =B134/SUM(B$134:B$143) -> 0.08547008547 | D134: 1 | E134: 4 | F134: 1 | G134: 3 | H134: 1 | I134: =SUM(K134:O134) -> 410 | J134: =I134/SUM(I$134:I$143) -> 0.08977446902 | K134: 97 | L134: 100 | M134: 77 | N134: 72 | O134: 64
A135: Angle | B135: 6 | C135: =B135/SUM(B$134:B$143) -> 0.05128205128 | D135: 1 | E135: 2 | F135: 1 | G135: 0 | H135: 2 | I135: 347 | J135: =I135/SUM(I$134:I$143) -> 0.07597985549 | K135: 84 | L135: 83 | M135: 59 | N135: 59 | O135: 62
A136: Front to Front | B136: 8 | C136: 0.06837606838 | D136: 3 | E136: 1 | F136: 1 | G136: 3 | H136: 0 | I136: 347 | J136: 0.07597985549 | K136: 70 | L136: 70 | M136: 69 | N136: 70 | O136: 68
A137: Front to Rear | B137: 5 | C137: 0.04273504274 | D137: 2 | E137: 1 | F137: 0 | G137: 1 | H137: 1 | I137: 387 | J137: 0.08473834027 | K137: 79 | L137: 84 | M137: 74 | N137: 62 | O137: 88
A138: Rear to Rear | B138: 14 | C138: 0.1196581197 | D138: 4 | E138: 4 | F138: 1 | G138: 2 | H138: 3 | I138: 354 | J138: 0.07751259032 | K138: 72 | L138: 82 | M138: 74 | N138: 64 | O138: 62
A139: Rear to Side | B139: 9 | C139: 0.07692307692 | D139: 3 | E139: 2 | F139: 2 | G139: 2 | H139: 0 | I139: 359 | J139: 0.07860740092 | K139: 75 | L139: 74 | M139: 81 | N139: 55 | O139: 74
A140: Sideswipe, Opposite Direction | B140: 7 | C140: 0.05982905983 | D140: 2 | E140: 3 | F140: 2 | G140: 0 | H140: 0 | I140: 359 | J140: 0.07860740092 | K140: 79 | L140: 94 | M140: 77 | N140: 51 | O140: 58
A141: Sideswipe, Same Direction | B141: 9 | C141: 0.07692307692 | D141: 1 | E141: 2 | F141: 2 | G141: 4 | H141: 0 | I141: 391 | J141: 0.08561418875 | K141: 87 | L141: 96 | M141: 77 | N141: 63 | O141: 68
A142: Other | B142: 13 | C142: 0.1111111111 | D142: 2 | E142: 2 | F142: 5 | G142: 3 | H142: 1 | I142: 411 | J142: 0.08999343114 | K142: 83 | L142: 90 | M142: 91 | N142: 76 | O142: 71
A143: Unknown | B143: 36 | C143: 0.3076923077 | D143: 8 | E143: 7 | F143: 8 | G143: 9 | H143: 4 | I143: 1202 | J143: 0.2631924677 | K143: 302 | L143: 284 | M143: 257 | N143: 154 | O143: 205
A144: Weather
A145: Blowing Sand, Soil, Dirt | B145: =SUM(D145:H145) -> 34 | C145: =B145/SUM(B$145:B$156) -> 0.2905982906 | D145: 4 | E145: 8 | F145: 10 | G145: 8 | H145: 4 | I145: =SUM(K145:O145) -> 1067 | J145: =I145/SUM(I$145:I$156) -> 0.2336325816 | K145: 192 | L145: 252 | M145: 238 | N145: 184 | O145: 201
A146: Blowing Snow | B146: 67 | C146: =B146/SUM(B$145:B$156) -> 0.5726495726 | D146: 18 | E146: 16 | F146: 10 | G146: 15 | H146: 8 | I146: 3162 | J146: =I146/SUM(I$145:I$156) -> 0.692358222 | K146: 758 | L146: 710 | M146: 644 | N146: 495 | O146: 555
A147: Clear | B147: 11 | C147: 0.09401709402 | D147: 5 | E147: 3 | F147: 2 | G147: 1 | H147: 0 | I147: 286 | J147: 0.06262316619 | K147: 66 | L147: 83 | M147: 43 | N147: 38 | O147: 56
A148: Cloudy | B148: 3 | C148: 0.02564102564 | D148: 0 | E148: 1 | F148: 0 | G148: 2 | H148: 0 | I148: 41 | J148: 0.008977446902 | K148: 9 | L148: 10 | M148: 8 | N148: 6 | O148: 8
A149: Fog, Smog, Smoke | B149: 1 | C149: 0.008547008547 | D149: 0 | E149: 0 | F149: 0 | G149: 1 | H149: 0 | I149: 8 | J149: 0.001751696956 | K149: 3 | L149: 1 | M149: 2 | N149: 2 | O149: 0
A150: Freezing Rain or Freezing Drizzle | B150: 1 | C150: 0.008547008547 | D150: 0 | E150: 0 | F150: 1 | G150: 0 | H150: 0 | I150: 3 | J150: 0.0006568863587 | K150: 0 | L150: 1 | M150: 1 | N150: 1 | O150: 0
A151: Rain | B151: 0 | C151: 0 | D151: 0 | E151: 0 | F151: 0 | G151: 0 | H151: 0 | I151: 0 | J151: 0 | K151: 0 | L151: 0 | M151: 0 | N151: 0 | O151: 0
A152: Severe Crosswinds | B152: 0 | C152: 0 | D152: 0 | E152: 0 | F152: 0 | G152: 0 | H152: 0 | I152: 0 | J152: 0 | K152: 0 | L152: 0 | M152: 0 | N152: 0 | O152: 0
A153: Sleet or Hail | B153: 0 | C153: 0 | D153: 0 | E153: 0 | F153: 0 | G153: 0 | H153: 0 | I153: 0 | J153: 0 | K153: 0 | L153: 0 | M153: 0 | N153: 0 | O153: 0
A154: Snow | B154: 0 | C154: 0 | D154: 0 | E154: 0 | F154: 0 | G154: 0 | H154: 0 | I154: 0 | J154: 0 | K154: 0 | L154: 0 | M154: 0 | N154: 0 | O154: 0
A155: Other | B155: 0 | C155: 0 | D155: 0 | E155: 0 | F155: 0 | G155: 0 | H155: 0 | I155: 0 | J155: 0 | K155: 0 | L155: 0 | M155: 0 | N155: 0 | O155: 0
A156: Unknown | B156: 0 | C156: 0 | D156: 0 | E156: 0 | F156: 0 | G156: 0 | H156: 0 | I156: 0 | J156: 0 | K156: 0 | L156: 0 | M156: 0 | N156: 0 | O156: 0
A157: Light Conditions
A158: Daylight | B158: =SUM(D158:H158) -> 8 | C158: =B158/SUM(B$158:B$164) -> 0.06837606838 | D158: 1 | E158: 1 | F158: 3 | G158: 2 | H158: 1 | I158: =SUM(K158:O158) -> 512 | J158: =I158/SUM(I$158:I$164) -> 0.1121086052 | K158: 122 | L158: 100 | M158: 115 | N158: 90 | O158: 85
A159: Dawn/Dusk | B159: =SUM(D159:H159) -> 39 | C159: =B159/SUM(B$158:B$164) -> 0.3333333333 | D159: 11 | E159: 9 | F159: 8 | G159: 6 | H159: 5 | I159: =SUM(K159:O159) -> 1340 | J159: =I159/SUM(I$158:I$164) -> 0.2934092402 | K159: 317 | L159: 317 | M159: 285 | N159: 194 | O159: 227
A160: Dark - Lighted | B160: 0 | C160: 0 | D160: 0 | E160: 0 | F160: 0 | G160: 0 | H160: 0 | I160: 5 | J160: 0.001094810598 | K160: 1 | L160: 1 | M160: 0 | N160: 1 | O160: 2
A161: Dark - Not Lighted | B161: 9 | C161: 0.07692307692 | D161: 2 | E161: 3 | F161: 2 | G161: 1 | H161: 1 | I161: 687 | J161: 0.1504269761 | K161: 137 | L161: 181 | M161: 141 | N161: 107 | O161: 121
A162: Dark - Unknown Lighting | B162: 61 | C162: 0.5213675214 | D162: 13 | E162: 15 | F162: 10 | G162: 18 | H162: 5 | I162: 2010 | J162: 0.4401138603 | K162: 448 | L162: 455 | M162: 392 | N162: 331 | O162: 384
A163: Other | B163: 0 | C163: 0 | D163: 0 | E163: 0 | F163: 0 | G163: 0 | H163: 0 | I163: 5 | J163: 0.001094810598 | K163: 3 | L163: 1 | M163: 0 | N163: 1 | O163: 0
A164: Unknown | B164: 0 | C164: 0 | D164: 0 | E164: 0 | F164: 0 | G164: 0 | H164: 0 | I164: 8 | J164: 0.001751696956 | K164: 0 | L164: 2 | M164: 3 | N164: 2 | O164: 1
A165: Road Surface Condition
A166: Dry | B166: =SUM(D166:H166) -> 108 | C166: =B166/SUM(B$166:B$176) -> 0.9230769231 | D166: 26 | E166: 24 | F166: 20 | G166: 26 | H166: 12 | I166: =SUM(K166:O166) -> 3854 | J166: =I166/SUM(I$166:I$176) -> 0.8438800088 | K166: 882 | L166: 863 | M166: 768 | N166: 599 | O166: 742
A167: Ice/Frost | B167: 0 | C167: =B167/SUM(B$166:B$176) -> 0 | D167: 0 | E167: 0 | F167: 0 | G167: 0 | H167: 0 | I167: 4 | J167: =I167/SUM(I$166:I$176) -> 0.0008758484782 | K167: 3 | L167: 1 | M167: 0 | N167: 0 | O167: 0
A168: Mud, Dirt, Gravel | B168: 0 | C168: 0 | D168: 0 | E168: 0 | F168: 0 | G168: 0 | H168: 0 | I168: 1 | J168: 0.0002189621196 | K168: 0 | L168: 0 | M168: 0 | N168: 0 | O168: 1
A169: Oil | B169: 3 | C169: 0.02564102564 | D169: 0 | E169: 2 | F169: 1 | G169: 0 | H169: 0 | I169: 210 | J169: 0.04598204511 | K169: 36 | L169: 61 | M169: 55 | N169: 36 | O169: 22
A170: Sand | B170: 0 | C170: 0 | D170: 0 | E170: 0 | F170: 0 | G170: 0 | H170: 0 | I170: 5 | J170: 0.001094810598 | K170: 3 | L170: 2 | M170: 0 | N170: 0 | O170: 0
A171: Sluch | B171: 0 | C171: 0 | D171: 0 | E171: 0 | F171: 0 | G171: 0 | H171: 0 | I171: 12 | J171: 0.002627545435 | K171: 2 | L171: 4 | M171: 5 | N171: 0 | O171: 1
A172: Snow | B172: 0 | C172: 0 | D172: 0 | E172: 0 | F172: 0 | G172: 0 | H172: 0 | I172: 24 | J172: 0.005255090869 | K172: 9 | L172: 5 | M172: 3 | N172: 5 | O172: 2
A173: Water (Standing, Moving) | B173: 0 | C173: 0 | D173: 0 | E173: 0 | F173: 0 | G173: 0 | H173: 0 | I173: 0 | J173: 0 | K173: 0 | L173: 0 | M173: 0 | N173: 0 | O173: 0
A174: Wet | B174: 1 | C174: 0.008547008547 | D174: 0 | E174: 0 | F174: 1 | G174: 0 | H174: 0 | I174: 142 | J174: 0.03109262098 | K174: 35 | L174: 36 | M174: 32 | N174: 24 | O174: 15
A175: Other | B175: 1 | C175: 0.008547008547 | D175: 0 | E175: 1 | F175: 0 | G175: 0 | H175: 0 | I175: 2 | J175: 0.0004379242391 | K175: 0 | L175: 2 | M175: 0 | N175: 0 | O175: 0
A176: Unknown | B176: 4 | C176: 0.03418803419 | D176: 1 | E176: 1 | F176: 1 | G176: 1 | H176: 0 | I176: 313 | J176: 0.06853514342 | K176: 58 | L176: 83 | M176: 73 | N176: 62 | O176: 37
A177: Contributing Circumstances - Roadway Environment, Selection 1
A178: None | B178: =SUM(D178:H178) -> 5 | C178: =B178/SUM(B$178:B$200) -> 0.04273504274 | D178: 0 | E178: 0 | F178: 2 | G178: 3 | H178: 0 | I178: =SUM(K178:O178) -> 115 | J178: =I178/SUM(I$178:I$200) -> 0.02518064375 | K178: 27 | L178: 19 | M178: 23 | N178: 27 | O178: 19
A179: Animal(s) | B179: 2 | C179: =B179/SUM(B$178:B$200) -> 0.01709401709 | D179: 0 | E179: 1 | F179: 0 | G179: 1 | H179: 0 | I179: 92 | J179: =I179/SUM(I$178:I$200) -> 0.020144515 | K179: 17 | L179: 22 | M179: 21 | N179: 17 | O179: 15
A180: Debris | B180: 5 | C180: 0.04273504274 | D180: 1 | E180: 1 | F180: 0 | G180: 3 | H180: 0 | I180: 100 | J180: 0.02189621196 | K180: 21 | L180: 31 | M180: 12 | N180: 21 | O180: 15
A181: Glare | B181: 4 | C181: 0.03418803419 | D181: 2 | E181: 1 | F181: 1 | G181: 0 | H181: 0 | I181: 75 | J181: 0.01642215897 | K181: 17 | L181: 21 | M181: 13 | N181: 10 | O181: 14
A182: Non-Highway Work | B182: 1 | C182: 0.008547008547 | D182: 0 | E182: 1 | F182: 0 | G182: 0 | H182: 0 | I182: 53 | J182: 0.01160499234 | K182: 8 | L182: 12 | M182: 13 | N182: 7 | O182: 13
A183: Obstructed Crosswalks | B183: 3 | C183: 0.02564102564 | D183: 0 | E183: 2 | F183: 0 | G183: 1 | H183: 0 | I183: 72 | J183: 0.01576527261 | K183: 18 | L183: 14 | M183: 16 | N183: 9 | O183: 15
A184: Obstruction in Roadway | B184: 4 | C184: 0.03418803419 | D184: 2 | E184: 0 | F184: 2 | G184: 0 | H184: 0 | I184: 165 | J184: 0.03612874973 | K184: 44 | L184: 30 | M184: 39 | N184: 24 | O184: 28
A185: Prior Crash | B185: 2 | C185: 0.01709401709 | D185: 0 | E185: 0 | F185: 1 | G185: 1 | H185: 0 | I185: 312 | J185: 0.0683161813 | K185: 63 | L185: 73 | M185: 62 | N185: 62 | O185: 52
A186: Prior Non-Recurring Incident | B186: 2 | C186: 0.01709401709 | D186: 0 | E186: 1 | F186: 0 | G186: 1 | H186: 0 | I186: 256 | J186: 0.05605430261 | K186: 58 | L186: 63 | M186: 50 | N186: 42 | O186: 43
A187: Regular Congestion | B187: 0 | C187: 0 | D187: 0 | E187: 0 | F187: 0 | G187: 0 | H187: 0 | I187: 142 | J187: 0.03109262098 | K187: 34 | L187: 33 | M187: 29 | N187: 24 | O187: 22
A188: Related to a Bus Stop | B188: 5 | C188: 0.04273504274 | D188: 3 | E188: 0 | F188: 1 | G188: 0 | H188: 1 | I188: 139 | J188: 0.03043573462 | K188: 35 | L188: 30 | M188: 33 | N188: 16 | O188: 25
A189: Road Surface Condition (wet, icy, snow, slush, etc.) | B189: 1 | C189: 0.008547008547 | D189: 0 | E189: 0 | F189: 0 | G189: 1 | H189: 0 | I189: 176 | J189: 0.03853733304 | K189: 39 | L189: 37 | M189: 34 | N189: 37 | O189: 29
A190: Ruts, Holes, Bumps | B190: 4 | C190: 0.03418803419 | D190: 0 | E190: 0 | F190: 1 | G190: 2 | H190: 1 | I190: 202 | J190: 0.04423034815 | K190: 52 | L190: 44 | M190: 34 | N190: 30 | O190: 42
A191: Shoulders (none, low, soft, high) | B191: 9 | C191: 0.07692307692 | D191: 2 | E191: 2 | F191: 1 | G191: 2 | H191: 2 | I191: 230 | J191: 0.0503612875 | K191: 49 | L191: 60 | M191: 45 | N191: 38 | O191: 38
A192: Toll Booth/Plaza Related | B192: 4 | C192: 0.03418803419 | D192: 1 | E192: 0 | F192: 2 | G192: 0 | H192: 1 | I192: 252 | J192: 0.05517845413 | K192: 59 | L192: 54 | M192: 53 | N192: 44 | O192: 42
A193: Traffic Control Device | B193: 8 | C193: 0.06837606838 | D193: 1 | E193: 4 | F193: 2 | G193: 1 | H193: 0 | I193: 362 | J193: 0.07926428728 | K193: 91 | L193: 82 | M193: 66 | N193: 53 | O193: 70
A194: Traffic Incident | B194: 6 | C194: 0.05128205128 | D194: 0 | E194: 1 | F194: 2 | G194: 2 | H194: 1 | I194: 349 | J194: 0.07641777972 | K194: 68 | L194: 88 | M194: 74 | N194: 58 | O194: 61
A195: Visual Obstruction(s) | B195: 11 | C195: 0.09401709402 | D195: 5 | E195: 1 | F195: 4 | G195: 0 | H195: 1 | I195: 483 | J195: 0.1057587037 | K195: 102 | L195: 120 | M195: 98 | N195: 66 | O195: 97
A196: Weather Conditions | B196: 10 | C196: 0.08547008547 | D196: 2 | E196: 5 | F196: 0 | G196: 1 | H196: 2 | I196: 272 | J196: 0.05955769652 | K196: 60 | L196: 75 | M196: 52 | N196: 38 | O196: 47
A197: Work Zone (construction/maintenance/utility) | B197: 6 | C197: 0.05128205128 | D197: 1 | E197: 2 | F197: 1 | G197: 2 | H197: 0 | I197: 159 | J197: 0.03481497701 | K197: 36 | L197: 33 | M197: 38 | N197: 27 | O197: 25
A198: Worn, Travel-polished Surface | B198: 11 | C198: 0.09401709402 | D198: 4 | E198: 2 | F198: 2 | G198: 1 | H198: 2 | I198: 169 | J198: 0.0370045982 | K198: 41 | L198: 43 | M198: 33 | N198: 18 | O198: 34
A199: Other | B199: 7 | C199: 0.05982905983 | D199: 2 | E199: 2 | F199: 1 | G199: 1 | H199: 1 | I199: 161 | J199: 0.03525290125 | K199: 39 | L199: 30 | M199: 37 | N199: 26 | O199: 29
A200: Unknown | B200: 7 | C200: 0.05982905983 | D200: 1 | E200: 2 | F200: 0 | G200: 4 | H200: 0 | I200: 231 | J200: 0.05058024962 | K200: 50 | L200: 43 | M200: 61 | N200: 32 | O200: 45
... 377 more rows

Sheet Comparison Group 1 Accessible (hidden)
A1: =CONCATENATE("Fatal and Serious Injury Crashes Only - ",A2, " ",Instructions!$B$10) -> Fatal and Serious Injury Crashes Only - Overall Numbers Test Group 1 | I1: =CONCATENATE("Total Crashes - ",I2, " ",Instructions!$B$10) -> Total Crashes - Overall Numbers Test Group 1
A2: Overall Numbers | B2: Number of Crashes | C2: Percent of Crashes | D2: Year 5 Crashes | E2: Year 4 Crashes | F2: Year 3 Crashes | G2: Year 2 Crashes | H2: Year 1 Crashes | I2: Overall Numbers | J2: Number of Crashes | K2: Percent of Crashes | L2: Year 5 Crashes | M2: Year 4 Crashes | N2: Year 3 Crashes | O2: Year 2 Crashes | P2: Year 1 Crashes
A3: Total # of Collisions | B3: =SUM(D3:H3) -> 117 | C3: N/A | D3: 27 | E3: 28 | F3: 23 | G3: 27 | H3: 12 | I3: =A3 -> Total # of Collisions | J3: =SUM(L3:P3) -> 4567 | K3: N/A | L3: 1028 | M3: 1057 | N3: 936 | O3: 726 | P3: 820
A4: # of Fatal Collisions | B4: 20 | C4: =B4/B3 -> 0.1709401709 | D4: 5 | E4: 6 | F4: 4 | G4: 4 | H4: 1 | I4: # of Fatal Collisions | J4: 20 | K4: =J4/J3 -> 0.004379242391 | L4: 5 | M4: 6 | N4: 4 | O4: 4 | P4: 1
A5: # of Serious Injury Collisions | B5: 97 | C5: =B5/B3 -> 0.8290598291 | D5: 22 | E5: 22 | F5: 19 | G5: 23 | H5: 11 | I5: # of Serious Injury Collisions | J5: 97 | K5: =J5/J3 -> 0.0212393256 | L5: 22 | M5: 22 | N5: 19 | O5: 23 | P5: 11
A6: # of Alcohol-Related Collisions | B6: 33 | C6: =B6/B3 -> 0.2820512821 | D6: 6 | E6: 5 | F6: 6 | G6: 14 | H6: 2 | I6: # of Alcohol-Related Collisions | J6: 432 | K6: =J6/J3 -> 0.09459163565 | L6: 91 | M6: 92 | N6: 73 | O6: 86 | P6: 90
A7: Total # of Fatalities | B7: 21 | C7: N/A | D7: 5 | E7: 6 | F7: 4 | G7: 4 | H7: 2 | I7: Total # of Fatalities | J7: 21 | K7: N/A | L7: 5 | M7: 6 | N7: 4 | O7: 4 | P7: 2
A8: Total # of Serious Injuries | B8: 178 | C8: N/A | D8: 41 | E8: 43 | F8: 30 | G8: 38 | H8: 26 | I8: Total # of Serious Injuries | J8: 1896 | K8: N/A | L8: 412 | M8: 418 | N8: 371 | O8: 300 | P8: 395
A9: =CONCATENATE("Fatal and Serious Injury Crashes Only - ",A10, " ",Instructions!$B$10) -> Fatal and Serious Injury Crashes Only - Most Severe Injury Reported Test Group 1 | I9: =CONCATENATE("Total Crashes - ",I10, " ",Instructions!$B$10) -> Total Crashes - Most Severe Injury Reported Test Group 1
A10: Most Severe Injury Reported | B10: Number of Crashes | C10: Percent of Crashes | D10: Year 5 Crashes | E10: Year 4 Crashes | F10: Year 3 Crashes | G10: Year 2 Crashes | H10: Year 1 Crashes | I10: Most Severe Injury Reported | J10: Number of Crashes | K10: Percent of Crashes | L10: Year 5 Crashes | M10: Year 4 Crashes | N10: Year 3 Crashes | O10: Year 2 Crashes | P10: Year 1 Crashes
A11: 5 (K) | B11: =SUM(D11:H11) -> 20 | C11: =B11/SUM(B$11:B$15) -> 0.1709401709 | D11: 5 | E11: 6 | F11: 4 | G11: 4 | H11: 1 | I11: 5 (K) | J11: =SUM(L11:P11) -> 20 | K11: =J11/SUM(J$11:J$15) -> 0.004379242391 | L11: 5 | M11: 6 | N11: 4 | O11: 4 | P11: 1
A12: 4 (A) | B12: =SUM(D12:H12) -> 97 | C12: =B12/SUM(B$11:B$15) -> 0.8290598291 | D12: 22 | E12: 22 | F12: 19 | G12: 23 | H12: 11 | I12: 4 (A) | J12: =SUM(L12:P12) -> 97 | K12: =J12/SUM(J$11:J$15) -> 0.0212393256 | L12: 22 | M12: 22 | N12: 19 | O12: 23 | P12: 11
A13: 3 (B) | B13: N/A | C13: N/A | D13: N/A | E13: N/A | F13: N/A | G13: N/A | H13: N/A | I13: 3 (B) | J13: =SUM(L13:P13) -> 306 | K13: =J13/SUM(J$11:J$15) -> 0.06700240858 | L13: 68 | M13: 55 | N13: 55 | O13: 56 | P13: 72
A14: 2 (C) | B14: N/A | C14: N/A | D14: N/A | E14: N/A | F14: N/A | G14: N/A | H14: N/A | I14: 2 (C) | J14: =SUM(L14:P14) -> 996 | K14: 0.2180862711 | L14: 211 | M14: 232 | N14: 206 | O14: 148 | P14: 199
A15: 1 (O) | B15: N/A | C15: N/A | D15: N/A | E15: N/A | F15: N/A | G15: N/A | H15: N/A | I15: 1 (O) | J15: =SUM(L15:P15) -> 3148 | K15: 0.6892927524 | L15: 722 | M15: 742 | N15: 652 | O15: 495 | P15: 537
A16: =CONCATENATE("Fatal and Serious Injury Crashes Only - ",A17, " ",Instructions!$B$10) -> Fatal and Serious Injury Crashes Only - Property Test Group 1 | I16: =CONCATENATE("Total Crashes - ",I17, " ",Instructions!$B$10) -> Total Crashes - Property Test Group 1
A17: Property | B17: Number of Crashes | C17: Percent of Crashes | D17: Year 5 Crashes | E17: Year 4 Crashes | F17: Year 3 Crashes | G17: Year 2 Crashes | H17: Year 1 Crashes | I17: Property | J17: Number of Crashes | K17: Percent of Crashes | L17: Year 5 Crashes | M17: Year 4 Crashes | N17: Year 3 Crashes | O17: Year 2 Crashes | P17: Year 1 Crashes
A18: Public | B18: =SUM(D18:H18) -> 80 | C18: =B18/SUM(B$18:B$19) -> 0.6837606838 | D18: 19 | E18: 19 | F18: 18 | G18: 17 | H18: 7 | I18: Public | J18: =SUM(L18:P18) -> 3561 | K18: =J18/SUM(J$18:J$19) -> 0.7797241077 | L18: 823 | M18: 799 | N18: 719 | O18: 573 | P18: 647
A19: Private | B19: 37 | C19: =B19/SUM(B$18:B$19) -> 0.3162393162 | D19: 8 | E19: 9 | F19: 5 | G19: 10 | H19: 5 | I19: Private | J19: 1006 | K19: =J19/SUM(J$18:J$19) -> 0.2202758923 | L19: 205 | M19: 258 | N19: 217 | O19: 153 | P19: 173
A20: =CONCATENATE("Fatal and Serious Injury Crashes Only - ",A21, " ",Instructions!$B$10) -> Fatal and Serious Injury Crashes Only - Location Test Group 1 | I20: =CONCATENATE("Total Crashes - ",I21, " ",Instructions!$B$10) -> Total Crashes - Location Test Group 1
A21: Location | B21: Number of Crashes | C21: Percent of Crashes | D21: Year 5 Crashes | E21: Year 4 Crashes | F21: Year 3 Crashes | G21: Year 2 Crashes | H21: Year 1 Crashes | I21: Location | J21: Number of Crashes | K21: Percent of Crashes | L21: Year 5 Crashes | M21: Year 4 Crashes | N21: Year 3 Crashes | O21: Year 2 Crashes | P21: Year 1 Crashes
A22: Trafficway, On Road | B22: =SUM(D22:H22) -> 19 | C22: =B22/SUM(B$22:B$24) -> 0.1623931624 | D22: 4 | E22: 5 | F22: 4 | G22: 5 | H22: 1 | I22: Trafficway, On Road | J22: =SUM(L22:P22) -> 633 | K22: =J22/SUM(J$22:J$24) -> 0.1386030217 | L22: 111 | M22: 160 | N22: 137 | O22: 105 | P22: 120
A23: Trafficway, Not on Road | B23: =SUM(D23:H23) -> 84 | C23: =B23/SUM(B$22:B$24) -> 0.7179487179 | D23: 23 | E23: 21 | F23: 12 | G23: 17 | H23: 11 | I23: Trafficway, Not on Road | J23: =SUM(L23:P23) -> 3477 | K23: =J23/SUM(J$22:J$24) -> 0.7613312897 | L23: 815 | M23: 795 | N23: 694 | O23: 549 | P23: 624
A24: Non-Trafficway | B24: =SUM(D24:H24) -> 14 | C24: =B24/SUM(B$22:B$24) -> 0.1196581197 | D24: 0 | E24: 2 | F24: 7 | G24: 5 | H24: 0 | I24: Non-Trafficway | J24: =SUM(L24:P24) -> 457 | K24: =J24/SUM(J$22:J$24) -> 0.1000656886 | L24: 102 | M24: 102 | N24: 105 | O24: 72 | P24: 76
A25: =CONCATENATE("Fatal and Serious Injury Crashes Only - ",A26, " ",Instructions!$B$10) -> Fatal and Serious Injury Crashes Only - By Weekday Test Group 1 | I25: =CONCATENATE("Total Crashes - ",I26, " ",Instructions!$B$10) -> Total Crashes - By Weekday Test Group 1
A26: By Weekday | B26: Number of Crashes | C26: Percent of Crashes | D26: Year 5 Crashes | E26: Year 4 Crashes | F26: Year 3 Crashes | G26: Year 2 Crashes | H26: Year 1 Crashes | I26: By Weekday | J26: Number of Crashes | K26: Percent of Crashes | L26: Year 5 Crashes | M26: Year 4 Crashes | N26: Year 3 Crashes | O26: Year 2 Crashes | P26: Year 1 Crashes
A27: Sunday | B27: =SUM(D27:H27) -> 19 | C27: =B27/SUM(B$27:B$33) -> 0.1623931624 | D27: 2 | E27: 7 | F27: 3 | G27: 5 | H27: 2 | I27: Sunday | J27: =SUM(L27:P27) -> 494 | K27: =J27/SUM(J$27:J$33) -> 0.1081672871 | L27: 118 | M27: 101 | N27: 87 | O27: 94 | P27: 94
A28: Monday | B28: 11 | C28: =B28/SUM(B$27:B$33) -> 0.09401709402 | D28: 4 | E28: 2 | F28: 2 | G28: 2 | H28: 1 | I28: Monday | J28: 663 | K28: =J28/SUM(J$27:J$33) -> 0.1451718853 | L28: 139 | M28: 153 | N28: 156 | O28: 98 | P28: 117
A29: Tuesday | B29: 13 | C29: 0.1111111111 | D29: 2 | E29: 1 | F29: 4 | G29: 3 | H29: 3 | I29: Tuesday | J29: 655 | K29: 0.1434201883 | L29: 145 | M29: 155 | N29: 126 | O29: 110 | P29: 119
A30: Wednesday | B30: 19 | C30: 0.1623931624 | D30: 4 | E30: 6 | F30: 5 | G30: 2 | H30: 2 | I30: Wednesday | J30: 700 | K30: 0.1532734837 | L30: 166 | M30: 169 | N30: 156 | O30: 105 | P30: 104
A31: Thursday | B31: 14 | C31: 0.1196581197 | D31: 5 | E31: 3 | F31: 0 | G31: 5 | H31: 1 | I31: Thursday | J31: 695 | K31: 0.1521786731 | L31: 149 | M31: 177 | N31: 132 | O31: 112 | P31: 125
A32: Friday | B32: 18 | C32: 0.1538461538 | D32: 6 | E32: 4 | F32: 3 | G32: 3 | H32: 2 | I32: Friday | J32: 763 | K32: 0.1670680972 | L32: 180 | M32: 162 | N32: 163 | O32: 100 | P32: 158
A33: Saturday | B33: 23 | C33: 0.1965811966 | D33: 4 | E33: 5 | F33: 6 | G33: 7 | H33: 1 | I33: Saturday | J33: 597 | K33: 0.1307203854 | L33: 131 | M33: 140 | N33: 116 | O33: 107 | P33: 103
A34: =CONCATENATE("Fatal and Serious Injury Crashes Only - ",A35, " ",Instructions!$B$10) -> Fatal and Serious Injury Crashes Only - Crash Hour Test Group 1 | I34: =CONCATENATE("Total Crashes - ",I35, " ",Instructions!$B$10) -> Total Crashes - Crash Hour Test Group 1
A35: Crash Hour | B35: Number of Crashes | C35: Percent of Crashes | D35: Year 5 Crashes | E35: Year 4 Crashes | F35: Year 3 Crashes | G35: Year 2 Crashes | H35: Year 1 Crashes | I35: Crash Hour | J35: Number of Crashes | K35: Percent of Crashes | L35: Year 5 Crashes | M35: Year 4 Crashes | N35: Year 3 Crashes | O35: Year 2 Crashes | P35: Year 1 Crashes
A36: 12:00 AM - 12:59 AM | B36: =SUM(D36:H36) -> 5 | C36: =B36/SUM(B$36:B$60) -> 0.04273504274 | D36: 0 | E36: 0 | F36: 2 | G36: 3 | H36: 0 | I36: 12:00 AM - 12:59 AM | J36: =SUM(L36:P36) -> 115 | K36: =J36/SUM(J$36:J$60) -> 0.02518064375 | L36: 27 | M36: 19 | N36: 23 | O36: 27 | P36: 19
A37: 1:00 AM - 1:59 AM | B37: 2 | C37: =B37/SUM(B$36:B$60) -> 0.01709401709 | D37: 0 | E37: 1 | F37: 0 | G37: 1 | H37: 0 | I37: 1:00 AM - 1:59 AM | J37: 92 | K37: =J37/SUM(J$36:J$60) -> 0.020144515 | L37: 17 | M37: 22 | N37: 21 | O37: 17 | P37: 15
A38: 2:00 AM - 2:59 AM | B38: 5 | C38: 0.04273504274 | D38: 1 | E38: 1 | F38: 0 | G38: 3 | H38: 0 | I38: 2:00 AM - 2:59 AM | J38: 100 | K38: 0.02189621196 | L38: 21 | M38: 31 | N38: 12 | O38: 21 | P38: 15
A39: 3:00 AM - 3:59 AM | B39: 4 | C39: 0.03418803419 | D39: 2 | E39: 1 | F39: 1 | G39: 0 | H39: 0 | I39: 3:00 AM - 3:59 AM | J39: 75 | K39: 0.01642215897 | L39: 17 | M39: 21 | N39: 13 | O39: 10 | P39: 14
A40: 4:00 AM - 4:59 AM | B40: 1 | C40: 0.008547008547 | D40: 0 | E40: 1 | F40: 0 | G40: 0 | H40: 0 | I40: 4:00 AM - 4:59 AM | J40: 53 | K40: 0.01160499234 | L40: 8 | M40: 12 | N40: 13 | O40: 7 | P40: 13
A41: 5:00 AM - 5:59 AM | B41: 3 | C41: 0.02564102564 | D41: 0 | E41: 2 | F41: 0 | G41: 1 | H41: 0 | I41: 5:00 AM - 5:59 AM | J41: 72 | K41: 0.01576527261 | L41: 18 | M41: 14 | N41: 16 | O41: 9 | P41: 15
A42: 6:00 AM - 6:59 AM | B42: 4 | C42: 0.03418803419 | D42: 2 | E42: 0 | F42: 2 | G42: 0 | H42: 0 | I42: 6:00 AM - 6:59 AM | J42: 165 | K42: 0.03612874973 | L42: 44 | M42: 30 | N42: 39 | O42: 24 | P42: 28
A43: 7:00 AM - 7:59 AM | B43: 2 | C43: 0.01709401709 | D43: 0 | E43: 0 | F43: 1 | G43: 1 | H43: 0 | I43: 7:00 AM - 7:59 AM | J43: 312 | K43: 0.0683161813 | L43: 63 | M43: 73 | N43: 62 | O43: 62 | P43: 52
A44: 8:00 AM - 8:59 AM | B44: 2 | C44: 0.01709401709 | D44: 0 | E44: 1 | F44: 0 | G44: 1 | H44: 0 | I44: 8:00 AM - 8:59 AM | J44: 256 | K44: 0.05605430261 | L44: 58 | M44: 63 | N44: 50 | O44: 42 | P44: 43
A45: 9:00 AM - 9:59 AM | B45: 0 | C45: 0 | D45: 0 | E45: 0 | F45: 0 | G45: 0 | H45: 0 | I45: 9:00 AM - 9:59 AM | J45: 142 | K45: 0.03109262098 | L45: 34 | M45: 33 | N45: 29 | O45: 24 | P45: 22
A46: 10:00 AM - 10:59 AM | B46: 5 | C46: 0.04273504274 | D46: 3 | E46: 0 | F46: 1 | G46: 0 | H46: 1 | I46: 10:00 AM - 10:59 AM | J46: 139 | K46: 0.03043573462 | L46: 35 | M46: 30 | N46: 33 | O46: 16 | P46: 25
A47: 11:00 AM - 11:59 AM | B47: 1 | C47: 0.008547008547 | D47: 0 | E47: 0 | F47: 0 | G47: 1 | H47: 0 | I47: 11:00 AM - 11:59 AM | J47: 176 | K47: 0.03853733304 | L47: 39 | M47: 37 | N47: 34 | O47: 37 | P47: 29
A48: 12:00 PM - 12:59 PM | B48: 4 | C48: 0.03418803419 | D48: 0 | E48: 0 | F48: 1 | G48: 2 | H48: 1 | I48: 12:00 PM - 12:59 PM | J48: 202 | K48: 0.04423034815 | L48: 52 | M48: 44 | N48: 34 | O48: 30 | P48: 42
A49: 1:00 PM - 1:59 PM | B49: 9 | C49: 0.07692307692 | D49: 2 | E49: 2 | F49: 1 | G49: 2 | H49: 2 | I49: 1:00 PM - 1:59 PM | J49: 230 | K49: 0.0503612875 | L49: 49 | M49: 60 | N49: 45 | O49: 38 | P49: 38
A50: 2:00 PM - 2:59 PM | B50: 4 | C50: 0.03418803419 | D50: 1 | E50: 0 | F50: 2 | G50: 0 | H50: 1 | I50: 2:00 PM - 2:59 PM | J50: 252 | K50: 0.05517845413 | L50: 59 | M50: 54 | N50: 53 | O50: 44 | P50: 42
A51: 3:00 PM - 3:59 PM | B51: 8 | C51: 0.06837606838 | D51: 1 | E51: 4 | F51: 2 | G51: 1 | H51: 0 | I51: 3:00 PM - 3:59 PM | J51: 362 | K51: 0.07926428728 | L51: 91 | M51: 82 | N51: 66 | O51: 53 | P51: 70
A52: 4:00 PM - 4:59 PM | B52: 6 | C52: 0.05128205128 | D52: 0 | E52: 1 | F52: 2 | G52: 2 | H52: 1 | I52: 4:00 PM - 4:59 PM | J52: 349 | K52: 0.07641777972 | L52: 68 | M52: 88 | N52: 74 | O52: 58 | P52: 61
A53: 5:00 PM - 5:59 PM | B53: 11 | C53: 0.09401709402 | D53: 5 | E53: 1 | F53: 4 | G53: 0 | H53: 1 | I53: 5:00 PM - 5:59 PM | J53: 483 | K53: 0.1057587037 | L53: 102 | M53: 120 | N53: 98 | O53: 66 | P53: 97
A54: 6:00 PM - 6:59 PM | B54: 10 | C54: 0.08547008547 | D54: 2 | E54: 5 | F54: 0 | G54: 1 | H54: 2 | I54: 6:00 PM - 6:59 PM | J54: 272 | K54: 0.05955769652 | L54: 60 | M54: 75 | N54: 52 | O54: 38 | P54: 47
A55: 7:00 PM - 7:59 PM | B55: 6 | C55: 0.05128205128 | D55: 1 | E55: 2 | F55: 1 | G55: 2 | H55: 0 | I55: 7:00 PM - 7:59 PM | J55: 159 | K55: 0.03481497701 | L55: 36 | M55: 33 | N55: 38 | O55: 27 | P55: 25
A56: 8:00 PM - 8:59 PM | B56: 11 | C56: 0.09401709402 | D56: 4 | E56: 2 | F56: 2 | G56: 1 | H56: 2 | I56: 8:00 PM - 8:59 PM | J56: 169 | K56: 0.0370045982 | L56: 41 | M56: 43 | N56: 33 | O56: 18 | P56: 34
A57: 9:00 PM - 9:59 PM | B57: 7 | C57: 0.05982905983 | D57: 2 | E57: 2 | F57: 1 | G57: 1 | H57: 1 | I57: 9:00 PM - 9:59 PM | J57: 161 | K57: 0.03525290125 | L57: 39 | M57: 30 | N57: 37 | O57: 26 | P57: 29
A58: 10:00 PM - 10:59 PM | B58: 5 | C58: 0.04273504274 | D58: 1 | E58: 1 | F58: 0 | G58: 3 | H58: 0 | I58: 10:00 PM - 10:59 PM | J58: 125 | K58: 0.02737026494 | L58: 26 | M58: 23 | N58: 42 | O58: 13 | P58: 21
A59: 11:00 PM - 11:59 PM | B59: 2 | C59: 0.01709401709 | D59: 0 | E59: 1 | F59: 0 | G59: 1 | H59: 0 | I59: 11:00 PM - 11:59 PM | J59: 106 | K59: 0.02320998467 | L59: 24 | M59: 20 | N59: 19 | O59: 19 | P59: 24
A60: Unknown | B60: 0 | C60: 0 | D60: 0 | E60: 0 | F60: 0 | G60: 0 | H60: 0 | I60: Unknown | J60: 0 | K60: 0 | L60: 0 | M60: 0 | N60: 0 | O60: 0 | P60: 0
A61: =CONCATENATE("Fatal and Serious Injury Crashes Only - ",A62, " ",Instructions!$B$10) -> Fatal and Serious Injury Crashes Only - Crash Month Test Group 1 | I61: =CONCATENATE("Total Crashes - ",I62, " ",Instructions!$B$10) -> Total Crashes - Crash Month Test Group 1
A62: Crash Month | B62: Number of Crashes | C62: Percent of Crashes | D62: Year 5 Crashes | E62: Year 4 Crashes | F62: Year 3 Crashes | G62: Year 2 Crashes | H62: Year 1 Crashes | I62: Crash Month | J62: Number of Crashes | K62: Percent of Crashes | L62: Year 5 Crashes | M62: Year 4 Crashes | N62: Year 3 Crashes | O62: Year 2 Crashes | P62: Year 1 Crashes
A63: January | B63: =SUM(D63:H63) -> 10 | C63: =B63/SUM(B$63:B$74) -> 0.08547008547 | D63: 1 | E63: 4 | F63: 1 | G63: 3 | H63: 1 | I63: January | J63: =SUM(L63:P63) -> 410 | K63: =J63/SUM(J$63:J$74) -> 0.08977446902 | L63: 97 | M63: 100 | N63: 77 | O63: 72 | P63: 64
A64: February | B64: 6 | C64: =B64/SUM(B$63:B$74) -> 0.05128205128 | D64: 1 | E64: 2 | F64: 1 | G64: 0 | H64: 2 | I64: February | J64: 347 | K64: =J64/SUM(J$63:J$74) -> 0.07597985549 | L64: 84 | M64: 83 | N64: 59 | O64: 59 | P64: 62
A65: March | B65: 8 | C65: 0.06837606838 | D65: 3 | E65: 1 | F65: 1 | G65: 3 | H65: 0 | I65: March | J65: 347 | K65: 0.07597985549 | L65: 70 | M65: 70 | N65: 69 | O65: 70 | P65: 68
A66: April | B66: 5 | C66: 0.04273504274 | D66: 2 | E66: 1 | F66: 0 | G66: 1 | H66: 1 | I66: April | J66: 387 | K66: 0.08473834027 | L66: 79 | M66: 84 | N66: 74 | O66: 62 | P66: 88
A67: May | B67: 14 | C67: 0.1196581197 | D67: 4 | E67: 4 | F67: 1 | G67: 2 | H67: 3 | I67: May | J67: 354 | K67: 0.07751259032 | L67: 72 | M67: 82 | N67: 74 | O67: 64 | P67: 62
A68: June | B68: 9 | C68: 0.07692307692 | D68: 3 | E68: 2 | F68: 2 | G68: 2 | H68: 0 | I68: June | J68: 359 | K68: 0.07860740092 | L68: 75 | M68: 74 | N68: 81 | O68: 55 | P68: 74
A69: July | B69: 7 | C69: 0.05982905983 | D69: 2 | E69: 3 | F69: 2 | G69: 0 | H69: 0 | I69: July | J69: 359 | K69: 0.07860740092 | L69: 79 | M69: 94 | N69: 77 | O69: 51 | P69: 58
A70: August | B70: 9 | C70: 0.07692307692 | D70: 1 | E70: 2 | F70: 2 | G70: 4 | H70: 0 | I70: August | J70: 391 | K70: 0.08561418875 | L70: 87 | M70: 96 | N70: 77 | O70: 63 | P70: 68
A71: September | B71: 13 | C71: 0.1111111111 | D71: 2 | E71: 2 | F71: 5 | G71: 3 | H71: 1 | I71: September | J71: 411 | K71: 0.08999343114 | L71: 83 | M71: 90 | N71: 91 | O71: 76 | P71: 71
A72: October | B72: 16 | C72: 0.1367521368 | D72: 3 | E72: 3 | F72: 4 | G72: 4 | H72: 2 | I72: October | J72: 450 | K72: 0.0985329538 | L72: 107 | M72: 96 | N72: 102 | O72: 74 | P72: 71
A73: November | B73: 13 | C73: 0.1111111111 | D73: 3 | E73: 1 | F73: 3 | G73: 4 | H73: 2 | I73: =A73 -> November | J73: 379 | K73: 0.08298664331 | L73: 85 | M73: 94 | N73: 83 | O73: 52 | P73: 65
A74: December | B74: 7 | C74: 0.05982905983 | D74: 2 | E74: 3 | F74: 1 | G74: 1 | H74: 0 | I74: December | J74: 373 | K74: 0.08167287059 | L74: 110 | M74: 94 | N74: 72 | O74: 28 | P74: 69
A75: =CONCATENATE("Fatal and Serious Injury Crashes Only - ",A76, " ",Instructions!$B$10) -> Fatal and Serious Injury Crashes Only - Crash Jurisdiction Test Group 1 | I75: =CONCATENATE("Total Crashes - ",I76, " ",Instructions!$B$10) -> Total Crashes - Crash Jurisdiction Test Group 1
A76: Crash Jurisdiction | B76: Number of Crashes | C76: Percent of Crashes | D76: Year 5 Crashes | E76: Year 4 Crashes | F76: Year 3 Crashes | G76: Year 2 Crashes | H76: Year 1 Crashes | I76: Crash Jurisdiction | J76: Number of Crashes | K76: Percent of Crashes | L76: Year 5 Crashes | M76: Year 4 Crashes | N76: Year 3 Crashes | O76: Year 2 Crashes | P76: Year 1 Crashes
A77: A | B77: =SUM(D77:H77) -> 11 | C77: =B77/SUM(B$77:B$81) -> 0.09401709402 | D77: 0 | E77: 1 | F77: 5 | G77: 5 | H77: 0 | I77: A | J77: =SUM(L77:P77) -> 61 | K77: =J77/SUM(J$77:J$81) -> 0.01335668929 | L77: 13 | M77: 14 | N77: 12 | O77: 10 | P77: 12
A78: B | B78: =SUM(D78:H78) -> 19 | C78: =B78/SUM(B$77:B$81) -> 0.1623931624 | D78: 4 | E78: 5 | F78: 4 | G78: 5 | H78: 1 | I78: B | J78: =SUM(L78:P78) -> 6 | K78: =J78/SUM(J$77:J$81) -> 0.001313772717 | L78: 1 | M78: 3 | N78: 0 | O78: 0 | P78: 2
A79: C | B79: =SUM(D79:H79) -> 84 | C79: 0.7179487179 | D79: 23 | E79: 21 | F79: 12 | G79: 17 | H79: 11 | I79: C | J79: =SUM(L79:P79) -> 375 | K79: 0.08211079483 | L79: 82 | M79: 81 | N79: 88 | O79: 62 | P79: 62
A80: D | B80: =SUM(D80:H80) -> 1 | C80: 0.008547008547 | D80: 0 | E80: 0 | F80: 1 | G80: 0 | H80: 0 | I80: D | J80: =SUM(L80:P80) -> 633 | K80: 0.1386030217 | L80: 111 | M80: 160 | N80: 137 | O80: 105 | P80: 120
A81: E | B81: =SUM(D81:H81) -> 2 | C81: 0.01709401709 | D81: 0 | E81: 1 | F81: 1 | G81: 0 | H81: 0 | I81: E | J81: =SUM(L81:P81) -> 3492 | K81: 0.7646157215 | L81: 821 | M81: 799 | N81: 699 | O81: 549 | P81: 624
A82: =CONCATENATE("Fatal and Serious Injury Crashes Only - ",A83, " ",Instructions!$B$10) -> Fatal and Serious Injury Crashes Only - First Harmful Event Test Group 1 | I82: =CONCATENATE("Total Crashes - ",I83, " ",Instructions!$B$10) -> Total Crashes - First Harmful Event Test Group 1
A83: First Harmful Event | B83: Number of Crashes | C83: Percent of Crashes | D83: Year 5 Crashes | E83: Year 4 Crashes | F83: Year 3 Crashes | G83: Year 2 Crashes | H83: Year 1 Crashes | I83: First Harmful Event | J83: Number of Crashes | K83: Percent of Crashes | L83: Year 5 Crashes | M83: Year 4 Crashes | N83: Year 3 Crashes | O83: Year 2 Crashes | P83: Year 1 Crashes
A84: Cargo/Equipment Loss or Shift | B84: =SUM(D84:H84) -> 0 | C84: =B84/SUM(B$84:B$125) -> 0 | D84: 0 | E84: 0 | F84: 0 | G84: 0 | H84: 0 | I84: Cargo/Equipment Loss or Shift | J84: =SUM(L84:P84) -> 0 | K84: =J84/SUM(J$84:J$125) -> 0 | L84: 0 | M84: 0 | N84: 0 | O84: 0 | P84: 0
A85: Fell/Jumped from Motor Vehicle | B85: 8 | C85: =B85/SUM(B$84:B$125) -> 0.06837606838 | D85: 3 | E85: 1 | F85: 2 | G85: 1 | H85: 1 | I85: Fell/Jumped from Motor Vehicle | J85: 269 | K85: =J85/SUM(J$84:J$125) -> 0.05890081016 | L85: 60 | M85: 62 | N85: 53 | O85: 46 | P85: 48
A86: Fire/Explosion | B86: 0 | C86: 0 | D86: 0 | E86: 0 | F86: 0 | G86: 0 | H86: 0 | I86: Fire/Explosion | J86: 1 | K86: 0.0002189621196 | L86: 0 | M86: 0 | N86: 0 | O86: 1 | P86: 0
A87: Immersion, Full or Partial | B87: 3 | C87: 0.02564102564 | D87: 2 | E87: 0 | F87: 1 | G87: 0 | H87: 0 | I87: Immersion, Full or Partial | J87: 47 | K87: 0.01029121962 | L87: 11 | M87: 6 | N87: 11 | O87: 8 | P87: 11
A88: Jackknife | B88: 0 | C88: 0 | D88: 0 | E88: 0 | F88: 0 | G88: 0 | H88: 0 | I88: Jackknife | J88: 12 | K88: 0.002627545435 | L88: 0 | M88: 4 | N88: 3 | O88: 3 | P88: 2
A89: Other Non-Collision | B89: 5 | C89: 0.04273504274 | D89: 3 | E89: 1 | F89: 0 | G89: 1 | H89: 0 | I89: Other Non-Collision | J89: 636 | K89: 0.139259908 | L89: 161 | M89: 146 | N89: 134 | O89: 95 | P89: 100
A90: Overturn/Rollover | B90: 0 | C90: 0 | D90: 0 | E90: 0 | F90: 0 | G90: 0 | H90: 0 | I90: Overturn/Rollover | J90: 0 | K90: 0 | L90: 0 | M90: 0 | N90: 0 | O90: 0 | P90: 0
A91: Thrown or Falling Object | B91: 1 | C91: 0.008547008547 | D91: 1 | E91: 0 | F91: 0 | G91: 0 | H91: 0 | I91: Thrown or Falling Object | J91: 26 | K91: 0.005693015108 | L91: 4 | M91: 9 | N91: 2 | O91: 6 | P91: 5
A92: Collision with Animal | B92: 0 | C92: 0 | D92: 0 | E92: 0 | F92: 0 | G92: 0 | H92: 0 | I92: Collision with Animal | J92: 1 | K92: 0.0002189621196 | L92: 0 | M92: 0 | N92: 1 | O92: 0 | P92: 0
A93: Collision with Construction Equipment | B93: 4 | C93: 0.03418803419 | D93: 0 | E93: 2 | F93: 0 | G93: 2 | H93: 0 | I93: Collision with Construction Equipment | J93: 24 | K93: 0.005255090869 | L93: 6 | M93: 7 | N93: 0 | O93: 6 | P93: 5
A94: Collision with Farm Equipment | B94: 1 | C94: 0.008547008547 | D94: 0 | E94: 0 | F94: 0 | G94: 1 | H94: 0 | I94: Collision with Farm Equipment | J94: 28 | K94: 0.006130939347 | L94: 6 | M94: 4 | N94: 7 | O94: 7 | P94: 4
A95: Collision with Motor Vehicle in Transport | B95: 0 | C95: 0 | D95: 0 | E95: 0 | F95: 0 | G95: 0 | H95: 0 | I95: Collision with Motor Vehicle in Transport | J95: 6 | K95: 0.001313772717 | L95: 0 | M95: 1 | N95: 2 | O95: 2 | P95: 1
A96: Collision with Other Non-Fixed Object | B96: 0 | C96: 0 | D96: 0 | E96: 0 | F96: 0 | G96: 0 | H96: 0 | I96: Collision with Other Non-Fixed Object | J96: 25 | K96: 0.005474052989 | L96: 5 | M96: 3 | N96: 6 | O96: 6 | P96: 5
A97: Collision with Other Non-motorist | B97: 3 | C97: 0.02564102564 | D97: 1 | E97: 0 | F97: 1 | G97: 1 | H97: 0 | I97: Collision with Other Non-motorist | J97: 91 | K97: 0.01992555288 | L97: 21 | M97: 20 | N97: 25 | O97: 18 | P97: 7
A98: Collision with Parked Motor Vehicle | B98: 1 | C98: 0.008547008547 | D98: 0 | E98: 0 | F98: 1 | G98: 0 | H98: 0 | I98: Collision with Parked Motor Vehicle | J98: 191 | K98: 0.04182176483 | L98: 32 | M98: 50 | N98: 45 | O98: 31 | P98: 33
A99: Collision with Pedalcycle | B99: 2 | C99: 0.01709401709 | D99: 1 | E99: 1 | F99: 0 | G99: 0 | H99: 0 | I99: Collision with Pedalcycle | J99: 26 | K99: 0.005693015108 | L99: 3 | M99: 6 | N99: 7 | O99: 6 | P99: 4
A100: Collision with Pedestrian | B100: 3 | C100: 0.02564102564 | D100: 0 | E100: 3 | F100: 0 | G100: 0 | H100: 0 | I100: Collision with Pedestrian | J100: 37 | K100: 0.008101598423 | L100: 13 | M100: 10 | N100: 4 | O100: 8 | P100: 2
A101: Collision with Railway Vehicle | B101: 1 | C101: 0.008547008547 | D101: 1 | E101: 0 | F101: 0 | G101: 0 | H101: 0 | I101: Collision with Railway Vehicle | J101: 39 | K101: 0.008539522663 | L101: 12 | M101: 12 | N101: 2 | O101: 7 | P101: 6
A102: Strikes Object ar Rest from MV in Transport | B102: 0 | C102: 0 | D102: 0 | E102: 0 | F102: 0 | G102: 0 | H102: 0 | I102: Strikes Object ar Rest from MV in Transport | J102: 16 | K102: 0.003503393913 | L102: 2 | M102: 6 | N102: 4 | O102: 1 | P102: 3
A103: Struck by Falling, Shifting Cargo, or Anything Set in Motion by Motor Vehicle | B103: 3 | C103: 0.02564102564 | D103: 1 | E103: 0 | F103: 0 | G103: 1 | H103: 1 | I103: Struck by Falling, Shifting Cargo, or Anything Set in Motion by Motor Vehicle | J103: 119 | K103: 0.02605649223 | L103: 25 | M103: 30 | N103: 22 | O103: 19 | P103: 23
A104: Collision with Bridge Overhead Structure | B104: 0 | C104: 0 | D104: 0 | E104: 0 | F104: 0 | G104: 0 | H104: 0 | I104: Collision with Bridge Overhead Structure | J104: 20 | K104: 0.004379242391 | L104: 5 | M104: 4 | N104: 7 | O104: 2 | P104: 2
A105: Collision with Bridge Pier or Support | B105: 2 | C105: 0.01709401709 | D105: 0 | E105: 0 | F105: 2 | G105: 0 | H105: 0 | I105: Collision with Bridge Pier or Support | J105: 52 | K105: 0.01138603022 | L105: 7 | M105: 13 | N105: 13 | O105: 5 | P105: 14
A106: Collision with Bridge Rail | B106: 0 | C106: 0 | D106: 0 | E106: 0 | F106: 0 | G106: 0 | H106: 0 | I106: Collision with Bridge Rail | J106: 3 | K106: 0.0006568863587 | L106: 0 | M106: 1 | N106: 0 | O106: 0 | P106: 2
A107: Collision with Cable Barrier | B107: 3 | C107: 0.02564102564 | D107: 0 | E107: 0 | F107: 0 | G107: 2 | H107: 1 | I107: Collision with Cable Barrier | J107: 56 | K107: 0.01226187869 | L107: 10 | M107: 5 | N107: 12 | O107: 17 | P107: 12
A108: Collision with Concrete Traffic Barrier | B108: 24 | C108: 0.2051282051 | D108: 3 | E108: 5 | F108: 7 | G108: 5 | H108: 4 | I108: Collision with Concrete Traffic Barrier | J108: 276 | K108: 0.060433545 | L108: 52 | M108: 51 | N108: 65 | O108: 39 | P108: 69
A109: Collision with Culvert | B109: 3 | C109: 0.02564102564 | D109: 0 | E109: 0 | F109: 1 | G109: 2 | H109: 0 | I109: Collision with Culvert | J109: 539 | K109: 0.1180205824 | L109: 165 | M109: 110 | N109: 84 | O109: 82 | P109: 98
A110: Collision with Curb | B110: 19 | C110: 0.1623931624 | D110: 5 | E110: 5 | F110: 2 | G110: 5 | H110: 2 | I110: Collision with Curb | J110: 78 | K110: 0.01707904533 | L110: 17 | M110: 20 | N110: 9 | O110: 14 | P110: 18
A111: Collision with Ditch | B111: 0 | C111: 0 | D111: 0 | E111: 0 | F111: 0 | G111: 0 | H111: 0 | I111: Collision with Ditch | J111: 3 | K111: 0.0006568863587 | L111: 1 | M111: 1 | N111: 0 | O111: 1 | P111: 0
A112: Collision with Embankment | B112: 5 | C112: 0.04273504274 | D112: 0 | E112: 2 | F112: 1 | G112: 1 | H112: 1 | I112: Collision with Embankment | J112: 1053 | K112: 0.2305671119 | L112: 218 | M112: 251 | N112: 233 | O112: 159 | P112: 192
A113: Collision with Fence | B113: 0 | C113: 0 | D113: 0 | E113: 0 | F113: 0 | G113: 0 | H113: 0 | I113: Collision with Fence | J113: 3 | K113: 0.0006568863587 | L113: 0 | M113: 1 | N113: 0 | O113: 0 | P113: 2
A114: Collision with Guardrail End Terminal | B114: 1 | C114: 0.008547008547 | D114: 0 | E114: 1 | F114: 0 | G114: 0 | H114: 0 | I114: Collision with Guardrail End Terminal | J114: 97 | K114: 0.0212393256 | L114: 27 | M114: 23 | N114: 20 | O114: 11 | P114: 16
A115: Collision with Guardrail Face | B115: 4 | C115: 0.03418803419 | D115: 1 | E115: 1 | F115: 1 | G115: 0 | H115: 1 | I115: Collision with Guardrail Face | J115: 338 | K115: 0.07400919641 | L115: 75 | M115: 87 | N115: 71 | O115: 53 | P115: 52
A116: Collision with Impact Attenuator/Crash Cushion | B116: 0 | C116: 0 | D116: 0 | E116: 0 | F116: 0 | G116: 0 | H116: 0 | I116: Collision with Impact Attenuator/Crash Cushion | J116: 39 | K116: 0.008539522663 | L116: 10 | M116: 8 | N116: 11 | O116: 5 | P116: 5
A117: Collision with Mailbox | B117: 0 | C117: 0 | D117: 0 | E117: 0 | F117: 0 | G117: 0 | H117: 0 | I117: Collision with Mailbox | J117: 9 | K117: 0.001970659076 | L117: 0 | M117: 5 | N117: 0 | O117: 2 | P117: 2
A118: Collision with Other Fixed Object | B118: 3 | C118: 0.02564102564 | D118: 0 | E118: 1 | F118: 0 | G118: 2 | H118: 0 | I118: Collision with Other Fixed Object | J118: 74 | K118: 0.01620319685 | L118: 21 | M118: 14 | N118: 18 | O118: 14 | P118: 7
A119: Collision with Other Post, Pole, or Support | B119: 16 | C119: 0.1367521368 | D119: 5 | E119: 4 | F119: 4 | G119: 2 | H119: 1 | I119: Collision with Other Post, Pole, or Support | J119: 220 | K119: 0.0481716663 | L119: 40 | M119: 65 | N119: 45 | O119: 30 | P119: 40
A120: Collision with Other Traffic Barrier | B120: 1 | C120: 0.008547008547 | D120: 0 | E120: 0 | F120: 0 | G120: 1 | H120: 0 | I120: Collision with Other Traffic Barrier | J120: 14 | K120: 0.003065469674 | L120: 1 | M120: 1 | N120: 3 | O120: 4 | P120: 5
A121: Collision with Traffic Sign Support | B121: 1 | C121: 0.008547008547 | D121: 0 | E121: 1 | F121: 0 | G121: 0 | H121: 0 | I121: Collision with Traffic Sign Support | J121: 38 | K121: 0.008320560543 | L121: 6 | M121: 10 | N121: 5 | O121: 9 | P121: 8
A122: Collision with Traffic Signal Support | B122: 0 | C122: 0 | D122: 0 | E122: 0 | F122: 0 | G122: 0 | H122: 0 | I122: Collision with Traffic Signal Support | J122: 16 | K122: 0.003503393913 | L122: 3 | M122: 3 | N122: 3 | O122: 1 | P122: 6
A123: Collision with Tree | B123: 0 | C123: 0 | D123: 0 | E123: 0 | F123: 0 | G123: 0 | H123: 0 | I123: Collision with Tree | J123: 29 | K123: 0.006349901467 | L123: 6 | M123: 5 | N123: 5 | O123: 8 | P123: 5
A124: Collision with Utility Pole or Light Support | B124: 0 | C124: 0 | D124: 0 | E124: 0 | F124: 0 | G124: 0 | H124: 0 | I124: Collision with Utility Pole or Light Support | J124: 16 | K124: 0.003503393913 | L124: 3 | M124: 3 | N124: 4 | O124: 0 | P124: 6
A125: Unknown | B125: 0 | C125: 0 | D125: 0 | E125: 0 | F125: 0 | G125: 0 | H125: 0 | I125: Unknown | J125: 0 | K125: 0 | L125: 0 | M125: 0 | N125: 0 | O125: 0 | P125: 0
A126: =CONCATENATE("Fatal and Serious Injury Crashes Only - ",A127, " ",Instructions!$B$10) -> Fatal and Serious Injury Crashes Only - Location of First Harmful Event Test Group 1 | I126: =CONCATENATE("Total Crashes - ",I127, " ",Instructions!$B$10) -> Total Crashes - Location of First Harmful Event Test Group 1
A127: Location of First Harmful Event | B127: Number of Crashes | C127: Percent of Crashes | D127: Year 5 Crashes | E127: Year 4 Crashes | F127: Year 3 Crashes | G127: Year 2 Crashes | H127: Year 1 Crashes | I127: Location of First Harmful Event | J127: Number of Crashes | K127: Percent of Crashes | L127: Year 5 Crashes | M127: Year 4 Crashes | N127: Year 3 Crashes | O127: Year 2 Crashes | P127: Year 1 Crashes
A128: Gore | B128: =SUM(D128:H128) -> 108 | C128: =B128/SUM(B$128:B$138) -> 0.9230769231 | D128: 26 | E128: 24 | F128: 20 | G128: 26 | H128: 12 | I128: Gore | J128: =SUM(L128:P128) -> 3854 | K128: =J128/SUM(J$128:J$138) -> 0.8438800088 | L128: 882 | M128: 863 | N128: 768 | O128: 599 | P128: 742
A129: In Parking Lane or Zone | B129: =SUM(D129:H129) -> 0 | C129: =B129/SUM(B$128:B$138) -> 0 | D129: 0 | E129: 0 | F129: 0 | G129: 0 | H129: 0 | I129: In Parking Lane or Zone | J129: =SUM(L129:P129) -> 4 | K129: =J129/SUM(J$128:J$138) -> 0.0008758484782 | L129: 3 | M129: 1 | N129: 0 | O129: 0 | P129: 0
A130: Median | B130: =SUM(D130:H130) -> 0 | C130: 0 | D130: 0 | E130: 0 | F130: 0 | G130: 0 | H130: 0 | I130: Median | J130: =SUM(L130:P130) -> 1 | K130: 0.0002189621196 | L130: 0 | M130: 0 | N130: 0 | O130: 0 | P130: 1
A131: Off-Roadway, Location Unknown | B131: =SUM(D131:H131) -> 3 | C131: 0.02564102564 | D131: 0 | E131: 2 | F131: 1 | G131: 0 | H131: 0 | I131: Off-Roadway, Location Unknown | J131: =SUM(L131:P131) -> 210 | K131: 0.04598204511 | L131: 36 | M131: 61 | N131: 55 | O131: 36 | P131: 22
A132: On Roadway | B132: 0 | C132: 0 | D132: 0 | E132: 0 | F132: 0 | G132: 0 | H132: 0 | I132: On Roadway | J132: 5 | K132: 0.001094810598 | L132: 3 | M132: 2 | N132: 0 | O132: 0 | P132: 0
A133: On Shoulder, Left Side | B133: 0 | C133: 0 | D133: 0 | E133: 0 | F133: 0 | G133: 0 | H133: 0 | I133: On Shoulder, Left Side | J133: 12 | K133: 0.002627545435 | L133: 2 | M133: 4 | N133: 5 | O133: 0 | P133: 1
A134: On Shoulder, Right Side | B134: 0 | C134: 0 | D134: 0 | E134: 0 | F134: 0 | G134: 0 | H134: 0 | I134: On Shoulder, Right Side | J134: 24 | K134: 0.005255090869 | L134: 9 | M134: 5 | N134: 3 | O134: 5 | P134: 2
A135: Outside Road/Right-of-Way | B135: 0 | C135: 0 | D135: 0 | E135: 0 | F135: 0 | G135: 0 | H135: 0 | I135: Outside Road/Right-of-Way | J135: 0 | K135: 0 | L135: 0 | M135: 0 | N135: 0 | O135: 0 | P135: 0
A136: Roadside | B136: 1 | C136: 0.008547008547 | D136: 0 | E136: 0 | F136: 1 | G136: 0 | H136: 0 | I136: Roadside | J136: 142 | K136: 0.03109262098 | L136: 35 | M136: 36 | N136: 32 | O136: 24 | P136: 15
A137: Separator/Traffic Island | B137: 1 | C137: 0.008547008547 | D137: 0 | E137: 1 | F137: 0 | G137: 0 | H137: 0 | I137: Separator/Traffic Island | J137: 2 | K137: 0.0004379242391 | L137: 0 | M137: 2 | N137: 0 | O137: 0 | P137: 0
A138: Unknown | B138: =SUM(D138:H138) -> 4 | C138: 0.03418803419 | D138: 1 | E138: 1 | F138: 1 | G138: 1 | H138: 0 | I138: Unknown | J138: =SUM(L138:P138) -> 313 | K138: 0.06853514342 | L138: 58 | M138: 83 | N138: 73 | O138: 62 | P138: 37
A139: =CONCATENATE("Fatal and Serious Injury Crashes Only - ",A140, " ",Instructions!$B$10) -> Fatal and Serious Injury Crashes Only - Manner of Crash Test Group 1 | I139: =CONCATENATE("Total Crashes - ",I140, " ",Instructions!$B$10) -> Total Crashes - Manner of Crash Test Group 1
A140: Manner of Crash | B140: Number of Crashes | C140: Percent of Crashes | D140: Year 5 Crashes | E140: Year 4 Crashes | F140: Year 3 Crashes | G140: Year 2 Crashes | H140: Year 1 Crashes | I140: Manner of Crash | J140: Number of Crashes | K140: Percent of Crashes | L140: Year 5 Crashes | M140: Year 4 Crashes | N140: Year 3 Crashes | O140: Year 2 Crashes | P140: Year 1 Crashes
A141: Not a Collision Between Two Motor Vehicles | B141: =SUM(D141:H141) -> 10 | C141: =B141/SUM(B$141:B$150) -> 0.08547008547 | D141: 1 | E141: 4 | F141: 1 | G141: 3 | H141: 1 | I141: =A141 -> Not a Collision Between Two Motor Vehicles | J141: =SUM(L141:P141) -> 410 | K141: =J141/SUM(J$141:J$150) -> 0.08977446902 | L141: 97 | M141: 100 | N141: 77 | O141: 72 | P141: 64
A142: Angle | B142: 6 | C142: =B142/SUM(B$141:B$150) -> 0.05128205128 | D142: 1 | E142: 2 | F142: 1 | G142: 0 | H142: 2 | I142: Angle | J142: 347 | K142: =J142/SUM(J$141:J$150) -> 0.07597985549 | L142: 84 | M142: 83 | N142: 59 | O142: 59 | P142: 62
A143: Front to Front | B143: 8 | C143: 0.06837606838 | D143: 3 | E143: 1 | F143: 1 | G143: 3 | H143: 0 | I143: Front to Front | J143: 347 | K143: 0.07597985549 | L143: 70 | M143: 70 | N143: 69 | O143: 70 | P143: 68
A144: Front to Rear | B144: 5 | C144: 0.04273504274 | D144: 2 | E144: 1 | F144: 0 | G144: 1 | H144: 1 | I144: Front to Rear | J144: 387 | K144: 0.08473834027 | L144: 79 | M144: 84 | N144: 74 | O144: 62 | P144: 88
A145: Rear to Rear | B145: 14 | C145: 0.1196581197 | D145: 4 | E145: 4 | F145: 1 | G145: 2 | H145: 3 | I145: Rear to Rear | J145: 354 | K145: 0.07751259032 | L145: 72 | M145: 82 | N145: 74 | O145: 64 | P145: 62
A146: Rear to Side | B146: 9 | C146: 0.07692307692 | D146: 3 | E146: 2 | F146: 2 | G146: 2 | H146: 0 | I146: Rear to Side | J146: 359 | K146: 0.07860740092 | L146: 75 | M146: 74 | N146: 81 | O146: 55 | P146: 74
A147: Sideswipe, Opposite Direction | B147: 7 | C147: 0.05982905983 | D147: 2 | E147: 3 | F147: 2 | G147: 0 | H147: 0 | I147: Sideswipe, Opposite Direction | J147: 359 | K147: 0.07860740092 | L147: 79 | M147: 94 | N147: 77 | O147: 51 | P147: 58
A148: Sideswipe, Same Direction | B148: 9 | C148: 0.07692307692 | D148: 1 | E148: 2 | F148: 2 | G148: 4 | H148: 0 | I148: Sideswipe, Same Direction | J148: 391 | K148: 0.08561418875 | L148: 87 | M148: 96 | N148: 77 | O148: 63 | P148: 68
A149: Other | B149: 13 | C149: 0.1111111111 | D149: 2 | E149: 2 | F149: 5 | G149: 3 | H149: 1 | I149: Other | J149: 411 | K149: 0.08999343114 | L149: 83 | M149: 90 | N149: 91 | O149: 76 | P149: 71
A150: Unknown | B150: 36 | C150: 0.3076923077 | D150: 8 | E150: 7 | F150: 8 | G150: 9 | H150: 4 | I150: Unknown | J150: 1202 | K150: 0.2631924677 | L150: 302 | M150: 284 | N150: 257 | O150: 154 | P150: 205
A151: =CONCATENATE("Fatal and Serious Injury Crashes Only - ",A152, " ",Instructions!$B$10) -> Fatal and Serious Injury Crashes Only - Weather Test Group 1 | I151: =CONCATENATE("Total Crashes - ",I152, " ",Instructions!$B$10) -> Total Crashes - Weather Test Group 1
A152: Weather | B152: Number of Crashes | C152: Percent of Crashes | D152: Year 5 Crashes | E152: Year 4 Crashes | F152: Year 3 Crashes | G152: Year 2 Crashes | H152: Year 1 Crashes | I152: Weather | J152: Number of Crashes | K152: Percent of Crashes | L152: Year 5 Crashes | M152: Year 4 Crashes | N152: Year 3 Crashes | O152: Year 2 Crashes | P152: Year 1 Crashes
A153: Blowing Sand, Soil, Dirt | B153: =SUM(D153:H153) -> 34 | C153: =B153/SUM(B$153:B$164) -> 0.2905982906 | D153: 4 | E153: 8 | F153: 10 | G153: 8 | H153: 4 | I153: Blowing Sand, Soil, Dirt | J153: =SUM(L153:P153) -> 1067 | K153: =J153/SUM(J$153:J$164) -> 0.2336325816 | L153: 192 | M153: 252 | N153: 238 | O153: 184 | P153: 201
A154: Blowing Snow | B154: 67 | C154: =B154/SUM(B$153:B$164) -> 0.5726495726 | D154: 18 | E154: 16 | F154: 10 | G154: 15 | H154: 8 | I154: Blowing Snow | J154: 3162 | K154: =J154/SUM(J$153:J$164) -> 0.692358222 | L154: 758 | M154: 710 | N154: 644 | O154: 495 | P154: 555
A155: Clear | B155: 11 | C155: 0.09401709402 | D155: 5 | E155: 3 | F155: 2 | G155: 1 | H155: 0 | I155: Clear | J155: 286 | K155: 0.06262316619 | L155: 66 | M155: 83 | N155: 43 | O155: 38 | P155: 56
A156: Cloudy | B156: 3 | C156: 0.02564102564 | D156: 0 | E156: 1 | F156: 0 | G156: 2 | H156: 0 | I156: Cloudy | J156: 41 | K156: 0.008977446902 | L156: 9 | M156: 10 | N156: 8 | O156: 6 | P156: 8
A157: Fog, Smog, Smoke | B157: 1 | C157: 0.008547008547 | D157: 0 | E157: 0 | F157: 0 | G157: 1 | H157: 0 | I157: Fog, Smog, Smoke | J157: 8 | K157: 0.001751696956 | L157: 3 | M157: 1 | N157: 2 | O157: 2 | P157: 0
A158: Freezing Rain or Freezing Drizzle | B158: 1 | C158: 0.008547008547 | D158: 0 | E158: 0 | F158: 1 | G158: 0 | H158: 0 | I158: Freezing Rain or Freezing Drizzle | J158: 3 | K158: 0.0006568863587 | L158: 0 | M158: 1 | N158: 1 | O158: 1 | P158: 0
A159: Rain | B159: 0 | C159: 0 | D159: 0 | E159: 0 | F159: 0 | G159: 0 | H159: 0 | I159: Rain | J159: 0 | K159: 0 | L159: 0 | M159: 0 | N159: 0 | O159: 0 | P159: 0
A160: Severe Crosswinds | B160: 0 | C160: 0 | D160: 0 | E160: 0 | F160: 0 | G160: 0 | H160: 0 | I160: Severe Crosswinds | J160: 0 | K160: 0 | L160: 0 | M160: 0 | N160: 0 | O160: 0 | P160: 0
A161: Sleet or Hail | B161: 0 | C161: 0 | D161: 0 | E161: 0 | F161: 0 | G161: 0 | H161: 0 | I161: Sleet or Hail | J161: 0 | K161: 0 | L161: 0 | M161: 0 | N161: 0 | O161: 0 | P161: 0
A162: Snow | B162: 0 | C162: 0 | D162: 0 | E162: 0 | F162: 0 | G162: 0 | H162: 0 | I162: Snow | J162: 0 | K162: 0 | L162: 0 | M162: 0 | N162: 0 | O162: 0 | P162: 0
A163: Other | B163: 0 | C163: 0 | D163: 0 | E163: 0 | F163: 0 | G163: 0 | H163: 0 | I163: Other | J163: 0 | K163: 0 | L163: 0 | M163: 0 | N163: 0 | O163: 0 | P163: 0
A164: Unknown | B164: 0 | C164: 0 | D164: 0 | E164: 0 | F164: 0 | G164: 0 | H164: 0 | I164: Unknown | J164: 0 | K164: 0 | L164: 0 | M164: 0 | N164: 0 | O164: 0 | P164: 0
A165: =CONCATENATE("Fatal and Serious Injury Crashes Only - ",A166, " ",Instructions!$B$10) -> Fatal and Serious Injury Crashes Only - Light Conditions Test Group 1 | I165: =CONCATENATE("Total Crashes - ",I166, " ",Instructions!$B$10) -> Total Crashes - Light Conditions Test Group 1
A166: Light Conditions | B166: Number of Crashes | C166: Percent of Crashes | D166: Year 5 Crashes | E166: Year 4 Crashes | F166: Year 3 Crashes | G166: Year 2 Crashes | H166: Year 1 Crashes | I166: Light Conditions | J166: Number of Crashes | K166: Percent of Crashes | L166: Year 5 Crashes | M166: Year 4 Crashes | N166: Year 3 Crashes | O166: Year 2 Crashes | P166: Year 1 Crashes
A167: Daylight | B167: =SUM(D167:H167) -> 8 | C167: =B167/SUM(B$167:B$173) -> 0.06837606838 | D167: 1 | E167: 1 | F167: 3 | G167: 2 | H167: 1 | I167: Daylight | J167: =SUM(L167:P167) -> 512 | K167: =J167/SUM(J$167:J$173) -> 0.1121086052 | L167: 122 | M167: 100 | N167: 115 | O167: 90 | P167: 85
A168: Dawn/Dusk | B168: =SUM(D168:H168) -> 39 | C168: =B168/SUM(B$167:B$173) -> 0.3333333333 | D168: 11 | E168: 9 | F168: 8 | G168: 6 | H168: 5 | I168: Dawn/Dusk | J168: =SUM(L168:P168) -> 1340 | K168: =J168/SUM(J$167:J$173) -> 0.2934092402 | L168: 317 | M168: 317 | N168: 285 | O168: 194 | P168: 227
A169: Dark - Lighted | B169: 0 | C169: 0 | D169: 0 | E169: 0 | F169: 0 | G169: 0 | H169: 0 | I169: Dark - Lighted | J169: 5 | K169: 0.001094810598 | L169: 1 | M169: 1 | N169: 0 | O169: 1 | P169: 2
A170: Dark - Not Lighted | B170: 9 | C170: 0.07692307692 | D170: 2 | E170: 3 | F170: 2 | G170: 1 | H170: 1 | I170: Dark - Not Lighted | J170: 687 | K170: 0.1504269761 | L170: 137 | M170: 181 | N170: 141 | O170: 107 | P170: 121
A171: Dark - Unknown Lighting | B171: 61 | C171: 0.5213675214 | D171: 13 | E171: 15 | F171: 10 | G171: 18 | H171: 5 | I171: Dark - Unknown Lighting | J171: 2010 | K171: 0.4401138603 | L171: 448 | M171: 455 | N171: 392 | O171: 331 | P171: 384
A172: Other | B172: 0 | C172: 0 | D172: 0 | E172: 0 | F172: 0 | G172: 0 | H172: 0 | I172: Other | J172: 5 | K172: 0.001094810598 | L172: 3 | M172: 1 | N172: 0 | O172: 1 | P172: 0
A173: Unknown | B173: 0 | C173: 0 | D173: 0 | E173: 0 | F173: 0 | G173: 0 | H173: 0 | I173: Unknown | J173: 8 | K173: 0.001751696956 | L173: 0 | M173: 2 | N173: 3 | O173: 2 | P173: 1
A174: =CONCATENATE("Fatal and Serious Injury Crashes Only - ",A175, " ",Instructions!$B$10) -> Fatal and Serious Injury Crashes Only - Road Surface Condition Test Group 1 | I174: =CONCATENATE("Total Crashes - ",I175, " ",Instructions!$B$10) -> Total Crashes - Road Surface Condition Test Group 1
A175: Road Surface Condition | B175: Number of Crashes | C175: Percent of Crashes | D175: Year 5 Crashes | E175: Year 4 Crashes | F175: Year 3 Crashes | G175: Year 2 Crashes | H175: Year 1 Crashes | I175: Road Surface Condition | J175: Number of Crashes | K175: Percent of Crashes | L175: Year 5 Crashes | M175: Year 4 Crashes | N175: Year 3 Crashes | O175: Year 2 Crashes | P175: Year 1 Crashes
A176: Dry | B176: =SUM(D176:H176) -> 108 | C176: =B176/SUM(B$176:B$186) -> 0.9230769231 | D176: 26 | E176: 24 | F176: 20 | G176: 26 | H176: 12 | I176: Dry | J176: =SUM(L176:P176) -> 3854 | K176: =J176/SUM(J$176:J$186) -> 0.8438800088 | L176: 882 | M176: 863 | N176: 768 | O176: 599 | P176: 742
A177: Ice/Frost | B177: 0 | C177: =B177/SUM(B$176:B$186) -> 0 | D177: 0 | E177: 0 | F177: 0 | G177: 0 | H177: 0 | I177: Ice/Frost | J177: 4 | K177: =J177/SUM(J$176:J$186) -> 0.0008758484782 | L177: 3 | M177: 1 | N177: 0 | O177: 0 | P177: 0
A178: Mud, Dirt, Gravel | B178: 0 | C178: 0 | D178: 0 | E178: 0 | F178: 0 | G178: 0 | H178: 0 | I178: Mud, Dirt, Gravel | J178: 1 | K178: 0.0002189621196 | L178: 0 | M178: 0 | N178: 0 | O178: 0 | P178: 1
A179: Oil | B179: 3 | C179: 0.02564102564 | D179: 0 | E179: 2 | F179: 1 | G179: 0 | H179: 0 | I179: Oil | J179: 210 | K179: 0.04598204511 | L179: 36 | M179: 61 | N179: 55 | O179: 36 | P179: 22
A180: Sand | B180: 0 | C180: 0 | D180: 0 | E180: 0 | F180: 0 | G180: 0 | H180: 0 | I180: Sand | J180: 5 | K180: 0.001094810598 | L180: 3 | M180: 2 | N180: 0 | O180: 0 | P180: 0
A181: Sluch | B181: 0 | C181: 0 | D181: 0 | E181: 0 | F181: 0 | G181: 0 | H181: 0 | I181: Sluch | J181: 12 | K181: 0.002627545435 | L181: 2 | M181: 4 | N181: 5 | O181: 0 | P181: 1
A182: Snow | B182: 0 | C182: 0 | D182: 0 | E182: 0 | F182: 0 | G182: 0 | H182: 0 | I182: Snow | J182: 24 | K182: 0.005255090869 | L182: 9 | M182: 5 | N182: 3 | O182: 5 | P182: 2
A183: Water (Standing, Moving) | B183: 0 | C183: 0 | D183: 0 | E183: 0 | F183: 0 | G183: 0 | H183: 0 | I183: Water (Standing, Moving) | J183: 0 | K183: 0 | L183: 0 | M183: 0 | N183: 0 | O183: 0 | P183: 0
A184: Wet | B184: 1 | C184: 0.008547008547 | D184: 0 | E184: 0 | F184: 1 | G184: 0 | H184: 0 | I184: Wet | J184: 142 | K184: 0.03109262098 | L184: 35 | M184: 36 | N184: 32 | O184: 24 | P184: 15
A185: Other | B185: 1 | C185: 0.008547008547 | D185: 0 | E185: 1 | F185: 0 | G185: 0 | H185: 0 | I185: Other | J185: 2 | K185: 0.0004379242391 | L185: 0 | M185: 2 | N185: 0 | O185: 0 | P185: 0
A186: Unknown | B186: 4 | C186: 0.03418803419 | D186: 1 | E186: 1 | F186: 1 | G186: 1 | H186: 0 | I186: Unknown | J186: 313 | K186: 0.06853514342 | L186: 58 | M186: 83 | N186: 73 | O186: 62 | P186: 37
A187: =CONCATENATE("Fatal and Serious Injury Crashes Only - ",A188, " ",Instructions!$B$10) -> Fatal and Serious Injury Crashes Only - Contributing Circumstances - Roadway Environment, Selection 1 Test Group 1 | I187: =CONCATENATE("Total Crashes - ",I188, " ",Instructions!$B$10) -> Total Crashes - Contributing Circumstances - Roadway Environment, Selection 1 Test Group 1
A188: Contributing Circumstances - Roadway Environment, Selection 1 | B188: Number of Crashes | C188: Percent of Crashes | D188: Year 5 Crashes | E188: Year 4 Crashes | F188: Year 3 Crashes | G188: Year 2 Crashes | H188: Year 1 Crashes | I188: Contributing Circumstances - Roadway Environment, Selection 1 | J188: Number of Crashes | K188: Percent of Crashes | L188: Year 5 Crashes | M188: Year 4 Crashes | N188: Year 3 Crashes | O188: Year 2 Crashes | P188: Year 1 Crashes
A189: None | B189: =SUM(D189:H189) -> 5 | C189: =B189/SUM(B$189:B$211) -> 0.04273504274 | D189: 0 | E189: 0 | F189: 2 | G189: 3 | H189: 0 | I189: None | J189: =SUM(L189:P189) -> 115 | K189: =J189/SUM(J$189:J$211) -> 0.02518064375 | L189: 27 | M189: 19 | N189: 23 | O189: 27 | P189: 19
A190: Animal(s) | B190: 2 | C190: =B190/SUM(B$189:B$211) -> 0.01709401709 | D190: 0 | E190: 1 | F190: 0 | G190: 1 | H190: 0 | I190: Animal(s) | J190: 92 | K190: =J190/SUM(J$189:J$211) -> 0.020144515 | L190: 17 | M190: 22 | N190: 21 | O190: 17 | P190: 15
A191: Debris | B191: 5 | C191: 0.04273504274 | D191: 1 | E191: 1 | F191: 0 | G191: 3 | H191: 0 | I191: Debris | J191: 100 | K191: 0.02189621196 | L191: 21 | M191: 31 | N191: 12 | O191: 21 | P191: 15
A192: Glare | B192: 4 | C192: 0.03418803419 | D192: 2 | E192: 1 | F192: 1 | G192: 0 | H192: 0 | I192: Glare | J192: 75 | K192: 0.01642215897 | L192: 17 | M192: 21 | N192: 13 | O192: 10 | P192: 14
A193: Non-Highway Work | B193: 1 | C193: 0.008547008547 | D193: 0 | E193: 1 | F193: 0 | G193: 0 | H193: 0 | I193: Non-Highway Work | J193: 53 | K193: 0.01160499234 | L193: 8 | M193: 12 | N193: 13 | O193: 7 | P193: 13
A194: Obstructed Crosswalks | B194: 3 | C194: 0.02564102564 | D194: 0 | E194: 2 | F194: 0 | G194: 1 | H194: 0 | I194: Obstructed Crosswalks | J194: 72 | K194: 0.01576527261 | L194: 18 | M194: 14 | N194: 16 | O194: 9 | P194: 15
A195: Obstruction in Roadway | B195: 4 | C195: 0.03418803419 | D195: 2 | E195: 0 | F195: 2 | G195: 0 | H195: 0 | I195: Obstruction in Roadway | J195: 165 | K195: 0.03612874973 | L195: 44 | M195: 30 | N195: 39 | O195: 24 | P195: 28
A196: Prior Crash | B196: 2 | C196: 0.01709401709 | D196: 0 | E196: 0 | F196: 1 | G196: 1 | H196: 0 | I196: Prior Crash | J196: 312 | K196: 0.0683161813 | L196: 63 | M196: 73 | N196: 62 | O196: 62 | P196: 52
A197: Prior Non-Recurring Incident | B197: 2 | C197: 0.01709401709 | D197: 0 | E197: 1 | F197: 0 | G197: 1 | H197: 0 | I197: Prior Non-Recurring Incident | J197: 256 | K197: 0.05605430261 | L197: 58 | M197: 63 | N197: 50 | O197: 42 | P197: 43
A198: Regular Congestion | B198: 0 | C198: 0 | D198: 0 | E198: 0 | F198: 0 | G198: 0 | H198: 0 | I198: Regular Congestion | J198: 142 | K198: 0.03109262098 | L198: 34 | M198: 33 | N198: 29 | O198: 24 | P198: 22
A199: Related to a Bus Stop | B199: 5 | C199: 0.04273504274 | D199: 3 | E199: 0 | F199: 1 | G199: 0 | H199: 1 | I199: Related to a Bus Stop | J199: 139 | K199: 0.03043573462 | L199: 35 | M199: 30 | N199: 33 | O199: 16 | P199: 25
A200: Road Surface Condition (wet, icy, snow, slush, etc.) | B200: 1 | C200: 0.008547008547 | D200: 0 | E200: 0 | F200: 0 | G200: 1 | H200: 0 | I200: Road Surface Condition (wet, icy, snow, slush, etc.) | J200: 176 | K200: 0.03853733304 | L200: 39 | M200: 37 | N200: 34 | O200: 37 | P200: 29
... 420 more rows

Sheet Comparison Group 2
A1: Crash Data Summary Template
A2: Year 1 - Year 5 Comparison Group 2 Data | B2: Fatal and Serious Injury Crashes | I2: All Crashes
B3: =Instructions!B11 -> Test Group 2 | I3: =Instructions!B11 -> Test Group 2
B4: Year 1 - Year 5 | C4: % | D4: Year 5 | E4: Year 4 | F4: Year 3 | G4: Year 2 | H4: Year 1 | I4: Year 1 - Year 5 | J4: % | K4: Year 5 | L4: Year 4 | M4: Year 3 | N4: Year 2 | O4: Year 1
A5: Overall Numbers
A6: Total # of Collisions | B6: =SUM(D6:H6) -> 994 | C6: N/A | D6: 248 | E6: 205 | F6: 160 | G6: 199 | H6: 182 | I6: =SUM(K6:O6) -> 42588 | J6: N/A | K6: 9347 | L6: 9585 | M6: 8963 | N6: 7698 | O6: 6995
A7: # of Fatal Collisions | B7: 130 | C7: =B7/B6 -> 0.1307847082 | D7: 41 | E7: 29 | F7: 19 | G7: 24 | H7: 17 | I7: 130 | J7: =I7/I6 -> 0.003052503053 | K7: 41 | L7: 29 | M7: 19 | N7: 24 | O7: 17
A8: # of Serious Injury Collisions | B8: 864 | C8: =B8/B6 -> 0.8692152918 | D8: 207 | E8: 176 | F8: 141 | G8: 175 | H8: 165 | I8: 864 | J8: =I8/I6 -> 0.0202874049 | K8: 207 | L8: 176 | M8: 141 | N8: 175 | O8: 165
A9: # of Alcohol-Related Collisions | B9: 169 | C9: =B9/B6 -> 0.1700201207 | D9: 35 | E9: 36 | F9: 28 | G9: 37 | H9: 33 | I9: 2089 | J9: =I9/I6 -> 0.04905137597 | K9: 438 | L9: 377 | M9: 420 | N9: 417 | O9: 437
A10: Total # of Fatalities | B10: 140 | C10: N/A | D10: 43 | E10: 33 | F10: 19 | G10: 25 | H10: 20 | I10: 140 | J10: N/A | K10: 43 | L10: 33 | M10: 19 | N10: 25 | O10: 20
A11: Total # of Serious Injuries | B11: 1515 | C11: N/A | D11: 386 | E11: 305 | F11: 239 | G11: 327 | H11: 258 | I11: 13460 | J11: N/A | K11: 3121 | L11: 2837 | M11: 2797 | N11: 2442 | O11: 2263
A12: Most Severe Injury Reported
A13: 5 (K) | B13: =SUM(D13:H13) -> 130 | C13: =B13/SUM(B$13:B$17) -> 0.1307847082 | D13: 41 | E13: 29 | F13: 19 | G13: 24 | H13: 17 | I13: =SUM(K13:O13) -> 130 | J13: =I13/SUM(I$13:I$17) -> 0.003052503053 | K13: 41 | L13: 29 | M13: 19 | N13: 24 | O13: 17
A14: 4 (A) | B14: =SUM(D14:H14) -> 864 | C14: =B14/SUM(B$13:B$17) -> 0.8692152918 | D14: 207 | E14: 176 | F14: 141 | G14: 175 | H14: 165 | I14: =SUM(K14:O14) -> 864 | J14: =I14/SUM(I$13:I$17) -> 0.0202874049 | K14: 207 | L14: 176 | M14: 141 | N14: 175 | O14: 165
A15: 3 (B) | B15: N/A | C15: N/A | D15: N/A | E15: N/A | F15: N/A | G15: N/A | H15: N/A | I15: =SUM(K15:O15) -> 2292 | J15: =I15/SUM(I$13:I$17) -> 0.05381797689 | K15: 494 | L15: 453 | M15: 475 | N15: 442 | O15: 428
A16: 2 (C) | B16: N/A | C16: N/A | D16: N/A | E16: N/A | F16: N/A | G16: N/A | H16: N/A | I16: =SUM(K16:O16) -> 6486 | J16: 0.1522964215 | K16: 1493 | L16: 1429 | M16: 1379 | N16: 1144 | O16: 1041
A17: 1 (O) | B17: N/A | C17: N/A | D17: N/A | E17: N/A | F17: N/A | G17: N/A | H17: N/A | I17: =SUM(K17:O17) -> 32816 | J17: 0.7705456936 | K17: 7112 | L17: 7498 | M17: 6949 | N17: 5913 | O17: 5344
A18: Property
A19: Public | B19: =SUM(D19:H19) -> 651 | C19: =B19/SUM(B$19:B$20) -> 0.6549295775 | D19: 179 | E19: 134 | F19: 103 | G19: 121 | H19: 114 | I19: =SUM(K19:O19) -> 32859 | J19: =I19/SUM(I$19:I$20) -> 0.7715553677 | K19: 7317 | L19: 7420 | M19: 6912 | N19: 5804 | O19: 5406
A20: Private | B20: 343 | C20: =B20/SUM(B$19:B$20) -> 0.3450704225 | D20: 69 | E20: 71 | F20: 57 | G20: 78 | H20: 68 | I20: 9729 | J20: =I20/SUM(I$19:I$20) -> 0.2284446323 | K20: 2030 | L20: 2165 | M20: 2051 | N20: 1894 | O20: 1589
A21: Location
A22: Trafficway, On Road | B22: =SUM(D22:H22) -> 1 | C22: =B22/SUM(B$22:B$24) -> 0.001006036217 | D22: 1 | E22: 0 | F22: 0 | G22: 0 | H22: 0 | I22: =SUM(K22:O22) -> 140 | J22: =I22/SUM(I$22:I$24) -> 0.00328731098 | K22: 93 | L22: 0 | M22: 47 | N22: 0 | O22: 0
A23: Trafficway, Not on Road | B23: =SUM(D23:H23) -> 838 | C23: =B23/SUM(B$22:B$24) -> 0.8430583501 | D23: 92 | E23: 205 | F23: 160 | G23: 199 | H23: 182 | I23: =SUM(K23:O23) -> 36340 | J23: =I23/SUM(I$22:I$24) -> 0.8532920071 | K23: 3151 | L23: 9585 | M23: 8914 | N23: 7698 | O23: 6992
A24: Non-Trafficway | B24: =SUM(D24:H24) -> 155 | C24: =B24/SUM(B$22:B$24) -> 0.1559356137 | D24: 155 | E24: 0 | F24: 0 | G24: 0 | H24: 0 | I24: =SUM(K24:O24) -> 6108 | J24: =I24/SUM(I$22:I$24) -> 0.1434206819 | K24: 6103 | L24: 0 | M24: 2 | N24: 0 | O24: 3
A25: By Weekday
A26: Sunday | B26: =SUM(D26:H26) -> 102 | C26: =B26/SUM(B$26:B$32) -> 0.1026156942 | D26: 29 | E26: 22 | F26: 14 | G26: 18 | H26: 19 | I26: =SUM(K26:O26) -> 3945 | J26: =I26/SUM(I$26:I$32) -> 0.09263172725 | K26: 875 | L26: 855 | M26: 785 | N26: 723 | O26: 707
A27: Monday | B27: 134 | C27: =B27/SUM(B$26:B$32) -> 0.1348088531 | D27: 24 | E27: 33 | F27: 27 | G27: 25 | H27: 25 | I27: 6088 | J27: =I27/SUM(I$26:I$32) -> 0.142951066 | K27: 1312 | L27: 1394 | M27: 1274 | N27: 1136 | O27: 972
A28: Tuesday | B28: 138 | C28: 0.138832998 | D28: 31 | E28: 24 | F28: 25 | G28: 34 | H28: 24 | I28: 6384 | J28: 0.1499013807 | K28: 1310 | L28: 1436 | M28: 1359 | N28: 1177 | O28: 1102
A29: Wednesday | B29: 129 | C29: 0.129778672 | D29: 32 | E29: 30 | F29: 18 | G29: 26 | H29: 23 | I29: 6531 | J29: 0.1533530572 | K29: 1462 | L29: 1443 | M29: 1415 | N29: 1193 | O29: 1018
A30: Thursday | B30: 184 | C30: 0.185110664 | D30: 38 | E30: 41 | F30: 35 | G30: 38 | H30: 32 | I30: 6560 | J30: 0.1540340002 | K30: 1451 | L30: 1493 | M30: 1368 | N30: 1187 | O30: 1061
A31: Friday | B31: 156 | C31: 0.1569416499 | D31: 53 | E31: 30 | F31: 17 | G31: 30 | H31: 26 | I31: 7353 | J31: 0.1726542688 | K31: 1724 | L31: 1703 | M31: 1502 | N31: 1256 | O31: 1168
A32: Saturday | B32: 151 | C32: 0.1519114688 | D32: 41 | E32: 25 | F32: 24 | G32: 28 | H32: 33 | I32: 5727 | J32: 0.1344744999 | K32: 1213 | L32: 1261 | M32: 1260 | N32: 1026 | O32: 967
A33: Crash Hour
A34: 12:00 AM - 12:59 AM | B34: =SUM(D34:H34) -> 25 | C34: =B34/SUM(B$34:B$58) -> 0.02515090543 | D34: 5 | E34: 5 | F34: 4 | G34: 6 | H34: 5 | I34: =SUM(K34:O34) -> 622 | J34: =I34/SUM(I$34:I$58) -> 0.01460505307 | K34: 141 | L34: 141 | M34: 111 | N34: 119 | O34: 110
A35: 1:00 AM - 1:59 AM | B35: 26 | C35: =B35/SUM(B$34:B$58) -> 0.02615694165 | D35: 6 | E35: 8 | F35: 3 | G35: 5 | H35: 4 | I35: 513 | J35: =I35/SUM(I$34:I$58) -> 0.01204564666 | K35: 86 | L35: 123 | M35: 100 | N35: 103 | O35: 101
A36: 2:00 AM - 2:59 AM | B36: 20 | C36: 0.02012072435 | D36: 6 | E36: 2 | F36: 3 | G36: 5 | H36: 4 | I36: 494 | J36: 0.0115995116 | K36: 93 | L36: 89 | M36: 101 | N36: 99 | O36: 112
A37: 3:00 AM - 3:59 AM | B37: 8 | C37: 0.008048289738 | D37: 2 | E37: 1 | F37: 2 | G37: 0 | H37: 3 | I37: 337 | J37: 0.007913027144 | K37: 75 | L37: 74 | M37: 67 | N37: 66 | O37: 55
A38: 4:00 AM - 4:59 AM | B38: 14 | C38: 0.01408450704 | D38: 4 | E38: 2 | F38: 4 | G38: 1 | H38: 3 | I38: 309 | J38: 0.007255564948 | K38: 63 | L38: 72 | M38: 72 | N38: 50 | O38: 52
A39: 5:00 AM - 5:59 AM | B39: 16 | C39: 0.01609657948 | D39: 6 | E39: 2 | F39: 2 | G39: 2 | H39: 4 | I39: 617 | J39: 0.0144876491 | K39: 143 | L39: 154 | M39: 138 | N39: 90 | O39: 92
A40: 6:00 AM - 6:59 AM | B40: 38 | C40: 0.03822937626 | D40: 12 | E40: 10 | F40: 8 | G40: 5 | H40: 3 | I40: 1675 | J40: 0.03933032779 | K40: 398 | L40: 367 | M40: 370 | N40: 308 | O40: 232
A41: 7:00 AM - 7:59 AM | B41: 51 | C41: 0.05130784708 | D41: 11 | E41: 12 | F41: 12 | G41: 10 | H41: 6 | I41: 2929 | J41: 0.06877524185 | K41: 670 | L41: 626 | M41: 615 | N41: 543 | O41: 475
A42: 8:00 AM - 8:59 AM | B42: 44 | C42: 0.04426559356 | D42: 11 | E42: 10 | F42: 5 | G42: 12 | H42: 6 | I42: 2321 | J42: 0.05449891988 | K42: 522 | L42: 535 | M42: 497 | N42: 412 | O42: 355
A43: 9:00 AM - 9:59 AM | B43: 35 | C43: 0.03521126761 | D43: 7 | E43: 8 | F43: 2 | G43: 8 | H43: 10 | I43: 1677 | J43: 0.03937728938 | K43: 364 | L43: 408 | M43: 351 | N43: 296 | O43: 258
A44: 10:00 AM - 10:59 AM | B44: 33 | C44: 0.03319919517 | D44: 12 | E44: 5 | F44: 4 | G44: 5 | H44: 7 | I44: 1687 | J44: 0.0396120973 | K44: 359 | L44: 400 | M44: 352 | N44: 302 | O44: 274
A45: 11:00 AM - 11:59 AM | B45: 46 | C45: 0.046277666 | D45: 7 | E45: 13 | F45: 9 | G45: 9 | H45: 8 | I45: 1986 | J45: 0.04663285433 | K45: 387 | L45: 453 | M45: 414 | N45: 392 | O45: 340
A46: 12:00 PM - 12:59 PM | B46: 56 | C46: 0.05633802817 | D46: 24 | E46: 10 | F46: 8 | G46: 2 | H46: 12 | I46: 2401 | J46: 0.0563773833 | K46: 527 | L46: 537 | M46: 512 | N46: 420 | O46: 405
A47: 1:00 PM - 1:59 PM | B47: 48 | C47: 0.04828973843 | D47: 7 | E47: 8 | F47: 13 | G47: 11 | H47: 9 | I47: 2439 | J47: 0.05726965342 | K47: 510 | L47: 546 | M47: 532 | N47: 431 | O47: 420
A48: 2:00 PM - 2:59 PM | B48: 48 | C48: 0.04828973843 | D48: 12 | E48: 12 | F48: 5 | G48: 6 | H48: 13 | I48: 2672 | J48: 0.06274067813 | K48: 614 | L48: 595 | M48: 568 | N48: 440 | O48: 455
A49: 3:00 PM - 3:59 PM | B49: 64 | C49: 0.06438631791 | D49: 16 | E49: 9 | F49: 10 | G49: 16 | H49: 13 | I49: 3363 | J49: 0.07896590589 | K49: 759 | L49: 749 | M49: 686 | N49: 621 | O49: 548
A50: 4:00 PM - 4:59 PM | B50: 73 | C50: 0.07344064386 | D50: 17 | E50: 15 | F50: 12 | G50: 14 | H50: 15 | I50: 3586 | J50: 0.08420212266 | K50: 790 | L50: 856 | M50: 783 | N50: 624 | O50: 533
A51: 5:00 PM - 5:59 PM | B51: 62 | C51: 0.06237424547 | D51: 12 | E51: 16 | F51: 11 | G51: 14 | H51: 9 | I51: 4109 | J51: 0.09648257725 | K51: 858 | L51: 898 | M51: 881 | N51: 738 | O51: 734
A52: 6:00 PM - 6:59 PM | B52: 71 | C52: 0.07142857143 | D52: 20 | E52: 11 | F52: 11 | G52: 16 | H52: 13 | I52: 2823 | J52: 0.06628627782 | K52: 651 | L52: 586 | M52: 577 | N52: 540 | O52: 469
A53: 7:00 PM - 7:59 PM | B53: 52 | C53: 0.0523138833 | D53: 13 | E53: 9 | F53: 8 | G53: 12 | H53: 10 | I53: 1651 | J53: 0.03876678877 | K53: 393 | L53: 375 | M53: 344 | N53: 300 | O53: 239
A54: 8:00 PM - 8:59 PM | B54: 62 | C54: 0.06237424547 | D54: 17 | E54: 12 | F54: 9 | G54: 18 | H54: 6 | I54: 1418 | J54: 0.03329576406 | K54: 286 | L54: 324 | M54: 299 | N54: 282 | O54: 227
A55: 9:00 PM - 9:59 PM | B55: 43 | C55: 0.04325955734 | D55: 8 | E55: 11 | F55: 7 | G55: 9 | H55: 8 | I55: 1197 | J55: 0.02810650888 | K55: 260 | L55: 274 | M55: 246 | N55: 207 | O55: 210
A56: 10:00 PM - 10:59 PM | B56: 31 | C56: 0.03118712274 | D56: 7 | E56: 10 | F56: 4 | G56: 5 | H56: 5 | I56: 984 | J56: 0.02310510003 | K56: 222 | L56: 235 | M56: 198 | N56: 151 | O56: 178
A57: 11:00 PM - 11:59 PM | B57: 27 | C57: 0.02716297787 | D57: 6 | E57: 4 | F57: 4 | G57: 7 | H57: 6 | I57: 752 | J57: 0.01765755612 | K57: 175 | L57: 164 | M57: 143 | N57: 154 | O57: 116
A58: Unknown | B58: 1 | C58: 0.001006036217 | D58: 0 | E58: 0 | F58: 0 | G58: 1 | H58: 0 | I58: 26 | J58: 0.0006105006105 | K58: 1 | L58: 4 | M58: 6 | N58: 10 | O58: 5
A59: Crash Month
A60: January | B60: =SUM(D60:H60) -> 62 | C60: =B60/SUM(B$60:B$71) -> 0.06237424547 | D60: 22 | E60: 9 | F60: 7 | G60: 12 | H60: 12 | I60: =SUM(K60:O60) -> 3468 | J60: =I60/SUM(I$60:I$71) -> 0.08143138912 | K60: 782 | L60: 793 | M60: 735 | N60: 643 | O60: 515
A61: February | B61: 58 | C61: =B61/SUM(B$60:B$71) -> 0.0583501006 | D61: 16 | E61: 11 | F61: 9 | G61: 9 | H61: 13 | I61: 3283 | J61: =I61/SUM(I$60:I$71) -> 0.07708744247 | K61: 715 | L61: 751 | M61: 661 | N61: 554 | O61: 602
A62: March | B62: 96 | C62: 0.09657947686 | D62: 30 | E62: 13 | F62: 15 | G62: 17 | H62: 21 | I62: 3209 | J62: 0.07534986381 | K62: 784 | L62: 646 | M62: 676 | N62: 599 | O62: 504
A63: April | B63: 81 | C63: 0.0814889336 | D63: 19 | E63: 15 | F63: 15 | G63: 20 | H63: 12 | I63: 3291 | J63: 0.07727528881 | K63: 718 | L63: 749 | M63: 637 | N63: 633 | O63: 554
A64: May | B64: 92 | C64: 0.09255533199 | D64: 23 | E64: 20 | F64: 14 | G64: 21 | H64: 14 | I64: 3476 | J64: 0.08161923547 | K64: 782 | L64: 787 | M64: 737 | N64: 567 | O64: 603
A65: June | B65: 88 | C65: 0.08853118712 | D65: 21 | E65: 22 | F65: 14 | G65: 14 | H65: 17 | I65: 3462 | J65: 0.08129050437 | K65: 796 | L65: 787 | M65: 748 | N65: 575 | O65: 556
A66: July | B66: 90 | C66: 0.09054325956 | D66: 19 | E66: 23 | F66: 15 | G66: 14 | H66: 19 | I66: 3376 | J66: 0.07927115619 | K66: 724 | L66: 791 | M66: 694 | N66: 606 | O66: 561
A67: August | B67: 104 | C67: 0.1046277666 | D67: 26 | E67: 18 | F67: 9 | G67: 30 | H67: 21 | I67: 3608 | J67: 0.0847187001 | K67: 776 | L67: 757 | M67: 785 | N67: 683 | O67: 607
A68: September | B68: 97 | C68: 0.09758551308 | D68: 24 | E68: 23 | F68: 20 | G68: 14 | H68: 16 | I68: 3640 | J68: 0.08547008547 | K68: 784 | L68: 839 | M68: 798 | N68: 670 | O68: 549
A69: October | B69: 80 | C69: 0.08048289738 | D69: 14 | E69: 21 | F69: 14 | G69: 19 | H69: 12 | I69: 3950 | J69: 0.09274913121 | K69: 836 | L69: 920 | M69: 806 | N69: 707 | O69: 681
A70: November | B70: 84 | C70: 0.08450704225 | D70: 17 | E70: 17 | F70: 16 | G70: 16 | H70: 18 | I70: 3793 | J70: 0.08906264675 | K70: 816 | L70: 897 | M70: 826 | N70: 681 | O70: 573
A71: December | B71: 62 | C71: 0.06237424547 | D71: 17 | E71: 13 | F71: 12 | G71: 13 | H71: 7 | I71: 4032 | J71: 0.09467455621 | K71: 834 | L71: 868 | M71: 860 | N71: 780 | O71: 690
A72: Crash Jurisdiction
A73: A | B73: =SUM(D73:H73) -> 9 | C73: =B73/SUM(B$73:B$77) -> 0.009054325956 | D73: 3 | E73: 2 | F73: 2 | G73: 1 | H73: 1 | I73: =SUM(K73:O73) -> 81 | J73: =I73/SUM(I$73:I$77) -> 0.00190194421 | K73: 18 | L73: 29 | M73: 16 | N73: 10 | O73: 8
A74: B | B74: =SUM(D74:H74) -> 64 | C74: =B74/SUM(B$73:B$77) -> 0.06438631791 | D74: 9 | E74: 12 | F74: 10 | G74: 13 | H74: 20 | I74: =SUM(K74:O74) -> 2068 | J74: =I74/SUM(I$73:I$77) -> 0.04855827933 | K74: 397 | L74: 454 | M74: 436 | N74: 448 | O74: 333
A75: C | B75: =SUM(D75:H75) -> 99 | C75: 0.09959758551 | D75: 19 | E75: 23 | F75: 18 | G75: 16 | H75: 23 | I75: =SUM(K75:O75) -> 2714 | J75: 0.06372687142 | K75: 498 | L75: 612 | M75: 550 | N75: 554 | O75: 500
A76: D | B76: =SUM(D76:H76) -> 815 | C76: 0.8199195171 | D76: 217 | E76: 166 | F76: 127 | G76: 168 | H76: 137 | I76: =SUM(K76:O76) -> 37556 | J76: 0.8818446511 | K76: 8408 | L76: 8455 | M76: 7911 | N76: 6654 | O76: 6128
A77: E | B77: =SUM(D77:H77) -> 7 | C77: 0.007042253521 | D77: 0 | E77: 2 | F77: 3 | G77: 1 | H77: 1 | I77: =SUM(K77:O77) -> 169 | J77: 0.003968253968 | K77: 26 | L77: 35 | M77: 50 | N77: 32 | O77: 26
A78: First Harmful Event
A79: Cargo/Equipment Loss or Shift | B79: =SUM(D79:H79) -> 0 | C79: =B79/SUM(B$79:B$120) -> 0 | D79: 0 | E79: 0 | F79: 0 | G79: 0 | H79: 0 | I79: =SUM(K79:O79) -> 9 | J79: =I79/SUM(I$79:I$120) -> 0.0002112081104 | K79: 1 | L79: 0 | M79: 4 | N79: 4 | O79: 0
A80: Fell/Jumped from Motor Vehicle | B80: 103 | C80: =B80/SUM(B$79:B$120) -> 0.1036217304 | D80: 32 | E80: 12 | F80: 17 | G80: 27 | H80: 15 | I80: 2978 | J80: =I80/SUM(I$79:I$120) -> 0.06988641697 | K80: 657 | L80: 657 | M80: 616 | N80: 544 | O80: 504
A81: Fire/Explosion | B81: 1 | C81: 0.001006036217 | D81: 0 | E81: 0 | F81: 0 | G81: 0 | H81: 1 | I81: 30 | J81: 0.0007040270346 | K81: 10 | L81: 7 | M81: 6 | N81: 2 | O81: 5
A82: Immersion, Full or Partial | B82: 35 | C82: 0.03521126761 | D82: 6 | E82: 9 | F82: 5 | G82: 10 | H82: 5 | I82: 406 | J82: 0.009527832535 | K82: 82 | L82: 81 | M82: 78 | N82: 96 | O82: 69
A83: Jackknife | B83: 3 | C83: 0.003018108652 | D83: 1 | E83: 1 | F83: 1 | G83: 0 | H83: 0 | I83: 71 | J83: 0.001666197315 | K83: 12 | L83: 17 | M83: 13 | N83: 14 | O83: 15
A84: Other Non-Collision | B84: 122 | C84: 0.1227364185 | D84: 36 | E84: 25 | F84: 20 | G84: 15 | H84: 26 | I84: 4873 | J84: 0.114357458 | K84: 1151 | L84: 1087 | M84: 1006 | N84: 848 | O84: 781
A85: Overturn/Rollover | B85: 1 | C85: 0.001006036217 | D85: 1 | E85: 0 | F85: 0 | G85: 0 | H85: 0 | I85: 188 | J85: 0.00441190275 | K85: 34 | L85: 41 | M85: 41 | N85: 47 | O85: 25
A86: Thrown or Falling Object | B86: 27 | C86: 0.02716297787 | D86: 5 | E86: 5 | F86: 5 | G86: 7 | H86: 5 | I86: 625 | J86: 0.01466722989 | K86: 116 | L86: 121 | M86: 172 | N86: 130 | O86: 86
A87: Collision with Animal | B87: 2 | C87: 0.002012072435 | D87: 1 | E87: 0 | F87: 0 | G87: 1 | H87: 0 | I87: 41 | J87: 0.0009621702807 | K87: 11 | L87: 6 | M87: 8 | N87: 7 | O87: 9
A88: Collision with Construction Equipment | B88: 6 | C88: 0.006036217304 | D88: 1 | E88: 1 | F88: 2 | G88: 1 | H88: 1 | I88: 60 | J88: 0.001408054069 | K88: 9 | L88: 17 | M88: 12 | N88: 11 | O88: 11
A89: Collision with Farm Equipment | B89: 5 | C89: 0.005030181087 | D89: 2 | E89: 1 | F89: 1 | G89: 1 | H89: 0 | I89: 495 | J89: 0.01161644607 | K89: 92 | L89: 117 | M89: 83 | N89: 120 | O89: 83
A90: Collision with Motor Vehicle in Transport | B90: 0 | C90: 0 | D90: 0 | E90: 0 | F90: 0 | G90: 0 | H90: 0 | I90: 29 | J90: 0.0006805594668 | K90: 6 | L90: 6 | M90: 6 | N90: 6 | O90: 5
A91: Collision with Other Non-Fixed Object | B91: 1 | C91: 0.001006036217 | D91: 0 | E91: 0 | F91: 0 | G91: 0 | H91: 1 | I91: 38 | J91: 0.0008917675772 | K91: 6 | L91: 7 | M91: 8 | N91: 9 | O91: 8
A92: Collision with Other Non-motorist | B92: 4 | C92: 0.004024144869 | D92: 1 | E92: 1 | F92: 1 | G92: 0 | H92: 1 | I92: 165 | J92: 0.003872148691 | K92: 39 | L92: 42 | M92: 31 | N92: 31 | O92: 22
A93: Collision with Parked Motor Vehicle | B93: 6 | C93: 0.006036217304 | D93: 1 | E93: 1 | F93: 3 | G93: 1 | H93: 0 | I93: 515 | J93: 0.01208579743 | K93: 85 | L93: 105 | M93: 105 | N93: 131 | O93: 89
A94: Collision with Pedalcycle | B94: 14 | C94: 0.01408450704 | D94: 1 | E94: 3 | F94: 4 | G94: 2 | H94: 4 | I94: 347 | J94: 0.008143246034 | K94: 74 | L94: 71 | M94: 70 | N94: 74 | O94: 58
A95: Collision with Pedestrian | B95: 16 | C95: 0.01609657948 | D95: 6 | E95: 6 | F95: 2 | G95: 1 | H95: 1 | I95: 174 | J95: 0.004083356801 | K95: 36 | L95: 44 | M95: 42 | N95: 36 | O95: 16
A96: Collision with Railway Vehicle | B96: 5 | C96: 0.005030181087 | D96: 1 | E96: 1 | F96: 2 | G96: 1 | H96: 0 | I96: 210 | J96: 0.004928189242 | K96: 45 | L96: 46 | M96: 51 | N96: 37 | O96: 31
A97: Strikes Object ar Rest from MV in Transport | B97: 2 | C97: 0.002012072435 | D97: 1 | E97: 1 | F97: 0 | G97: 0 | H97: 0 | I97: 60 | J97: 0.001408054069 | K97: 12 | L97: 17 | M97: 7 | N97: 9 | O97: 15
A98: Struck by Falling, Shifting Cargo, or Anything Set in Motion by Motor Vehicle | B98: 22 | C98: 0.02213279678 | D98: 4 | E98: 6 | F98: 4 | G98: 1 | H98: 7 | I98: 539 | J98: 0.01264901906 | K98: 120 | L98: 126 | M98: 103 | N98: 99 | O98: 91
A99: Collision with Bridge Overhead Structure | B99: 1 | C99: 0.001006036217 | D99: 0 | E99: 0 | F99: 0 | G99: 0 | H99: 1 | I99: 39 | J99: 0.000915235145 | K99: 5 | L99: 12 | M99: 9 | N99: 9 | O99: 4
A100: Collision with Bridge Pier or Support | B100: 6 | C100: 0.006036217304 | D100: 1 | E100: 1 | F100: 2 | G100: 0 | H100: 2 | I100: 340 | J100: 0.007978973059 | K100: 55 | L100: 86 | M100: 70 | N100: 71 | O100: 58
A101: Collision with Bridge Rail | B101: 9 | C101: 0.009054325956 | D101: 3 | E101: 1 | F101: 1 | G101: 2 | H101: 2 | I101: 84 | J101: 0.001971275697 | K101: 19 | L101: 21 | M101: 13 | N101: 17 | O101: 14
A102: Collision with Cable Barrier | B102: 5 | C102: 0.005030181087 | D102: 0 | E102: 1 | F102: 1 | G102: 3 | H102: 0 | I102: 263 | J102: 0.006171970337 | K102: 54 | L102: 75 | M102: 49 | N102: 44 | O102: 41
A103: Collision with Concrete Traffic Barrier | B103: 108 | C103: 0.1086519115 | D103: 22 | E103: 16 | F103: 12 | G103: 25 | H103: 33 | I103: 708 | J103: 0.01661503802 | K103: 153 | L103: 141 | M103: 120 | N103: 148 | O103: 146
A104: Collision with Culvert | B104: 18 | C104: 0.01810865191 | D104: 8 | E104: 2 | F104: 2 | G104: 3 | H104: 3 | I104: 2976 | J104: 0.06983948184 | K104: 641 | L104: 626 | M104: 638 | N104: 554 | O104: 517
A105: Collision with Curb | B105: 145 | C105: 0.1458752515 | D105: 38 | E105: 27 | F105: 25 | G105: 32 | H105: 23 | I105: 574 | J105: 0.01347038393 | K105: 132 | L105: 103 | M105: 125 | N105: 114 | O105: 100
A106: Collision with Ditch | B106: 0 | C106: 0 | D106: 0 | E106: 0 | F106: 0 | G106: 0 | H106: 0 | I106: 7 | J106: 0.0001642729747 | K106: 0 | L106: 2 | M106: 1 | N106: 1 | O106: 3
A107: Collision with Embankment | B107: 93 | C107: 0.09356136821 | D107: 21 | E107: 26 | F107: 14 | G107: 17 | H107: 15 | I107: 15157 | J107: 0.3556979255 | K107: 3358 | L107: 3538 | M107: 3158 | N107: 2610 | O107: 2493
A108: Collision with Fence | B108: 0 | C108: 0 | D108: 0 | E108: 0 | F108: 0 | G108: 0 | H108: 0 | I108: 13 | J108: 0.0003050783817 | K108: 2 | L108: 1 | M108: 6 | N108: 2 | O108: 2
A109: Collision with Guardrail End Terminal | B109: 8 | C109: 0.008048289738 | D109: 3 | E109: 2 | F109: 2 | G109: 0 | H109: 1 | I109: 371 | J109: 0.008706467662 | K109: 93 | L109: 97 | M109: 83 | N109: 53 | O109: 45
A110: Collision with Guardrail Face | B110: 17 | C110: 0.01710261569 | D110: 4 | E110: 5 | F110: 2 | G110: 4 | H110: 2 | I110: 4888 | J110: 0.1147094715 | K110: 1070 | L110: 1155 | M110: 1087 | N110: 823 | O110: 753
A111: Collision with Impact Attenuator/Crash Cushion | B111: 1 | C111: 0.001006036217 | D111: 0 | E111: 0 | F111: 0 | G111: 1 | H111: 0 | I111: 591 | J111: 0.01386933258 | K111: 104 | L111: 135 | M111: 120 | N111: 111 | O111: 121
A112: Collision with Mailbox | B112: 8 | C112: 0.008048289738 | D112: 3 | E112: 2 | F112: 0 | G112: 2 | H112: 1 | I112: 102 | J112: 0.002393691918 | K112: 19 | L112: 27 | M112: 19 | N112: 17 | O112: 20
A113: Collision with Other Fixed Object | B113: 16 | C113: 0.01609657948 | D113: 1 | E113: 4 | F113: 5 | G113: 2 | H113: 4 | I113: 294 | J113: 0.006899464939 | K113: 47 | L113: 58 | M113: 60 | N113: 58 | O113: 71
A114: Collision with Other Post, Pole, or Support | B114: 171 | C114: 0.1720321932 | D114: 41 | E114: 41 | F114: 25 | G114: 36 | H114: 28 | I114: 3824 | J114: 0.08973997935 | K114: 900 | L114: 800 | M114: 800 | N114: 700 | O114: 624
A115: Collision with Other Traffic Barrier | B115: 7 | C115: 0.007042253521 | D115: 2 | E115: 3 | F115: 0 | G115: 2 | H115: 0 | I115: 169 | J115: 0.003966018962 | K115: 37 | L115: 40 | M115: 34 | N115: 29 | O115: 29
A116: Collision with Traffic Sign Support | B116: 6 | C116: 0.006036217304 | D116: 1 | E116: 1 | F116: 2 | G116: 2 | H116: 0 | I116: 133 | J116: 0.00312118652 | K116: 19 | L116: 26 | M116: 28 | N116: 37 | O116: 23
A117: Collision with Traffic Signal Support | B117: 0 | C117: 0 | D117: 0 | E117: 0 | F117: 0 | G117: 0 | H117: 0 | I117: 75 | J117: 0.001760067587 | K117: 15 | L117: 24 | M117: 16 | N117: 12 | O117: 8
A118: Collision with Tree | B118: 0 | C118: 0 | D118: 0 | E118: 0 | F118: 0 | G118: 0 | H118: 0 | I118: 151 | J118: 0.003543602741 | K118: 26 | L118: 3 | M118: 65 | N118: 33 | O118: 24
A119: Collision with Utility Pole or Light Support | B119: 0 | C119: 0 | D119: 0 | E119: 0 | F119: 0 | G119: 0 | H119: 0 | I119: 0 | J119: 0 | K119: 0 | L119: 0 | M119: 0 | N119: 0 | O119: 0
A120: Unknown | B120: 0 | C120: 0 | D120: 0 | E120: 0 | F120: 0 | G120: 0 | H120: 0 | I120: 0 | J120: 0 | K120: 0 | L120: 0 | M120: 0 | N120: 0 | O120: 0
A121: Location of First Harmful Event
A122: Gore | B122: =SUM(D122:H122) -> 150 | C122: =B122/SUM(B$122:B$132) -> 0.1509054326 | D122: 44 | E122: 23 | F122: 20 | G122: 38 | H122: 25 | I122: =SUM(K122:O122) -> 3463 | J122: =I122/SUM(I$122:I$132) -> 0.08131398516 | K122: 777 | L122: 759 | M122: 714 | N122: 621 | O122: 592
A123: In Parking Lane or Zone | B123: =SUM(D123:H123) -> 180 | C123: =B123/SUM(B$122:B$132) -> 0.1810865191 | D123: 49 | E123: 39 | F123: 31 | G123: 26 | H123: 35 | I123: =SUM(K123:O123) -> 5695 | J123: =I123/SUM(I$122:I$132) -> 0.1337231145 | K123: 1334 | L123: 1290 | M123: 1194 | N123: 997 | O123: 880
A124: Median | B124: =SUM(D124:H124) -> 7 | C124: 0.007042253521 | D124: 1 | E124: 0 | F124: 4 | G124: 2 | H124: 0 | I124: =SUM(K124:O124) -> 517 | J124: 0.01213956983 | K124: 92 | L124: 101 | M124: 113 | N124: 125 | O124: 86
A125: Off-Roadway, Location Unknown | B125: =SUM(D125:H125) -> 18 | C125: 0.01810865191 | D125: 1 | E125: 4 | F125: 5 | G125: 3 | H125: 5 | I125: =SUM(K125:O125) -> 348 | J125: 0.008171315864 | K125: 66 | L125: 72 | M125: 74 | N125: 73 | O125: 63
A126: On Roadway | B126: 25 | C126: 0.02515090543 | D126: 8 | E126: 8 | F126: 4 | G126: 3 | H126: 2 | I126: 223 | J126: 0.005236216775 | K126: 50 | L126: 52 | M126: 51 | N126: 46 | O126: 24
A127: On Shoulder, Left Side | B127: 5 | C127: 0.005030181087 | D127: 0 | E127: 1 | F127: 2 | G127: 1 | H127: 1 | I127: 222 | J127: 0.005212735982 | K127: 48 | L127: 50 | M127: 48 | N127: 41 | O127: 35
A128: On Shoulder, Right Side | B128: 77 | C128: 0.07746478873 | D128: 11 | E128: 11 | F128: 9 | G128: 21 | H128: 25 | I128: 528 | J128: 0.01239785855 | K128: 97 | L128: 102 | M128: 84 | N128: 133 | O128: 112
A129: Outside Road/Right-of-Way | B129: 19 | C129: 0.01911468813 | D129: 9 | E129: 2 | F129: 2 | G129: 3 | H129: 3 | I129: 2945 | J129: 0.06915093454 | K129: 631 | L129: 622 | M129: 630 | N129: 546 | O129: 516
A130: Roadside | B130: 144 | C130: 0.1448692153 | D130: 39 | E130: 24 | F130: 26 | G130: 31 | H130: 24 | I130: 574 | J130: 0.01347797502 | K130: 134 | L130: 101 | M130: 125 | N130: 113 | O130: 101
A131: Separator/Traffic Island | B131: 155 | C131: 0.1559356137 | D131: 38 | E131: 40 | F131: 23 | G131: 29 | H131: 25 | I131: 17847 | J131: 0.4190617075 | K131: 3995 | L131: 4040 | M131: 3746 | N131: 3124 | O131: 2942
A132: Unknown | B132: =SUM(D132:H132) -> 214 | C132: 0.2152917505 | D132: 48 | E132: 53 | F132: 34 | G132: 42 | H132: 37 | I132: =SUM(K132:O132) -> 10226 | J132: 0.2401145863 | K132: 2123 | L132: 2396 | M132: 2184 | N132: 1879 | O132: 1644
A133: Manner of Crash
A134: Not a Collision Between Two Motor Vehicles | B134: =SUM(D134:H134) -> 896 | C134: =B134/SUM(B$134:B$143) -> 0.9014084507 | D134: 224 | E134: 187 | F134: 141 | G134: 180 | H134: 164 | I134: =SUM(K134:O134) -> 35853 | J134: =I134/SUM(I$134:I$143) -> 0.8418568611 | K134: 8168 | L134: 7752 | M134: 7373 | N134: 6368 | O134: 6192
A135: Angle | B135: 1 | C135: =B135/SUM(B$134:B$143) -> 0.001006036217 | D135: 1 | E135: 0 | F135: 0 | G135: 0 | H135: 0 | I135: 18 | J135: =I135/SUM(I$134:I$143) -> 0.0004226542688 | K135: 7 | L135: 11 | M135: 0 | N135: 0 | O135: 0
A136: Front to Front | B136: 4 | C136: 0.004024144869 | D136: 1 | E136: 0 | F136: 0 | G136: 1 | H136: 2 | I136: 23 | J136: 0.0005400582324 | K136: 5 | L136: 3 | M136: 5 | N136: 3 | O136: 7
A137: Front to Rear | B137: 16 | C137: 0.01609657948 | D137: 3 | E137: 3 | F137: 4 | G137: 4 | H137: 2 | I137: 1673 | J137: 0.03928336621 | K137: 241 | L137: 455 | M137: 466 | N137: 343 | O137: 168
A138: Rear to Rear | B138: 0 | C138: 0 | D138: 0 | E138: 0 | F138: 0 | G138: 0 | H138: 0 | I138: 39 | J138: 0.0009157509158 | K138: 17 | L138: 22 | M138: 0 | N138: 0 | O138: 0
A139: Rear to Side | B139: 0 | C139: 0 | D139: 0 | E139: 0 | F139: 0 | G139: 0 | H139: 0 | I139: 6 | J139: 0.0001408847563 | K139: 1 | L139: 1 | M139: 1 | N139: 1 | O139: 2
A140: Sideswipe, Opposite Direction | B140: 2 | C140: 0.002012072435 | D140: 0 | E140: 1 | F140: 0 | G140: 1 | H140: 0 | I140: 290 | J140: 0.006809429886 | K140: 51 | L140: 86 | M140: 59 | N140: 53 | O140: 41
A141: Sideswipe, Same Direction | B141: 0 | C141: 0 | D141: 0 | E141: 0 | F141: 0 | G141: 0 | H141: 0 | I141: 12 | J141: 0.0002817695125 | K141: 6 | L141: 6 | M141: 0 | N141: 0 | O141: 0
A142: Other | B142: 11 | C142: 0.01106639839 | D142: 5 | E142: 3 | F142: 1 | G142: 1 | H142: 1 | I142: 1231 | J142: 0.02890485583 | K142: 241 | L142: 301 | M142: 284 | N142: 250 | O142: 155
A143: Unknown | B143: 64 | C143: 0.06438631791 | D143: 14 | E143: 11 | F143: 14 | G143: 12 | H143: 13 | I143: 3443 | J143: 0.08084436931 | K143: 610 | L143: 948 | M143: 775 | N143: 680 | O143: 430
A144: Weather
A145: Blowing Sand, Soil, Dirt | B145: =SUM(D145:H145) -> 204 | C145: =B145/SUM(B$145:B$156) -> 0.2052313883 | D145: 35 | E145: 38 | F145: 37 | G145: 43 | H145: 51 | I145: =SUM(K145:O145) -> 5164 | J145: =I145/SUM(I$145:I$156) -> 0.1212548136 | K145: 951 | L145: 1139 | M145: 1053 | N145: 1103 | O145: 918
A146: Blowing Snow | B146: 651 | C146: =B146/SUM(B$145:B$156) -> 0.6549295775 | D146: 179 | E146: 134 | F146: 103 | G146: 121 | H146: 114 | I146: 32859 | J146: =I146/SUM(I$145:I$156) -> 0.7715553677 | K146: 7317 | L146: 7420 | M146: 6912 | N146: 5804 | O146: 5406
A147: Clear | B147: 101 | C147: 0.1016096579 | D147: 23 | E147: 22 | F147: 16 | G147: 28 | H147: 12 | I147: 3816 | J147: 0.08960270499 | K147: 872 | L147: 870 | M147: 832 | N147: 661 | O147: 581
A148: Cloudy | B148: 29 | C148: 0.0291750503 | D148: 7 | E148: 8 | F148: 4 | G148: 5 | H148: 5 | I148: 629 | J148: 0.01476941862 | K148: 170 | L148: 132 | M148: 140 | N148: 110 | O148: 77
A149: Fog, Smog, Smoke | B149: 6 | C149: 0.006036217304 | D149: 4 | E149: 2 | F149: 0 | G149: 0 | H149: 0 | I149: 93 | J149: 0.002183713722 | K149: 28 | L149: 18 | M149: 22 | N149: 15 | O149: 10
A150: Freezing Rain or Freezing Drizzle | B150: 0 | C150: 0 | D150: 0 | E150: 0 | F150: 0 | G150: 0 | H150: 0 | I150: 17 | J150: 0.0003991734761 | K150: 5 | L150: 4 | M150: 4 | N150: 3 | O150: 1
A151: Rain | B151: 1 | C151: 0.001006036217 | D151: 0 | E151: 0 | F151: 0 | G151: 1 | H151: 0 | I151: 5 | J151: 0.0001174039636 | K151: 2 | L151: 0 | M151: 0 | N151: 1 | O151: 2
A152: Severe Crosswinds | B152: 0 | C152: 0 | D152: 0 | E152: 0 | F152: 0 | G152: 0 | H152: 0 | I152: 1 | J152: 2.348079271e-05 | K152: 1 | L152: 0 | M152: 0 | N152: 0 | O152: 0
A153: Sleet or Hail | B153: 1 | C153: 0.001006036217 | D153: 0 | E153: 1 | F153: 0 | G153: 0 | H153: 0 | I153: 2 | J153: 4.696158542e-05 | K153: 0 | L153: 2 | M153: 0 | N153: 0 | O153: 0
A154: Snow | B154: 0 | C154: 0 | D154: 0 | E154: 0 | F154: 0 | G154: 0 | H154: 0 | I154: 0 | J154: 0 | K154: 0 | L154: 0 | M154: 0 | N154: 0 | O154: 0
A155: Other | B155: 0 | C155: 0 | D155: 0 | E155: 0 | F155: 0 | G155: 0 | H155: 0 | I155: 1 | J155: 2.348079271e-05 | K155: 1 | L155: 0 | M155: 0 | N155: 0 | O155: 0
A156: Unknown | B156: 1 | C156: 0.001006036217 | D156: 0 | E156: 0 | F156: 0 | G156: 1 | H156: 0 | I156: 1 | J156: 2.348079271e-05 | K156: 0 | L156: 0 | M156: 0 | N156: 1 | O156: 0
A157: Light Conditions
A158: Daylight | B158: =SUM(D158:H158) -> 184 | C158: =B158/SUM(B$158:B$164) -> 0.185110664 | D158: 38 | E158: 41 | F158: 35 | G158: 38 | H158: 32 | I158: =SUM(K158:O158) -> 6560 | J158: =I158/SUM(I$158:I$164) -> 0.1540340002 | K158: 1451 | L158: 1493 | M158: 1368 | N158: 1187 | O158: 1061
A159: Dawn/Dusk | B159: =SUM(D159:H159) -> 156 | C159: =B159/SUM(B$158:B$164) -> 0.1569416499 | D159: 53 | E159: 30 | F159: 17 | G159: 30 | H159: 26 | I159: =SUM(K159:O159) -> 7353 | J159: =I159/SUM(I$158:I$164) -> 0.1726542688 | K159: 1724 | L159: 1703 | M159: 1502 | N159: 1256 | O159: 1168
A160: Dark - Lighted | B160: 151 | C160: 0.1519114688 | D160: 41 | E160: 25 | F160: 24 | G160: 28 | H160: 33 | I160: 5727 | J160: 0.1344744999 | K160: 1213 | L160: 1261 | M160: 1260 | N160: 1026 | O160: 967
A161: Dark - Not Lighted | B161: 102 | C161: 0.1026156942 | D161: 29 | E161: 22 | F161: 14 | G161: 18 | H161: 19 | I161: 3945 | J161: 0.09263172725 | K161: 875 | L161: 855 | M161: 785 | N161: 723 | O161: 707
A162: Dark - Unknown Lighting | B162: 134 | C162: 0.1348088531 | D162: 24 | E162: 33 | F162: 27 | G162: 25 | H162: 25 | I162: 6088 | J162: 0.142951066 | K162: 1312 | L162: 1394 | M162: 1274 | N162: 1136 | O162: 972
A163: Other | B163: 138 | C163: 0.138832998 | D163: 31 | E163: 24 | F163: 25 | G163: 34 | H163: 24 | I163: 6384 | J163: 0.1499013807 | K163: 1310 | L163: 1436 | M163: 1359 | N163: 1177 | O163: 1102
A164: Unknown | B164: 129 | C164: 0.129778672 | D164: 32 | E164: 30 | F164: 18 | G164: 26 | H164: 23 | I164: 6531 | J164: 0.1533530572 | K164: 1462 | L164: 1443 | M164: 1415 | N164: 1193 | O164: 1018
A165: Road Surface Condition
A166: Dry | B166: =SUM(D166:H166) -> 204 | C166: =B166/SUM(B$166:B$176) -> 0.2052313883 | D166: 35 | E166: 38 | F166: 37 | G166: 43 | H166: 51 | I166: =SUM(K166:O166) -> 5164 | J166: =I166/SUM(I$166:I$176) -> 0.1212548136 | K166: 951 | L166: 1139 | M166: 1053 | N166: 1103 | O166: 918
A167: Ice/Frost | B167: 651 | C167: =B167/SUM(B$166:B$176) -> 0.6549295775 | D167: 179 | E167: 134 | F167: 103 | G167: 121 | H167: 114 | I167: 32859 | J167: =I167/SUM(I$166:I$176) -> 0.7715553677 | K167: 7317 | L167: 7420 | M167: 6912 | N167: 5804 | O167: 5406
A168: Mud, Dirt, Gravel | B168: 101 | C168: 0.1016096579 | D168: 23 | E168: 22 | F168: 16 | G168: 28 | H168: 12 | I168: 3816 | J168: 0.08960270499 | K168: 872 | L168: 870 | M168: 832 | N168: 661 | O168: 581
A169: Oil | B169: 29 | C169: 0.0291750503 | D169: 7 | E169: 8 | F169: 4 | G169: 5 | H169: 5 | I169: 629 | J169: 0.01476941862 | K169: 170 | L169: 132 | M169: 140 | N169: 110 | O169: 77
A170: Sand | B170: 6 | C170: 0.006036217304 | D170: 4 | E170: 2 | F170: 0 | G170: 0 | H170: 0 | I170: 93 | J170: 0.002183713722 | K170: 28 | L170: 18 | M170: 22 | N170: 15 | O170: 10
A171: Sluch | B171: 0 | C171: 0 | D171: 0 | E171: 0 | F171: 0 | G171: 0 | H171: 0 | I171: 17 | J171: 0.0003991734761 | K171: 5 | L171: 4 | M171: 4 | N171: 3 | O171: 1
A172: Snow | B172: 1 | C172: 0.001006036217 | D172: 0 | E172: 0 | F172: 0 | G172: 1 | H172: 0 | I172: 5 | J172: 0.0001174039636 | K172: 2 | L172: 0 | M172: 0 | N172: 1 | O172: 2
A173: Water (Standing, Moving) | B173: 0 | C173: 0 | D173: 0 | E173: 0 | F173: 0 | G173: 0 | H173: 0 | I173: 1 | J173: 2.348079271e-05 | K173: 1 | L173: 0 | M173: 0 | N173: 0 | O173: 0
A174: Wet | B174: 1 | C174: 0.001006036217 | D174: 0 | E174: 1 | F174: 0 | G174: 0 | H174: 0 | I174: 2 | J174: 4.696158542e-05 | K174: 0 | L174: 2 | M174: 0 | N174: 0 | O174: 0
A175: Other | B175: 0 | C175: 0 | D175: 0 | E175: 0 | F175: 0 | G175: 0 | H175: 0 | I175: 0 | J175: 0 | K175: 0 | L175: 0 | M175: 0 | N175: 0 | O175: 0
A176: Unknown | B176: 1 | C176: 0.001006036217 | D176: 0 | E176: 0 | F176: 0 | G176: 1 | H176: 0 | I176: 2 | J176: 4.696158542e-05 | K176: 1 | L176: 0 | M176: 0 | N176: 1 | O176: 0
A177: Contributing Circumstances - Roadway Environment, Selection 1
A178: None | B178: =SUM(D178:H178) -> 0 | C178: =B178/SUM(B$178:B$200) -> 0 | D178: 0 | E178: 0 | F178: 0 | G178: 0 | H178: 0 | I178: =SUM(K178:O178) -> 9 | J178: =I178/SUM(I$178:I$200) -> 0.0002113271344 | K178: 1 | L178: 0 | M178: 4 | N178: 4 | O178: 0
A179: Animal(s) | B179: 103 | C179: =B179/SUM(B$178:B$200) -> 0.1036217304 | D179: 32 | E179: 12 | F179: 17 | G179: 27 | H179: 15 | I179: 2978 | J179: =I179/SUM(I$178:I$200) -> 0.0699258007 | K179: 657 | L179: 657 | M179: 616 | N179: 544 | O179: 504
A180: Debris | B180: 1 | C180: 0.001006036217 | D180: 0 | E180: 0 | F180: 0 | G180: 0 | H180: 1 | I180: 30 | J180: 0.0007044237813 | K180: 10 | L180: 7 | M180: 6 | N180: 2 | O180: 5
A181: Glare | B181: 35 | C181: 0.03521126761 | D181: 6 | E181: 9 | F181: 5 | G181: 10 | H181: 5 | I181: 406 | J181: 0.009533201841 | K181: 82 | L181: 81 | M181: 78 | N181: 96 | O181: 69
A182: Non-Highway Work | B182: 3 | C182: 0.003018108652 | D182: 1 | E182: 1 | F182: 1 | G182: 0 | H182: 0 | I182: 71 | J182: 0.001667136283 | K182: 12 | L182: 17 | M182: 13 | N182: 14 | O182: 15
A183: Obstructed Crosswalks | B183: 122 | C183: 0.1227364185 | D183: 36 | E183: 25 | F183: 20 | G183: 15 | H183: 26 | I183: 4873 | J183: 0.1144219029 | K183: 1151 | L183: 1087 | M183: 1006 | N183: 848 | O183: 781
A184: Obstruction in Roadway | B184: 1 | C184: 0.001006036217 | D184: 1 | E184: 0 | F184: 0 | G184: 0 | H184: 0 | I184: 188 | J184: 0.00441438903 | K184: 34 | L184: 41 | M184: 41 | N184: 47 | O184: 25
A185: Prior Crash | B185: 27 | C185: 0.02716297787 | D185: 5 | E185: 5 | F185: 5 | G185: 7 | H185: 5 | I185: 625 | J185: 0.01467549544 | K185: 116 | L185: 121 | M185: 172 | N185: 130 | O185: 86
A186: Prior Non-Recurring Incident | B186: 2 | C186: 0.002012072435 | D186: 1 | E186: 0 | F186: 0 | G186: 1 | H186: 0 | I186: 41 | J186: 0.0009627125012 | K186: 11 | L186: 6 | M186: 8 | N186: 7 | O186: 9
A187: Regular Congestion | B187: 6 | C187: 0.006036217304 | D187: 1 | E187: 1 | F187: 2 | G187: 1 | H187: 1 | I187: 60 | J187: 0.001408847563 | K187: 9 | L187: 17 | M187: 12 | N187: 11 | O187: 11
A188: Related to a Bus Stop | B188: 5 | C188: 0.005030181087 | D188: 2 | E188: 1 | F188: 1 | G188: 1 | H188: 0 | I188: 495 | J188: 0.01162299239 | K188: 92 | L188: 117 | M188: 83 | N188: 120 | O188: 83
A189: Road Surface Condition (wet, icy, snow, slush, etc.) | B189: 0 | C189: 0 | D189: 0 | E189: 0 | F189: 0 | G189: 0 | H189: 0 | I189: 29 | J189: 0.0006809429886 | K189: 6 | L189: 6 | M189: 6 | N189: 6 | O189: 5
A190: Ruts, Holes, Bumps | B190: 1 | C190: 0.001006036217 | D190: 0 | E190: 0 | F190: 0 | G190: 0 | H190: 1 | I190: 38 | J190: 0.000892270123 | K190: 6 | L190: 7 | M190: 8 | N190: 9 | O190: 8
A191: Shoulders (none, low, soft, high) | B191: 4 | C191: 0.004024144869 | D191: 1 | E191: 1 | F191: 1 | G191: 0 | H191: 1 | I191: 165 | J191: 0.003874330797 | K191: 39 | L191: 42 | M191: 31 | N191: 31 | O191: 22
A192: Toll Booth/Plaza Related | B192: 6 | C192: 0.006036217304 | D192: 1 | E192: 1 | F192: 3 | G192: 1 | H192: 0 | I192: 515 | J192: 0.01209260825 | K192: 85 | L192: 105 | M192: 105 | N192: 131 | O192: 89
A193: Traffic Control Device | B193: 14 | C193: 0.01408450704 | D193: 1 | E193: 3 | F193: 4 | G193: 2 | H193: 4 | I193: 347 | J193: 0.008147835071 | K193: 74 | L193: 71 | M193: 70 | N193: 74 | O193: 58
A194: Traffic Incident | B194: 16 | C194: 0.01609657948 | D194: 6 | E194: 6 | F194: 2 | G194: 1 | H194: 1 | I194: 174 | J194: 0.004085657932 | K194: 36 | L194: 44 | M194: 42 | N194: 36 | O194: 16
A195: Visual Obstruction(s) | B195: 5 | C195: 0.005030181087 | D195: 1 | E195: 1 | F195: 2 | G195: 1 | H195: 0 | I195: 210 | J195: 0.004930966469 | K195: 45 | L195: 46 | M195: 51 | N195: 37 | O195: 31
A196: Weather Conditions | B196: 2 | C196: 0.002012072435 | D196: 1 | E196: 1 | F196: 0 | G196: 0 | H196: 0 | I196: 60 | J196: 0.001408847563 | K196: 12 | L196: 17 | M196: 7 | N196: 9 | O196: 15
A197: Work Zone (construction/maintenance/utility) | B197: 22 | C197: 0.02213279678 | D197: 4 | E197: 6 | F197: 4 | G197: 1 | H197: 7 | I197: 539 | J197: 0.01265614727 | K197: 120 | L197: 126 | M197: 103 | N197: 99 | O197: 91
A198: Worn, Travel-polished Surface | B198: 1 | C198: 0.001006036217 | D198: 0 | E198: 0 | F198: 0 | G198: 0 | H198: 1 | I198: 39 | J198: 0.0009157509158 | K198: 5 | L198: 12 | M198: 9 | N198: 9 | O198: 4
A199: Other | B199: 6 | C199: 0.006036217304 | D199: 1 | E199: 1 | F199: 2 | G199: 0 | H199: 2 | I199: 340 | J199: 0.007983469522 | K199: 55 | L199: 86 | M199: 70 | N199: 71 | O199: 58
A200: Unknown | B200: 612 | C200: 0.615694165 | D200: 147 | E200: 131 | F200: 91 | G200: 131 | H200: 112 | I200: 30356 | J200: 0.7127829436 | K200: 6689 | L200: 6872 | M200: 6422 | N200: 5363 | O200: 5010
... 377 more rows

Sheet Comparison Group 2 Accessible (hidden)
A1: =CONCATENATE("Fatal and Serious Injury Crashes Only - ",A2, " ",Instructions!$B$11) -> Fatal and Serious Injury Crashes Only - Overall Numbers Test Group 2 | I1: =CONCATENATE("Total Crashes - ",I2, " ",Instructions!$B$11) -> Total Crashes - Overall Numbers Test Group 2
A2: Overall Numbers | B2: Number of Crashes | C2: Percent of Crashes | D2: Year 5 Crashes | E2: Year 4 Crashes | F2: Year 3 Crashes | G2: Year 2 Crashes | H2: Year 1 Crashes | I2: Overall Numbers | J2: Number of Crashes | K2: Percent of Crashes | L2: Year 5 Crashes | M2: Year 4 Crashes | N2: Year 3 Crashes | O2: Year 2 Crashes | P2: Year 1 Crashes
A3: Total # of Collisions | B3: =SUM(D3:H3) -> 994 | C3: N/A | D3: 248 | E3: 205 | F3: 160 | G3: 199 | H3: 182 | I3: =A3 -> Total # of Collisions | J3: =SUM(L3:P3) -> 42588 | K3: N/A | L3: 9347 | M3: 9585 | N3: 8963 | O3: 7698 | P3: 6995
A4: # of Fatal Collisions | B4: 130 | C4: =B4/B3 -> 0.1307847082 | D4: 41 | E4: 29 | F4: 19 | G4: 24 | H4: 17 | I4: # of Fatal Collisions | J4: 130 | K4: =J4/J3 -> 0.003052503053 | L4: 41 | M4: 29 | N4: 19 | O4: 24 | P4: 17
A5: # of Serious Injury Collisions | B5: 864 | C5: =B5/B3 -> 0.8692152918 | D5: 207 | E5: 176 | F5: 141 | G5: 175 | H5: 165 | I5: # of Serious Injury Collisions | J5: 864 | K5: =J5/J3 -> 0.0202874049 | L5: 207 | M5: 176 | N5: 141 | O5: 175 | P5: 165
A6: # of Alcohol-Related Collisions | B6: 169 | C6: =B6/B3 -> 0.1700201207 | D6: 35 | E6: 36 | F6: 28 | G6: 37 | H6: 33 | I6: # of Alcohol-Related Collisions | J6: 2089 | K6: =J6/J3 -> 0.04905137597 | L6: 438 | M6: 377 | N6: 420 | O6: 417 | P6: 437
A7: Total # of Fatalities | B7: 140 | C7: N/A | D7: 43 | E7: 33 | F7: 19 | G7: 25 | H7: 20 | I7: Total # of Fatalities | J7: 140 | K7: N/A | L7: 43 | M7: 33 | N7: 19 | O7: 25 | P7: 20
A8: Total # of Serious Injuries | B8: 1515 | C8: N/A | D8: 386 | E8: 305 | F8: 239 | G8: 327 | H8: 258 | I8: Total # of Serious Injuries | J8: 13460 | K8: N/A | L8: 3121 | M8: 2837 | N8: 2797 | O8: 2442 | P8: 2263
A9: =CONCATENATE("Fatal and Serious Injury Crashes Only - ",A10, " ",Instructions!$B$11) -> Fatal and Serious Injury Crashes Only - Most Severe Injury Reported Test Group 2 | I9: =CONCATENATE("Total Crashes - ",I10, " ",Instructions!$B$11) -> Total Crashes - Most Severe Injury Reported Test Group 2
A10: Most Severe Injury Reported | B10: Number of Crashes | C10: Percent of Crashes | D10: Year 5 Crashes | E10: Year 4 Crashes | F10: Year 3 Crashes | G10: Year 2 Crashes | H10: Year 1 Crashes | I10: Most Severe Injury Reported | J10: Number of Crashes | K10: Percent of Crashes | L10: Year 5 Crashes | M10: Year 4 Crashes | N10: Year 3 Crashes | O10: Year 2 Crashes | P10: Year 1 Crashes
A11: 5 (K) | B11: =SUM(D11:H11) -> 130 | C11: =B11/SUM(B$11:B$15) -> 0.1307847082 | D11: 41 | E11: 29 | F11: 19 | G11: 24 | H11: 17 | I11: 5 (K) | J11: =SUM(L11:P11) -> 130 | K11: =J11/SUM(J$11:J$15) -> 0.003052503053 | L11: 41 | M11: 29 | N11: 19 | O11: 24 | P11: 17
A12: 4 (A) | B12: =SUM(D12:H12) -> 864 | C12: =B12/SUM(B$11:B$15) -> 0.8692152918 | D12: 207 | E12: 176 | F12: 141 | G12: 175 | H12: 165 | I12: 4 (A) | J12: =SUM(L12:P12) -> 864 | K12: =J12/SUM(J$11:J$15) -> 0.0202874049 | L12: 207 | M12: 176 | N12: 141 | O12: 175 | P12: 165
A13: 3 (B) | B13: N/A | C13: N/A | D13: N/A | E13: N/A | F13: N/A | G13: N/A | H13: N/A | I13: 3 (B) | J13: =SUM(L13:P13) -> 2292 | K13: =J13/SUM(J$11:J$15) -> 0.05381797689 | L13: 494 | M13: 453 | N13: 475 | O13: 442 | P13: 428
A14: 2 (C) | B14: N/A | C14: N/A | D14: N/A | E14: N/A | F14: N/A | G14: N/A | H14: N/A | I14: 2 (C) | J14: =SUM(L14:P14) -> 6486 | K14: 0.1522964215 | L14: 1493 | M14: 1429 | N14: 1379 | O14: 1144 | P14: 1041
A15: 1 (O) | B15: N/A | C15: N/A | D15: N/A | E15: N/A | F15: N/A | G15: N/A | H15: N/A | I15: 1 (O) | J15: =SUM(L15:P15) -> 32816 | K15: 0.7705456936 | L15: 7112 | M15: 7498 | N15: 6949 | O15: 5913 | P15: 5344
A16: =CONCATENATE("Fatal and Serious Injury Crashes Only - ",A17, " ",Instructions!$B$11) -> Fatal and Serious Injury Crashes Only - Property Test Group 2 | I16: =CONCATENATE("Total Crashes - ",I17, " ",Instructions!$B$11) -> Total Crashes - Property Test Group 2
A17: Property | B17: Number of Crashes | C17: Percent of Crashes | D17: Year 5 Crashes | E17: Year 4 Crashes | F17: Year 3 Crashes | G17: Year 2 Crashes | H17: Year 1 Crashes | I17: Property | J17: Number of Crashes | K17: Percent of Crashes | L17: Year 5 Crashes | M17: Year 4 Crashes | N17: Year 3 Crashes | O17: Year 2 Crashes | P17: Year 1 Crashes
A18: Public | B18: =SUM(D18:H18) -> 651 | C18: =B18/SUM(B$18:B$19) -> 0.6549295775 | D18: 179 | E18: 134 | F18: 103 | G18: 121 | H18: 114 | I18: Public | J18: =SUM(L18:P18) -> 32859 | K18: =J18/SUM(J$18:J$19) -> 0.7715553677 | L18: 7317 | M18: 7420 | N18: 6912 | O18: 5804 | P18: 5406
A19: Private | B19: 343 | C19: =B19/SUM(B$18:B$19) -> 0.3450704225 | D19: 69 | E19: 71 | F19: 57 | G19: 78 | H19: 68 | I19: Private | J19: 9729 | K19: =J19/SUM(J$18:J$19) -> 0.2284446323 | L19: 2030 | M19: 2165 | N19: 2051 | O19: 1894 | P19: 1589
A20: =CONCATENATE("Fatal and Serious Injury Crashes Only - ",A21, " ",Instructions!$B$11) -> Fatal and Serious Injury Crashes Only - Location Test Group 2 | I20: =CONCATENATE("Total Crashes - ",I21, " ",Instructions!$B$11) -> Total Crashes - Location Test Group 2
A21: Location | B21: Number of Crashes | C21: Percent of Crashes | D21: Year 5 Crashes | E21: Year 4 Crashes | F21: Year 3 Crashes | G21: Year 2 Crashes | H21: Year 1 Crashes | I21: Location | J21: Number of Crashes | K21: Percent of Crashes | L21: Year 5 Crashes | M21: Year 4 Crashes | N21: Year 3 Crashes | O21: Year 2 Crashes | P21: Year 1 Crashes
A22: Trafficway, On Road | B22: =SUM(D22:H22) -> 1 | C22: =B22/SUM(B$22:B$24) -> 0.001006036217 | D22: 1 | E22: 0 | F22: 0 | G22: 0 | H22: 0 | I22: Trafficway, On Road | J22: =SUM(L22:P22) -> 140 | K22: =J22/SUM(J$22:J$24) -> 0.00328731098 | L22: 93 | M22: 0 | N22: 47 | O22: 0 | P22: 0
A23: Trafficway, Not on Road | B23: =SUM(D23:H23) -> 838 | C23: =B23/SUM(B$22:B$24) -> 0.8430583501 | D23: 92 | E23: 205 | F23: 160 | G23: 199 | H23: 182 | I23: Trafficway, Not on Road | J23: =SUM(L23:P23) -> 36340 | K23: =J23/SUM(J$22:J$24) -> 0.8532920071 | L23: 3151 | M23: 9585 | N23: 8914 | O23: 7698 | P23: 6992
A24: Non-Trafficway | B24: =SUM(D24:H24) -> 155 | C24: =B24/SUM(B$22:B$24) -> 0.1559356137 | D24: 155 | E24: 0 | F24: 0 | G24: 0 | H24: 0 | I24: Non-Trafficway | J24: =SUM(L24:P24) -> 6108 | K24: =J24/SUM(J$22:J$24) -> 0.1434206819 | L24: 6103 | M24: 0 | N24: 2 | O24: 0 | P24: 3
A25: =CONCATENATE("Fatal and Serious Injury Crashes Only - ",A26, " ",Instructions!$B$11) -> Fatal and Serious Injury Crashes Only - By Weekday Test Group 2 | I25: =CONCATENATE("Total Crashes - ",I26, " ",Instructions!$B$11) -> Total Crashes - By Weekday Test Group 2
A26: By Weekday | B26: Number of Crashes | C26: Percent of Crashes | D26: Year 5 Crashes | E26: Year 4 Crashes | F26: Year 3 Crashes | G26: Year 2 Crashes | H26: Year 1 Crashes | I26: By Weekday | J26: Number of Crashes | K26: Percent of Crashes | L26: Year 5 Crashes | M26: Year 4 Crashes | N26: Year 3 Crashes | O26: Year 2 Crashes | P26: Year 1 Crashes
A27: Sunday | B27: =SUM(D27:H27) -> 102 | C27: =B27/SUM(B$27:B$33) -> 0.1026156942 | D27: 29 | E27: 22 | F27: 14 | G27: 18 | H27: 19 | I27: Sunday | J27: =SUM(L27:P27) -> 3945 | K27: =J27/SUM(J$27:J$33) -> 0.09263172725 | L27: 875 | M27: 855 | N27: 785 | O27: 723 | P27: 707
A28: Monday | B28: 134 | C28: =B28/SUM(B$27:B$33) -> 0.1348088531 | D28: 24 | E28: 33 | F28: 27 | G28: 25 | H28: 25 | I28: Monday | J28: 6088 | K28: =J28/SUM(J$27:J$33) -> 0.142951066 | L28: 1312 | M28: 1394 | N28: 1274 | O28: 1136 | P28: 972
A29: Tuesday | B29: 138 | C29: 0.138832998 | D29: 31 | E29: 24 | F29: 25 | G29: 34 | H29: 24 | I29: Tuesday | J29: 6384 | K29: 0.1499013807 | L29: 1310 | M29: 1436 | N29: 1359 | O29: 1177 | P29: 1102
A30: Wednesday | B30: 129 | C30: 0.129778672 | D30: 32 | E30: 30 | F30: 18 | G30: 26 | H30: 23 | I30: Wednesday | J30: 6531 | K30: 0.1533530572 | L30: 1462 | M30: 1443 | N30: 1415 | O30: 1193 | P30: 1018
A31: Thursday | B31: 184 | C31: 0.185110664 | D31: 38 | E31: 41 | F31: 35 | G31: 38 | H31: 32 | I31: Thursday | J31: 6560 | K31: 0.1540340002 | L31: 1451 | M31: 1493 | N31: 1368 | O31: 1187 | P31: 1061
A32: Friday | B32: 156 | C32: 0.1569416499 | D32: 53 | E32: 30 | F32: 17 | G32: 30 | H32: 26 | I32: Friday | J32: 7353 | K32: 0.1726542688 | L32: 1724 | M32: 1703 | N32: 1502 | O32: 1256 | P32: 1168
A33: Saturday | B33: 151 | C33: 0.1519114688 | D33: 41 | E33: 25 | F33: 24 | G33: 28 | H33: 33 | I33: Saturday | J33: 5727 | K33: 0.1344744999 | L33: 1213 | M33: 1261 | N33: 1260 | O33: 1026 | P33: 967
A34: =CONCATENATE("Fatal and Serious Injury Crashes Only - ",A35, " ",Instructions!$B$11) -> Fatal and Serious Injury Crashes Only - Crash Hour Test Group 2 | I34: =CONCATENATE("Total Crashes - ",I35, " ",Instructions!$B$11) -> Total Crashes - Crash Hour Test Group 2
A35: Crash Hour | B35: Number of Crashes | C35: Percent of Crashes | D35: Year 5 Crashes | E35: Year 4 Crashes | F35: Year 3 Crashes | G35: Year 2 Crashes | H35: Year 1 Crashes | I35: Crash Hour | J35: Number of Crashes | K35: Percent of Crashes | L35: Year 5 Crashes | M35: Year 4 Crashes | N35: Year 3 Crashes | O35: Year 2 Crashes | P35: Year 1 Crashes
A36: 12:00 AM - 12:59 AM | B36: =SUM(D36:H36) -> 25 | C36: =B36/SUM(B$36:B$60) -> 0.02515090543 | D36: 5 | E36: 5 | F36: 4 | G36: 6 | H36: 5 | I36: 12:00 AM - 12:59 AM | J36: =SUM(L36:P36) -> 622 | K36: =J36/SUM(J$36:J$60) -> 0.01460505307 | L36: 141 | M36: 141 | N36: 111 | O36: 119 | P36: 110
A37: 1:00 AM - 1:59 AM | B37: 26 | C37: =B37/SUM(B$36:B$60) -> 0.02615694165 | D37: 6 | E37: 8 | F37: 3 | G37: 5 | H37: 4 | I37: 1:00 AM - 1:59 AM | J37: 513 | K37: =J37/SUM(J$36:J$60) -> 0.01204564666 | L37: 86 | M37: 123 | N37: 100 | O37: 103 | P37: 101
A38: 2:00 AM - 2:59 AM | B38: 20 | C38: 0.02012072435 | D38: 6 | E38: 2 | F38: 3 | G38: 5 | H38: 4 | I38: 2:00 AM - 2:59 AM | J38: 494 | K38: 0.0115995116 | L38: 93 | M38: 89 | N38: 101 | O38: 99 | P38: 112
A39: 3:00 AM - 3:59 AM | B39: 8 | C39: 0.008048289738 | D39: 2 | E39: 1 | F39: 2 | G39: 0 | H39: 3 | I39: 3:00 AM - 3:59 AM | J39: 337 | K39: 0.007913027144 | L39: 75 | M39: 74 | N39: 67 | O39: 66 | P39: 55
A40: 4:00 AM - 4:59 AM | B40: 14 | C40: 0.01408450704 | D40: 4 | E40: 2 | F40: 4 | G40: 1 | H40: 3 | I40: 4:00 AM - 4:59 AM | J40: 309 | K40: 0.007255564948 | L40: 63 | M40: 72 | N40: 72 | O40: 50 | P40: 52
A41: 5:00 AM - 5:59 AM | B41: 16 | C41: 0.01609657948 | D41: 6 | E41: 2 | F41: 2 | G41: 2 | H41: 4 | I41: 5:00 AM - 5:59 AM | J41: 617 | K41: 0.0144876491 | L41: 143 | M41: 154 | N41: 138 | O41: 90 | P41: 92
A42: 6:00 AM - 6:59 AM | B42: 38 | C42: 0.03822937626 | D42: 12 | E42: 10 | F42: 8 | G42: 5 | H42: 3 | I42: 6:00 AM - 6:59 AM | J42: 1675 | K42: 0.03933032779 | L42: 398 | M42: 367 | N42: 370 | O42: 308 | P42: 232
A43: 7:00 AM - 7:59 AM | B43: 51 | C43: 0.05130784708 | D43: 11 | E43: 12 | F43: 12 | G43: 10 | H43: 6 | I43: 7:00 AM - 7:59 AM | J43: 2929 | K43: 0.06877524185 | L43: 670 | M43: 626 | N43: 615 | O43: 543 | P43: 475
A44: 8:00 AM - 8:59 AM | B44: 44 | C44: 0.04426559356 | D44: 11 | E44: 10 | F44: 5 | G44: 12 | H44: 6 | I44: 8:00 AM - 8:59 AM | J44: 2321 | K44: 0.05449891988 | L44: 522 | M44: 535 | N44: 497 | O44: 412 | P44: 355
A45: 9:00 AM - 9:59 AM | B45: 35 | C45: 0.03521126761 | D45: 7 | E45: 8 | F45: 2 | G45: 8 | H45: 10 | I45: 9:00 AM - 9:59 AM | J45: 1677 | K45: 0.03937728938 | L45: 364 | M45: 408 | N45: 351 | O45: 296 | P45: 258
A46: 10:00 AM - 10:59 AM | B46: 33 | C46: 0.03319919517 | D46: 12 | E46: 5 | F46: 4 | G46: 5 | H46: 7 | I46: 10:00 AM - 10:59 AM | J46: 1687 | K46: 0.0396120973 | L46: 359 | M46: 400 | N46: 352 | O46: 302 | P46: 274
A47: 11:00 AM - 11:59 AM | B47: 46 | C47: 0.046277666 | D47: 7 | E47: 13 | F47: 9 | G47: 9 | H47: 8 | I47: 11:00 AM - 11:59 AM | J47: 1986 | K47: 0.04663285433 | L47: 387 | M47: 453 | N47: 414 | O47: 392 | P47: 340
A48: 12:00 PM - 12:59 PM | B48: 56 | C48: 0.05633802817 | D48: 24 | E48: 10 | F48: 8 | G48: 2 | H48: 12 | I48: 12:00 PM - 12:59 PM | J48: 2401 | K48: 0.0563773833 | L48: 527 | M48: 537 | N48: 512 | O48: 420 | P48: 405
A49: 1:00 PM - 1:59 PM | B49: 48 | C49: 0.04828973843 | D49: 7 | E49: 8 | F49: 13 | G49: 11 | H49: 9 | I49: 1:00 PM - 1:59 PM | J49: 2439 | K49: 0.05726965342 | L49: 510 | M49: 546 | N49: 532 | O49: 431 | P49: 420
A50: 2:00 PM - 2:59 PM | B50: 48 | C50: 0.04828973843 | D50: 12 | E50: 12 | F50: 5 | G50: 6 | H50: 13 | I50: 2:00 PM - 2:59 PM | J50: 2672 | K50: 0.06274067813 | L50: 614 | M50: 595 | N50: 568 | O50: 440 | P50: 455
A51: 3:00 PM - 3:59 PM | B51: 64 | C51: 0.06438631791 | D51: 16 | E51: 9 | F51: 10 | G51: 16 | H51: 13 | I51: 3:00 PM - 3:59 PM | J51: 3363 | K51: 0.07896590589 | L51: 759 | M51: 749 | N51: 686 | O51: 621 | P51: 548
A52: 4:00 PM - 4:59 PM | B52: 73 | C52: 0.07344064386 | D52: 17 | E52: 15 | F52: 12 | G52: 14 | H52: 15 | I52: 4:00 PM - 4:59 PM | J52: 3586 | K52: 0.08420212266 | L52: 790 | M52: 856 | N52: 783 | O52: 624 | P52: 533
A53: 5:00 PM - 5:59 PM | B53: 62 | C53: 0.06237424547 | D53: 12 | E53: 16 | F53: 11 | G53: 14 | H53: 9 | I53: 5:00 PM - 5:59 PM | J53: 4109 | K53: 0.09648257725 | L53: 858 | M53: 898 | N53: 881 | O53: 738 | P53: 734
A54: 6:00 PM - 6:59 PM | B54: 71 | C54: 0.07142857143 | D54: 20 | E54: 11 | F54: 11 | G54: 16 | H54: 13 | I54: 6:00 PM - 6:59 PM | J54: 2823 | K54: 0.06628627782 | L54: 651 | M54: 586 | N54: 577 | O54: 540 | P54: 469
A55: 7:00 PM - 7:59 PM | B55: 52 | C55: 0.0523138833 | D55: 13 | E55: 9 | F55: 8 | G55: 12 | H55: 10 | I55: 7:00 PM - 7:59 PM | J55: 1651 | K55: 0.03876678877 | L55: 393 | M55: 375 | N55: 344 | O55: 300 | P55: 239
A56: 8:00 PM - 8:59 PM | B56: 62 | C56: 0.06237424547 | D56: 17 | E56: 12 | F56: 9 | G56: 18 | H56: 6 | I56: 8:00 PM - 8:59 PM | J56: 1418 | K56: 0.03329576406 | L56: 286 | M56: 324 | N56: 299 | O56: 282 | P56: 227
A57: 9:00 PM - 9:59 PM | B57: 43 | C57: 0.04325955734 | D57: 8 | E57: 11 | F57: 7 | G57: 9 | H57: 8 | I57: 9:00 PM - 9:59 PM | J57: 1197 | K57: 0.02810650888 | L57: 260 | M57: 274 | N57: 246 | O57: 207 | P57: 210
A58: 10:00 PM - 10:59 PM | B58: 31 | C58: 0.03118712274 | D58: 7 | E58: 10 | F58: 4 | G58: 5 | H58: 5 | I58: 10:00 PM - 10:59 PM | J58: 984 | K58: 0.02310510003 | L58: 222 | M58: 235 | N58: 198 | O58: 151 | P58: 178
A59: 11:00 PM - 11:59 PM | B59: 27 | C59: 0.02716297787 | D59: 6 | E59: 4 | F59: 4 | G59: 7 | H59: 6 | I59: 11:00 PM - 11:59 PM | J59: 752 | K59: 0.01765755612 | L59: 175 | M59: 164 | N59: 143 | O59: 154 | P59: 116
A60: Unknown | B60: 1 | C60: 0.001006036217 | D60: 0 | E60: 0 | F60: 0 | G60: 1 | H60: 0 | I60: Unknown | J60: 26 | K60: 0.0006105006105 | L60: 1 | M60: 4 | N60: 6 | O60: 10 | P60: 5
A61: =CONCATENATE("Fatal and Serious Injury Crashes Only - ",A62, " ",Instructions!$B$11) -> Fatal and Serious Injury Crashes Only - Crash Month Test Group 2 | I61: =CONCATENATE("Total Crashes - ",I62, " ",Instructions!$B$11) -> Total Crashes - Crash Month Test Group 2
A62: Crash Month | B62: Number of Crashes | C62: Percent of Crashes | D62: Year 5 Crashes | E62: Year 4 Crashes | F62: Year 3 Crashes | G62: Year 2 Crashes | H62: Year 1 Crashes | I62: Crash Month | J62: Number of Crashes | K62: Percent of Crashes | L62: Year 5 Crashes | M62: Year 4 Crashes | N62: Year 3 Crashes | O62: Year 2 Crashes | P62: Year 1 Crashes
A63: January | B63: =SUM(D63:H63) -> 62 | C63: =B63/SUM(B$63:B$74) -> 0.06237424547 | D63: 22 | E63: 9 | F63: 7 | G63: 12 | H63: 12 | I63: January | J63: =SUM(L63:P63) -> 3468 | K63: =J63/SUM(J$63:J$74) -> 0.08143138912 | L63: 782 | M63: 793 | N63: 735 | O63: 643 | P63: 515
A64: February | B64: 58 | C64: =B64/SUM(B$63:B$74) -> 0.0583501006 | D64: 16 | E64: 11 | F64: 9 | G64: 9 | H64: 13 | I64: February | J64: 3283 | K64: =J64/SUM(J$63:J$74) -> 0.07708744247 | L64: 715 | M64: 751 | N64: 661 | O64: 554 | P64: 602
A65: March | B65: 96 | C65: 0.09657947686 | D65: 30 | E65: 13 | F65: 15 | G65: 17 | H65: 21 | I65: March | J65: 3209 | K65: 0.07534986381 | L65: 784 | M65: 646 | N65: 676 | O65: 599 | P65: 504
A66: April | B66: 81 | C66: 0.0814889336 | D66: 19 | E66: 15 | F66: 15 | G66: 20 | H66: 12 | I66: April | J66: 3291 | K66: 0.07727528881 | L66: 718 | M66: 749 | N66: 637 | O66: 633 | P66: 554
A67: May | B67: 92 | C67: 0.09255533199 | D67: 23 | E67: 20 | F67: 14 | G67: 21 | H67: 14 | I67: May | J67: 3476 | K67: 0.08161923547 | L67: 782 | M67: 787 | N67: 737 | O67: 567 | P67: 603
A68: June | B68: 88 | C68: 0.08853118712 | D68: 21 | E68: 22 | F68: 14 | G68: 14 | H68: 17 | I68: June | J68: 3462 | K68: 0.08129050437 | L68: 796 | M68: 787 | N68: 748 | O68: 575 | P68: 556
A69: July | B69: 90 | C69: 0.09054325956 | D69: 19 | E69: 23 | F69: 15 | G69: 14 | H69: 19 | I69: July | J69: 3376 | K69: 0.07927115619 | L69: 724 | M69: 791 | N69: 694 | O69: 606 | P69: 561
A70: August | B70: 104 | C70: 0.1046277666 | D70: 26 | E70: 18 | F70: 9 | G70: 30 | H70: 21 | I70: August | J70: 3608 | K70: 0.0847187001 | L70: 776 | M70: 757 | N70: 785 | O70: 683 | P70: 607
A71: September | B71: 97 | C71: 0.09758551308 | D71: 24 | E71: 23 | F71: 20 | G71: 14 | H71: 16 | I71: September | J71: 3640 | K71: 0.08547008547 | L71: 784 | M71: 839 | N71: 798 | O71: 670 | P71: 549
A72: October | B72: 80 | C72: 0.08048289738 | D72: 14 | E72: 21 | F72: 14 | G72: 19 | H72: 12 | I72: =A72 -> October | J72: 3950 | K72: 0.09274913121 | L72: 836 | M72: 920 | N72: 806 | O72: 707 | P72: 681
A73: November | B73: 84 | C73: 0.08450704225 | D73: 17 | E73: 17 | F73: 16 | G73: 16 | H73: 18 | I73: November | J73: 3793 | K73: 0.08906264675 | L73: 816 | M73: 897 | N73: 826 | O73: 681 | P73: 573
A74: December | B74: 62 | C74: 0.06237424547 | D74: 17 | E74: 13 | F74: 12 | G74: 13 | H74: 7 | I74: December | J74: 4032 | K74: 0.09467455621 | L74: 834 | M74: 868 | N74: 860 | O74: 780 | P74: 690
A75: =CONCATENATE("Fatal and Serious Injury Crashes Only - ",A76, " ",Instructions!$B$11) -> Fatal and Serious Injury Crashes Only - Crash Jurisdiction Test Group 2 | I75: =CONCATENATE("Total Crashes - ",I76, " ",Instructions!$B$11) -> Total Crashes - Crash Jurisdiction Test Group 2
A76: Crash Jurisdiction | B76: Number of Crashes | C76: Percent of Crashes | D76: Year 5 Crashes | E76: Year 4 Crashes | F76: Year 3 Crashes | G76: Year 2 Crashes | H76: Year 1 Crashes | I76: Crash Jurisdiction | J76: Number of Crashes | K76: Percent of Crashes | L76: Year 5 Crashes | M76: Year 4 Crashes | N76: Year 3 Crashes | O76: Year 2 Crashes | P76: Year 1 Crashes
A77: A | B77: =SUM(D77:H77) -> 9 | C77: =B77/SUM(B$77:B$81) -> 0.009054325956 | D77: 3 | E77: 2 | F77: 2 | G77: 1 | H77: 1 | I77: A | J77: =SUM(L77:P77) -> 81 | K77: =J77/SUM(J$77:J$81) -> 0.00190194421 | L77: 18 | M77: 29 | N77: 16 | O77: 10 | P77: 8
A78: B | B78: =SUM(D78:H78) -> 64 | C78: =B78/SUM(B$77:B$81) -> 0.06438631791 | D78: 9 | E78: 12 | F78: 10 | G78: 13 | H78: 20 | I78: B | J78: =SUM(L78:P78) -> 2068 | K78: =J78/SUM(J$77:J$81) -> 0.04855827933 | L78: 397 | M78: 454 | N78: 436 | O78: 448 | P78: 333
A79: C | B79: =SUM(D79:H79) -> 99 | C79: 0.09959758551 | D79: 19 | E79: 23 | F79: 18 | G79: 16 | H79: 23 | I79: C | J79: =SUM(L79:P79) -> 2714 | K79: 0.06372687142 | L79: 498 | M79: 612 | N79: 550 | O79: 554 | P79: 500
A80: D | B80: =SUM(D80:H80) -> 815 | C80: 0.8199195171 | D80: 217 | E80: 166 | F80: 127 | G80: 168 | H80: 137 | I80: D | J80: =SUM(L80:P80) -> 37556 | K80: 0.8818446511 | L80: 8408 | M80: 8455 | N80: 7911 | O80: 6654 | P80: 6128
A81: E | B81: =SUM(D81:H81) -> 7 | C81: 0.007042253521 | D81: 0 | E81: 2 | F81: 3 | G81: 1 | H81: 1 | I81: E | J81: =SUM(L81:P81) -> 169 | K81: 0.003968253968 | L81: 26 | M81: 35 | N81: 50 | O81: 32 | P81: 26
A82: =CONCATENATE("Fatal and Serious Injury Crashes Only - ",A83, " ",Instructions!$B$11) -> Fatal and Serious Injury Crashes Only - First Harmful Event Test Group 2 | I82: =CONCATENATE("Total Crashes - ",I83, " ",Instructions!$B$11) -> Total Crashes - First Harmful Event Test Group 2
A83: First Harmful Event | B83: Number of Crashes | C83: Percent of Crashes | D83: Year 5 Crashes | E83: Year 4 Crashes | F83: Year 3 Crashes | G83: Year 2 Crashes | H83: Year 1 Crashes | I83: First Harmful Event | J83: Number of Crashes | K83: Percent of Crashes | L83: Year 5 Crashes | M83: Year 4 Crashes | N83: Year 3 Crashes | O83: Year 2 Crashes | P83: Year 1 Crashes
A84: Cargo/Equipment Loss or Shift | B84: =SUM(D84:H84) -> 0 | C84: =B84/SUM(B$84:B$125) -> 0 | D84: 0 | E84: 0 | F84: 0 | G84: 0 | H84: 0 | I84: Cargo/Equipment Loss or Shift | J84: =SUM(L84:P84) -> 9 | K84: =J84/SUM(J$84:J$125) -> 0.0002112081104 | L84: 1 | M84: 0 | N84: 4 | O84: 4 | P84: 0
A85: Fell/Jumped from Motor Vehicle | B85: 103 | C85: =B85/SUM(B$84:B$125) -> 0.1036217304 | D85: 32 | E85: 12 | F85: 17 | G85: 27 | H85: 15 | I85: Fell/Jumped from Motor Vehicle | J85: 2978 | K85: =J85/SUM(J$84:J$125) -> 0.06988641697 | L85: 657 | M85: 657 | N85: 616 | O85: 544 | P85: 504
A86: Fire/Explosion | B86: 1 | C86: 0.001006036217 | D86: 0 | E86: 0 | F86: 0 | G86: 0 | H86: 1 | I86: Fire/Explosion | J86: 30 | K86: 0.0007040270346 | L86: 10 | M86: 7 | N86: 6 | O86: 2 | P86: 5
A87: Immersion, Full or Partial | B87: 35 | C87: 0.03521126761 | D87: 6 | E87: 9 | F87: 5 | G87: 10 | H87: 5 | I87: Immersion, Full or Partial | J87: 406 | K87: 0.009527832535 | L87: 82 | M87: 81 | N87: 78 | O87: 96 | P87: 69
A88: Jackknife | B88: 3 | C88: 0.003018108652 | D88: 1 | E88: 1 | F88: 1 | G88: 0 | H88: 0 | I88: Jackknife | J88: 71 | K88: 0.001666197315 | L88: 12 | M88: 17 | N88: 13 | O88: 14 | P88: 15
A89: Other Non-Collision | B89: 122 | C89: 0.1227364185 | D89: 36 | E89: 25 | F89: 20 | G89: 15 | H89: 26 | I89: Other Non-Collision | J89: 4873 | K89: 0.114357458 | L89: 1151 | M89: 1087 | N89: 1006 | O89: 848 | P89: 781
A90: Overturn/Rollover | B90: 1 | C90: 0.001006036217 | D90: 1 | E90: 0 | F90: 0 | G90: 0 | H90: 0 | I90: Overturn/Rollover | J90: 188 | K90: 0.00441190275 | L90: 34 | M90: 41 | N90: 41 | O90: 47 | P90: 25
A91: Thrown or Falling Object | B91: 27 | C91: 0.02716297787 | D91: 5 | E91: 5 | F91: 5 | G91: 7 | H91: 5 | I91: Thrown or Falling Object | J91: 625 | K91: 0.01466722989 | L91: 116 | M91: 121 | N91: 172 | O91: 130 | P91: 86
A92: Collision with Animal | B92: 2 | C92: 0.002012072435 | D92: 1 | E92: 0 | F92: 0 | G92: 1 | H92: 0 | I92: Collision with Animal | J92: 41 | K92: 0.0009621702807 | L92: 11 | M92: 6 | N92: 8 | O92: 7 | P92: 9
A93: Collision with Construction Equipment | B93: 6 | C93: 0.006036217304 | D93: 1 | E93: 1 | F93: 2 | G93: 1 | H93: 1 | I93: Collision with Construction Equipment | J93: 60 | K93: 0.001408054069 | L93: 9 | M93: 17 | N93: 12 | O93: 11 | P93: 11
A94: Collision with Farm Equipment | B94: 5 | C94: 0.005030181087 | D94: 2 | E94: 1 | F94: 1 | G94: 1 | H94: 0 | I94: Collision with Farm Equipment | J94: 495 | K94: 0.01161644607 | L94: 92 | M94: 117 | N94: 83 | O94: 120 | P94: 83
A95: Collision with Motor Vehicle in Transport | B95: 0 | C95: 0 | D95: 0 | E95: 0 | F95: 0 | G95: 0 | H95: 0 | I95: Collision with Motor Vehicle in Transport | J95: 29 | K95: 0.0006805594668 | L95: 6 | M95: 6 | N95: 6 | O95: 6 | P95: 5
A96: Collision with Other Non-Fixed Object | B96: 1 | C96: 0.001006036217 | D96: 0 | E96: 0 | F96: 0 | G96: 0 | H96: 1 | I96: Collision with Other Non-Fixed Object | J96: 38 | K96: 0.0008917675772 | L96: 6 | M96: 7 | N96: 8 | O96: 9 | P96: 8
A97: Collision with Other Non-motorist | B97: 4 | C97: 0.004024144869 | D97: 1 | E97: 1 | F97: 1 | G97: 0 | H97: 1 | I97: Collision with Other Non-motorist | J97: 165 | K97: 0.003872148691 | L97: 39 | M97: 42 | N97: 31 | O97: 31 | P97: 22
A98: Collision with Parked Motor Vehicle | B98: 6 | C98: 0.006036217304 | D98: 1 | E98: 1 | F98: 3 | G98: 1 | H98: 0 | I98: Collision with Parked Motor Vehicle | J98: 515 | K98: 0.01208579743 | L98: 85 | M98: 105 | N98: 105 | O98: 131 | P98: 89
A99: Collision with Pedalcycle | B99: 14 | C99: 0.01408450704 | D99: 1 | E99: 3 | F99: 4 | G99: 2 | H99: 4 | I99: Collision with Pedalcycle | J99: 347 | K99: 0.008143246034 | L99: 74 | M99: 71 | N99: 70 | O99: 74 | P99: 58
A100: Collision with Pedestrian | B100: 16 | C100: 0.01609657948 | D100: 6 | E100: 6 | F100: 2 | G100: 1 | H100: 1 | I100: Collision with Pedestrian | J100: 174 | K100: 0.004083356801 | L100: 36 | M100: 44 | N100: 42 | O100: 36 | P100: 16
A101: Collision with Railway Vehicle | B101: 5 | C101: 0.005030181087 | D101: 1 | E101: 1 | F101: 2 | G101: 1 | H101: 0 | I101: Collision with Railway Vehicle | J101: 210 | K101: 0.004928189242 | L101: 45 | M101: 46 | N101: 51 | O101: 37 | P101: 31
A102: Strikes Object ar Rest from MV in Transport | B102: 2 | C102: 0.002012072435 | D102: 1 | E102: 1 | F102: 0 | G102: 0 | H102: 0 | I102: Strikes Object ar Rest from MV in Transport | J102: 60 | K102: 0.001408054069 | L102: 12 | M102: 17 | N102: 7 | O102: 9 | P102: 15
A103: Struck by Falling, Shifting Cargo, or Anything Set in Motion by Motor Vehicle | B103: 22 | C103: 0.02213279678 | D103: 4 | E103: 6 | F103: 4 | G103: 1 | H103: 7 | I103: Struck by Falling, Shifting Cargo, or Anything Set in Motion by Motor Vehicle | J103: 539 | K103: 0.01264901906 | L103: 120 | M103: 126 | N103: 103 | O103: 99 | P103: 91
A104: Collision with Bridge Overhead Structure | B104: 1 | C104: 0.001006036217 | D104: 0 | E104: 0 | F104: 0 | G104: 0 | H104: 1 | I104: Collision with Bridge Overhead Structure | J104: 39 | K104: 0.000915235145 | L104: 5 | M104: 12 | N104: 9 | O104: 9 | P104: 4
A105: Collision with Bridge Pier or Support | B105: 6 | C105: 0.006036217304 | D105: 1 | E105: 1 | F105: 2 | G105: 0 | H105: 2 | I105: Collision with Bridge Pier or Support | J105: 340 | K105: 0.007978973059 | L105: 55 | M105: 86 | N105: 70 | O105: 71 | P105: 58
A106: Collision with Bridge Rail | B106: 9 | C106: 0.009054325956 | D106: 3 | E106: 1 | F106: 1 | G106: 2 | H106: 2 | I106: Collision with Bridge Rail | J106: 84 | K106: 0.001971275697 | L106: 19 | M106: 21 | N106: 13 | O106: 17 | P106: 14
A107: Collision with Cable Barrier | B107: 5 | C107: 0.005030181087 | D107: 0 | E107: 1 | F107: 1 | G107: 3 | H107: 0 | I107: Collision with Cable Barrier | J107: 263 | K107: 0.006171970337 | L107: 54 | M107: 75 | N107: 49 | O107: 44 | P107: 41
A108: Collision with Concrete Traffic Barrier | B108: 108 | C108: 0.1086519115 | D108: 22 | E108: 16 | F108: 12 | G108: 25 | H108: 33 | I108: Collision with Concrete Traffic Barrier | J108: 708 | K108: 0.01661503802 | L108: 153 | M108: 141 | N108: 120 | O108: 148 | P108: 146
A109: Collision with Culvert | B109: 18 | C109: 0.01810865191 | D109: 8 | E109: 2 | F109: 2 | G109: 3 | H109: 3 | I109: Collision with Culvert | J109: 2976 | K109: 0.06983948184 | L109: 641 | M109: 626 | N109: 638 | O109: 554 | P109: 517
A110: Collision with Curb | B110: 145 | C110: 0.1458752515 | D110: 38 | E110: 27 | F110: 25 | G110: 32 | H110: 23 | I110: Collision with Curb | J110: 574 | K110: 0.01347038393 | L110: 132 | M110: 103 | N110: 125 | O110: 114 | P110: 100
A111: Collision with Ditch | B111: 0 | C111: 0 | D111: 0 | E111: 0 | F111: 0 | G111: 0 | H111: 0 | I111: Collision with Ditch | J111: 7 | K111: 0.0001642729747 | L111: 0 | M111: 2 | N111: 1 | O111: 1 | P111: 3
A112: Collision with Embankment | B112: 93 | C112: 0.09356136821 | D112: 21 | E112: 26 | F112: 14 | G112: 17 | H112: 15 | I112: Collision with Embankment | J112: 15157 | K112: 0.3556979255 | L112: 3358 | M112: 3538 | N112: 3158 | O112: 2610 | P112: 2493
A113: Collision with Fence | B113: 0 | C113: 0 | D113: 0 | E113: 0 | F113: 0 | G113: 0 | H113: 0 | I113: Collision with Fence | J113: 13 | K113: 0.0003050783817 | L113: 2 | M113: 1 | N113: 6 | O113: 2 | P113: 2
A114: Collision with Guardrail End Terminal | B114: 8 | C114: 0.008048289738 | D114: 3 | E114: 2 | F114: 2 | G114: 0 | H114: 1 | I114: Collision with Guardrail End Terminal | J114: 371 | K114: 0.008706467662 | L114: 93 | M114: 97 | N114: 83 | O114: 53 | P114: 45
A115: Collision with Guardrail Face | B115: 17 | C115: 0.01710261569 | D115: 4 | E115: 5 | F115: 2 | G115: 4 | H115: 2 | I115: Collision with Guardrail Face | J115: 4888 | K115: 0.1147094715 | L115: 1070 | M115: 1155 | N115: 1087 | O115: 823 | P115: 753
A116: Collision with Impact Attenuator/Crash Cushion | B116: 1 | C116: 0.001006036217 | D116: 0 | E116: 0 | F116: 0 | G116: 1 | H116: 0 | I116: Collision with Impact Attenuator/Crash Cushion | J116: 591 | K116: 0.01386933258 | L116: 104 | M116: 135 | N116: 120 | O116: 111 | P116: 121
A117: Collision with Mailbox | B117: 8 | C117: 0.008048289738 | D117: 3 | E117: 2 | F117: 0 | G117: 2 | H117: 1 | I117: Collision with Mailbox | J117: 102 | K117: 0.002393691918 | L117: 19 | M117: 27 | N117: 19 | O117: 17 | P117: 20
A118: Collision with Other Fixed Object | B118: 16 | C118: 0.01609657948 | D118: 1 | E118: 4 | F118: 5 | G118: 2 | H118: 4 | I118: Collision with Other Fixed Object | J118: 294 | K118: 0.006899464939 | L118: 47 | M118: 58 | N118: 60 | O118: 58 | P118: 71
A119: Collision with Other Post, Pole, or Support | B119: 171 | C119: 0.1720321932 | D119: 41 | E119: 41 | F119: 25 | G119: 36 | H119: 28 | I119: Collision with Other Post, Pole, or Support | J119: 3824 | K119: 0.08973997935 | L119: 900 | M119: 800 | N119: 800 | O119: 700 | P119: 624
A120: Collision with Other Traffic Barrier | B120: 7 | C120: 0.007042253521 | D120: 2 | E120: 3 | F120: 0 | G120: 2 | H120: 0 | I120: Collision with Other Traffic Barrier | J120: 169 | K120: 0.003966018962 | L120: 37 | M120: 40 | N120: 34 | O120: 29 | P120: 29
A121: Collision with Traffic Sign Support | B121: 6 | C121: 0.006036217304 | D121: 1 | E121: 1 | F121: 2 | G121: 2 | H121: 0 | I121: Collision with Traffic Sign Support | J121: 133 | K121: 0.00312118652 | L121: 19 | M121: 26 | N121: 28 | O121: 37 | P121: 23
A122: Collision with Traffic Signal Support | B122: 0 | C122: 0 | D122: 0 | E122: 0 | F122: 0 | G122: 0 | H122: 0 | I122: Collision with Traffic Signal Support | J122: 75 | K122: 0.001760067587 | L122: 15 | M122: 24 | N122: 16 | O122: 12 | P122: 8
A123: Collision with Tree | B123: 0 | C123: 0 | D123: 0 | E123: 0 | F123: 0 | G123: 0 | H123: 0 | I123: Collision with Tree | J123: 151 | K123: 0.003543602741 | L123: 26 | M123: 3 | N123: 65 | O123: 33 | P123: 24
A124: Collision with Utility Pole or Light Support | B124: 0 | C124: 0 | D124: 0 | E124: 0 | F124: 0 | G124: 0 | H124: 0 | I124: Collision with Utility Pole or Light Support | J124: 0 | K124: 0 | L124: 0 | M124: 0 | N124: 0 | O124: 0 | P124: 0
A125: Unknown | B125: 0 | C125: 0 | D125: 0 | E125: 0 | F125: 0 | G125: 0 | H125: 0 | I125: Unknown | J125: 0 | K125: 0 | L125: 0 | M125: 0 | N125: 0 | O125: 0 | P125: 0
A126: =CONCATENATE("Fatal and Serious Injury Crashes Only - ",A127, " ",Instructions!$B$11) -> Fatal and Serious Injury Crashes Only - Location of First Harmful Event Test Group 2 | I126: =CONCATENATE("Total Crashes - ",I127, " ",Instructions!$B$11) -> Total Crashes - Location of First Harmful Event Test Group 2
A127: Location of First Harmful Event | B127: Number of Crashes | C127: Percent of Crashes | D127: Year 5 Crashes | E127: Year 4 Crashes | F127: Year 3 Crashes | G127: Year 2 Crashes | H127: Year 1 Crashes | I127: Location of First Harmful Event | J127: Number of Crashes | K127: Percent of Crashes | L127: Year 5 Crashes | M127: Year 4 Crashes | N127: Year 3 Crashes | O127: Year 2 Crashes | P127: Year 1 Crashes
A128: Gore | B128: =SUM(D128:H128) -> 150 | C128: =B128/SUM(B$128:B$138) -> 0.1509054326 | D128: 44 | E128: 23 | F128: 20 | G128: 38 | H128: 25 | I128: Gore | J128: =SUM(L128:P128) -> 3463 | K128: =J128/SUM(J$128:J$138) -> 0.08131398516 | L128: 777 | M128: 759 | N128: 714 | O128: 621 | P128: 592
A129: In Parking Lane or Zone | B129: =SUM(D129:H129) -> 180 | C129: =B129/SUM(B$128:B$138) -> 0.1810865191 | D129: 49 | E129: 39 | F129: 31 | G129: 26 | H129: 35 | I129: In Parking Lane or Zone | J129: =SUM(L129:P129) -> 5695 | K129: =J129/SUM(J$128:J$138) -> 0.1337231145 | L129: 1334 | M129: 1290 | N129: 1194 | O129: 997 | P129: 880
A130: Median | B130: =SUM(D130:H130) -> 7 | C130: 0.007042253521 | D130: 1 | E130: 0 | F130: 4 | G130: 2 | H130: 0 | I130: Median | J130: =SUM(L130:P130) -> 517 | K130: 0.01213956983 | L130: 92 | M130: 101 | N130: 113 | O130: 125 | P130: 86
A131: Off-Roadway, Location Unknown | B131: =SUM(D131:H131) -> 18 | C131: 0.01810865191 | D131: 1 | E131: 4 | F131: 5 | G131: 3 | H131: 5 | I131: Off-Roadway, Location Unknown | J131: =SUM(L131:P131) -> 348 | K131: 0.008171315864 | L131: 66 | M131: 72 | N131: 74 | O131: 73 | P131: 63
A132: On Roadway | B132: 25 | C132: 0.02515090543 | D132: 8 | E132: 8 | F132: 4 | G132: 3 | H132: 2 | I132: On Roadway | J132: 223 | K132: 0.005236216775 | L132: 50 | M132: 52 | N132: 51 | O132: 46 | P132: 24
A133: On Shoulder, Left Side | B133: 5 | C133: 0.005030181087 | D133: 0 | E133: 1 | F133: 2 | G133: 1 | H133: 1 | I133: On Shoulder, Left Side | J133: 222 | K133: 0.005212735982 | L133: 48 | M133: 50 | N133: 48 | O133: 41 | P133: 35
A134: On Shoulder, Right Side | B134: 77 | C134: 0.07746478873 | D134: 11 | E134: 11 | F134: 9 | G134: 21 | H134: 25 | I134: On Shoulder, Right Side | J134: 528 | K134: 0.01239785855 | L134: 97 | M134: 102 | N134: 84 | O134: 133 | P134: 112
A135: Outside Road/Right-of-Way | B135: 19 | C135: 0.01911468813 | D135: 9 | E135: 2 | F135: 2 | G135: 3 | H135: 3 | I135: Outside Road/Right-of-Way | J135: 2945 | K135: 0.06915093454 | L135: 631 | M135: 622 | N135: 630 | O135: 546 | P135: 516
A136: Roadside | B136: 144 | C136: 0.1448692153 | D136: 39 | E136: 24 | F136: 26 | G136: 31 | H136: 24 | I136: Roadside | J136: 574 | K136: 0.01347797502 | L136: 134 | M136: 101 | N136: 125 | O136: 113 | P136: 101
A137: Separator/Traffic Island | B137: 155 | C137: 0.1559356137 | D137: 38 | E137: 40 | F137: 23 | G137: 29 | H137: 25 | I137: Separator/Traffic Island | J137: 17847 | K137: 0.4190617075 | L137: 3995 | M137: 4040 | N137: 3746 | O137: 3124 | P137: 2942
A138: Unknown | B138: =SUM(D138:H138) -> 214 | C138: 0.2152917505 | D138: 48 | E138: 53 | F138: 34 | G138: 42 | H138: 37 | I138: Unknown | J138: =SUM(L138:P138) -> 10226 | K138: 0.2401145863 | L138: 2123 | M138: 2396 | N138: 2184 | O138: 1879 | P138: 1644
A139: =CONCATENATE("Fatal and Serious Injury Crashes Only - ",A140, " ",Instructions!$B$11) -> Fatal and Serious Injury Crashes Only - Manner of Crash Test Group 2 | I139: =CONCATENATE("Total Crashes - ",I140, " ",Instructions!$B$11) -> Total Crashes - Manner of Crash Test Group 2
A140: Manner of Crash | B140: Number of Crashes | C140: Percent of Crashes | D140: Year 5 Crashes | E140: Year 4 Crashes | F140: Year 3 Crashes | G140: Year 2 Crashes | H140: Year 1 Crashes | I140: Manner of Crash | J140: Number of Crashes | K140: Percent of Crashes | L140: Year 5 Crashes | M140: Year 4 Crashes | N140: Year 3 Crashes | O140: Year 2 Crashes | P140: Year 1 Crashes
A141: Not a Collision Between Two Motor Vehicles | B141: =SUM(D141:H141) -> 896 | C141: =B141/SUM(B$141:B$150) -> 0.9014084507 | D141: 224 | E141: 187 | F141: 141 | G141: 180 | H141: 164 | I141: =A141 -> Not a Collision Between Two Motor Vehicles | J141: =SUM(L141:P141) -> 35853 | K141: =J141/SUM(J$141:J$150) -> 0.8418568611 | L141: 8168 | M141: 7752 | N141: 7373 | O141: 6368 | P141: 6192
A142: Angle | B142: 1 | C142: =B142/SUM(B$141:B$150) -> 0.001006036217 | D142: 1 | E142: 0 | F142: 0 | G142: 0 | H142: 0 | I142: Angle | J142: 18 | K142: =J142/SUM(J$141:J$150) -> 0.0004226542688 | L142: 7 | M142: 11 | N142: 0 | O142: 0 | P142: 0
A143: Front to Front | B143: 4 | C143: 0.004024144869 | D143: 1 | E143: 0 | F143: 0 | G143: 1 | H143: 2 | I143: Front to Front | J143: 23 | K143: 0.0005400582324 | L143: 5 | M143: 3 | N143: 5 | O143: 3 | P143: 7
A144: Front to Rear | B144: 16 | C144: 0.01609657948 | D144: 3 | E144: 3 | F144: 4 | G144: 4 | H144: 2 | I144: Front to Rear | J144: 1673 | K144: 0.03928336621 | L144: 241 | M144: 455 | N144: 466 | O144: 343 | P144: 168
A145: Rear to Rear | B145: 0 | C145: 0 | D145: 0 | E145: 0 | F145: 0 | G145: 0 | H145: 0 | I145: Rear to Rear | J145: 39 | K145: 0.0009157509158 | L145: 17 | M145: 22 | N145: 0 | O145: 0 | P145: 0
A146: Rear to Side | B146: 0 | C146: 0 | D146: 0 | E146: 0 | F146: 0 | G146: 0 | H146: 0 | I146: Rear to Side | J146: 6 | K146: 0.0001408847563 | L146: 1 | M146: 1 | N146: 1 | O146: 1 | P146: 2
A147: Sideswipe, Opposite Direction | B147: 2 | C147: 0.002012072435 | D147: 0 | E147: 1 | F147: 0 | G147: 1 | H147: 0 | I147: Sideswipe, Opposite Direction | J147: 290 | K147: 0.006809429886 | L147: 51 | M147: 86 | N147: 59 | O147: 53 | P147: 41
A148: Sideswipe, Same Direction | B148: 0 | C148: 0 | D148: 0 | E148: 0 | F148: 0 | G148: 0 | H148: 0 | I148: Sideswipe, Same Direction | J148: 12 | K148: 0.0002817695125 | L148: 6 | M148: 6 | N148: 0 | O148: 0 | P148: 0
A149: Other | B149: 11 | C149: 0.01106639839 | D149: 5 | E149: 3 | F149: 1 | G149: 1 | H149: 1 | I149: Other | J149: 1231 | K149: 0.02890485583 | L149: 241 | M149: 301 | N149: 284 | O149: 250 | P149: 155
A150: Unknown | B150: 64 | C150: 0.06438631791 | D150: 14 | E150: 11 | F150: 14 | G150: 12 | H150: 13 | I150: Unknown | J150: 3443 | K150: 0.08084436931 | L150: 610 | M150: 948 | N150: 775 | O150: 680 | P150: 430
A151: =CONCATENATE("Fatal and Serious Injury Crashes Only - ",A152, " ",Instructions!$B$11) -> Fatal and Serious Injury Crashes Only - Weather Test Group 2 | I151: =CONCATENATE("Total Crashes - ",I152, " ",Instructions!$B$11) -> Total Crashes - Weather Test Group 2
A152: Weather | B152: Number of Crashes | C152: Percent of Crashes | D152: Year 5 Crashes | E152: Year 4 Crashes | F152: Year 3 Crashes | G152: Year 2 Crashes | H152: Year 1 Crashes | I152: Weather | J152: Number of Crashes | K152: Percent of Crashes | L152: Year 5 Crashes | M152: Year 4 Crashes | N152: Year 3 Crashes | O152: Year 2 Crashes | P152: Year 1 Crashes
A153: Blowing Sand, Soil, Dirt | B153: =SUM(D153:H153) -> 204 | C153: =B153/SUM(B$153:B$164) -> 0.2052313883 | D153: 35 | E153: 38 | F153: 37 | G153: 43 | H153: 51 | I153: Blowing Sand, Soil, Dirt | J153: =SUM(L153:P153) -> 5164 | K153: =J153/SUM(J$153:J$164) -> 0.1212548136 | L153: 951 | M153: 1139 | N153: 1053 | O153: 1103 | P153: 918
A154: Blowing Snow | B154: 651 | C154: =B154/SUM(B$153:B$164) -> 0.6549295775 | D154: 179 | E154: 134 | F154: 103 | G154: 121 | H154: 114 | I154: Blowing Snow | J154: 32859 | K154: =J154/SUM(J$153:J$164) -> 0.7715553677 | L154: 7317 | M154: 7420 | N154: 6912 | O154: 5804 | P154: 5406
A155: Clear | B155: 101 | C155: 0.1016096579 | D155: 23 | E155: 22 | F155: 16 | G155: 28 | H155: 12 | I155: Clear | J155: 3816 | K155: 0.08960270499 | L155: 872 | M155: 870 | N155: 832 | O155: 661 | P155: 581
A156: Cloudy | B156: 29 | C156: 0.0291750503 | D156: 7 | E156: 8 | F156: 4 | G156: 5 | H156: 5 | I156: Cloudy | J156: 629 | K156: 0.01476941862 | L156: 170 | M156: 132 | N156: 140 | O156: 110 | P156: 77
A157: Fog, Smog, Smoke | B157: 6 | C157: 0.006036217304 | D157: 4 | E157: 2 | F157: 0 | G157: 0 | H157: 0 | I157: Fog, Smog, Smoke | J157: 93 | K157: 0.002183713722 | L157: 28 | M157: 18 | N157: 22 | O157: 15 | P157: 10
A158: Freezing Rain or Freezing Drizzle | B158: 0 | C158: 0 | D158: 0 | E158: 0 | F158: 0 | G158: 0 | H158: 0 | I158: Freezing Rain or Freezing Drizzle | J158: 17 | K158: 0.0003991734761 | L158: 5 | M158: 4 | N158: 4 | O158: 3 | P158: 1
A159: Rain | B159: 1 | C159: 0.001006036217 | D159: 0 | E159: 0 | F159: 0 | G159: 1 | H159: 0 | I159: Rain | J159: 5 | K159: 0.0001174039636 | L159: 2 | M159: 0 | N159: 0 | O159: 1 | P159: 2
A160: Severe Crosswinds | B160: 0 | C160: 0 | D160: 0 | E160: 0 | F160: 0 | G160: 0 | H160: 0 | I160: Severe Crosswinds | J160: 1 | K160: 2.348079271e-05 | L160: 1 | M160: 0 | N160: 0 | O160: 0 | P160: 0
A161: Sleet or Hail | B161: 1 | C161: 0.001006036217 | D161: 0 | E161: 1 | F161: 0 | G161: 0 | H161: 0 | I161: Sleet or Hail | J161: 2 | K161: 4.696158542e-05 | L161: 0 | M161: 2 | N161: 0 | O161: 0 | P161: 0
A162: Snow | B162: 0 | C162: 0 | D162: 0 | E162: 0 | F162: 0 | G162: 0 | H162: 0 | I162: Snow | J162: 0 | K162: 0 | L162: 0 | M162: 0 | N162: 0 | O162: 0 | P162: 0
A163: Other | B163: 0 | C163: 0 | D163: 0 | E163: 0 | F163: 0 | G163: 0 | H163: 0 | I163: Other | J163: 1 | K163: 2.348079271e-05 | L163: 1 | M163: 0 | N163: 0 | O163: 0 | P163: 0
A164: Unknown | B164: 1 | C164: 0.001006036217 | D164: 0 | E164: 0 | F164: 0 | G164: 1 | H164: 0 | I164: Unknown | J164: 1 | K164: 2.348079271e-05 | L164: 0 | M164: 0 | N164: 0 | O164: 1 | P164: 0
A165: =CONCATENATE("Fatal and Serious Injury Crashes Only - ",A166, " ",Instructions!$B$11) -> Fatal and Serious Injury Crashes Only - Light Conditions Test Group 2 | I165: =CONCATENATE("Total Crashes - ",I166, " ",Instructions!$B$11) -> Total Crashes - Light Conditions Test Group 2
A166: Light Conditions | B166: Number of Crashes | C166: Percent of Crashes | D166: Year 5 Crashes | E166: Year 4 Crashes | F166: Year 3 Crashes | G166: Year 2 Crashes | H166: Year 1 Crashes | I166: Light Conditions | J166: Number of Crashes | K166: Percent of Crashes | L166: Year 5 Crashes | M166: Year 4 Crashes | N166: Year 3 Crashes | O166: Year 2 Crashes | P166: Year 1 Crashes
A167: Daylight | B167: =SUM(D167:H167) -> 184 | C167: =B167/SUM(B$167:B$173) -> 0.185110664 | D167: 38 | E167: 41 | F167: 35 | G167: 38 | H167: 32 | I167: Daylight | J167: =SUM(L167:P167) -> 6560 | K167: =J167/SUM(J$167:J$173) -> 0.1540340002 | L167: 1451 | M167: 1493 | N167: 1368 | O167: 1187 | P167: 1061
A168: Dawn/Dusk | B168: =SUM(D168:H168) -> 156 | C168: =B168/SUM(B$167:B$173) -> 0.1569416499 | D168: 53 | E168: 30 | F168: 17 | G168: 30 | H168: 26 | I168: Dawn/Dusk | J168: =SUM(L168:P168) -> 7353 | K168: =J168/SUM(J$167:J$173) -> 0.1726542688 | L168: 1724 | M168: 1703 | N168: 1502 | O168: 1256 | P168: 1168
A169: Dark - Lighted | B169: 151 | C169: 0.1519114688 | D169: 41 | E169: 25 | F169: 24 | G169: 28 | H169: 33 | I169: Dark - Lighted | J169: 5727 | K169: 0.1344744999 | L169: 1213 | M169: 1261 | N169: 1260 | O169: 1026 | P169: 967
A170: Dark - Not Lighted | B170: 102 | C170: 0.1026156942 | D170: 29 | E170: 22 | F170: 14 | G170: 18 | H170: 19 | I170: Dark - Not Lighted | J170: 3945 | K170: 0.09263172725 | L170: 875 | M170: 855 | N170: 785 | O170: 723 | P170: 707
A171: Dark - Unknown Lighting | B171: 134 | C171: 0.1348088531 | D171: 24 | E171: 33 | F171: 27 | G171: 25 | H171: 25 | I171: Dark - Unknown Lighting | J171: 6088 | K171: 0.142951066 | L171: 1312 | M171: 1394 | N171: 1274 | O171: 1136 | P171: 972
A172: Other | B172: 138 | C172: 0.138832998 | D172: 31 | E172: 24 | F172: 25 | G172: 34 | H172: 24 | I172: Other | J172: 6384 | K172: 0.1499013807 | L172: 1310 | M172: 1436 | N172: 1359 | O172: 1177 | P172: 1102
A173: Unknown | B173: 129 | C173: 0.129778672 | D173: 32 | E173: 30 | F173: 18 | G173: 26 | H173: 23 | I173: Unknown | J173: 6531 | K173: 0.1533530572 | L173: 1462 | M173: 1443 | N173: 1415 | O173: 1193 | P173: 1018
A174: =CONCATENATE("Fatal and Serious Injury Crashes Only - ",A175, " ",Instructions!$B$11) -> Fatal and Serious Injury Crashes Only - Road Surface Condition Test Group 2 | I174: =CONCATENATE("Total Crashes - ",I175, " ",Instructions!$B$11) -> Total Crashes - Road Surface Condition Test Group 2
A175: Road Surface Condition | B175: Number of Crashes | C175: Percent of Crashes | D175: Year 5 Crashes | E175: Year 4 Crashes | F175: Year 3 Crashes | G175: Year 2 Crashes | H175: Year 1 Crashes | I175: Road Surface Condition | J175: Number of Crashes | K175: Percent of Crashes | L175: Year 5 Crashes | M175: Year 4 Crashes | N175: Year 3 Crashes | O175: Year 2 Crashes | P175: Year 1 Crashes
A176: Dry | B176: =SUM(D176:H176) -> 204 | C176: =B176/SUM(B$176:B$186) -> 0.2052313883 | D176: 35 | E176: 38 | F176: 37 | G176: 43 | H176: 51 | I176: Dry | J176: =SUM(L176:P176) -> 5164 | K176: =J176/SUM(J$176:J$186) -> 0.1212548136 | L176: 951 | M176: 1139 | N176: 1053 | O176: 1103 | P176: 918
A177: Ice/Frost | B177: 651 | C177: =B177/SUM(B$176:B$186) -> 0.6549295775 | D177: 179 | E177: 134 | F177: 103 | G177: 121 | H177: 114 | I177: Ice/Frost | J177: 32859 | K177: =J177/SUM(J$176:J$186) -> 0.7715553677 | L177: 7317 | M177: 7420 | N177: 6912 | O177: 5804 | P177: 5406
A178: Mud, Dirt, Gravel | B178: 101 | C178: 0.1016096579 | D178: 23 | E178: 22 | F178: 16 | G178: 28 | H178: 12 | I178: Mud, Dirt, Gravel | J178: 3816 | K178: 0.08960270499 | L178: 872 | M178: 870 | N178: 832 | O178: 661 | P178: 581
A179: Oil | B179: 29 | C179: 0.0291750503 | D179: 7 | E179: 8 | F179: 4 | G179: 5 | H179: 5 | I179: Oil | J179: 629 | K179: 0.01476941862 | L179: 170 | M179: 132 | N179: 140 | O179: 110 | P179: 77
A180: Sand | B180: 6 | C180: 0.006036217304 | D180: 4 | E180: 2 | F180: 0 | G180: 0 | H180: 0 | I180: Sand | J180: 93 | K180: 0.002183713722 | L180: 28 | M180: 18 | N180: 22 | O180: 15 | P180: 10
A181: Sluch | B181: 0 | C181: 0 | D181: 0 | E181: 0 | F181: 0 | G181: 0 | H181: 0 | I181: Sluch | J181: 17 | K181: 0.0003991734761 | L181: 5 | M181: 4 | N181: 4 | O181: 3 | P181: 1
A182: Snow | B182: 1 | C182: 0.001006036217 | D182: 0 | E182: 0 | F182: 0 | G182: 1 | H182: 0 | I182: Snow | J182: 5 | K182: 0.0001174039636 | L182: 2 | M182: 0 | N182: 0 | O182: 1 | P182: 2
A183: Water (Standing, Moving) | B183: 0 | C183: 0 | D183: 0 | E183: 0 | F183: 0 | G183: 0 | H183: 0 | I183: Water (Standing, Moving) | J183: 1 | K183: 2.348079271e-05 | L183: 1 | M183: 0 | N183: 0 | O183: 0 | P183: 0
A184: Wet | B184: 1 | C184: 0.001006036217 | D184: 0 | E184: 1 | F184: 0 | G184: 0 | H184: 0 | I184: Wet | J184: 2 | K184: 4.696158542e-05 | L184: 0 | M184: 2 | N184: 0 | O184: 0 | P184: 0
A185: Other | B185: 0 | C185: 0 | D185: 0 | E185: 0 | F185: 0 | G185: 0 | H185: 0 | I185: Other | J185: 0 | K185: 0 | L185: 0 | M185: 0 | N185: 0 | O185: 0 | P185: 0
A186: Unknown | B186: 1 | C186: 0.001006036217 | D186: 0 | E186: 0 | F186: 0 | G186: 1 | H186: 0 | I186: Unknown | J186: 2 | K186: 4.696158542e-05 | L186: 1 | M186: 0 | N186: 0 | O186: 1 | P186: 0
A187: =CONCATENATE("Fatal and Serious Injury Crashes Only - ",A188, " ",Instructions!$B$11) -> Fatal and Serious Injury Crashes Only - Contributing Circumstances - Roadway Environment, Selection 1 Test Group 2 | I187: =CONCATENATE("Total Crashes - ",I188, " ",Instructions!$B$11) -> Total Crashes - Contributing Circumstances - Roadway Environment, Selection 1 Test Group 2
A188: Contributing Circumstances - Roadway Environment, Selection 1 | B188: Number of Crashes | C188: Percent of Crashes | D188: Year 5 Crashes | E188: Year 4 Crashes | F188: Year 3 Crashes | G188: Year 2 Crashes | H188: Year 1 Crashes | I188: Contributing Circumstances - Roadway Environment, Selection 1 | J188: Number of Crashes | K188: Percent of Crashes | L188: Year 5 Crashes | M188: Year 4 Crashes | N188: Year 3 Crashes | O188: Year 2 Crashes | P188: Year 1 Crashes
A189: None | B189: =SUM(D189:H189) -> 0 | C189: =B189/SUM(B$189:B$211) -> 0 | D189: 0 | E189: 0 | F189: 0 | G189: 0 | H189: 0 | I189: None | J189: =SUM(L189:P189) -> 9 | K189: =J189/SUM(J$189:J$211) -> 0.0002113271344 | L189: 1 | M189: 0 | N189: 4 | O189: 4 | P189: 0
A190: Animal(s) | B190: 103 | C190: =B190/SUM(B$189:B$211) -> 0.1036217304 | D190: 32 | E190: 12 | F190: 17 | G190: 27 | H190: 15 | I190: Animal(s) | J190: 2978 | K190: =J190/SUM(J$189:J$211) -> 0.0699258007 | L190: 657 | M190: 657 | N190: 616 | O190: 544 | P190: 504
A191: Debris | B191: 1 | C191: 0.001006036217 | D191: 0 | E191: 0 | F191: 0 | G191: 0 | H191: 1 | I191: Debris | J191: 30 | K191: 0.0007044237813 | L191: 10 | M191: 7 | N191: 6 | O191: 2 | P191: 5
A192: Glare | B192: 35 | C192: 0.03521126761 | D192: 6 | E192: 9 | F192: 5 | G192: 10 | H192: 5 | I192: Glare | J192: 406 | K192: 0.009533201841 | L192: 82 | M192: 81 | N192: 78 | O192: 96 | P192: 69
A193: Non-Highway Work | B193: 3 | C193: 0.003018108652 | D193: 1 | E193: 1 | F193: 1 | G193: 0 | H193: 0 | I193: Non-Highway Work | J193: 71 | K193: 0.001667136283 | L193: 12 | M193: 17 | N193: 13 | O193: 14 | P193: 15
A194: Obstructed Crosswalks | B194: 122 | C194: 0.1227364185 | D194: 36 | E194: 25 | F194: 20 | G194: 15 | H194: 26 | I194: Obstructed Crosswalks | J194: 4873 | K194: 0.1144219029 | L194: 1151 | M194: 1087 | N194: 1006 | O194: 848 | P194: 781
A195: Obstruction in Roadway | B195: 1 | C195: 0.001006036217 | D195: 1 | E195: 0 | F195: 0 | G195: 0 | H195: 0 | I195: Obstruction in Roadway | J195: 188 | K195: 0.00441438903 | L195: 34 | M195: 41 | N195: 41 | O195: 47 | P195: 25
A196: Prior Crash | B196: 27 | C196: 0.02716297787 | D196: 5 | E196: 5 | F196: 5 | G196: 7 | H196: 5 | I196: Prior Crash | J196: 625 | K196: 0.01467549544 | L196: 116 | M196: 121 | N196: 172 | O196: 130 | P196: 86
A197: Prior Non-Recurring Incident | B197: 2 | C197: 0.002012072435 | D197: 1 | E197: 0 | F197: 0 | G197: 1 | H197: 0 | I197: Prior Non-Recurring Incident | J197: 41 | K197: 0.0009627125012 | L197: 11 | M197: 6 | N197: 8 | O197: 7 | P197: 9
A198: Regular Congestion | B198: 6 | C198: 0.006036217304 | D198: 1 | E198: 1 | F198: 2 | G198: 1 | H198: 1 | I198: Regular Congestion | J198: 60 | K198: 0.001408847563 | L198: 9 | M198: 17 | N198: 12 | O198: 11 | P198: 11
A199: Related to a Bus Stop | B199: 5 | C199: 0.005030181087 | D199: 2 | E199: 1 | F199: 1 | G199: 1 | H199: 0 | I199: Related to a Bus Stop | J199: 495 | K199: 0.01162299239 | L199: 92 | M199: 117 | N199: 83 | O199: 120 | P199: 83
A200: Road Surface Condition (wet, icy, snow, slush, etc.) | B200: 0 | C200: 0 | D200: 0 | E200: 0 | F200: 0 | G200: 0 | H200: 0 | I200: Road Surface Condition (wet, icy, snow, slush, etc.) | J200: 29 | K200: 0.0006809429886 | L200: 6 | M200: 6 | N200: 6 | O200: 6 | P200: 5
... 420 more rows

Sheet Comparison Group 3
A1: Crash Data Summary Template
A2: Year 1 - Year 5 Comparison Group 3 Data | B2: Fatal and Serious Injury Crashes | I2: All Crashes
B3: =Instructions!B12 -> Test Group 3 | I3: =Instructions!B12 -> Test Group 3
B4: Year 1 - Year 5 | C4: % | D4: Year 5 | E4: Year 4 | F4: Year 3 | G4: Year 2 | H4: Year 1 | I4: Year 1 - Year 5 | J4: % | K4: Year 5 | L4: Year 4 | M4: Year 3 | N4: Year 2 | O4: Year 1
A5: Overall Numbers
A6: Total # of Collisions | B6: =SUM(D6:H6) -> 1289 | C6: N/A | D6: 319 | E6: 275 | F6: 223 | G6: 248 | H6: 224 | I6: =SUM(K6:O6) -> 55025 | J6: N/A | K6: 12129 | L6: 12413 | M6: 11550 | N6: 9816 | O6: 9117
A7: # of Fatal Collisions | B7: 184 | C7: =B7/B6 -> 0.142746315 | D7: 58 | E7: 41 | F7: 31 | G7: 31 | H7: 23 | I7: 184 | J7: =I7/I6 -> 0.003343934575 | K7: 58 | L7: 41 | M7: 31 | N7: 31 | O7: 23
A8: # of Serious Injury Collisions | B8: 1105 | C8: =B8/B6 -> 0.857253685 | D8: 261 | E8: 234 | F8: 192 | G8: 217 | H8: 201 | I8: 1105 | J8: =I8/I6 -> 0.02008178101 | K8: 261 | L8: 234 | M8: 192 | N8: 217 | O8: 201
A9: # of Alcohol-Related Collisions | B9: 249 | C9: =B9/B6 -> 0.1931730023 | D9: 53 | E9: 45 | F9: 46 | G9: 60 | H9: 45 | I9: 2939 | J9: =I9/I6 -> 0.05341208542 | K9: 614 | L9: 552 | M9: 576 | N9: 584 | O9: 613
A10: Total # of Fatalities | B10: 195 | C10: N/A | D10: 60 | E10: 45 | F10: 31 | G10: 32 | H10: 27 | I10: 195 | J10: N/A | K10: 60 | L10: 45 | M10: 31 | N10: 32 | O10: 27
A11: Total # of Serious Injuries | B11: 1989 | C11: N/A | D11: 486 | E11: 422 | F11: 343 | G11: 403 | H11: 335 | I11: 18776 | J11: N/A | K11: 4281 | L11: 3976 | M11: 3917 | N11: 3331 | O11: 3271
A12: Most Severe Injury Reported
A13: 5 (K) | B13: =SUM(D13:H13) -> 184 | C13: =B13/SUM(B$13:B$17) -> 0.142746315 | D13: 58 | E13: 41 | F13: 31 | G13: 31 | H13: 23 | I13: =SUM(K13:O13) -> 184 | J13: =I13/SUM(I$13:I$17) -> 0.003343934575 | K13: 58 | L13: 41 | M13: 31 | N13: 31 | O13: 23
A14: 4 (A) | B14: =SUM(D14:H14) -> 1105 | C14: =B14/SUM(B$13:B$17) -> 0.857253685 | D14: 261 | E14: 234 | F14: 192 | G14: 217 | H14: 201 | I14: =SUM(K14:O14) -> 1105 | J14: =I14/SUM(I$13:I$17) -> 0.02008178101 | K14: 261 | L14: 234 | M14: 192 | N14: 217 | O14: 201
A15: 3 (B) | B15: N/A | C15: N/A | D15: N/A | E15: N/A | F15: N/A | G15: N/A | H15: N/A | I15: =SUM(K15:O15) -> 3082 | J15: =I15/SUM(I$13:I$17) -> 0.05601090413 | K15: 667 | L15: 617 | M15: 634 | N15: 564 | O15: 600
A16: 2 (C) | B16: N/A | C16: N/A | D16: N/A | E16: N/A | F16: N/A | G16: N/A | H16: N/A | I16: =SUM(K16:O16) -> 9284 | J16: 0.1687233076 | K16: 2107 | L16: 2037 | M16: 1978 | N16: 1627 | O16: 1535
A17: 1 (O) | B17: N/A | C17: N/A | D17: N/A | E17: N/A | F17: N/A | G17: N/A | H17: N/A | I17: =SUM(K17:O17) -> 41370 | J17: 0.7518400727 | K17: 9036 | L17: 9484 | M17: 8715 | N17: 7377 | O17: 6758
A18: Property
A19: Public | B19: =SUM(D19:H19) -> 1105 | C19: =B19/SUM(B$19:B$20) -> 0.857253685 | D19: 261 | E19: 234 | F19: 192 | G19: 217 | H19: 201 | I19: =SUM(K19:O19) -> 52559.6 | J19: =I19/SUM(I$19:I$20) -> 0.9551949114 | K19: =K6*0.95 -> 11522.55 | L19: =L6*0.94 -> 11668.22 | M19: =M6*0.96 -> 11088 | N19: =N6*0.98 -> 9619.68 | O19: =O6*0.95 -> 8661.15
A20: Private | B20: 184 | C20: =B20/SUM(B$19:B$20) -> 0.142746315 | D20: 58 | E20: 41 | F20: 31 | G20: 31 | H20: 23 | I20: 2465.4 | J20: =I20/SUM(I$19:I$20) -> 0.0448050886 | K20: =K6-K19 -> 606.45 | L20: =L6-L19 -> 744.78 | M20: 462 | N20: 196.32 | O20: 455.85
A21: Location
A22: Trafficway, On Road | B22: =SUM(D22:H22) -> 373 | C22: =B22/SUM(B$22:B$24) -> 0.2893716059 | D22: 96 | E22: 74 | F22: 54 | G22: 86 | H22: 63 | I22: =SUM(K22:O22) -> 18956 | J22: =I22/SUM(I$22:I$24) -> 0.3444979555 | K22: 4212 | L22: 4424 | M22: 3943 | N22: 3255 | O22: 3122
A23: Trafficway, Not on Road | B23: =SUM(D23:H23) -> 294.02 | C23: =B23/SUM(B$22:B$24) -> 0.2280993018 | D23: 82.94 | E23: 74.25 | F23: 64.67 | G23: 20.64 | H23: 51.52 | I23: =SUM(K23:O23) -> 10475 | J23: =I23/SUM(I$22:I$24) -> 0.1903680145 | K23: 778 | L23: 2828 | M23: 2630 | N23: 2117 | O23: 2122
A24: Non-Trafficway | B24: =SUM(D24:H24) -> 621.98 | C24: =B24/SUM(B$22:B$24) -> 0.4825290923 | D24: 140.06 | E24: 126.75 | F24: 104.33 | G24: 141.36 | H24: 109.48 | I24: =SUM(K24:O24) -> 25594 | J24: =I24/SUM(I$22:I$24) -> 0.46513403 | K24: =K6-K22-K23 -> 7139 | L24: =L6-L22-L23 -> 5161 | M24: 4977 | N24: 4444 | O24: 3873
A25: By Weekday
A26: Sunday | B26: =SUM(D26:H26) -> 144 | C26: =B26/SUM(B$26:B$32) -> 0.1117145074 | D26: 38 | E26: 34 | F26: 22 | G26: 27 | H26: 23 | I26: =SUM(K26:O26) -> 5109 | J26: =I26/SUM(I$26:I$32) -> 0.09284870513 | K26: 1162 | L26: 1121 | M26: 1011 | N26: 909 | O26: 906
A27: Monday | B27: 163 | C27: =B27/SUM(B$26:B$32) -> 0.126454616 | D27: 32 | E27: 40 | F27: 31 | G27: 30 | H27: 30 | I27: 7988 | J27: =I27/SUM(I$26:I$32) -> 0.1451703771 | K27: 1702 | L27: 1829 | M27: 1700 | N27: 1471 | O27: 1286
A28: Tuesday | B28: 173 | C28: 0.1342125679 | D28: 38 | E28: 31 | F28: 35 | G28: 38 | H28: 31 | I28: 8258 | J28: 0.1500772376 | K28: 1714 | L28: 1859 | M28: 1738 | N28: 1538 | O28: 1409
A29: Wednesday | B29: 170 | C29: 0.1318851823 | D29: 42 | E29: 41 | F29: 27 | G29: 32 | H29: 28 | I29: 8534 | J29: 0.1550931395 | K29: 1899 | L29: 1884 | M29: 1869 | N29: 1545 | O29: 1337
A30: Thursday | B30: 220 | C30: 0.1706749418 | D30: 52 | E30: 49 | F30: 37 | G30: 47 | H30: 35 | I30: 8496 | J30: 0.1544025443 | K30: 1880 | L30: 1961 | M30: 1743 | N30: 1531 | O30: 1381
A31: Friday | B31: 210 | C31: 0.1629169899 | D31: 65 | E31: 41 | F31: 33 | G31: 35 | H31: 36 | I31: 9389 | J31: 0.1706315311 | K31: 2211 | L31: 2144 | M31: 1915 | N31: 1550 | O31: 1569
A32: Saturday | B32: 209 | C32: 0.1621411947 | D32: 52 | E32: 39 | F32: 38 | G32: 39 | H32: 41 | I32: 7251 | J32: 0.1317764652 | K32: 1561 | L32: 1615 | M32: 1574 | N32: 1272 | O32: 1229
A33: Crash Hour
A34: 12:00 AM - 12:59 AM | B34: =SUM(D34:H34) -> 37 | C34: =B34/SUM(B$34:B$58) -> 0.02870442203 | D34: 7 | E34: 5 | F34: 9 | G34: 9 | H34: 7 | I34: =SUM(K34:O34) -> 852 | J34: =I34/SUM(I$34:I$58) -> 0.01548387097 | K34: 192 | L34: 191 | M34: 158 | N34: 169 | O34: 142
A35: 1:00 AM - 1:59 AM | B35: 39 | C35: =B35/SUM(B$34:B$58) -> 0.03025601241 | D35: 8 | E35: 13 | F35: 6 | G35: 7 | H35: 5 | I35: 721 | J35: =I35/SUM(I$34:I$58) -> 0.01310313494 | K35: 131 | L35: 172 | M35: 147 | N35: 138 | O35: 133
A36: 2:00 AM - 2:59 AM | B36: 30 | C36: 0.0232738557 | D36: 10 | E36: 3 | F36: 4 | G36: 8 | H36: 5 | I36: 695 | J36: 0.01263062244 | K36: 141 | L36: 141 | M36: 130 | N36: 138 | O36: 145
A37: 3:00 AM - 3:59 AM | B37: 15 | C37: 0.01163692785 | D37: 4 | E37: 3 | F37: 3 | G37: 1 | H37: 4 | I37: 489 | J37: 0.008886869605 | K37: 106 | L37: 110 | M37: 96 | N37: 90 | O37: 87
A38: 4:00 AM - 4:59 AM | B38: 17 | C38: 0.01318851823 | D38: 5 | E38: 3 | F38: 5 | G38: 1 | H38: 3 | I38: 440 | J38: 0.007996365289 | K38: 80 | L38: 101 | M38: 103 | N38: 71 | O38: 85
A39: 5:00 AM - 5:59 AM | B39: 24 | C39: 0.01861908456 | D39: 8 | E39: 4 | F39: 2 | G39: 6 | H39: 4 | I39: 870 | J39: 0.015810995 | K39: 204 | L39: 205 | M39: 191 | N39: 133 | O39: 137
A40: 6:00 AM - 6:59 AM | B40: 52 | C40: 0.04034134988 | D40: 17 | E40: 11 | F40: 12 | G40: 7 | H40: 5 | I40: 2346 | J40: 0.04263516583 | K40: 575 | L40: 513 | M40: 507 | N40: 409 | O40: 342
A41: 7:00 AM - 7:59 AM | B41: 64 | C41: 0.04965089216 | D41: 15 | E41: 15 | F41: 15 | G41: 11 | H41: 8 | I41: 3883 | J41: 0.07056792367 | K41: 888 | L41: 833 | M41: 818 | N41: 717 | O41: 627
A42: 8:00 AM - 8:59 AM | B42: 50 | C42: 0.0387897595 | D42: 12 | E42: 13 | F42: 6 | G42: 13 | H42: 6 | I42: 3068 | J42: 0.05575647433 | K42: 696 | L42: 711 | M42: 650 | N42: 536 | O42: 475
A43: 9:00 AM - 9:59 AM | B43: 36 | C43: 0.02792862684 | D43: 8 | E43: 8 | F43: 2 | G43: 8 | H43: 10 | I43: 2108 | J43: 0.03830985915 | K43: 449 | L43: 511 | M43: 449 | N43: 366 | O43: 333
A44: 10:00 AM - 10:59 AM | B44: 39 | C44: 0.03025601241 | D44: 15 | E44: 5 | F44: 5 | G44: 5 | H44: 9 | I44: 2121 | J44: 0.0385461154 | K44: 458 | L44: 491 | M44: 441 | N44: 393 | O44: 338
A45: 11:00 AM - 11:59 AM | B45: 55 | C45: 0.04266873545 | D45: 11 | E45: 14 | F45: 11 | G45: 10 | H45: 9 | I45: 2434 | J45: 0.04423443889 | K45: 476 | L45: 553 | M45: 516 | N45: 477 | O45: 412
A46: 12:00 PM - 12:59 PM | B46: 65 | C46: 0.05042668735 | D46: 25 | E46: 11 | F46: 11 | G46: 4 | H46: 14 | I46: 2926 | J46: 0.05317582917 | K46: 670 | L46: 647 | M46: 614 | N46: 500 | O46: 495
A47: 1:00 PM - 1:59 PM | B47: 66 | C47: 0.05120248254 | D47: 12 | E47: 13 | F47: 15 | G47: 13 | H47: 13 | I47: 3077 | J47: 0.05592003635 | K47: 656 | L47: 705 | M47: 653 | N47: 536 | O47: 527
A48: 2:00 PM - 2:59 PM | B48: 60 | C48: 0.0465477114 | D48: 15 | E48: 15 | F48: 7 | G48: 8 | H48: 15 | I48: 3317 | J48: 0.06028169014 | K48: 753 | L48: 748 | M48: 706 | N48: 543 | O48: 567
A49: 3:00 PM - 3:59 PM | B49: 80 | C49: 0.06206361521 | D49: 22 | E49: 14 | F49: 13 | G49: 17 | H49: 14 | I49: 4266 | J49: 0.07752839618 | K49: 968 | L49: 952 | M49: 869 | N49: 758 | O49: 719
A50: 4:00 PM - 4:59 PM | B50: 92 | C50: 0.07137315749 | D50: 19 | E50: 21 | F50: 16 | G50: 18 | H50: 18 | I50: 4597 | J50: 0.08354384371 | K50: 989 | L50: 1098 | M50: 992 | N50: 813 | O50: 705
A51: 5:00 PM - 5:59 PM | B51: 81 | C51: 0.0628394104 | D51: 18 | E51: 19 | F51: 20 | G51: 14 | H51: 10 | I51: 5380 | J51: 0.09777373921 | K51: 1143 | L51: 1209 | M51: 1144 | N51: 930 | O51: 954
A52: 6:00 PM - 6:59 PM | B52: 91 | C52: 0.0705973623 | D52: 22 | E52: 20 | F52: 13 | G52: 19 | H52: 17 | I52: 3600 | J52: 0.06542480691 | K52: 822 | L52: 760 | M52: 741 | N52: 678 | O52: 599
A53: 7:00 PM - 7:59 PM | B53: 70 | C53: 0.0543056633 | D53: 16 | E53: 12 | F53: 13 | G53: 16 | H53: 13 | I53: 2099 | J53: 0.03814629714 | K53: 489 | L53: 474 | M53: 448 | N53: 378 | O53: 310
A54: 8:00 PM - 8:59 PM | B54: 83 | C54: 0.06439100078 | D54: 21 | E54: 17 | F54: 13 | G54: 22 | H54: 10 | I54: 1818 | J54: 0.03303952749 | K54: 366 | L54: 426 | M54: 381 | N54: 345 | O54: 300
A55: 9:00 PM - 9:59 PM | B55: 58 | C55: 0.04499612102 | D55: 11 | E55: 15 | F55: 9 | G55: 13 | H55: 10 | I55: 1614 | J55: 0.02933212176 | K55: 350 | L55: 355 | M55: 326 | N55: 292 | O55: 291
A56: 10:00 PM - 10:59 PM | B56: 44 | C56: 0.03413498836 | D56: 10 | E56: 14 | F56: 6 | G56: 8 | H56: 6 | I56: 1286 | J56: 0.02337119491 | K56: 291 | L56: 298 | M56: 267 | N56: 200 | O56: 230
A57: 11:00 PM - 11:59 PM | B57: 40 | C57: 0.0310318076 | D57: 8 | E57: 7 | F57: 7 | G57: 9 | H57: 9 | I57: 992 | J57: 0.01802816901 | K57: 235 | L57: 205 | M57: 197 | N57: 196 | O57: 159
A58: Unknown | B58: 1 | C58: 0.0007757951901 | D58: 0 | E58: 0 | F58: 0 | G58: 1 | H58: 0 | I58: 26 | J58: 0.0004725124943 | K58: 1 | L58: 4 | M58: 6 | N58: 10 | O58: 5
A59: Crash Month
A60: January | B60: =SUM(D60:H60) -> 83 | C60: =B60/SUM(B$60:B$71) -> 0.06439100078 | D60: 28 | E60: 14 | F60: 12 | G60: 15 | H60: 14 | I60: =SUM(K60:O60) -> 4501 | J60: =I60/SUM(I$60:I$71) -> 0.08179918219 | K60: 1021 | L60: 1019 | M60: 964 | N60: 807 | O60: 690
A61: February | B61: 78 | C61: =B61/SUM(B$60:B$71) -> 0.06051202483 | D61: 20 | E61: 18 | F61: 13 | G61: 10 | H61: 17 | I61: 4368 | J61: =I61/SUM(I$60:I$71) -> 0.07938209905 | K61: 930 | L61: 1035 | M61: 872 | N61: 745 | O61: 786
A62: March | B62: 118 | C62: 0.09154383243 | D62: 38 | E62: 18 | F62: 17 | G62: 23 | H62: 22 | I62: 4123 | J62: 0.07492957746 | K62: 985 | L62: 843 | M62: 837 | N62: 795 | O62: 663
A63: April | B63: 99 | C63: 0.07680372382 | D63: 25 | E63: 20 | F63: 16 | G63: 24 | H63: 14 | I63: 4345 | J63: 0.07896410722 | K63: 928 | L63: 966 | M63: 841 | N63: 861 | O63: 749
A64: May | B64: 124 | C64: 0.09619860357 | D64: 31 | E64: 28 | F64: 20 | G64: 25 | H64: 20 | I64: 4467 | J64: 0.08118128124 | K64: 997 | L64: 1011 | M64: 934 | N64: 763 | O64: 762
A65: June | B65: 112 | C65: 0.08688906129 | D65: 25 | E65: 27 | F65: 22 | G65: 19 | H65: 19 | I65: 4385 | J65: 0.07969104952 | K65: 989 | L65: 994 | M65: 942 | N65: 706 | O65: 754
A66: July | B66: 109 | C66: 0.08456167572 | D66: 22 | E66: 29 | F66: 19 | G66: 16 | H66: 23 | I66: 4421 | J66: 0.08034529759 | K66: 980 | L66: 1038 | M66: 906 | N66: 780 | O66: 717
A67: August | B67: 136 | C67: 0.1055081458 | D67: 30 | E67: 26 | F67: 17 | G67: 37 | H67: 26 | I67: 4658 | J67: 0.08465243071 | K67: 1007 | L67: 997 | M67: 994 | N67: 881 | O67: 779
A68: September | B68: 119 | C68: 0.09231962762 | D68: 28 | E68: 27 | F68: 28 | G68: 17 | H68: 19 | I68: 4739 | J68: 0.08612448887 | K68: 1020 | L68: 1081 | M68: 1038 | N68: 872 | O68: 728
A69: October | B69: 115 | C69: 0.08921644686 | D69: 22 | E69: 29 | F69: 20 | G69: 25 | H69: 19 | I69: 5063 | J69: 0.09201272149 | K69: 1075 | L69: 1176 | M69: 1041 | N69: 894 | O69: 877
A70: November | B70: 113 | C70: 0.08766485648 | D70: 25 | E70: 21 | F70: 21 | G70: 23 | H70: 23 | I70: 4862 | J70: 0.08835983644 | K70: 1050 | L70: 1154 | M70: 1083 | N70: 835 | O70: 740
A71: December | B71: 83 | C71: 0.06439100078 | D71: 25 | E71: 18 | F71: 18 | G71: 14 | H71: 8 | I71: 5093 | J71: 0.09255792821 | K71: 1147 | L71: 1099 | M71: 1098 | N71: 877 | O71: 872
A72: Crash Jurisdiction
A73: A | B73: =SUM(D73:H73) -> 295 | C73: =B73/SUM(B$73:B$77) -> 0.2288595811 | D73: 71 | E73: 70 | F73: 63 | G73: 49 | H73: 42 | I73: =SUM(K73:O73) -> 18954 | J73: =I73/SUM(I$73:I$77) -> 0.3444616084 | K73: 3925 | L73: 4298 | M73: 3982 | N73: 3593 | O73: 3156
A74: B | B74: =SUM(D74:H74) -> 172 | C74: =B74/SUM(B$73:B$77) -> 0.1334367727 | D74: 34 | E74: 28 | F74: 29 | G74: 43 | H74: 38 | I74: =SUM(K74:O74) -> 5467 | J74: =I74/SUM(I$73:I$77) -> 0.09935483871 | K74: 1170 | L74: 1148 | M74: 1168 | N74: 1049 | O74: 932
A75: C | B75: =SUM(D75:H75) -> 300 | C75: 0.232738557 | D75: 64 | E75: 60 | F75: 49 | G75: 72 | H75: 55 | I75: =SUM(K75:O75) -> 12437 | J75: 0.2260245343 | K75: 2782 | L75: 2828 | M75: 2587 | N75: 2118 | O75: 2122
A76: D | B76: =SUM(D76:H76) -> 229 | C76: 0.1776570985 | D76: 76 | E76: 56 | F76: 28 | G76: 32 | H76: 37 | I76: =SUM(K76:O76) -> 7160 | J76: 0.1301226715 | K76: 1749 | L76: 1771 | M76: 1503 | N76: 1103 | O76: 1034
A77: E | B77: =SUM(D77:H77) -> 293 | C77: 0.2273079907 | D77: 74 | E77: 61 | F77: 54 | G77: 52 | H77: 52 | I77: =SUM(K77:O77) -> 11007 | J77: 0.2000363471 | K77: 2503 | L77: 2368 | M77: 2310 | N77: 1953 | O77: 1873
A78: First Harmful Event
A79: Cargo/Equipment Loss or Shift | B79: =SUM(D79:H79) -> 4 | C79: =B79/SUM(B$79:B$120) -> 0.00310318076 | D79: 0 | E79: 2 | F79: 0 | G79: 0 | H79: 2 | I79: =SUM(K79:O79) -> 60 | J79: =I79/SUM(I$79:I$120) -> 0.001090413448 | K79: 0 | L79: 56 | M79: 0 | N79: 1 | O79: 3
A80: Fell/Jumped from Motor Vehicle | B80: 2 | C80: =B80/SUM(B$79:B$120) -> 0.00155159038 | D80: 1 | E80: 0 | F80: 0 | G80: 1 | H80: 0 | I80: 47 | J80: =I80/SUM(I$79:I$120) -> 0.0008541572013 | K80: 5 | L80: 4 | M80: 11 | N80: 14 | O80: 13
A81: Fire/Explosion | B81: 0 | C81: 0 | D81: 0 | E81: 0 | F81: 0 | G81: 0 | H81: 0 | I81: 0 | J81: 0 | K81: 0 | L81: 0 | M81: 0 | N81: 0 | O81: 0
A82: Immersion, Full or Partial | B82: 0 | C82: 0 | D82: 0 | E82: 0 | F82: 0 | G82: 0 | H82: 0 | I82: 1 | J82: 1.817355747e-05 | K82: 0 | L82: 0 | M82: 1 | N82: 0 | O82: 0
A83: Jackknife | B83: 0 | C83: 0 | D83: 0 | E83: 0 | F83: 0 | G83: 0 | H83: 0 | I83: 1 | J83: 1.817355747e-05 | K83: 0 | L83: 0 | M83: 1 | N83: 0 | O83: 0
A84: Other Non-Collision | B84: 3 | C84: 0.00232738557 | D84: 1 | E84: 0 | F84: 0 | G84: 0 | H84: 2 | I84: 304 | J84: 0.005524761472 | K84: 72 | L84: 65 | M84: 45 | N84: 71 | O84: 51
A85: Overturn/Rollover | B85: 0 | C85: 0 | D85: 0 | E85: 0 | F85: 0 | G85: 0 | H85: 0 | I85: 1 | J85: 1.817355747e-05 | K85: 1 | L85: 0 | M85: 0 | N85: 0 | O85: 0
A86: Thrown or Falling Object | B86: 0 | C86: 0 | D86: 0 | E86: 0 | F86: 0 | G86: 0 | H86: 0 | I86: 0 | J86: 0 | K86: 0 | L86: 0 | M86: 0 | N86: 0 | O86: 0
A87: Collision with Animal | B87: 0 | C87: 0 | D87: 0 | E87: 0 | F87: 0 | G87: 0 | H87: 0 | I87: 0 | J87: 0 | K87: 0 | L87: 0 | M87: 0 | N87: 0 | O87: 0
A88: Collision with Construction Equipment | B88: 298 | C88: 0.2311869666 | D88: 65 | E88: 59 | F88: 49 | G88: 71 | H88: 54 | I88: 6935 | J88: 0.1260336211 | K88: 1723 | L88: 1677 | M88: 1461 | N88: 1064 | O88: 1010
A89: Collision with Farm Equipment | B89: 0 | C89: 0 | D89: 0 | E89: 0 | F89: 0 | G89: 0 | H89: 0 | I89: 119 | J89: 0.002162653339 | K89: 25 | L89: 22 | M89: 15 | N89: 36 | O89: 21
A90: Collision with Motor Vehicle in Transport | B90: 0 | C90: 0 | D90: 0 | E90: 0 | F90: 0 | G90: 0 | H90: 0 | I90: 0 | J90: 0 | K90: 0 | L90: 0 | M90: 0 | N90: 0 | O90: 0
A91: Collision with Other Non-Fixed Object | B91: 0 | C91: 0 | D91: 0 | E91: 0 | F91: 0 | G91: 0 | H91: 0 | I91: 1 | J91: 1.817355747e-05 | K91: 0 | L91: 0 | M91: 0 | N91: 1 | O91: 0
A92: Collision with Other Non-motorist | B92: 0 | C92: 0 | D92: 0 | E92: 0 | F92: 0 | G92: 0 | H92: 0 | I92: 0 | J92: 0 | K92: 0 | L92: 0 | M92: 0 | N92: 0 | O92: 0
A93: Collision with Parked Motor Vehicle | B93: 0 | C93: 0 | D93: 0 | E93: 0 | F93: 0 | G93: 0 | H93: 0 | I93: 2 | J93: 3.634711495e-05 | K93: 0 | L93: 0 | M93: 1 | N93: 0 | O93: 1
A94: Collision with Pedalcycle | B94: 0 | C94: 0 | D94: 0 | E94: 0 | F94: 0 | G94: 0 | H94: 0 | I94: 1 | J94: 1.817355747e-05 | K94: 0 | L94: 0 | M94: 0 | N94: 0 | O94: 1
A95: Collision with Pedestrian | B95: 63 | C95: 0.04887509697 | D95: 12 | E95: 18 | F95: 9 | G95: 11 | H95: 13 | I95: 3803 | J95: 0.06911403907 | K95: 777 | L95: 808 | M95: 823 | N95: 735 | O95: 660
A96: Collision with Railway Vehicle | B96: 0 | C96: 0 | D96: 0 | E96: 0 | F96: 0 | G96: 0 | H96: 0 | I96: 1 | J96: 1.817355747e-05 | K96: 0 | L96: 0 | M96: 0 | N96: 1 | O96: 0
A97: Strikes Object ar Rest from MV in Transport | B97: 1 | C97: 0.0007757951901 | D97: 0 | E97: 0 | F97: 0 | G97: 1 | H97: 0 | I97: 1 | J97: 1.817355747e-05 | K97: 0 | L97: 0 | M97: 0 | N97: 1 | O97: 0
A98: Struck by Falling, Shifting Cargo, or Anything Set in Motion by Motor Vehicle | B98: 0 | C98: 0 | D98: 0 | E98: 0 | F98: 0 | G98: 0 | H98: 0 | I98: 2 | J98: 3.634711495e-05 | K98: 0 | L98: 0 | M98: 0 | N98: 0 | O98: 2
A99: Collision with Bridge Overhead Structure | B99: 165 | C99: 0.1280062064 | D99: 32 | E99: 27 | F99: 29 | G99: 41 | H99: 36 | I99: 5819 | J99: 0.1057519309 | K99: 1191 | L99: 1367 | M99: 1177 | N99: 1098 | O99: 986
A100: Collision with Bridge Pier or Support | B100: 0 | C100: 0 | D100: 0 | E100: 0 | F100: 0 | G100: 0 | H100: 0 | I100: 0 | J100: 0 | K100: 0 | L100: 0 | M100: 0 | N100: 0 | O100: 0
A101: Collision with Bridge Rail | B101: 0 | C101: 0 | D101: 0 | E101: 0 | F101: 0 | G101: 0 | H101: 0 | I101: 0 | J101: 0 | K101: 0 | L101: 0 | M101: 0 | N101: 0 | O101: 0
A102: Collision with Cable Barrier | B102: 0 | C102: 0 | D102: 0 | E102: 0 | F102: 0 | G102: 0 | H102: 0 | I102: 1 | J102: 1.817355747e-05 | K102: 0 | L102: 0 | M102: 0 | N102: 0 | O102: 1
A103: Collision with Concrete Traffic Barrier | B103: 0 | C103: 0 | D103: 0 | E103: 0 | F103: 0 | G103: 0 | H103: 0 | I103: 0 | J103: 0 | K103: 0 | L103: 0 | M103: 0 | N103: 0 | O103: 0
A104: Collision with Culvert | B104: 315 | C104: 0.2443754849 | D104: 79 | E104: 71 | F104: 65 | G104: 53 | H104: 47 | I104: 13121 | J104: 0.2384552476 | K104: 2982 | L104: 2995 | M104: 2764 | N104: 2206 | O104: 2174
A105: Collision with Curb | B105: 0 | C105: 0 | D105: 0 | E105: 0 | F105: 0 | G105: 0 | H105: 0 | I105: 7 | J105: 0.0001272149023 | K105: 0 | L105: 1 | M105: 0 | N105: 0 | O105: 6
A106: Collision with Ditch | B106: 0 | C106: 0 | D106: 0 | E106: 0 | F106: 0 | G106: 0 | H106: 0 | I106: 2 | J106: 3.634711495e-05 | K106: 1 | L106: 1 | M106: 0 | N106: 0 | O106: 0
A107: Collision with Embankment | B107: 0 | C107: 0 | D107: 0 | E107: 0 | F107: 0 | G107: 0 | H107: 0 | I107: 1 | J107: 1.817355747e-05 | K107: 0 | L107: 0 | M107: 0 | N107: 0 | O107: 1
A108: Collision with Fence | B108: 3 | C108: 0.00232738557 | D108: 1 | E108: 1 | F108: 0 | G108: 1 | H108: 0 | I108: 143 | J108: 0.002598818719 | K108: 34 | L108: 54 | M108: 21 | N108: 14 | O108: 20
A109: Collision with Guardrail End Terminal | B109: 0 | C109: 0 | D109: 0 | E109: 0 | F109: 0 | G109: 0 | H109: 0 | I109: 4 | J109: 7.26942299e-05 | K109: 0 | L109: 0 | M109: 0 | N109: 1 | O109: 3
A110: Collision with Guardrail Face | B110: 0 | C110: 0 | D110: 0 | E110: 0 | F110: 0 | G110: 0 | H110: 0 | I110: 0 | J110: 0 | K110: 0 | L110: 0 | M110: 0 | N110: 0 | O110: 0
A111: Collision with Impact Attenuator/Crash Cushion | B111: 0 | C111: 0 | D111: 0 | E111: 0 | F111: 0 | G111: 0 | H111: 0 | I111: 0 | J111: 0 | K111: 0 | L111: 0 | M111: 0 | N111: 0 | O111: 0
A112: Collision with Mailbox | B112: 0 | C112: 0 | D112: 0 | E112: 0 | F112: 0 | G112: 0 | H112: 0 | I112: 0 | J112: 0 | K112: 0 | L112: 0 | M112: 0 | N112: 0 | O112: 0
A113: Collision with Other Fixed Object | B113: 0 | C113: 0 | D113: 0 | E113: 0 | F113: 0 | G113: 0 | H113: 0 | I113: 1 | J113: 1.817355747e-05 | K113: 1 | L113: 0 | M113: 0 | N113: 0 | O113: 0
A114: Collision with Other Post, Pole, or Support | B114: 0 | C114: 0 | D114: 0 | E114: 0 | F114: 0 | G114: 0 | H114: 0 | I114: 0 | J114: 0 | K114: 0 | L114: 0 | M114: 0 | N114: 0 | O114: 0
A115: Collision with Other Traffic Barrier | B115: 0 | C115: 0 | D115: 0 | E115: 0 | F115: 0 | G115: 0 | H115: 0 | I115: 1 | J115: 1.817355747e-05 | K115: 0 | L115: 0 | M115: 0 | N115: 0 | O115: 1
A116: Collision with Traffic Sign Support | B116: 0 | C116: 0 | D116: 0 | E116: 0 | F116: 0 | G116: 0 | H116: 0 | I116: 0 | J116: 0 | K116: 0 | L116: 0 | M116: 0 | N116: 0 | O116: 0
A117: Collision with Traffic Signal Support | B117: 15 | C117: 0.01163692785 | D117: 5 | E117: 1 | F117: 1 | G117: 5 | H117: 3 | I117: 874 | J117: 0.01588368923 | K117: 179 | L117: 180 | M117: 168 | N117: 204 | O117: 143
A118: Collision with Tree | B118: 0 | C118: 0 | D118: 0 | E118: 0 | F118: 0 | G118: 0 | H118: 0 | I118: 1 | J118: 1.817355747e-05 | K118: 0 | L118: 1 | M118: 0 | N118: 0 | O118: 0
A119: Collision with Utility Pole or Light Support | B119: 0 | C119: 0 | D119: 0 | E119: 0 | F119: 0 | G119: 0 | H119: 0 | I119: 2 | J119: 3.634711495e-05 | K119: 0 | L119: 0 | M119: 0 | N119: 0 | O119: 2
A120: Unknown | B120: 420 | C120: 0.3258339798 | D120: 123 | E120: 96 | F120: 70 | G120: 64 | H120: 67 | I120: 23769 | J120: 0.4319672876 | K120: 5138 | L120: 5182 | M120: 5062 | N120: 4369 | O120: 4018
A121: Location of First Harmful Event
A122: Gore | B122: =SUM(D122:H122) -> 313 | C122: =B122/SUM(B$122:B$132) -> 0.2428238945 | D122: 62 | E122: 62 | F122: 58 | G122: 61 | H122: 70 | I122: =SUM(K122:O122) -> 7988 | J122: =I122/SUM(I$122:I$132) -> 0.1451703771 | K122: 1469 | L122: 1791 | M122: 1707 | N122: 1610 | O122: 1411
A123: In Parking Lane or Zone | B123: =SUM(D123:H123) -> 798 | C123: =B123/SUM(B$122:B$132) -> 0.6190845617 | D123: 213 | E123: 171 | F123: 134 | G123: 147 | H123: 133 | I123: =SUM(K123:O123) -> 41341 | J123: =I123/SUM(I$122:I$132) -> 0.7513130395 | K123: 9316 | L123: 9343 | M123: 8620 | N123: 7212 | O123: 6850
A124: Median | B124: =SUM(D124:H124) -> 127 | C124: 0.09852598914 | D124: 31 | E124: 27 | F124: 24 | G124: 29 | H124: 16 | I124: =SUM(K124:O124) -> 4765 | J124: 0.08659700136 | K124: 1093 | L124: 1089 | M124: 1017 | N124: 830 | O124: 736
A125: Off-Roadway, Location Unknown | B125: =SUM(D125:H125) -> 36 | C125: 0.02792862684 | D125: 8 | E125: 10 | F125: 6 | G125: 7 | H125: 5 | I125: =SUM(K125:O125) -> 776 | J125: 0.0141026806 | K125: 204 | L125: 160 | M125: 173 | N125: 135 | O125: 104
A126: On Roadway | B126: 11 | C126: 0.008533747091 | D126: 5 | E126: 4 | F126: 0 | G126: 2 | H126: 0 | I126: 121 | J126: 0.002199000454 | K126: 36 | L126: 23 | M126: 27 | N126: 23 | O126: 12
A127: On Shoulder, Left Side | B127: 1 | C127: 0.0007757951901 | D127: 0 | E127: 0 | F127: 1 | G127: 0 | H127: 0 | I127: 21 | J127: 0.000381644707 | K127: 5 | L127: 5 | M127: 5 | N127: 4 | O127: 2
A128: On Shoulder, Right Side | B128: 1 | C128: 0.0007757951901 | D128: 0 | E128: 0 | F128: 0 | G128: 1 | H128: 0 | I128: 6 | J128: 0.0001090413448 | K128: 2 | L128: 0 | M128: 1 | N128: 1 | O128: 2
A129: Outside Road/Right-of-Way | B129: 0 | C129: 0 | D129: 0 | E129: 0 | F129: 0 | G129: 0 | H129: 0 | I129: 1 | J129: 1.817355747e-05 | K129: 1 | L129: 0 | M129: 0 | N129: 0 | O129: 0
A130: Roadside | B130: 1 | C130: 0.0007757951901 | D130: 0 | E130: 1 | F130: 0 | G130: 0 | H130: 0 | I130: 3 | J130: 5.452067242e-05 | K130: 1 | L130: 2 | M130: 0 | N130: 0 | O130: 0
A131: Separator/Traffic Island | B131: 0 | C131: 0 | D131: 0 | E131: 0 | F131: 0 | G131: 0 | H131: 0 | I131: 1 | J131: 1.817355747e-05 | K131: 1 | L131: 0 | M131: 0 | N131: 0 | O131: 0
A132: Unknown | B132: =SUM(D132:H132) -> 1 | C132: 0.0007757951901 | D132: 0 | E132: 0 | F132: 0 | G132: 1 | H132: 0 | I132: =SUM(K132:O132) -> 2 | J132: 3.634711495e-05 | K132: 1 | L132: 0 | M132: 0 | N132: 1 | O132: 0
A133: Manner of Crash
A134: Not a Collision Between Two Motor Vehicles | B134: =SUM(D134:H134) -> 83 | C134: =B134/SUM(B$134:B$143) -> 0.06439100078 | D134: 20 | E134: 16 | F134: 14 | G134: 13 | H134: 20 | I134: =SUM(K134:O134) -> 3376 | J134: =I134/SUM(I$134:I$143) -> 0.06135393003 | K134: 708 | L134: 712 | M134: 710 | N134: 643 | O134: 603
A135: Angle | B135: 482 | C135: =B135/SUM(B$134:B$143) -> 0.3739332816 | D135: 132 | E135: 103 | F135: 79 | G135: 93 | H135: 75 | I135: 15862 | J135: =I135/SUM(I$134:I$143) -> 0.2882689687 | K135: 3693 | L135: 3663 | M135: 3215 | N135: 2703 | O135: 2588
A136: Front to Front | B136: 1 | C136: 0.0007757951901 | D136: 0 | E136: 1 | F136: 0 | G136: 0 | H136: 0 | I136: 92 | J136: 0.001671967288 | K136: 19 | L136: 26 | M136: 14 | N136: 15 | O136: 18
A137: Front to Rear | B137: 122 | C137: 0.09464701319 | D137: 25 | E137: 28 | F137: 25 | G137: 26 | H137: 18 | I137: 8057 | J137: 0.1464243526 | K137: 1353 | L137: 1860 | M137: 1733 | N137: 1614 | O137: 1497
A138: Rear to Rear | B138: 550 | C138: 0.4266873545 | D138: 131 | E138: 118 | F138: 93 | G138: 103 | H138: 105 | I138: 25398 | J138: 0.4615720127 | K138: 5821 | L138: 5668 | M138: 5403 | N138: 4463 | O138: 4043
A139: Rear to Side | B139: 0 | C139: 0 | D139: 0 | E139: 0 | F139: 0 | G139: 0 | H139: 0 | I139: 25 | J139: 0.0004543389368 | K139: 10 | L139: 5 | M139: 4 | N139: 3 | O139: 3
A140: Sideswipe, Opposite Direction | B140: 46 | C140: 0.03568657874 | D140: 9 | E140: 8 | F140: 11 | G140: 12 | H140: 6 | I140: 1795 | J140: 0.03262153567 | K140: 435 | L140: 393 | M140: 369 | N140: 298 | O140: 300
A141: Sideswipe, Same Direction | B141: 5 | C141: 0.00387897595 | D141: 2 | E141: 1 | F141: 1 | G141: 1 | H141: 0 | I141: 414 | J141: 0.007523852794 | K141: 87 | L141: 84 | M141: 101 | N141: 77 | O141: 65
A142: Other | B142: 0 | C142: 0 | D142: 0 | E142: 0 | F142: 0 | G142: 0 | H142: 0 | I142: 6 | J142: 0.0001090413448 | K142: 3 | L142: 2 | M142: 1 | N142: 0 | O142: 0
A143: Unknown | B143: 0 | C143: 0 | D143: 0 | E143: 0 | F143: 0 | G143: 0 | H143: 0 | I143: 0 | J143: 0 | K143: 0 | L143: 0 | M143: 0 | N143: 0 | O143: 0
A144: Weather
A145: Blowing Sand, Soil, Dirt | B145: =SUM(D145:H145) -> 1162 | C145: =B145/SUM(B$145:B$156) -> 0.9014740109 | D145: 287 | E145: 251 | F145: 196 | G145: 225 | H145: 203 | I145: =SUM(K145:O145) -> 45988 | J145: =I145/SUM(I$145:I$156) -> 0.8357655611 | K145: 10587 | L145: 10010 | M145: 9343 | N145: 8023 | O145: 8025
A146: Blowing Snow | B146: 2 | C146: =B146/SUM(B$145:B$156) -> 0.00155159038 | D146: 2 | E146: 0 | F146: 0 | G146: 0 | H146: 0 | I146: 24 | J146: =I146/SUM(I$145:I$156) -> 0.0004361653794 | K146: 11 | L146: 13 | M146: 0 | N146: 0 | O146: 0
A147: Clear | B147: 5 | C147: 0.00387897595 | D147: 1 | E147: 0 | F147: 0 | G147: 2 | H147: 2 | I147: 32 | J147: 0.0005815538392 | K147: 6 | L147: 3 | M147: 7 | N147: 4 | O147: 12
A148: Cloudy | B148: 24 | C148: 0.01861908456 | D148: 3 | E148: 5 | F148: 7 | G148: 5 | H148: 4 | I148: 2425 | J148: 0.04407087687 | K148: 320 | L148: 630 | M148: 709 | N148: 504 | O148: 262
A149: Fog, Smog, Smoke | B149: 0 | C149: 0 | D149: 0 | E149: 0 | F149: 0 | G149: 0 | H149: 0 | I149: 63 | J149: 0.001144934121 | K149: 30 | L149: 33 | M149: 0 | N149: 0 | O149: 0
A150: Freezing Rain or Freezing Drizzle | B150: 1 | C150: 0.0007757951901 | D150: 1 | E150: 0 | F150: 0 | G150: 0 | H150: 0 | I150: 20 | J150: 0.0003634711495 | K150: 4 | L150: 5 | M150: 7 | N150: 1 | O150: 3
A151: Rain | B151: 4 | C151: 0.00310318076 | D151: 1 | E151: 1 | F151: 1 | G151: 1 | H151: 0 | I151: 398 | J151: 0.007233075875 | K151: 75 | L151: 111 | M151: 78 | N151: 76 | O151: 58
A152: Severe Crosswinds | B152: 0 | C152: 0 | D152: 0 | E152: 0 | F152: 0 | G152: 0 | H152: 0 | I152: 19 | J152: 0.000345297592 | K152: 8 | L152: 11 | M152: 0 | N152: 0 | O152: 0
A153: Sleet or Hail | B153: 14 | C153: 0.01086113266 | D153: 6 | E153: 3 | F153: 3 | G153: 1 | H153: 1 | I153: 1623 | J153: 0.02949568378 | K153: 308 | L153: 385 | M153: 389 | N153: 339 | O153: 202
A154: Snow | B154: 1 | C154: 0.0007757951901 | D154: 0 | E154: 1 | F154: 0 | G154: 0 | H154: 0 | I154: 65 | J154: 0.001181281236 | K154: 29 | L154: 35 | M154: 1 | N154: 0 | O154: 0
A155: Other | B155: 2 | C155: 0.00155159038 | D155: 0 | E155: 0 | F155: 2 | G155: 0 | H155: 0 | I155: 359 | J155: 0.006524307133 | K155: 9 | L155: 1 | M155: 147 | N155: 116 | O155: 86
A156: Unknown | B156: 74 | C156: 0.05740884407 | D156: 18 | E156: 14 | F156: 14 | G156: 14 | H156: 14 | I156: 4009 | J156: 0.07285779191 | K156: 742 | L156: 1176 | M156: 869 | N156: 753 | O156: 469
A157: Light Conditions
A158: Daylight | B158: =SUM(D158:H158) -> 55 | C158: =B158/SUM(B$158:B$164) -> 0.04266873545 | D158: 15 | E158: 11 | F158: 13 | G158: 7 | H158: 9 | I158: =SUM(K158:O158) -> 1886 | J158: =I158/SUM(I$158:I$164) -> 0.0342753294 | K158: 378 | L158: 428 | M158: 381 | N158: 338 | O158: 361
A159: Dawn/Dusk | B159: =SUM(D159:H159) -> 67 | C159: =B159/SUM(B$158:B$164) -> 0.05197827773 | D159: 17 | E159: 7 | F159: 15 | G159: 10 | H159: 18 | I159: =SUM(K159:O159) -> 2128 | J159: =I159/SUM(I$158:I$164) -> 0.0386733303 | K159: 401 | L159: 451 | M159: 458 | N159: 412 | O159: 406
A160: Dark - Lighted | B160: 5 | C160: 0.00387897595 | D160: 0 | E160: 1 | F160: 0 | G160: 1 | H160: 3 | I160: 161 | J160: 0.002925942753 | K160: 39 | L160: 33 | M160: 33 | N160: 30 | O160: 26
A161: Dark - Not Lighted | B161: 340 | C161: 0.2637703646 | D161: 101 | E161: 66 | F161: 51 | G161: 63 | H161: 59 | I161: 13243 | J161: 0.2406724216 | K161: 2992 | L161: 3113 | M161: 2795 | N161: 2258 | O161: 2085
A162: Dark - Unknown Lighting | B162: 821 | C162: 0.636927851 | D162: 185 | E162: 190 | F162: 144 | G162: 167 | H162: 135 | I162: 37589 | J162: 0.6831258519 | K162: 8313 | L162: 8381 | M162: 7883 | N162: 6774 | O162: 6238
A163: Other | B163: 1 | C163: 0.0007757951901 | D163: 1 | E163: 0 | F163: 0 | G163: 0 | H163: 0 | I163: 18 | J163: 0.0003271240345 | K163: 6 | L163: 7 | M163: 0 | N163: 4 | O163: 1
A164: Unknown | B164: 0 | C164: 0 | D164: 0 | E164: 0 | F164: 0 | G164: 0 | H164: 0 | I164: 0 | J164: 0 | K164: 0 | L164: 0 | M164: 0 | N164: 0 | O164: 0
A165: Road Surface Condition
A166: Dry | B166: =SUM(D166:H166) -> 550 | C166: =B166/SUM(B$166:B$176) -> 0.4266873545 | D166: 131 | E166: 118 | F166: 93 | G166: 103 | H166: 105 | I166: =SUM(K166:O166) -> 414 | J166: =I166/SUM(I$166:I$176) -> 0.007523852794 | K166: 87 | L166: 84 | M166: 101 | N166: 77 | O166: 65
A167: Ice/Frost | B167: 0 | C167: =B167/SUM(B$166:B$176) -> 0 | D167: 0 | E167: 0 | F167: 0 | G167: 0 | H167: 0 | I167: 6 | J167: =I167/SUM(I$166:I$176) -> 0.0001090413448 | K167: 3 | L167: 2 | M167: 1 | N167: 0 | O167: 0
A168: Mud, Dirt, Gravel | B168: 46 | C168: 0.03568657874 | D168: 9 | E168: 8 | F168: 11 | G168: 12 | H168: 6 | I168: 0 | J168: 0 | K168: 0 | L168: 0 | M168: 0 | N168: 0 | O168: 0
A169: Oil | B169: 5 | C169: 0.00387897595 | D169: 2 | E169: 1 | F169: 1 | G169: 1 | H169: 0 | I169: 3376 | J169: 0.06135393003 | K169: 708 | L169: 712 | M169: 710 | N169: 643 | O169: 603
A170: Sand | B170: 0 | C170: 0 | D170: 0 | E170: 0 | F170: 0 | G170: 0 | H170: 0 | I170: 15862 | J170: 0.2882689687 | K170: 3693 | L170: 3663 | M170: 3215 | N170: 2703 | O170: 2588
A171: Sluch | B171: 0 | C171: 0 | D171: 0 | E171: 0 | F171: 0 | G171: 0 | H171: 0 | I171: 92 | J171: 0.001671967288 | K171: 19 | L171: 26 | M171: 14 | N171: 15 | O171: 18
A172: Snow | B172: 83 | C172: 0.06439100078 | D172: 20 | E172: 16 | F172: 14 | G172: 13 | H172: 20 | I172: 8057 | J172: 0.1464243526 | K172: 1353 | L172: 1860 | M172: 1733 | N172: 1614 | O172: 1497
A173: Water (Standing, Moving) | B173: 482 | C173: 0.3739332816 | D173: 132 | E173: 103 | F173: 79 | G173: 93 | H173: 75 | I173: 25398 | J173: 0.4615720127 | K173: 5821 | L173: 5668 | M173: 5403 | N173: 4463 | O173: 4043
A174: Wet | B174: 1 | C174: 0.0007757951901 | D174: 0 | E174: 1 | F174: 0 | G174: 0 | H174: 0 | I174: 25 | J174: 0.0004543389368 | K174: 10 | L174: 5 | M174: 4 | N174: 3 | O174: 3
A175: Other | B175: 122 | C175: 0.09464701319 | D175: 25 | E175: 28 | F175: 25 | G175: 26 | H175: 18 | I175: 1795 | J175: 0.03262153567 | K175: 435 | L175: 393 | M175: 369 | N175: 298 | O175: 300
A176: Unknown | B176: 0 | C176: 0 | D176: 0 | E176: 0 | F176: 0 | G176: 0 | H176: 0 | I176: 0 | J176: 0 | K176: 0 | L176: 0 | M176: 0 | N176: 0 | O176: 0
A177: Contributing Circumstances - Roadway Environment, Selection 1
A178: None | B178: =SUM(D178:H178) -> 0 | C178: =B178/SUM(B$178:B$200) -> 0 | D178: 0 | E178: 0 | F178: 0 | G178: 0 | H178: 0 | I178: =SUM(K178:O178) -> 9 | J178: =I178/SUM(I$178:I$200) -> 0.0001635620173 | K178: 1 | L178: 0 | M178: 4 | N178: 4 | O178: 0
A179: Animal(s) | B179: 117 | C179: =B179/SUM(B$178:B$200) -> 0.09076803724 | D179: 36 | E179: 15 | F179: 21 | G179: 28 | H179: 17 | I179: 3619 | J179: =I179/SUM(I$178:I$200) -> 0.0657701045 | K179: 804 | L179: 804 | M179: 750 | N179: 641 | O179: 620
A180: Debris | B180: 1 | C180: 0.0007757951901 | D180: 0 | E180: 0 | F180: 0 | G180: 0 | H180: 1 | I180: 42 | J180: 0.0007632894139 | K180: 12 | L180: 11 | M180: 9 | N180: 3 | O180: 7
A181: Glare | B181: 40 | C181: 0.0310318076 | D181: 9 | E181: 9 | F181: 6 | G181: 11 | H181: 5 | I181: 472 | J181: 0.008577919128 | K181: 97 | L181: 91 | M181: 94 | N181: 107 | O181: 83
A182: Non-Highway Work | B182: 6 | C182: 0.00465477114 | D182: 1 | E182: 1 | F182: 3 | G182: 0 | H182: 1 | I182: 113 | J182: 0.002053611995 | K182: 22 | L182: 25 | M182: 23 | N182: 20 | O182: 23
A183: Obstructed Crosswalks | B183: 135 | C183: 0.1047323507 | D183: 41 | E183: 27 | F183: 21 | G183: 18 | H183: 28 | I183: 5920 | J183: 0.1075874602 | K183: 1417 | L183: 1314 | M183: 1221 | N183: 1014 | O183: 954
A184: Obstruction in Roadway | B184: 2 | C184: 0.00155159038 | D184: 2 | E184: 0 | F184: 0 | G184: 0 | H184: 0 | I184: 327 | J184: 0.005942753294 | K184: 52 | L184: 84 | M184: 70 | N184: 79 | O184: 42
A185: Prior Crash | B185: 53 | C185: 0.04111714507 | D185: 12 | E185: 8 | F185: 9 | G185: 13 | H185: 11 | I185: 1359 | J185: 0.02469786461 | K185: 237 | L185: 282 | M185: 360 | N185: 271 | O185: 209
A186: Prior Non-Recurring Incident | B186: 4 | C186: 0.00310318076 | D186: 1 | E186: 0 | F186: 2 | G186: 1 | H186: 0 | I186: 128 | J186: 0.002326215357 | K186: 24 | L186: 29 | M186: 30 | N186: 23 | O186: 22
A187: Regular Congestion | B187: 10 | C187: 0.007757951901 | D187: 1 | E187: 3 | F187: 2 | G187: 3 | H187: 1 | I187: 89 | J187: 0.001617446615 | K187: 17 | L187: 26 | M187: 13 | N187: 17 | O187: 16
A188: Related to a Bus Stop | B188: 6 | C188: 0.00465477114 | D188: 2 | E188: 1 | F188: 1 | G188: 2 | H188: 0 | I188: 554 | J188: 0.01006815084 | K188: 103 | L188: 131 | M188: 93 | N188: 136 | O188: 91
A189: Road Surface Condition (wet, icy, snow, slush, etc.) | B189: 0 | C189: 0 | D189: 0 | E189: 0 | F189: 0 | G189: 0 | H189: 0 | I189: 51 | J189: 0.0009268514312 | K189: 7 | L189: 11 | M189: 13 | N189: 11 | O189: 9
A190: Ruts, Holes, Bumps | B190: 1 | C190: 0.0007757951901 | D190: 0 | E190: 0 | F190: 0 | G190: 0 | H190: 1 | I190: 69 | J190: 0.001253975466 | K190: 13 | L190: 10 | M190: 14 | N190: 17 | O190: 15
A191: Shoulders (none, low, soft, high) | B191: 8 | C191: 0.006206361521 | D191: 2 | E191: 2 | F191: 2 | G191: 1 | H191: 1 | I191: 308 | J191: 0.005597455702 | K191: 66 | L191: 71 | M191: 70 | N191: 62 | O191: 39
A192: Toll Booth/Plaza Related | B192: 7 | C192: 0.00543056633 | D192: 1 | E192: 1 | F192: 4 | G192: 1 | H192: 0 | I192: 748 | J192: 0.01359382099 | K192: 125 | L192: 166 | M192: 158 | N192: 167 | O192: 132
A193: Traffic Control Device | B193: 20 | C193: 0.0155159038 | D193: 3 | E193: 6 | F193: 4 | G193: 3 | H193: 4 | I193: 588 | J193: 0.01068605179 | K193: 124 | L193: 135 | M193: 120 | N193: 113 | O193: 96
A194: Traffic Incident | B194: 22 | C194: 0.01706749418 | D194: 6 | E194: 10 | F194: 4 | G194: 1 | H194: 1 | I194: 224 | J194: 0.004070876874 | K194: 50 | L194: 58 | M194: 50 | N194: 45 | O194: 21
A195: Visual Obstruction(s) | B195: 7 | C195: 0.00543056633 | D195: 3 | E195: 1 | F195: 2 | G195: 1 | H195: 0 | I195: 298 | J195: 0.005415720127 | K195: 71 | L195: 66 | M195: 64 | N195: 53 | O195: 44
A196: Weather Conditions | B196: 2 | C196: 0.00155159038 | D196: 1 | E196: 1 | F196: 0 | G196: 0 | H196: 0 | I196: 81 | J196: 0.001472058155 | K196: 15 | L196: 25 | M196: 12 | N196: 11 | O196: 18
A197: Work Zone (construction/maintenance/utility) | B197: 27 | C197: 0.02094647013 | D197: 7 | E197: 6 | F197: 4 | G197: 2 | H197: 8 | I197: 700 | J197: 0.01272149023 | K197: 157 | L197: 167 | M197: 134 | N197: 124 | O197: 118
A198: Worn, Travel-polished Surface | B198: 1 | C198: 0.0007757951901 | D198: 0 | E198: 0 | F198: 0 | G198: 0 | H198: 1 | I198: 60 | J198: 0.001090413448 | K198: 10 | L198: 16 | M198: 17 | N198: 11 | O198: 6
A199: Other | B199: 10 | C199: 0.007757951901 | D199: 1 | E199: 1 | F199: 4 | G199: 0 | H199: 4 | I199: 407 | J199: 0.007396637892 | K199: 65 | L199: 103 | M199: 86 | N199: 78 | O199: 75
A200: Unknown | B200: 810 | C200: 0.628394104 | D200: 190 | E200: 183 | F200: 134 | G200: 163 | H200: 140 | I200: 38859 | J200: 0.7062062699 | K200: 8640 | L200: 8788 | M200: 8145 | N200: 6809 | O200: 6477
... 377 more rows

Sheet Comparison Group 3 Accessible (hidden)
A1: =CONCATENATE("Fatal and Serious Injury Crashes Only - ",A2, " ",Instructions!$B$12) -> Fatal and Serious Injury Crashes Only - Overall Numbers Test Group 3 | I1: =CONCATENATE("Total Crashes - ",I2, " ",Instructions!$B$12) -> Total Crashes - Overall Numbers Test Group 3
A2: Overall Numbers | B2: Number of Crashes | C2: Percent of Crashes | D2: Year 5 Crashes | E2: Year 4 Crashes | F2: Year 3 Crashes | G2: Year 2 Crashes | H2: Year 1 Crashes | I2: Overall Numbers | J2: Number of Crashes | K2: Percent of Crashes | L2: Year 5 Crashes | M2: Year 4 Crashes | N2: Year 3 Crashes | O2: Year 2 Crashes | P2: Year 1 Crashes
A3: Total # of Collisions | B3: =SUM(D3:H3) -> 1289 | C3: N/A | D3: 319 | E3: 275 | F3: 223 | G3: 248 | H3: 224 | I3: =A3 -> Total # of Collisions | J3: =SUM(L3:P3) -> 55025 | K3: N/A | L3: 12129 | M3: 12413 | N3: 11550 | O3: 9816 | P3: 9117
A4: # of Fatal Collisions | B4: 184 | C4: =B4/B3 -> 0.142746315 | D4: 58 | E4: 41 | F4: 31 | G4: 31 | H4: 23 | I4: # of Fatal Collisions | J4: 184 | K4: =J4/J3 -> 0.003343934575 | L4: 58 | M4: 41 | N4: 31 | O4: 31 | P4: 23
A5: # of Serious Injury Collisions | B5: 1105 | C5: =B5/B3 -> 0.857253685 | D5: 261 | E5: 234 | F5: 192 | G5: 217 | H5: 201 | I5: # of Serious Injury Collisions | J5: 1105 | K5: =J5/J3 -> 0.02008178101 | L5: 261 | M5: 234 | N5: 192 | O5: 217 | P5: 201
A6: # of Alcohol-Related Collisions | B6: 249 | C6: =B6/B3 -> 0.1931730023 | D6: 53 | E6: 45 | F6: 46 | G6: 60 | H6: 45 | I6: # of Alcohol-Related Collisions | J6: 2939 | K6: =J6/J3 -> 0.05341208542 | L6: 614 | M6: 552 | N6: 576 | O6: 584 | P6: 613
A7: Total # of Fatalities | B7: 195 | C7: N/A | D7: 60 | E7: 45 | F7: 31 | G7: 32 | H7: 27 | I7: Total # of Fatalities | J7: 195 | K7: N/A | L7: 60 | M7: 45 | N7: 31 | O7: 32 | P7: 27
A8: Total # of Serious Injuries | B8: 1989 | C8: N/A | D8: 486 | E8: 422 | F8: 343 | G8: 403 | H8: 335 | I8: Total # of Serious Injuries | J8: 18776 | K8: N/A | L8: 4281 | M8: 3976 | N8: 3917 | O8: 3331 | P8: 3271
A9: =CONCATENATE("Fatal and Serious Injury Crashes Only - ",A10, " ",Instructions!$B$12) -> Fatal and Serious Injury Crashes Only - Most Severe Injury Reported Test Group 3 | I9: =CONCATENATE("Total Crashes - ",I10, " ",Instructions!$B$12) -> Total Crashes - Most Severe Injury Reported Test Group 3
A10: Most Severe Injury Reported | B10: Number of Crashes | C10: Percent of Crashes | D10: Year 5 Crashes | E10: Year 4 Crashes | F10: Year 3 Crashes | G10: Year 2 Crashes | H10: Year 1 Crashes | I10: Most Severe Injury Reported | J10: Number of Crashes | K10: Percent of Crashes | L10: Year 5 Crashes | M10: Year 4 Crashes | N10: Year 3 Crashes | O10: Year 2 Crashes | P10: Year 1 Crashes
A11: 5 (K) | B11: =SUM(D11:H11) -> 184 | C11: =B11/SUM(B$11:B$15) -> 0.142746315 | D11: 58 | E11: 41 | F11: 31 | G11: 31 | H11: 23 | I11: =A11 -> 5 (K) | J11: =SUM(L11:P11) -> 184 | K11: =J11/SUM(J$11:J$15) -> 0.003343934575 | L11: 58 | M11: 41 | N11: 31 | O11: 31 | P11: 23
A12: 4 (A) | B12: =SUM(D12:H12) -> 1105 | C12: =B12/SUM(B$11:B$15) -> 0.857253685 | D12: 261 | E12: 234 | F12: 192 | G12: 217 | H12: 201 | I12: =A12 -> 4 (A) | J12: =SUM(L12:P12) -> 1105 | K12: =J12/SUM(J$11:J$15) -> 0.02008178101 | L12: 261 | M12: 234 | N12: 192 | O12: 217 | P12: 201
A13: 3 (B) | B13: N/A | C13: N/A | D13: N/A | E13: N/A | F13: N/A | G13: N/A | H13: N/A | I13: =A13 -> 3 (B) | J13: =SUM(L13:P13) -> 3082 | K13: =J13/SUM(J$11:J$15) -> 0.05601090413 | L13: 667 | M13: 617 | N13: 634 | O13: 564 | P13: 600
A14: 2 (C) | B14: N/A | C14: N/A | D14: N/A | E14: N/A | F14: N/A | G14: N/A | H14: N/A | I14: =A14 -> 2 (C) | J14: =SUM(L14:P14) -> 9284 | K14: 0.1687233076 | L14: 2107 | M14: 2037 | N14: 1978 | O14: 1627 | P14: 1535
A15: 1 (O) | B15: N/A | C15: N/A | D15: N/A | E15: N/A | F15: N/A | G15: N/A | H15: N/A | I15: =A15 -> 1 (O) | J15: =SUM(L15:P15) -> 41370 | K15: 0.7518400727 | L15: 9036 | M15: 9484 | N15: 8715 | O15: 7377 | P15: 6758
A16: =CONCATENATE("Fatal and Serious Injury Crashes Only - ",A17, " ",Instructions!$B$12) -> Fatal and Serious Injury Crashes Only - Property Test Group 3 | I16: =CONCATENATE("Total Crashes - ",I17, " ",Instructions!$B$12) -> Total Crashes - Property Test Group 3
A17: Property | B17: Number of Crashes | C17: Percent of Crashes | D17: Year 5 Crashes | E17: Year 4 Crashes | F17: Year 3 Crashes | G17: Year 2 Crashes | H17: Year 1 Crashes | I17: Property | J17: Number of Crashes | K17: Percent of Crashes | L17: Year 5 Crashes | M17: Year 4 Crashes | N17: Year 3 Crashes | O17: Year 2 Crashes | P17: Year 1 Crashes
